Workbook

Sheet Исходные данные
B3: My | O3: 106
E6: D | F6: 150 | G6: мм | L6: =O3-5 -> 101 | AM6: Радиус конуса в месте перелома опт. Оси | AN6: =(((F6-F10)*(F12/(F36-F62)))+F10)/2 -> 22.32598246 | AP6: =(((F6-F18)*(F12/(F36-F62)))+F18)/2 -> 21.16491228
E8: A | F8: 1/ | G8: 5 | R8: =S8+T8*U8+V8*W8 -> 5.899 | S8: 1 | T8: 0.1 | U8: 48 | V8: 0.001 | W8: 99 | AM8: Угловой радиус схождения конуса | AN8: =DEGREES(ATAN((F6/2-F10/2)/(F36-F62))) -> 5.007793639 | AP8: =DEGREES(ATAN((F6/2-F18/2)/(F36-F62))) -> 5.117598344
E10: d | F10: 18.89 | G10: мм | AM10: Малая полуось большой оси ДЗ | AN10: =$AN$6*SIN(RADIANS(90-$AN$8))/SIN(RADIANS(45+$AN$8)) -> 29.02993767 | AP10: =$AP$6*SIN(RADIANS(90-$AP$8))/SIN(RADIANS(180-45-(90-$AP$8))) -> 27.47144002
E12: H | F12: 147 | G12: мм | AM12: Большая полуось большой оси ДЗ | AN12: =$AN$6*SIN(RADIANS(90+$AN$8))/SIN(RADIANS(45-$AN$8)) -> 34.60609122 | AP12: =$AP$6*SIN(RADIANS(90+$AP$8))/SIN(RADIANS(180-45-(90+$AP$8))) -> 32.87598832 | BA12: =1/2+1/3 -> 0.8333333333
F13: 150
E14: L2 | F14: 50 | G14: мм | AM14: Минимальная высота диафрагмирования | AN14: =(F34-F32)/2 -> 2 | AO14: 0 | BA14: =(2+3)/6 -> 0.8333333333
E16: ΔT | F16: 3 | G16: мм | K16: Параметры готового компелекта оптики
E18: dmax | F18: 16 | G18: мм | K18: Диаметр ГЗ | L18: D | N18: 150 | O18: мм | Q18: =ROUND(N20/N18,6) -> 5
E20: BPM | F20: 18 | G20: мм | K20: Фокусное расстояние ГЗ | L20: F | N20: 750 | O20: мм
E22: BSM | F22: 4.7 | G22: мм | K22: Малая ось ДЗ | L22: b | N22: 45 | O22: мм | Q22: =ROUND(IF(ISERROR((N18*(N22*SQRT(2))-2*SQRT(2)*(N20-F62)^2+2*(N20-F62)*SQRT(2*(N20-F62)^2-4*(N20-F62)*F12+2*F12^2+(N22*SQRT(2))^2-SQRT(2)*N18*(N22*SQRT(2)))+2*SQRT(2)*N20*F12)/(N22*SQRT(2))),"",(N18*(N22*SQRT(2))-2*SQRT(2)*(N20-F62)^2+2*(N20-F62)*SQRT(2*(N20-F62)^2-4*(N20-F62)*F12+2*F12^2+(N22*SQRT(2))^2-SQRT(2)*N18*(N22*SQRT(2)))+2*SQRT(2)*(N20-F62)*F12)/(N22*SQRT(2))),2) -> 18.89 | AR22: =4*F36*(SIN(RADIANS(45+AN26)))^2 -> 1760.231848
N23: 45
E24: r | F24: 15 | G24: мм | K24: Положение фокальной плоскости над трубой | AM24: d= | AN24: =(F6-F10)*F12/(2*F36)+F10/2 -> 22.29378
E26: n | F26: 60 | G26: мм | L26: h | N26: 60 | O26: мм | AN26: =DEGREES(ATAN((F6-F10)/(F36*2))) -> 4.99533758
F28: 0 | G28: мм
E30: ΔB | F30: 0 | G30: мм | AN30: =(2*F12*(F6-F10)+2*F36*F10)*SIN(RADIANS(90-AN26))/(4*F36*SIN(RADIANS(45+AN26))) -> 28.99390541
E32: Dо | F32: 164 | G32: мм | AN32: =(2*F12*(F6-F10)+2*F36*F10)*SIN(RADIANS(90+AN26))/(4*F36*SIN(RADIANS(45-AN26))) -> 34.54788117
E34: Dт | F34: 168 | G34: мм
E36: F | F36: 750 | G36: мм | AN36: =AN12*SIN(RADIANS(45)) -> 24.47020177
E38: γ | F38: =TEXT(AO42,"00")&"º"&TEXT(AO44,"00")&"'"&TEXT(AO46,"00")&"""" -> 01º26'34"
E40: γmax | F40: =TEXT(AS42,"00")&"º"&TEXT(AS44,"00")&"'"&TEXT(AS46,"00")&"""" -> 01º13'20" | AN40: Не виньетированное поле | AR40: Максимальное поле
E42: *Kob | F42: =F46/F6*100 -> 29.99831171 | G42: % | AN42: =DEGREES(ATAN(F10/2/F36))*2 -> 1.44301342 | AO42: =INT(AN42) -> 1 | AP42: град | AR42: =DEGREES(ATAN(F18/2/F36))*2 -> 1.222263609 | AS42: =INT(AR42) -> 1 | AT42: град
E44: **Kvi | F44: =(PI()*(F46/2)^2)/(PI()*(F6/2)^2)*100 -> 8.998987053 | G44: % | AN44: =60*(AN42-INT(AN42)) -> 26.58080518 | AO44: =INT(AN44) -> 26 | AP44: мин | AR44: =60*(AR42-INT(AR42)) -> 13.33581653 | AS44: =INT(AR44) -> 13 | AT44: мин
E46: b | F46: =(AN10+AN12)*SIN(RADIANS(45)) -> 44.99746756 | G46: мм | AN46: =60*(AN44-INT(AN44)) -> 34.84831109 | AO46: =INT(AN46) -> 34 | AP46: сек | AR46: =60*(AR44-INT(AR44)) -> 20.14899194 | AS46: =INT(AR46) -> 20 | AT46: сек
E48: a | F48: 35 | G48: мм
E50: ΔC1 | F50: =F46/SIN(RADIANS(45))/2-AN10 -> 2.788076775 | G50: мм
E52: ΔC2 | F52: =F50*SIN(RADIANS(45)) -> 1.971467994 | G52: мм | AN52: =(2*F12*(F6-F10)+2*F36*F10)*SIN(RADIANS(90-AN26)) -> 66627.31043 | AP52: =AN52/AN54 -> 28.99390541
E54: DОР | F54: =F18*F60/F36+F6 -> 164.144 | G54: мм | AN54: =(4*F36*SIN(RADIANS(45+AN26))) -> 2297.976402
E56: h | F56: 60
E58: L | F58: =F60+F14 -> 713 | G58: мм | AM58: Расстояние от края трубы до первой диафрагмы | AN58: =ROUND(Чертёж!HR2323-F16,1) -> -13.3
E60: L1 | F60: =F36-F12+F26+F28 -> 663 | G60: мм | AN60: =AN10*SIN(RADIANS(45)) -> 20.52726579
E62: C | F62: =(F6/2)^2/(4*F36) -> 1.875 | G62: мм
E64: e | F64: =Чертёж!$HP$2218 -> 27.256 | G64: мм | BN64: Стрелка кривизны параболы | BO64: =(F6/2)^2/(4*F36) -> 1.875 | BP64: мм
BN65: Стрелка кривизны сферы | BO65: =F36*2-SQRT((F36*2)^2-(F6/2)^2) -> 1.876173342 | BP65: мм
B66: ПРОГРАММА ПРОЕКТИРОВАНИЯ ТЕЛЕСКОПОВ СИСТЕМЫ НЬЮТОНА | BN66: Разница | BO66: =BO65-BO64 -> 0.001173342137 | BP66: мм
F102: =(F36-F62) -> 748.125
BL992: =0.000556/$F$6 -> 3.706666667e-06
BG1069: -75 | BH1069: -15.00000001 | BI1069: =BesselE('Исходные данные'!$F$42/100,BH1069) -> 0.001470931812 | BJ1069: =BesselE(0.00000000001,BH1069) -> 0.0007478696273 | BK1069: =TEXT(DEGREES(('Исходные данные'!BH1069/PI())*$BL$992)*1800,"0,00")&"""" -> -0,02"
BG1070: -74 | BH1070: -14.80000001 | BI1070: =BesselE('Исходные данные'!$F$42/100,BH1070) -> 0.001472617598 | BJ1070: 0.0007794325856 | BK1070: =TEXT(DEGREES(('Исходные данные'!BH1070/PI())*$BL$992)*1800,"0,00")&"""" -> -0,02"
BG1071: -73 | BH1071: -14.60000001 | BI1071: =BesselE('Исходные данные'!$F$42/100,BH1071) -> 0.001381853641 | BJ1071: 0.0007495042677 | BK1071: =TEXT(DEGREES(('Исходные данные'!BH1071/PI())*$BL$992)*1800,"0,00")&"""" -> -0,02"
BG1072: -72 | BH1072: -14.40000001 | BI1072: =BesselE('Исходные данные'!$F$42/100,BH1072) -> 0.001205635841 | BJ1072: 0.0006604304791 | BK1072: =TEXT(DEGREES(('Исходные данные'!BH1072/PI())*$BL$992)*1800,"0,00")&"""" -> -0,02"
BG1073: -71 | BH1073: -14.20000001 | BI1073: =BesselE('Исходные данные'!$F$42/100,BH1073) -> 0.00096357832 | BJ1073: 0.0005245437646 | BK1073: =TEXT(DEGREES(('Исходные данные'!BH1073/PI())*$BL$992)*1800,"0,00")&"""" -> -0,02"
BG1074: -70 | BH1074: -14.00000001 | BI1074: =BesselE('Исходные данные'!$F$42/100,BH1074) -> 0.0006863545787 | BJ1074: 0.0003630394325 | BK1074: =TEXT(DEGREES(('Исходные данные'!BH1074/PI())*$BL$992)*1800,"0,00")&"""" -> -0,02"
BG1075: -69 | BH1075: -13.80000001 | BI1075: =BesselE('Исходные данные'!$F$42/100,BH1075) -> 0.0004123548537 | BJ1075: 0.0002033332079 | BK1075: =TEXT(DEGREES(('Исходные данные'!BH1075/PI())*$BL$992)*1800,"0,00")&"""" -> -0,02"
BG1076: -68 | BH1076: -13.60000001 | BI1076: =BesselE('Исходные данные'!$F$42/100,BH1076) -> 0.0001828982204 | BJ1076: 7.519072626e-05 | BK1076: =TEXT(DEGREES(('Исходные данные'!BH1076/PI())*$BL$992)*1800,"0,00")&"""" -> -0,02"
BG1077: -67 | BH1077: -13.40000001 | BI1077: =BesselE('Исходные данные'!$F$42/100,BH1077) -> 3.658605271e-05 | BJ1077: 6.137837177e-06 | BK1077: =TEXT(DEGREES(('Исходные данные'!BH1077/PI())*$BL$992)*1800,"0,00")&"""" -> -0,02"
BG1078: -66 | BH1078: -13.20000001 | BI1078: =BesselE('Исходные данные'!$F$42/100,BH1078) -> 3.563292103e-06 | BJ1078: 1.681832681e-05 | BK1078: =TEXT(DEGREES(('Исходные данные'!BH1078/PI())*$BL$992)*1800,"0,00")&"""" -> -0,02"
BG1079: -65 | BH1079: -13.00000001 | BI1079: =BesselE('Исходные данные'!$F$42/100,BH1079) -> 0.0001005325956 | BJ1079: 0.0001170326212 | BK1079: =TEXT(DEGREES(('Исходные данные'!BH1079/PI())*$BL$992)*1800,"0,00")&"""" -> -0,02"
BG1080: -64 | BH1080: -12.80000001 | BI1080: =BesselE('Исходные данные'!$F$42/100,BH1080) -> 0.000327323553 | BJ1080: =BesselE(0.00000000001,BH1080) -> 0.0003031492211 | BK1080: =TEXT(DEGREES(('Исходные данные'!BH1080/PI())*$BL$992)*1800,"0,00")&"""" -> -0,02"
BG1081: -63 | BH1081: -12.60000001 | BI1081: =BesselE('Исходные данные'!$F$42/100,BH1081) -> 0.0006656512944 | BJ1081: 0.0005574271697 | BK1081: =TEXT(DEGREES(('Исходные данные'!BH1081/PI())*$BL$992)*1800,"0,00")&"""" -> -0,02"
BG1082: -62 | BH1082: -12.40000001 | BI1082: =BesselE('Исходные данные'!$F$42/100,BH1082) -> 0.001080421107 | BJ1082: 0.0008495367576 | BK1082: =TEXT(DEGREES(('Исходные данные'!BH1082/PI())*$BL$992)*1800,"0,00")&"""" -> -0,02"
BG1083: -61 | BH1083: -12.20000001 | BI1083: =BesselE('Исходные данные'!$F$42/100,BH1083) -> 0.001523581163 | BJ1083: 0.001140247056 | BK1083: =TEXT(DEGREES(('Исходные данные'!BH1083/PI())*$BL$992)*1800,"0,00")&"""" -> -0,01"
BG1084: -60 | BH1084: -12.00000001 | BI1084: =BesselE('Исходные данные'!$F$42/100,BH1084) -> 0.001940141512 | BJ1084: 0.001386905786 | BK1084: =TEXT(DEGREES(('Исходные данные'!BH1084/PI())*$BL$992)*1800,"0,00")&"""" -> -0,01"
BG1085: -59 | BH1085: -11.80000001 | BI1085: =BesselE('Исходные данные'!$F$42/100,BH1085) -> 0.002275619824 | BJ1085: 0.001550020042 | BK1085: =TEXT(DEGREES(('Исходные данные'!BH1085/PI())*$BL$992)*1800,"0,00")&"""" -> -0,01"
BG1086: -58 | BH1086: -11.60000001 | BI1086: =BesselE('Исходные данные'!$F$42/100,BH1086) -> 0.002483899535 | BJ1086: 0.001600006547 | BK1086: =TEXT(DEGREES(('Исходные данные'!BH1086/PI())*$BL$992)*1800,"0,00")&"""" -> -0,01"
BG1087: -57 | BH1087: -11.40000001 | BI1087: =BesselE('Исходные данные'!$F$42/100,BH1087) -> 0.002534342744 | BJ1087: 0.001523061359 | BK1087: =TEXT(DEGREES(('Исходные данные'!BH1087/PI())*$BL$992)*1800,"0,00")&"""" -> -0,01"
BG1088: -56 | BH1088: -11.20000001 | BI1088: =BesselE('Исходные данные'!$F$42/100,BH1088) -> 0.00241702163 | BJ1088: 0.00132513091 | BK1088: =TEXT(DEGREES(('Исходные данные'!BH1088/PI())*$BL$992)*1800,"0,00")&"""" -> -0,01"
BG1089: -55 | BH1089: -11.00000001 | BI1089: =BesselE('Исходные данные'!$F$42/100,BH1089) -> 0.002145129466 | BJ1089: 0.001033158421 | BK1089: =TEXT(DEGREES(('Исходные данные'!BH1089/PI())*$BL$992)*1800,"0,00")&"""" -> -0,01"
BG1090: -54 | BH1090: -10.80000001 | BI1090: =BesselE('Исходные данные'!$F$42/100,BH1090) -> 0.001753991221 | BJ1090: 0.0006931184306 | BK1090: =TEXT(DEGREES(('Исходные данные'!BH1090/PI())*$BL$992)*1800,"0,00")&"""" -> -0,01"
BG1091: -53 | BH1091: -10.60000001 | BI1091: =BesselE('Исходные данные'!$F$42/100,BH1091) -> 0.001296574331 | BJ1091: 0.0003648003692 | BK1091: =TEXT(DEGREES(('Исходные данные'!BH1091/PI())*$BL$992)*1800,"0,00")&"""" -> -0,01"
BG1092: -52 | BH1092: -10.40000001 | BI1092: =BesselE('Исходные данные'!$F$42/100,BH1092) -> 0.0008359406527 | BJ1092: 0.0001138027904 | BK1092: =TEXT(DEGREES(('Исходные данные'!BH1092/PI())*$BL$992)*1800,"0,00")&"""" -> -0,01"
BG1093: -51 | BH1093: -10.2 | BI1093: =BesselE('Исходные данные'!$F$42/100,BH1093) -> 0.0004356042862 | BJ1093: 1.68274038e-06 | BK1093: =TEXT(DEGREES(('Исходные данные'!BH1093/PI())*$BL$992)*1800,"0,00")&"""" -> -0,01"
BG1094: -50 | BH1094: -10 | BI1094: =BesselE('Исходные данные'!$F$42/100,BH1094) -> 0.0001491854874 | BJ1094: 7.559518167e-05 | BK1094: =TEXT(DEGREES(('Исходные данные'!BH1094/PI())*$BL$992)*1800,"0,00")&"""" -> -0,01"
BG1095: -49 | BH1095: -9.800000005 | BI1095: =BesselE('Исходные данные'!$F$42/100,BH1095) -> 1.10038059e-05 | BJ1095: 0.0003589871835 | BK1095: =TEXT(DEGREES(('Исходные данные'!BH1095/PI())*$BL$992)*1800,"0,00")&"""" -> -0,01"
BG1096: -48 | BH1096: -9.600000005 | BI1096: =BesselE('Исходные данные'!$F$42/100,BH1096) -> 2.927763524e-05 | BJ1096: 0.0008449293731 | BK1096: =TEXT(DEGREES(('Исходные данные'!BH1096/PI())*$BL$992)*1800,"0,00")&"""" -> -0,01"
BG1097: -47 | BH1097: -9.400000005 | BI1097: =BesselE('Исходные данные'!$F$42/100,BH1097) -> 0.000183364859 | BJ1097: 0.001493447585 | BK1097: =TEXT(DEGREES(('Исходные данные'!BH1097/PI())*$BL$992)*1800,"0,00")&"""" -> -0,01"
BG1098: -46 | BH1098: -9.200000004 | BI1098: =BesselE('Исходные данные'!$F$42/100,BH1098) -> 0.000425997585 | BJ1098: 0.002233767622 | BK1098: =TEXT(DEGREES(('Исходные данные'!BH1098/PI())*$BL$992)*1800,"0,00")&"""" -> -0,01"
BG1099: -45 | BH1099: -9.000000004 | BI1099: =BesselE('Исходные данные'!$F$42/100,BH1099) -> 0.0006907780223 | BJ1099: 0.002971746781 | BK1099: =TEXT(DEGREES(('Исходные данные'!BH1099/PI())*$BL$992)*1800,"0,00")&"""" -> -0,01"
BG1100: -44 | BH1100: -8.800000004 | BI1100: =BesselE('Исходные данные'!$F$42/100,BH1100) -> 0.0009043920755 | BJ1100: 0.003602010357 | BK1100: =TEXT(DEGREES(('Исходные данные'!BH1100/PI())*$BL$992)*1800,"0,00")&"""" -> -0,01"
BG1101: -43 | BH1101: -8.600000004 | BI1101: =BesselE('Исходные данные'!$F$42/100,BH1101) -> 0.001002168672 | BJ1101: 0.004023537324 | BK1101: =TEXT(DEGREES(('Исходные данные'!BH1101/PI())*$BL$992)*1800,"0,00")&"""" -> -0,01"
BG1102: -42 | BH1102: -8.400000004 | BI1102: =BesselE('Исходные данные'!$F$42/100,BH1102) -> 0.0009448869516 | BJ1102: 0.004156757547 | BK1102: =TEXT(DEGREES(('Исходные данные'!BH1102/PI())*$BL$992)*1800,"0,00")&"""" -> -0,01"
BG1103: -41 | BH1103: -8.200000004 | BI1103: =BesselE('Исходные данные'!$F$42/100,BH1103) -> 0.0007342295414 | BJ1103: 0.003959742805 | BK1103: =TEXT(DEGREES(('Исходные данные'!BH1103/PI())*$BL$992)*1800,"0,00")&"""" -> -0,01"
BG1104: -40 | BH1104: -8.000000004 | BI1104: =BesselE('Исходные данные'!$F$42/100,BH1104) -> 0.0004240992042 | BJ1104: 0.00344088847 | BK1104: =TEXT(DEGREES(('Исходные данные'!BH1104/PI())*$BL$992)*1800,"0,00")&"""" -> -0,01"
BG1105: -39 | BH1105: -7.800000004 | BI1105: =BesselE('Исходные данные'!$F$42/100,BH1105) -> 0.0001252246081 | BJ1105: =BesselE(0.00000000001,BH1105) -> 0.002665653547 | BK1105: =TEXT(DEGREES(('Исходные данные'!BH1105/PI())*$BL$992)*1800,"0,00")&"""" -> -0,01"
BG1106: -38 | BH1106: -7.600000004 | BI1106: =BesselE('Исходные данные'!$F$42/100,BH1106) -> 1.098248743e-06 | BJ1106: 0.001755472597 | BK1106: =TEXT(DEGREES(('Исходные данные'!BH1106/PI())*$BL$992)*1800,"0,00")&"""" -> -0,01"
BG1107: -37 | BH1107: -7.400000004 | BI1107: =BesselE('Исходные данные'!$F$42/100,BH1107) -> 0.0002542800499 | BJ1107: 0.0008778423388 | BK1107: =TEXT(DEGREES(('Исходные данные'!BH1107/PI())*$BL$992)*1800,"0,00")&"""" -> -0,01"
BG1108: -36 | BH1108: -7.200000003 | BI1108: =BesselE('Исходные данные'!$F$42/100,BH1108) -> 0.001103372905 | BJ1108: 0.000227736782 | BK1108: =TEXT(DEGREES(('Исходные данные'!BH1108/PI())*$BL$992)*1800,"0,00")&"""" -> -0,01"
BG1109: -35 | BH1109: -7.000000003 | BI1109: =BesselE('Исходные данные'!$F$42/100,BH1109) -> 0.002752391105 | BJ1109: 1.790108259e-06 | BK1109: =TEXT(DEGREES(('Исходные данные'!BH1109/PI())*$BL$992)*1800,"0,00")&"""" -> -0,01"
BG1110: -34 | BH1110: -6.800000003 | BI1110: =BesselE('Исходные данные'!$F$42/100,BH1110) -> 0.005355623893 | BJ1110: 0.0003679475711 | BK1110: =TEXT(DEGREES(('Исходные данные'!BH1110/PI())*$BL$992)*1800,"0,00")&"""" -> -0,01"
BG1111: -33 | BH1111: -6.600000003 | BI1111: =BesselE('Исходные данные'!$F$42/100,BH1111) -> 0.008982253154 | BJ1111: 0.001434347239 | BK1111: =TEXT(DEGREES(('Исходные данные'!BH1111/PI())*$BL$992)*1800,"0,00")&"""" -> -0,01"
BG1112: -32 | BH1112: -6.400000003 | BI1112: =BesselE('Исходные данные'!$F$42/100,BH1112) -> 0.01358573342 | BJ1112: 0.003221893003 | BK1112: =TEXT(DEGREES(('Исходные данные'!BH1112/PI())*$BL$992)*1800,"0,00")&"""" -> -0,01"
BG1113: -31 | BH1113: -6.200000003 | BI1113: =BesselE('Исходные данные'!$F$42/100,BH1113) -> 0.01898313345 | BJ1113: 0.005645174488 | BK1113: =TEXT(DEGREES(('Исходные данные'!BH1113/PI())*$BL$992)*1800,"0,00")&"""" -> -0,01"
BG1114: -30 | BH1114: -6.000000003 | BI1114: =BesselE('Исходные данные'!$F$42/100,BH1114) -> 0.02484917676 | BJ1114: 0.008505995218 | BK1114: =TEXT(DEGREES(('Исходные данные'!BH1114/PI())*$BL$992)*1800,"0,00")&"""" -> -0,01"
BG1115: -29 | BH1115: -5.800000003 | BI1115: =BesselE('Исходные данные'!$F$42/100,BH1115) -> 0.03072858109 | BJ1115: 0.01150276544 | BK1115: =TEXT(DEGREES(('Исходные данные'!BH1115/PI())*$BL$992)*1800,"0,00")&"""" -> -0,01"
BG1116: -28 | BH1116: -5.600000003 | BI1116: =BesselE('Исходные данные'!$F$42/100,BH1116) -> 0.03606854529 | BJ1116: 0.01425745474 | BK1116: =TEXT(DEGREES(('Исходные данные'!BH1116/PI())*$BL$992)*1800,"0,00")&"""" -> -0,01"
BG1117: -27 | BH1117: -5.400000003 | BI1117: =BesselE('Исходные данные'!$F$42/100,BH1117) -> 0.04027100985 | BJ1117: 0.0163598113 | BK1117: =TEXT(DEGREES(('Исходные данные'!BH1117/PI())*$BL$992)*1800,"0,00")&"""" -> -0,01"
BG1118: -26 | BH1118: -5.200000003 | BI1118: =BesselE('Исходные данные'!$F$42/100,BH1118) -> 0.04276184188 | BJ1118: 0.01742633605 | BK1118: =TEXT(DEGREES(('Исходные данные'!BH1118/PI())*$BL$992)*1800,"0,00")&"""" -> -0,01"
BG1119: -25 | BH1119: -5.000000002 | BI1119: =BesselE('Исходные данные'!$F$42/100,BH1119) -> 0.04307163653 | BJ1119: 0.01716929463 | BK1119: =TEXT(DEGREES(('Исходные данные'!BH1119/PI())*$BL$992)*1800,"0,00")&"""" -> -0,01"
BG1120: -24 | BH1120: -4.800000002 | BI1120: =BesselE('Исходные данные'!$F$42/100,BH1120) -> 0.04092068046 | BJ1120: 0.01546912595 | BK1120: =TEXT(DEGREES(('Исходные данные'!BH1120/PI())*$BL$992)*1800,"0,00")&"""" -> -0,01"
BG1121: -23 | BH1121: -4.600000002 | BI1121: =BesselE('Исходные данные'!$F$42/100,BH1121) -> 0.03629907567 | BJ1121: 0.01244222267 | BK1121: =TEXT(DEGREES(('Исходные данные'!BH1121/PI())*$BL$992)*1800,"0,00")&"""" -> -0,01"
BG1122: -22 | BH1122: -4.400000002 | BI1122: =BesselE('Исходные данные'!$F$42/100,BH1122) -> 0.02953231734 | BJ1122: 0.008495436468 | BK1122: =TEXT(DEGREES(('Исходные данные'!BH1122/PI())*$BL$992)*1800,"0,00")&"""" -> -0,01"
BG1123: -21 | BH1123: -4.200000002 | BI1123: =BesselE('Исходные данные'!$F$42/100,BH1123) -> 0.0213229258 | BJ1123: 0.004358951187 | BK1123: =TEXT(DEGREES(('Исходные данные'!BH1123/PI())*$BL$992)*1800,"0,00")&"""" -> -0,01"
BG1124: -20 | BH1124: -4.000000002 | BI1124: =BesselE('Исходные данные'!$F$42/100,BH1124) -> 0.01276011617 | BJ1124: 0.001090430317 | BK1124: =TEXT(DEGREES(('Исходные данные'!BH1124/PI())*$BL$992)*1800,"0,00")&"""" -> 0,00"
BG1125: -19 | BH1125: -3.800000002 | BI1125: =BesselE('Исходные данные'!$F$42/100,BH1125) -> 0.005291899617 | BJ1125: 4.553409894e-05 | BK1125: =TEXT(DEGREES(('Исходные данные'!BH1125/PI())*$BL$992)*1800,"0,00")&"""" -> 0,00"
BG1126: -18 | BH1126: -3.600000002 | BI1126: =BesselE('Исходные данные'!$F$42/100,BH1126) -> 0.000657276285 | BJ1126: 0.002812861282 | BK1126: =TEXT(DEGREES(('Исходные данные'!BH1126/PI())*$BL$992)*1800,"0,00")&"""" -> 0,00"
BG1127: -17 | BH1127: -3.400000002 | BI1127: =BesselE('Исходные данные'!$F$42/100,BH1127) -> 0.0007800221371 | BJ1127: 0.01111484624 | BK1127: =TEXT(DEGREES(('Исходные данные'!BH1127/PI())*$BL$992)*1800,"0,00")&"""" -> 0,00"
BG1128: -16 | BH1128: -3.200000001 | BI1128: =BesselE('Исходные данные'!$F$42/100,BH1128) -> 0.007629624987 | BJ1128: 0.02667980207 | BK1128: =TEXT(DEGREES(('Исходные данные'!BH1128/PI())*$BL$992)*1800,"0,00")&"""" -> 0,00"
BG1129: -15 | BH1129: -3.000000001 | BI1129: =BesselE('Исходные данные'!$F$42/100,BH1129) -> 0.02305877333 | BJ1129: 0.05109376751 | BK1129: =TEXT(DEGREES(('Исходные данные'!BH1129/PI())*$BL$992)*1800,"0,00")&"""" -> 0,00"
BG1130: -14 | BH1130: -2.800000001 | BI1130: =BesselE('Исходные данные'!$F$42/100,BH1130) -> 0.04863002349 | BJ1130: 0.08564370737 | BK1130: =TEXT(DEGREES(('Исходные данные'!BH1130/PI())*$BL$992)*1800,"0,00")&"""" -> 0,00"
BG1131: -13 | BH1131: -2.600000001 | BI1131: =BesselE('Исходные данные'!$F$42/100,BH1131) -> 0.08544648311 | BJ1131: 0.1311655855 | BK1131: =TEXT(DEGREES(('Исходные данные'!BH1131/PI())*$BL$992)*1800,"0,00")&"""" -> 0,00"
BG1132: -12 | BH1132: -2.400000001 | BI1132: =BesselE('Исходные данные'!$F$42/100,BH1132) -> 0.1340022526 | BJ1132: 0.1879116061 | BK1132: =TEXT(DEGREES(('Исходные данные'!BH1132/PI())*$BL$992)*1800,"0,00")&"""" -> 0,00"
BG1133: -11 | BH1133: -2.200000001 | BI1133: =BesselE('Исходные данные'!$F$42/100,BH1133) -> 0.1940677833 | BJ1133: 0.2554503408 | BK1133: =TEXT(DEGREES(('Исходные данные'!BH1133/PI())*$BL$992)*1800,"0,00")&"""" -> 0,00"
BG1134: -10 | BH1134: -2.000000001 | BI1134: =BesselE('Исходные данные'!$F$42/100,BH1134) -> 0.2646232061 | BJ1134: 0.3326115035 | BK1134: =TEXT(DEGREES(('Исходные данные'!BH1134/PI())*$BL$992)*1800,"0,00")&"""" -> 0,00"
BG1135: -9 | BH1135: -1.800000001 | BI1135: =BesselE('Исходные данные'!$F$42/100,BH1135) -> 0.3438491899 | BJ1135: 0.4174839072 | BK1135: =TEXT(DEGREES(('Исходные данные'!BH1135/PI())*$BL$992)*1800,"0,00")&"""" -> 0,00"
BG1136: -8 | BH1136: -1.600000001 | BI1136: =BesselE('Исходные данные'!$F$42/100,BH1136) -> 0.4291802658 | BJ1136: 0.5074709013 | BK1136: =TEXT(DEGREES(('Исходные данные'!BH1136/PI())*$BL$992)*1800,"0,00")&"""" -> 0,00"
BG1137: -7 | BH1137: -1.400000001 | BI1137: =BesselE('Исходные данные'!$F$42/100,BH1137) -> 0.5174202209 | BJ1137: 0.5994027031 | BK1137: =TEXT(DEGREES(('Исходные данные'!BH1137/PI())*$BL$992)*1800,"0,00")&"""" -> 0,00"
BG1138: -6 | BH1138: -1.2 | BI1138: =BesselE('Исходные данные'!$F$42/100,BH1138) -> 0.6049136046 | BJ1138: 0.6896999578 | BK1138: =TEXT(DEGREES(('Исходные данные'!BH1138/PI())*$BL$992)*1800,"0,00")&"""" -> 0,00"
BG1139: -5 | BH1139: -1 | BI1139: =BesselE('Исходные данные'!$F$42/100,BH1139) -> 0.6877621393 | BJ1139: 0.7745780719 | BK1139: =TEXT(DEGREES(('Исходные данные'!BH1139/PI())*$BL$992)*1800,"0,00")&"""" -> 0,00"
BG1140: -4 | BH1140: -0.8000000003 | BI1140: =BesselE('Исходные данные'!$F$42/100,BH1140) -> 0.76207041 | BJ1140: 0.8502778434 | BK1140: =TEXT(DEGREES(('Исходные данные'!BH1140/PI())*$BL$992)*1800,"0,00")&"""" -> 0,00"
BG1141: -3 | BH1141: -0.6000000002 | BI1141: =BesselE('Исходные данные'!$F$42/100,BH1141) -> 0.8242020758 | BJ1141: 0.9133050728 | BK1141: =TEXT(DEGREES(('Исходные данные'!BH1141/PI())*$BL$992)*1800,"0,00")&"""" -> 0,00"
BG1142: -2 | BH1142: -0.4000000001 | BI1142: =BesselE('Исходные данные'!$F$42/100,BH1142) -> 0.8710263367 | BJ1142: 0.9606604816 | BK1142: =TEXT(DEGREES(('Исходные данные'!BH1142/PI())*$BL$992)*1800,"0,00")&"""" -> 0,00"
BG1143: -1 | BH1143: -0.2 | BI1143: =BesselE('Исходные данные'!$F$42/100,BH1143) -> 0.9001346903 | BJ1143: 0.9900415696 | BK1143: =TEXT(DEGREES(('Исходные данные'!BH1143/PI())*$BL$992)*1800,"0,00")&"""" -> 0,00"
BG1144: 0 | BH1144: 1e-10 | BI1144: =BesselE('Исходные данные'!$F$42/100,BH1144) -> 0.9100101295 | BJ1144: =BesselE(0.00000000001,BH1144) -> 1 | BK1144: =TEXT(DEGREES(('Исходные данные'!BH1144/PI())*$BL$992)*1800,"0,00")&"""" -> 0,00"
BG1145: 1 | BH1145: 0.2 | BI1145: =BesselE('Исходные данные'!$F$42/100,BH1145) -> 0.9001346903 | BJ1145: =BesselE(0.00000000001,BH1145) -> 0.9900415696 | BK1145: =TEXT(DEGREES(('Исходные данные'!BH1145/PI())*$BL$992)*1800,"0,00")&"""" -> 0,00"
BG1146: 2 | BH1146: 0.3999999999 | BI1146: =BesselE('Исходные данные'!$F$42/100,BH1146) -> 0.8710263367 | BJ1146: 0.9606604816 | BK1146: =TEXT(DEGREES(('Исходные данные'!BH1146/PI())*$BL$992)*1800,"0,00")&"""" -> 0,00"
BG1147: 3 | BH1147: 0.5999999998 | BI1147: =BesselE('Исходные данные'!$F$42/100,BH1147) -> 0.8242020759 | BJ1147: 0.9133050729 | BK1147: =TEXT(DEGREES(('Исходные данные'!BH1147/PI())*$BL$992)*1800,"0,00")&"""" -> 0,00"
BG1148: 4 | BH1148: 0.7999999997 | BI1148: =BesselE('Исходные данные'!$F$42/100,BH1148) -> 0.7620704102 | BJ1148: 0.8502778436 | BK1148: =TEXT(DEGREES(('Исходные данные'!BH1148/PI())*$BL$992)*1800,"0,00")&"""" -> 0,00"
BG1149: 5 | BH1149: 0.9999999996 | BI1149: =BesselE('Исходные данные'!$F$42/100,BH1149) -> 0.6877621396 | BJ1149: 0.7745780722 | BK1149: =TEXT(DEGREES(('Исходные данные'!BH1149/PI())*$BL$992)*1800,"0,00")&"""" -> 0,00"
BG1150: 6 | BH1150: 1.199999999 | BI1150: =BesselE('Исходные данные'!$F$42/100,BH1150) -> 0.604913605 | BJ1150: 0.6896999583 | BK1150: =TEXT(DEGREES(('Исходные данные'!BH1150/PI())*$BL$992)*1800,"0,00")&"""" -> 0,00"
BG1151: 7 | BH1151: 1.399999999 | BI1151: =BesselE('Исходные данные'!$F$42/100,BH1151) -> 0.5174202214 | BJ1151: 0.5994027036 | BK1151: =TEXT(DEGREES(('Исходные данные'!BH1151/PI())*$BL$992)*1800,"0,00")&"""" -> 0,00"
BG1152: 8 | BH1152: 1.599999999 | BI1152: =BesselE('Исходные данные'!$F$42/100,BH1152) -> 0.4291802664 | BJ1152: 0.5074709019 | BK1152: =TEXT(DEGREES(('Исходные данные'!BH1152/PI())*$BL$992)*1800,"0,00")&"""" -> 0,00"
BG1153: 9 | BH1153: 1.799999999 | BI1153: =BesselE('Исходные данные'!$F$42/100,BH1153) -> 0.3438491906 | BJ1153: 0.4174839079 | BK1153: =TEXT(DEGREES(('Исходные данные'!BH1153/PI())*$BL$992)*1800,"0,00")&"""" -> 0,00"
BG1154: 10 | BH1154: 1.999999999 | BI1154: =BesselE('Исходные данные'!$F$42/100,BH1154) -> 0.2646232068 | BJ1154: 0.3326115042 | BK1154: =TEXT(DEGREES(('Исходные данные'!BH1154/PI())*$BL$992)*1800,"0,00")&"""" -> 0,00"
BG1155: 11 | BH1155: 2.199999999 | BI1155: =BesselE('Исходные данные'!$F$42/100,BH1155) -> 0.1940677839 | BJ1155: 0.2554503415 | BK1155: =TEXT(DEGREES(('Исходные данные'!BH1155/PI())*$BL$992)*1800,"0,00")&"""" -> 0,00"
BG1156: 12 | BH1156: 2.399999999 | BI1156: =BesselE('Исходные данные'!$F$42/100,BH1156) -> 0.1340022532 | BJ1156: 0.1879116068 | BK1156: =TEXT(DEGREES(('Исходные данные'!BH1156/PI())*$BL$992)*1800,"0,00")&"""" -> 0,00"
BG1157: 13 | BH1157: 2.599999999 | BI1157: =BesselE('Исходные данные'!$F$42/100,BH1157) -> 0.08544648362 | BJ1157: 0.1311655862 | BK1157: =TEXT(DEGREES(('Исходные данные'!BH1157/PI())*$BL$992)*1800,"0,00")&"""" -> 0,00"
BG1158: 14 | BH1158: 2.799999999 | BI1158: =BesselE('Исходные данные'!$F$42/100,BH1158) -> 0.04863002389 | BJ1158: 0.08564370789 | BK1158: =TEXT(DEGREES(('Исходные данные'!BH1158/PI())*$BL$992)*1800,"0,00")&"""" -> 0,00"
BG1159: 15 | BH1159: 2.999999999 | BI1159: =BesselE('Исходные данные'!$F$42/100,BH1159) -> 0.02305877361 | BJ1159: 0.05109376792 | BK1159: =TEXT(DEGREES(('Исходные данные'!BH1159/PI())*$BL$992)*1800,"0,00")&"""" -> 0,00"
BG1160: 16 | BH1160: 3.199999999 | BI1160: =BesselE('Исходные данные'!$F$42/100,BH1160) -> 0.00762962515 | BJ1160: 0.02667980237 | BK1160: =TEXT(DEGREES(('Исходные данные'!BH1160/PI())*$BL$992)*1800,"0,00")&"""" -> 0,00"
BG1161: 17 | BH1161: 3.399999998 | BI1161: =BesselE('Исходные данные'!$F$42/100,BH1161) -> 0.0007800221876 | BJ1161: 0.01111484643 | BK1161: =TEXT(DEGREES(('Исходные данные'!BH1161/PI())*$BL$992)*1800,"0,00")&"""" -> 0,00"
BG1162: 18 | BH1162: 3.599999998 | BI1162: =BesselE('Исходные данные'!$F$42/100,BH1162) -> 0.000657276241 | BJ1162: 0.002812861371 | BK1162: =TEXT(DEGREES(('Исходные данные'!BH1162/PI())*$BL$992)*1800,"0,00")&"""" -> 0,00"
BG1163: 19 | BH1163: 3.799999998 | BI1163: =BesselE('Исходные данные'!$F$42/100,BH1163) -> 0.005291899502 | BJ1163: 4.55341094e-05 | BK1163: =TEXT(DEGREES(('Исходные данные'!BH1163/PI())*$BL$992)*1800,"0,00")&"""" -> 0,00"
BG1164: 20 | BH1164: 3.999999998 | BI1164: =BesselE('Исходные данные'!$F$42/100,BH1164) -> 0.01276011601 | BJ1164: 0.001090430271 | BK1164: =TEXT(DEGREES(('Исходные данные'!BH1164/PI())*$BL$992)*1800,"0,00")&"""" -> 0,00"
BG1165: 21 | BH1165: 4.199999998 | BI1165: =BesselE('Исходные данные'!$F$42/100,BH1165) -> 0.02132292563 | BJ1165: 0.004358951109 | BK1165: =TEXT(DEGREES(('Исходные данные'!BH1165/PI())*$BL$992)*1800,"0,00")&"""" -> 0,01"
BG1166: 22 | BH1166: 4.399999998 | BI1166: =BesselE('Исходные данные'!$F$42/100,BH1166) -> 0.02953231718 | BJ1166: 0.00849543638 | BK1166: =TEXT(DEGREES(('Исходные данные'!BH1166/PI())*$BL$992)*1800,"0,00")&"""" -> 0,01"
BG1167: 23 | BH1167: 4.599999998 | BI1167: =BesselE('Исходные данные'!$F$42/100,BH1167) -> 0.03629907554 | BJ1167: 0.01244222259 | BK1167: =TEXT(DEGREES(('Исходные данные'!BH1167/PI())*$BL$992)*1800,"0,00")&"""" -> 0,01"
BG1168: 24 | BH1168: 4.799999998 | BI1168: =BesselE('Исходные данные'!$F$42/100,BH1168) -> 0.04092068038 | BJ1168: 0.01546912589 | BK1168: =TEXT(DEGREES(('Исходные данные'!BH1168/PI())*$BL$992)*1800,"0,00")&"""" -> 0,01"
BG1169: 25 | BH1169: 4.999999998 | BI1169: =BesselE('Исходные данные'!$F$42/100,BH1169) -> 0.04307163651 | BJ1169: 0.01716929461 | BK1169: =TEXT(DEGREES(('Исходные данные'!BH1169/PI())*$BL$992)*1800,"0,00")&"""" -> 0,01"
BG1170: 26 | BH1170: 5.199999997 | BI1170: =BesselE('Исходные данные'!$F$42/100,BH1170) -> 0.04276184192 | BJ1170: 0.01742633606 | BK1170: =TEXT(DEGREES(('Исходные данные'!BH1170/PI())*$BL$992)*1800,"0,00")&"""" -> 0,01"
BG1171: 27 | BH1171: 5.399999997 | BI1171: =BesselE('Исходные данные'!$F$42/100,BH1171) -> 0.04027100994 | BJ1171: 0.01635981134 | BK1171: =TEXT(DEGREES(('Исходные данные'!BH1171/PI())*$BL$992)*1800,"0,00")&"""" -> 0,01"
BG1172: 28 | BH1172: 5.599999997 | BI1172: =BesselE('Исходные данные'!$F$42/100,BH1172) -> 0.03606854542 | BJ1172: 0.01425745481 | BK1172: =TEXT(DEGREES(('Исходные данные'!BH1172/PI())*$BL$992)*1800,"0,00")&"""" -> 0,01"
BG1173: 29 | BH1173: 5.799999997 | BI1173: =BesselE('Исходные данные'!$F$42/100,BH1173) -> 0.03072858125 | BJ1173: 0.01150276553 | BK1173: =TEXT(DEGREES(('Исходные данные'!BH1173/PI())*$BL$992)*1800,"0,00")&"""" -> 0,01"
BG1174: 30 | BH1174: 5.999999997 | BI1174: =BesselE('Исходные данные'!$F$42/100,BH1174) -> 0.02484917693 | BJ1174: 0.008505995304 | BK1174: =TEXT(DEGREES(('Исходные данные'!BH1174/PI())*$BL$992)*1800,"0,00")&"""" -> 0,01"
BG1175: 31 | BH1175: 6.199999997 | BI1175: =BesselE('Исходные данные'!$F$42/100,BH1175) -> 0.01898313362 | BJ1175: 0.005645174569 | BK1175: =TEXT(DEGREES(('Исходные данные'!BH1175/PI())*$BL$992)*1800,"0,00")&"""" -> 0,01"
BG1176: 32 | BH1176: 6.399999997 | BI1176: =BesselE('Исходные данные'!$F$42/100,BH1176) -> 0.01358573357 | BJ1176: 0.003221893069 | BK1176: =TEXT(DEGREES(('Исходные данные'!BH1176/PI())*$BL$992)*1800,"0,00")&"""" -> 0,01"
BG1177: 33 | BH1177: 6.599999997 | BI1177: =BesselE('Исходные данные'!$F$42/100,BH1177) -> 0.008982253287 | BJ1177: 0.001434347285 | BK1177: =TEXT(DEGREES(('Исходные данные'!BH1177/PI())*$BL$992)*1800,"0,00")&"""" -> 0,01"
BG1178: 34 | BH1178: 6.799999997 | BI1178: =BesselE('Исходные данные'!$F$42/100,BH1178) -> 0.005355623995 | BJ1178: 0.0003679475943 | BK1178: =TEXT(DEGREES(('Исходные данные'!BH1178/PI())*$BL$992)*1800,"0,00")&"""" -> 0,01"
BG1179: 35 | BH1179: 6.999999997 | BI1179: =BesselE('Исходные данные'!$F$42/100,BH1179) -> 0.002752391177 | BJ1179: 1.790109826e-06 | BK1179: =TEXT(DEGREES(('Исходные данные'!BH1179/PI())*$BL$992)*1800,"0,00")&"""" -> 0,01"
BG1180: 36 | BH1180: 7.199999996 | BI1180: =BesselE('Исходные данные'!$F$42/100,BH1180) -> 0.001103372948 | BJ1180: 0.0002277367656 | BK1180: =TEXT(DEGREES(('Исходные данные'!BH1180/PI())*$BL$992)*1800,"0,00")&"""" -> 0,01"
BG1181: 37 | BH1181: 7.399999996 | BI1181: =BesselE('Исходные данные'!$F$42/100,BH1181) -> 0.0002542800684 | BJ1181: 0.0008778423101 | BK1181: =TEXT(DEGREES(('Исходные данные'!BH1181/PI())*$BL$992)*1800,"0,00")&"""" -> 0,01"
BG1182: 38 | BH1182: 7.599999996 | BI1182: =BesselE('Исходные данные'!$F$42/100,BH1182) -> 1.098249798e-06 | BJ1182: 0.001755472562 | BK1182: =TEXT(DEGREES(('Исходные данные'!BH1182/PI())*$BL$992)*1800,"0,00")&"""" -> 0,01"
BG1183: 39 | BH1183: 7.799999996 | BI1183: =BesselE('Исходные данные'!$F$42/100,BH1183) -> 0.0001252245989 | BJ1183: 0.002665653514 | BK1183: =TEXT(DEGREES(('Исходные данные'!BH1183/PI())*$BL$992)*1800,"0,00")&"""" -> 0,01"
BG1184: 40 | BH1184: 7.999999996 | BI1184: =BesselE('Исходные данные'!$F$42/100,BH1184) -> 0.0004240991904 | BJ1184: =BesselE(0.00000000001,BH1184) -> 0.003440888441 | BK1184: =TEXT(DEGREES(('Исходные данные'!BH1184/PI())*$BL$992)*1800,"0,00")&"""" -> 0,01"
BG1185: 41 | BH1185: 8.199999996 | BI1185: =BesselE('Исходные данные'!$F$42/100,BH1185) -> 0.0007342295304 | BJ1185: 0.00395974279 | BK1185: =TEXT(DEGREES(('Исходные данные'!BH1185/PI())*$BL$992)*1800,"0,00")&"""" -> 0,01"
BG1186: 42 | BH1186: 8.399999996 | BI1186: =BesselE('Исходные данные'!$F$42/100,BH1186) -> 0.0009448869459 | BJ1186: 0.004156757546 | BK1186: =TEXT(DEGREES(('Исходные данные'!BH1186/PI())*$BL$992)*1800,"0,00")&"""" -> 0,01"
BG1187: 43 | BH1187: 8.599999996 | BI1187: =BesselE('Исходные данные'!$F$42/100,BH1187) -> 0.001002168673 | BJ1187: 0.004023537336 | BK1187: =TEXT(DEGREES(('Исходные данные'!BH1187/PI())*$BL$992)*1800,"0,00")&"""" -> 0,01"
BG1188: 44 | BH1188: 8.799999996 | BI1188: =BesselE('Исходные данные'!$F$42/100,BH1188) -> 0.0009043920826 | BJ1188: 0.003602010381 | BK1188: =TEXT(DEGREES(('Исходные данные'!BH1188/PI())*$BL$992)*1800,"0,00")&"""" -> 0,01"
BG1189: 45 | BH1189: 8.999999996 | BI1189: =BesselE('Исходные данные'!$F$42/100,BH1189) -> 0.0006907780334 | BJ1189: 0.002971746812 | BK1189: =TEXT(DEGREES(('Исходные данные'!BH1189/PI())*$BL$992)*1800,"0,00")&"""" -> 0,01"
BG1190: 46 | BH1190: 9.199999996 | BI1190: =BesselE('Исходные данные'!$F$42/100,BH1190) -> 0.000425997597 | BJ1190: 0.002233767656 | BK1190: =TEXT(DEGREES(('Исходные данные'!BH1190/PI())*$BL$992)*1800,"0,00")&"""" -> 0,01"
BG1191: 47 | BH1191: 9.399999995 | BI1191: =BesselE('Исходные данные'!$F$42/100,BH1191) -> 0.0001833648686 | BJ1191: 0.001493447617 | BK1191: =TEXT(DEGREES(('Исходные данные'!BH1191/PI())*$BL$992)*1800,"0,00")&"""" -> 0,01"
BG1192: 48 | BH1192: 9.599999995 | BI1192: =BesselE('Исходные данные'!$F$42/100,BH1192) -> 2.927763956e-05 | BJ1192: 0.0008449294002 | BK1192: =TEXT(DEGREES(('Исходные данные'!BH1192/PI())*$BL$992)*1800,"0,00")&"""" -> 0,01"
BG1193: 49 | BH1193: 9.799999995 | BI1193: =BesselE('Исходные данные'!$F$42/100,BH1193) -> 1.100380307e-05 | BJ1193: 0.0003589872022 | BK1193: =TEXT(DEGREES(('Исходные данные'!BH1193/PI())*$BL$992)*1800,"0,00")&"""" -> 0,01"
BG1194: 50 | BH1194: 9.999999995 | BI1194: =BesselE('Исходные данные'!$F$42/100,BH1194) -> 0.0001491854768 | BJ1194: 7.559519035e-05 | BK1194: =TEXT(DEGREES(('Исходные данные'!BH1194/PI())*$BL$992)*1800,"0,00")&"""" -> 0,01"
BG1195: 51 | BH1195: 10.2 | BI1195: =BesselE('Исходные данные'!$F$42/100,BH1195) -> 0.0004356042687 | BJ1195: 1.682739117e-06 | BK1195: =TEXT(DEGREES(('Исходные данные'!BH1195/PI())*$BL$992)*1800,"0,00")&"""" -> 0,01"
BG1196: 52 | BH1196: 10.39999999 | BI1196: =BesselE('Исходные данные'!$F$42/100,BH1196) -> 0.0008359406302 | BJ1196: 0.0001138027806 | BK1196: =TEXT(DEGREES(('Исходные данные'!BH1196/PI())*$BL$992)*1800,"0,00")&"""" -> 0,01"
BG1197: 53 | BH1197: 10.59999999 | BI1197: =BesselE('Исходные данные'!$F$42/100,BH1197) -> 0.001296574306 | BJ1197: 0.0003648003536 | BK1197: =TEXT(DEGREES(('Исходные данные'!BH1197/PI())*$BL$992)*1800,"0,00")&"""" -> 0,01"
BG1198: 54 | BH1198: 10.79999999 | BI1198: =BesselE('Исходные данные'!$F$42/100,BH1198) -> 0.001753991198 | BJ1198: 0.0006931184123 | BK1198: =TEXT(DEGREES(('Исходные данные'!BH1198/PI())*$BL$992)*1800,"0,00")&"""" -> 0,01"
BG1199: 55 | BH1199: 10.99999999 | BI1199: =BesselE('Исходные данные'!$F$42/100,BH1199) -> 0.002145129448 | BJ1199: 0.001033158403 | BK1199: =TEXT(DEGREES(('Исходные данные'!BH1199/PI())*$BL$992)*1800,"0,00")&"""" -> 0,01"
BG1200: 56 | BH1200: 11.19999999 | BI1200: =BesselE('Исходные данные'!$F$42/100,BH1200) -> 0.002417021619 | BJ1200: 0.001325130896 | BK1200: =TEXT(DEGREES(('Исходные данные'!BH1200/PI())*$BL$992)*1800,"0,00")&"""" -> 0,01"
BG1201: 57 | BH1201: 11.39999999 | BI1201: =BesselE('Исходные данные'!$F$42/100,BH1201) -> 0.002534342742 | BJ1201: 0.001523061351 | BK1201: =TEXT(DEGREES(('Исходные данные'!BH1201/PI())*$BL$992)*1800,"0,00")&"""" -> 0,01"
BG1202: 58 | BH1202: 11.59999999 | BI1202: =BesselE('Исходные данные'!$F$42/100,BH1202) -> 0.002483899542 | BJ1202: 0.001600006547 | BK1202: =TEXT(DEGREES(('Исходные данные'!BH1202/PI())*$BL$992)*1800,"0,00")&"""" -> 0,01"
BG1203: 59 | BH1203: 11.79999999 | BI1203: =BesselE('Исходные данные'!$F$42/100,BH1203) -> 0.00227561984 | BJ1203: 0.001550020049 | BK1203: =TEXT(DEGREES(('Исходные данные'!BH1203/PI())*$BL$992)*1800,"0,00")&"""" -> 0,01"
BG1204: 60 | BH1204: 11.99999999 | BI1204: =BesselE('Исходные данные'!$F$42/100,BH1204) -> 0.001940141535 | BJ1204: 0.001386905798 | BK1204: =TEXT(DEGREES(('Исходные данные'!BH1204/PI())*$BL$992)*1800,"0,00")&"""" -> 0,01"
BG1205: 61 | BH1205: 12.19999999 | BI1205: =BesselE('Исходные данные'!$F$42/100,BH1205) -> 0.001523581189 | BJ1205: 0.001140247072 | BK1205: =TEXT(DEGREES(('Исходные данные'!BH1205/PI())*$BL$992)*1800,"0,00")&"""" -> 0,01"
BG1206: 62 | BH1206: 12.39999999 | BI1206: =BesselE('Исходные данные'!$F$42/100,BH1206) -> 0.001080421133 | BJ1206: 0.0008495367758 | BK1206: =TEXT(DEGREES(('Исходные данные'!BH1206/PI())*$BL$992)*1800,"0,00")&"""" -> 0,02"
BG1207: 63 | BH1207: 12.59999999 | BI1207: =BesselE('Исходные данные'!$F$42/100,BH1207) -> 0.0006656513182 | BJ1207: 0.000557427187 | BK1207: =TEXT(DEGREES(('Исходные данные'!BH1207/PI())*$BL$992)*1800,"0,00")&"""" -> 0,02"
BG1208: 64 | BH1208: 12.79999999 | BI1208: =BesselE('Исходные данные'!$F$42/100,BH1208) -> 0.0003273235711 | BJ1208: 0.0003031492352 | BK1208: =TEXT(DEGREES(('Исходные данные'!BH1208/PI())*$BL$992)*1800,"0,00")&"""" -> 0,02"
BG1209: 65 | BH1209: 12.99999999 | BI1209: =BesselE('Исходные данные'!$F$42/100,BH1209) -> 0.0001005326061 | BJ1209: =BesselE(0.00000000001,BH1209) -> 0.0001170326305 | BK1209: =TEXT(DEGREES(('Исходные данные'!BH1209/PI())*$BL$992)*1800,"0,00")&"""" -> 0,02"
BG1210: 66 | BH1210: 13.19999999 | BI1210: =BesselE('Исходные данные'!$F$42/100,BH1210) -> 3.563294086e-06 | BJ1210: 1.681833038e-05 | BK1210: =TEXT(DEGREES(('Исходные данные'!BH1210/PI())*$BL$992)*1800,"0,00")&"""" -> 0,02"
BG1211: 67 | BH1211: 13.39999999 | BI1211: =BesselE('Исходные данные'!$F$42/100,BH1211) -> 3.658604652e-05 | BJ1211: 6.137835075e-06 | BK1211: =TEXT(DEGREES(('Исходные данные'!BH1211/PI())*$BL$992)*1800,"0,00")&"""" -> 0,02"
BG1212: 68 | BH1212: 13.59999999 | BI1212: =BesselE('Исходные данные'!$F$42/100,BH1212) -> 0.0001828982074 | BJ1212: 7.519071937e-05 | BK1212: =TEXT(DEGREES(('Исходные данные'!BH1212/PI())*$BL$992)*1800,"0,00")&"""" -> 0,02"
BG1213: 69 | BH1213: 13.79999999 | BI1213: =BesselE('Исходные данные'!$F$42/100,BH1213) -> 0.0004123548361 | BJ1213: 0.0002033331978 | BK1213: =TEXT(DEGREES(('Исходные данные'!BH1213/PI())*$BL$992)*1800,"0,00")&"""" -> 0,02"
BG1214: 70 | BH1214: 13.99999999 | BI1214: =BesselE('Исходные данные'!$F$42/100,BH1214) -> 0.0006863545592 | BJ1214: 0.0003630394211 | BK1214: =TEXT(DEGREES(('Исходные данные'!BH1214/PI())*$BL$992)*1800,"0,00")&"""" -> 0,02"
BG1215: 71 | BH1215: 14.19999999 | BI1215: =BesselE('Исходные данные'!$F$42/100,BH1215) -> 0.0009635783014 | BJ1215: 0.0005245437539 | BK1215: =TEXT(DEGREES(('Исходные данные'!BH1215/PI())*$BL$992)*1800,"0,00")&"""" -> 0,02"
BG1216: 72 | BH1216: 14.39999999 | BI1216: =BesselE('Исходные данные'!$F$42/100,BH1216) -> 0.001205635826 | BJ1216: 0.0006604304709 | BK1216: =TEXT(DEGREES(('Исходные данные'!BH1216/PI())*$BL$992)*1800,"0,00")&"""" -> 0,02"
BG1217: 73 | BH1217: 14.59999999 | BI1217: =BesselE('Исходные данные'!$F$42/100,BH1217) -> 0.001381853632 | BJ1217: 0.0007495042633 | BK1217: =TEXT(DEGREES(('Исходные данные'!BH1217/PI())*$BL$992)*1800,"0,00")&"""" -> 0,02"
BG1218: 74 | BH1218: 14.79999999 | BI1218: =BesselE('Исходные данные'!$F$42/100,BH1218) -> 0.001472617595 | BJ1218: 0.0007794325857 | BK1218: =TEXT(DEGREES(('Исходные данные'!BH1218/PI())*$BL$992)*1800,"0,00")&"""" -> 0,02"
BG1219: 75 | BH1219: 14.99999999 | BI1219: =BesselE('Исходные данные'!$F$42/100,BH1219) -> 0.001470931816 | BJ1219: 0.0007478696317 | BK1219: =TEXT(DEGREES(('Исходные данные'!BH1219/PI())*$BL$992)*1800,"0,00")&"""" -> 0,02"

Sheet Телескопы
D1: 0 | F1: 1 | G1: 2 | H1: 3 | I1: 4 | J1: 6 | K1: 7 | L1: 8 | M1: 9 | N1: 11 | O1: 12 | P1: 13 | Q1: 14 | R1: 16 | S1: 17 | T1: 18 | U1: 19 | V1: 21 | W1: 22 | X1: 23 | Y1: 24 | Z1: 26 | AA1: 27 | AB1: 28 | AC1: 29 | AD1: 31 | AE1: 32 | AF1: 33 | AG1: 34 | AH1: 36 | AI1: 37 | AJ1: 38 | AK1: 39 | AL1: 41 | AM1: 42 | AN1: 43 | AO1: 44 | AP1: 46 | AQ1: 47 | AR1: 48 | AS1: 49 | AT1: 51 | AU1: 52 | AV1: 53 | AW1: 54 | AX1: 56 | AY1: 57 | AZ1: 58 | BA1: 59 | BB1: 61 | BC1: 62 | BD1: 63 | BE1: 64 | BF1: 66 | BG1: 67 | BH1: 68 | BI1: 69 | BJ1: 71 | BK1: 72 | BL1: 73 | BM1: 74 | BN1: 76 | BO1: 77 | BP1: 78 | BQ1: 79 | BR1: 81 | BS1: 82 | BT1: 83 | BU1: 84 | BV1: 86 | BW1: 87 | BX1: 88 | BY1: 89 | BZ1: 91 | CA1: 92 | CB1: 93 | CC1: 94 | CD1: 96 | CE1: 97 | CF1: 98 | CG1: 99 | CH1: 101 | CI1: 102 | CJ1: 103 | CK1: 104 | CL1: 106 | CM1: 107 | CN1: 108 | CO1: 109 | CP1: 111 | CQ1: 112 | CR1: 113 | CS1: 114 | CT1: 116 | CU1: 117 | CV1: 118 | CW1: 119 | CX1: 120 | CY1: 121 | CZ1: 122 | DA1: 123 | DB1: 124 | DC1: 125 | DD1: 126 | DE1: 127 | DF1: 128 | DG1: 129 | DH1: 130 | DI1: 131 | DJ1: 132 | DK1: 133 | DL1: 134 | DM1: 9 | DN1: 136 | DO1: 137 | DP1: 138 | DQ1: 139 | DR1: 140 | DS1: 141 | DT1: 142 | DU1: 143 | DV1: 144 | DW1: 145 | DX1: 146 | DY1: 147 | DZ1: 148 | EA1: 149 | EB1: 150 | EC1: 151 | ED1: 152 | EE1: 153 | EF1: 154 | EG1: 155 | EH1: 156 | EI1: 157 | EJ1: 158 | EK1: 159 | EL1: 160 | EM1: 161 | EN1: 162 | EO1: 163 | EP1: 164 | EQ1: 165 | ER1: 166 | ES1: 167 | ET1: 168 | EU1: 169 | EV1: 170 | EW1: 171 | EX1: 172 | EY1: 173 | EZ1: 174 | FA1: 175 | FB1: 176 | FC1: 177 | FD1: 178 | FE1: 179 | FF1: 180 | FG1: 181 | FH1: 182 | FI1: 183 | FJ1: 184 | FK1: 185 | FL1: 186 | FM1: 187 | FN1: 188 | FO1: 189 | FP1: 190 | FQ1: 191 | FR1: 192 | FS1: 193 | FT1: 194 | FU1: 195 | FV1: 196 | FW1: 197 | FX1: 198 | FY1: 199 | FZ1: 200 | GA1: 201 | GB1: 202 | GC1: 203 | GD1: 204 | GE1: 205 | GF1: 206 | GG1: 207 | GH1: 208 | GI1: 209 | GJ1: 210 | GK1: 211 | GL1: 212 | GM1: 213 | GN1: 214 | GO1: 215 | GP1: 216 | GQ1: 217 | GR1: 218 | GS1: 219 | GT1: 220 | GU1: 221 | GV1: 222 | GW1: 223 | GX1: 224 | GY1: 225 | GZ1: 226 | HA1: 227 | HB1: 228 | HC1: 229 | HD1: 230 | HE1: 231 | HF1: 232 | HG1: 233 | HH1: 234 | HI1: 235 | HJ1: 236 | HK1: 237 | HL1: 238 | HM1: 239 | HN1: 240 | HO1: 241 | HP1: 242 | HQ1: 243 | HR1: 244 | HS1: 245 | HT1: 246 | HU1: 247 | HV1: 248 | HW1: 249 | HX1: 250 | HY1: 251
G3: =TEXT(G8,"0") -> 0
D8: 1 | E8: Диаметр главного зеркала (дюймы) | F8: 4 | J8: 5 | N8: 6 | R8: 7 | V8: 8 | Z8: 9 | AD8: 9.25 | AH8: 10 | AL8: 11 | AP8: 12 | AT8: 13 | AX8: 14 | BB8: 16 | BF8: 18 | BJ8: 20 | BN8: 22 | BR8: 24 | BV8: 26 | BZ8: 28 | CD8: 30 | CH8: 32 | CL8: 36 | CP8: 40
D9: 2 | E9: Заголовок чертежа | F9: 4" планетный телескоп системы Ньютона | G9: 4" Deep Sky телескоп системы Ньютона | H9: 4" астрограф системы Ньютона | I9: 4" универсальный телескоп системы Ньютона | J9: 5" планетный телескоп системы Ньютона | K9: 5" Deep Sky телескоп системы Ньютона | L9: 5" астрограф системы Ньютона | M9: 5" универсальный телескоп системы Ньютона | N9: 6" планетный телескоп системы Ньютона | O9: 6" Deep Sky телескоп системы Ньютона | P9: 6" астрограф системы Ньютона | Q9: 6" универсальный телескоп системы Ньютона | R9: 7" планетный телескоп системы Ньютона | S9: 7" Deep Sky телескоп системы Ньютона | T9: 7" астрограф системы Ньютона | U9: 7" универсальный телескоп системы Ньютона | V9: 8" планетный телескоп системы Ньютона | W9: 8" Deep Sky телескоп системы Ньютона | X9: 8" астрограф системы Ньютона | Y9: 8" универсальный телескоп системы Ньютона | Z9: 9" планетный телескоп системы Ньютона | AA9: 9" Deep Sky телескоп системы Ньютона | AB9: 9" астрограф системы Ньютона | AC9: 9" универсальный телескоп системы Ньютона | AD9: 9,25" планетный телескоп системы Ньютона | AE9: 9,25" Deep Sky телескоп системы Ньютона | AF9: 9,25" астрограф системы Ньютона | AG9: 9,25" универсальный телескоп системы Ньютона | AH9: 10" планетный телескоп системы Ньютона | AI9: 10" Deep Sky телескоп системы Ньютона | AJ9: 10" астрограф системы Ньютона | AK9: 10" универсальный телескоп системы Ньютона | AL9: 11" планетный телескоп системы Ньютона | AM9: 11" Deep Sky телескоп системы Ньютона | AN9: 11" астрограф системы Ньютона | AO9: 11" универсальный телескоп системы Ньютона | AP9: 12" планетный телескоп системы Ньютона | AQ9: 12" Deep Sky телескоп системы Ньютона | AR9: 12" астрограф системы Ньютона | AS9: 12" универсальный телескоп системы Ньютона | AT9: 13" планетный телескоп системы Ньютона | AU9: 13" Deep Sky телескоп системы Ньютона | AV9: 13" астрограф системы Ньютона | AW9: 13" универсальный телескоп системы Ньютона | AX9: 14" планетный телескоп системы Ньютона | AY9: 14" Deep Sky телескоп системы Ньютона | AZ9: 14" астрограф системы Ньютона | BA9: 14" универсальный телескоп системы Ньютона | BB9: 16" планетный телескоп системы Ньютона | BC9: 16" Deep Sky телескоп системы Ньютона | BD9: 16" астрограф системы Ньютона | BE9: 16" универсальный телескоп системы Ньютона | BF9: 18" планетный телескоп системы Ньютона | BG9: 18" Deep Sky телескоп системы Ньютона | BH9: 18" астрограф системы Ньютона | BI9: 18" универсальный телескоп системы Ньютона | BJ9: 20" планетный телескоп системы Ньютона | BK9: 20" Deep Sky телескоп системы Ньютона | BL9: 20" астрограф системы Ньютона | BM9: 20" универсальный телескоп системы Ньютона | BN9: 22" планетный телескоп системы Ньютона | BO9: 22" Deep Sky телескоп системы Ньютона | BP9: 22" астрограф системы Ньютона | BQ9: 22" универсальный телескоп системы Ньютона | BR9: 24" планетный телескоп системы Ньютона | BS9: 24" Deep Sky телескоп системы Ньютона | BT9: 24" астрограф системы Ньютона | BU9: 24" универсальный телескоп системы Ньютона | BV9: 26" планетный телескоп системы Ньютона | BW9: 26" Deep Sky телескоп системы Ньютона | BX9: 26" астрограф системы Ньютона | BY9: 26" универсальный телескоп системы Ньютона | BZ9: 28" планетный телескоп системы Ньютона | CA9: 28" Deep Sky телескоп системы Ньютона | CB9: 28" астрограф системы Ньютона | CC9: 28" универсальный телескоп системы Ньютона | CD9: 30" планетный телескоп системы Ньютона | CE9: 30" Deep Sky телескоп системы Ньютона | CF9: 30" астрограф системы Ньютона | CG9: 30" универсальный телескоп системы Ньютона | CH9: 32" планетный телескоп системы Ньютона | CI9: 32" Deep Sky телескоп системы Ньютона | CJ9: 32" астрограф системы Ньютона | CK9: 32" универсальный телескоп системы Ньютона | CL9: 36" планетный телескоп системы Ньютона | CM9: 36" Deep Sky телескоп системы Ньютона | CN9: 36" астрограф системы Ньютона | CO9: 36" универсальный телескоп системы Ньютона | CP9: 40" планетный телескоп системы Ньютона | CQ9: 40" Deep Sky телескоп системы Ньютона | CR9: 40" астрограф системы Ньютона | CS9: 40" универсальный телескоп системы Ньютона | CT9: ISAAC-350 | CU9: Sky-Watcher 25012 Black Diamond | CV9: 20" | CW9: 9.25" астрограф системы Ньютона | CX9: 10" универсальный телескоп системы Ньютона | CY9: ISAAC-350 | CZ9: 12" Ньютон-планетник Виталия | DA9: 8" Длиннофокусный планетник | DB9: My | DC9: 5" Ньютон Виталика | DD9: 14" Ньютон jpzyx | DE9: 12" Лев Николаевич Толстой ;-) | DF9: ASA N8"
D10: 3 | E10: Диаметр главного зеркала (мм) | F10: =$F$8*25.4 -> 101.6 | G10: 101.6 | H10: 101.6 | I10: =$F$8*25.4 -> 101.6 | J10: =$J$8*25.4 -> 127 | K10: =$J$8*25.4 -> 127 | L10: =$J$8*25.4 -> 127 | M10: =$J$8*25.4 -> 127 | N10: =$N$8*25.4 -> 152.4 | O10: =$N$8*25.4 -> 152.4 | P10: =$N$8*25.4 -> 152.4 | Q10: =$N$8*25.4 -> 152.4 | R10: =$R$8*25.4 -> 177.8 | S10: =$R$8*25.4 -> 177.8 | T10: =$R$8*25.4 -> 177.8 | U10: =$R$8*25.4 -> 177.8 | V10: =$V$8*25.4 -> 203.2 | W10: =$V$8*25.4 -> 203.2 | X10: =$V$8*25.4 -> 203.2 | Y10: =$V$8*25.4 -> 203.2 | Z10: =$Z$8*25.4 -> 228.6 | AA10: =$Z$8*25.4 -> 228.6 | AB10: =$Z$8*25.4 -> 228.6 | AC10: =$Z$8*25.4 -> 228.6 | AD10: =$AD$8*25.4 -> 234.95 | AE10: =$AD$8*25.4 -> 234.95 | AF10: =$AD$8*25.4 -> 234.95 | AG10: =$AD$8*25.4 -> 234.95 | AH10: =$AH$8*25.4 -> 254 | AI10: =$AH$8*25.4 -> 254 | AJ10: =$AH$8*25.4 -> 254 | AK10: =$AH$8*25.4 -> 254 | AL10: =$AL$8*25.4 -> 279.4 | AM10: =$AL$8*25.4 -> 279.4 | AN10: =$AL$8*25.4 -> 279.4 | AO10: =$AL$8*25.4 -> 279.4 | AP10: =$AP$8*25.4 -> 304.8 | AQ10: =$AP$8*25.4 -> 304.8 | AR10: =$AP$8*25.4 -> 304.8 | AS10: =$AP$8*25.4 -> 304.8 | AT10: =$AT$8*25.4 -> 330.2 | AU10: =$AT$8*25.4 -> 330.2 | AV10: =$AT$8*25.4 -> 330.2 | AW10: =$AT$8*25.4 -> 330.2 | AX10: =$AX$8*25.4 -> 355.6 | AY10: =$AX$8*25.4 -> 355.6 | AZ10: =$AX$8*25.4 -> 355.6 | BA10: =$AX$8*25.4 -> 355.6 | BB10: =$BB$8*25.4 -> 406.4 | BC10: =$BB$8*25.4 -> 406.4 | BD10: =$BB$8*25.4 -> 406.4 | BE10: =$BB$8*25.4 -> 406.4 | BF10: =$BF$8*25.4 -> 457.2 | BG10: =$BF$8*25.4 -> 457.2 | BH10: =$BF$8*25.4 -> 457.2 | BI10: =$BF$8*25.4 -> 457.2 | BJ10: =$BJ$8*25.4 -> 508 | BK10: =$BJ$8*25.4 -> 508 | BL10: =$BJ$8*25.4 -> 508 | BM10: =$BJ$8*25.4 -> 508 | BN10: =$BN$8*25.4 -> 558.8 | BO10: =$BN$8*25.4 -> 558.8 | BP10: =$BN$8*25.4 -> 558.8 | BQ10: =$BN$8*25.4 -> 558.8 | BR10: =$BR$8*25.4 -> 609.6 | BS10: =$BR$8*25.4 -> 609.6 | BT10: =$BR$8*25.4 -> 609.6 | BV10: =$BV$8*25.4 -> 660.4 | BW10: =$BV$8*25.4 -> 660.4 | BX10: =$BV$8*25.4 -> 660.4 | BY10: =$BV$8*25.4 -> 660.4 | BZ10: =$BZ$8*25.4 -> 711.2 | CA10: =$BZ$8*25.4 -> 711.2 | CB10: =$BZ$8*25.4 -> 711.2 | CC10: =$BZ$8*25.4 -> 711.2 | CD10: =$CD$8*25.4 -> 762 | CE10: =$CD$8*25.4 -> 762 | CF10: =$CD$8*25.4 -> 762 | CG10: =$CD$8*25.4 -> 762 | CH10: =$CH$8*25.4 -> 812.8 | CI10: =$CH$8*25.4 -> 812.8 | CJ10: =$CH$8*25.4 -> 812.8 | CK10: =$CH$8*25.4 -> 812.8 | CL10: =$CL$8*25.4 -> 914.4 | CM10: =$CL$8*25.4 -> 914.4 | CN10: =$CL$8*25.4 -> 914.4 | CO10: =$CL$8*25.4 -> 914.4 | CP10: =$CP$8*25.4 -> 1016 | CQ10: =$CP$8*25.4 -> 1016 | CR10: 1016 | CS10: 1016 | CT10: 354 | CU10: 254 | CV10: 500 | CW10: 230 | CX10: 254 | CY10: 354 | CZ10: 290 | DA10: 200 | DB10: 150 | DC10: 130 | DD10: 356 | DE10: 304.8 | DF10: 203 | DT10: 0 | DU10: 0 | DV10: 0 | DW10: 0 | DX10: 0 | DY10: 0 | DZ10: 0 | EA10: 0 | EB10: 0 | EC10: 0 | ED10: 0 | EE10: 0 | EF10: 0 | EG10: 0 | EH10: 0 | EI10: 0 | EJ10: 0 | EK10: 0 | EL10: 0 | EM10: 0 | EN10: 0 | EO10: 0 | EP10: 0 | EQ10: 0 | ER10: 0 | ES10: 0 | ET10: 0 | EU10: 0 | EV10: 0 | EW10: 0 | EX10: 0 | EY10: 0 | EZ10: 0 | FA10: 0 | FB10: 0 | FC10: 0 | FD10: 0 | FE10: 0 | FF10: 0 | FG10: 0 | FH10: 0 | FI10: 0 | FJ10: 0 | FK10: 0 | FL10: 0 | FM10: 0 | FN10: 0 | FO10: 0 | FP10: 0 | FQ10: 0 | FR10: 0 | FS10: 0 | FT10: 0 | FU10: 0 | FV10: 0 | FW10: 0 | FX10: 0 | FY10: 0 | FZ10: 0 | GA10: 0 | GB10: 0 | GC10: 0 | GD10: 0 | GE10: 0 | GF10: 0 | GG10: 0 | GH10: 0 | GI10: 0 | GJ10: 0 | GK10: 0 | GL10: 0 | GM10: 0 | GN10: 0 | GO10: 0 | GP10: 0 | GQ10: 0 | GR10: 0 | GS10: 0 | GT10: 0 | GU10: 0 | GV10: 0 | GW10: 0 | GX10: 0 | GY10: 0 | GZ10: 0 | HA10: 0 | HB10: 0 | HC10: 0 | HD10: 0 | HE10: 0 | HF10: 0 | HG10: 0 | HH10: 0 | HI10: 0 | HJ10: 0 | HK10: 0 | HL10: 0 | HM10: 0 | HN10: 0 | HO10: 0 | HP10: 0 | HQ10: 0 | HR10: 0 | HS10: 0 | HT10: 0 | HU10: 0 | HV10: 0 | HW10: 0 | HX10: 0 | HY10: 0 | HZ10: 0 | IA10: 0 | IB10: 0 | IC10: 0 | ID10: 0 | IE10: 0 | IF10: 0 | IG10: 0 | IH10: 0 | II10: 0 | IJ10: 0 | IK10: 0 | IL10: 0 | IM10: 0 | IN10: 0 | IO10: 0 | IP10: 0 | IQ10: 0 | IR10: 0 | IS10: 0 | IT10: 0
D11: 4 | E11: Относительный фокус | F11: 10 | G11: 6 | H11: 6 | I11: 8 | J11: 8 | K11: 5 | L11: 5 | M11: 6 | N11: 8 | O11: 5 | P11: 5 | Q11: 6 | R11: 8 | S11: 5 | T11: 5 | U11: 6 | V11: 8 | W11: 5 | X11: 5 | Y11: 6 | Z11: 7 | AA11: 5 | AB11: 5 | AC11: 6 | AD11: 7 | AE11: 5 | AF11: 5 | AG11: 6 | AH11: 7 | AI11: 5 | AJ11: 5 | AK11: 6 | AL11: 6 | AM11: 5 | AN11: 5 | AO11: 6 | AP11: 6 | AQ11: 5 | AR11: 5 | AS11: 5 | AT11: 6 | AU11: 5 | AV11: 4.5 | AW11: 5 | AX11: 6 | AY11: 4.5 | AZ11: 4.5 | BA11: 5 | BB11: 5 | BC11: 4 | BD11: 4 | BE11: 4.5 | BF11: 5 | BG11: 4 | BH11: 4 | BI11: 4.5 | BJ11: 5 | BK11: 4 | BL11: 4 | BM11: 4.5 | BN11: 5 | BO11: 4 | BP11: 4 | BQ11: 4.5 | BR11: 5 | BS11: 4 | BT11: 4 | BU11: 4.5 | BV11: 5 | BW11: 4 | BX11: 4 | BY11: 4.5 | BZ11: 5 | CA11: 4 | CB11: 4 | CC11: 4.5 | CD11: 5 | CE11: 4 | CF11: 4 | CG11: 4.5 | CH11: 5 | CI11: 4 | CJ11: 4 | CK11: 4.5 | CL11: 4.5 | CM11: 3.5 | CN11: 3.5 | CO11: 4 | CP11: 5 | CQ11: 3.5 | CR11: 3.5 | CS11: 4 | CT11: 6 | CU11: 4.716535 | CV11: 4.5 | CW11: 4.31173913 | CX11: 6 | CY11: 6.056497 | CZ11: 6.448276 | DA11: 9.5 | DB11: 5 | DC11: 6.923077 | DD11: 5.05618 | DE11: 5 | DF11: 4
D12: 5 | E12: Линейный диаметр не виньетированного поля зрения | F12: 8.5 | G12: 10 | H12: 26.68 | I12: 12 | J12: 8.5 | K12: 10 | L12: 26.68 | M12: 12 | N12: 8.5 | O12: 12 | P12: 26.68 | Q12: 12 | R12: 8.5 | S12: 20 | T12: 26.68 | U12: 20 | V12: 8.5 | W12: 20 | X12: 26.68 | Y12: 20 | Z12: 8.5 | AA12: 20 | AB12: 26.68 | AC12: 20 | AD12: 8.5 | AE12: 25 | AF12: 26.68 | AG12: 25 | AH12: 8.5 | AI12: 25 | AJ12: 26.68 | AK12: 25 | AL12: 8.5 | AM12: 25 | AN12: 26.68 | AO12: 20 | AP12: 8.5 | AQ12: 25 | AR12: 26.68 | AS12: 20 | AT12: 8.5 | AU12: 25 | AV12: 26.68 | AW12: 20 | AX12: 8.5 | AY12: 25 | AZ12: 26.68 | BA12: 20 | BB12: 8.5 | BC12: 25 | BD12: 26.68 | BE12: 20 | BF12: 8.5 | BG12: 25 | BH12: 26.68 | BI12: 20 | BJ12: 8.5 | BK12: 25 | BL12: 26.68 | BM12: 20 | BN12: 8.5 | BO12: 25 | BP12: 26.68 | BQ12: 20 | BR12: 8.5 | BS12: 25 | BT12: 26.68 | BU12: 20 | BV12: 8.5 | BW12: 25 | BX12: 26.68 | BY12: 20 | BZ12: 8.5 | CA12: 25 | CB12: 26.68 | CC12: 20 | CD12: 8.5 | CE12: 25 | CF12: 26.68 | CG12: 20 | CH12: 8.5 | CI12: 25 | CJ12: 26.68 | CK12: 20 | CL12: 8.5 | CM12: 25 | CN12: 26.68 | CO12: 20 | CP12: 8.5 | CQ12: 25 | CR12: 26.68 | CS12: 20 | CT12: 13.53 | CU12: 22.72 | CV12: 28.75 | CW12: 28.45219608 | CX12: 21.71 | CY12: 28.2 | CZ12: 4.48 | DA12: 20.48 | DB12: 18.89 | DC12: 15.2 | DD12: 14.67 | DE12: 28.9 | DF12: 23.69
D13: 6 | E13: Вынос фокальной плоскости | F13: 120 | G13: 110 | H13: 120 | I13: 120 | J13: 120 | K13: 110 | L13: 140 | M13: 120 | N13: 135 | O13: 135 | P13: 160 | Q13: 150 | R13: 150 | S13: 170 | T13: 170 | U13: 170 | V13: 160 | W13: 180 | X13: 180 | Y13: 180 | Z13: 180 | AA13: 200 | AB13: 200 | AC13: 200 | AD13: 190 | AE13: 220 | AF13: 210 | AG13: 220 | AH13: 190 | AI13: 220 | AJ13: 210 | AK13: 220 | AL13: 190 | AM13: 230 | AN13: 230 | AO13: 230 | AP13: 220 | AQ13: 250 | AR13: 250 | AS13: 250 | AT13: 270 | AU13: 270 | AV13: 270 | AW13: 270 | AX13: 250 | AY13: 270 | AZ13: 280 | BA13: 280 | BB13: 280 | BC13: 300 | BD13: 300 | BE13: 300 | BF13: 300 | BG13: 340 | BH13: 340 | BI13: 340 | BJ13: 350 | BK13: 400 | BL13: 370 | BM13: 370 | BN13: 350 | BO13: 400 | BP13: 400 | BQ13: 400 | BR13: 400 | BS13: 420 | BT13: 420 | BU13: 420 | BV13: 430 | BW13: 470 | BX13: 470 | BY13: 470 | BZ13: 450 | CA13: 470 | CB13: 470 | CC13: 470 | CD13: 480 | CE13: 490 | CF13: 490 | CG13: 490 | CH13: 530 | CI13: 530 | CJ13: 530 | CK13: 530 | CL13: 570 | CM13: 600 | CN13: 600 | CO13: 600 | CP13: 620 | CQ13: 650 | CR13: 650 | CS13: 650 | CT13: 287 | CU13: 281.75 | CV13: 335 | CW13: 239 | CX13: 248.5 | CY13: 329 | CZ13: 230.75 | DA13: 205.5 | DB13: 147 | DC13: 130.5 | DD13: 287.75 | DE13: 267 | DF13: 205
D14: 7 | E14: Расстояние от вершины ГЗ до заднего среза трубы | F14: 30 | G14: 30 | H14: 30 | I14: 30 | J14: 40 | K14: 40 | L14: 40 | M14: 40 | N14: 40 | O14: 40 | P14: 40 | Q14: 40 | R14: 40 | S14: 40 | T14: 40 | U14: 40 | V14: 50 | W14: 50 | X14: 50 | Y14: 50 | Z14: 60 | AA14: 60 | AB14: 60 | AC14: 60 | AD14: 60 | AE14: 60 | AF14: 60 | AG14: 60 | AH14: 60 | AI14: 60 | AJ14: 60 | AK14: 60 | AL14: 60 | AM14: 60 | AN14: 60 | AO14: 60 | AP14: 80 | AQ14: 80 | AR14: 80 | AS14: 80 | AT14: 80 | AU14: 80 | AV14: 80 | AW14: 80 | AX14: 100 | AY14: 100 | AZ14: 100 | BA14: 100 | BB14: 100 | BC14: 100 | BD14: 100 | BE14: 100 | BF14: 100 | BG14: 100 | BH14: 100 | BI14: 100 | BJ14: 120 | BK14: 120 | BL14: 120 | BM14: 120 | BN14: 120 | BO14: 120 | BP14: 120 | BQ14: 120 | BR14: 120 | BS14: 120 | BT14: 120 | BU14: 120 | BV14: 150 | BW14: 120 | BX14: 120 | BY14: 120 | BZ14: 150 | CA14: 120 | CB14: 120 | CC14: 120 | CD14: 150 | CE14: 150 | CF14: 150 | CG14: 150 | CH14: 150 | CI14: 150 | CJ14: 150 | CK14: 150 | CL14: 200 | CM14: 200 | CN14: 200 | CO14: 200 | CP14: 200 | CQ14: 200 | CR14: 200 | CS14: 200 | CT14: 100 | CU14: 73.62 | CV14: 120 | CW14: 60 | CX14: 60 | CY14: 100 | CZ14: 50 | DA14: 60 | DB14: 50 | DC14: 40 | DD14: 73.62 | DE14: 80 | DF14: 60
D15: 8 | E15: Толщина стенки трубы | F15: 3 | G15: 3 | H15: 3 | I15: 3 | J15: 3 | K15: 3 | L15: 3 | M15: 3 | N15: 3 | O15: 3 | P15: 3 | Q15: 3 | R15: 3 | S15: 3 | T15: 3 | U15: 3 | V15: 3 | W15: 3 | X15: 3 | Y15: 3 | Z15: 3 | AA15: 3 | AB15: 3 | AC15: 3 | AD15: 1.5 | AE15: 1.5 | AF15: 1.5 | AG15: 1.5 | AH15: 2 | AI15: 2 | AJ15: 2 | AK15: 2 | AL15: 2 | AM15: 2 | AN15: 2 | AO15: 2 | AP15: 2 | AQ15: 2 | AR15: 2 | AS15: 2 | AT15: 2 | AU15: 2 | AV15: 2 | AW15: 2 | AX15: 2 | AY15: 2 | AZ15: 2 | BA15: 2 | BB15: 2 | BC15: 2 | BD15: 2 | BE15: 2 | BF15: 3 | BG15: 3 | BH15: 3 | BI15: 3 | BJ15: 3 | BK15: 3 | BL15: 3 | BM15: 3 | BN15: 3 | BO15: 3 | BP15: 3 | BQ15: 3 | BR15: 3 | BS15: 3 | BT15: 3 | BU15: 3 | BV15: 3 | BW15: 3 | BX15: 3 | BY15: 3 | BZ15: 3 | CA15: 3 | CB15: 3 | CC15: 3 | CD15: 3 | CE15: 3 | CF15: 3 | CG15: 3 | CH15: 3 | CI15: 3 | CJ15: 3 | CK15: 3 | CL15: 3 | CM15: 3 | CN15: 3 | CO15: 3 | CP15: 3 | CQ15: 3 | CR15: 3 | CS15: 3 | CT15: 2 | CU15: 0.75 | CV15: 3 | CW15: 1 | CX15: 2 | CY15: 22 | CZ15: 0.75 | DA15: 3 | DB15: 3 | DC15: 0.75 | DD15: 0.75 | DE15: 2 | DF15: 3
D16: 9 | E16: Диаметр полевой диафрагмы длиннофокусного окуляра | F16: 25 | G16: 25 | H16: 26.68 | I16: 25 | J16: 25 | K16: 25 | L16: 26.68 | M16: 25 | N16: 25 | O16: 25 | P16: 26.68 | Q16: 25 | R16: 25 | S16: 42 | T16: 26.68 | U16: 42 | V16: 25 | W16: 42 | X16: 26.68 | Y16: 42 | Z16: 25 | AA16: 42 | AB16: 26.68 | AC16: 42 | AD16: 25 | AE16: 42 | AF16: 26.68 | AG16: 42 | AH16: 25 | AI16: 42 | AJ16: 26.68 | AK16: 42 | AL16: 25 | AM16: 42 | AN16: 26.68 | AO16: 42 | AP16: 25 | AQ16: 42 | AR16: 26.68 | AS16: 42 | AT16: 25 | AU16: 42 | AV16: 26.68 | AW16: 42 | AX16: 25 | AY16: 42 | AZ16: 26.68 | BA16: 42 | BB16: 25 | BC16: 42 | BD16: 26.68 | BE16: 42 | BF16: 25 | BG16: 42 | BH16: 26.68 | BI16: 42 | BJ16: 25 | BK16: 42 | BL16: 26.68 | BM16: 42 | BN16: 25 | BO16: 42 | BP16: 26.68 | BQ16: 42 | BR16: 25 | BS16: 42 | BT16: 26.68 | BU16: 42 | BV16: 25 | BW16: 42 | BX16: 26.68 | BY16: 42 | BZ16: 25 | CA16: 42 | CB16: 26.68 | CC16: 42 | CD16: 25 | CE16: 42 | CF16: 26.68 | CG16: 42 | CH16: 25 | CI16: 42 | CJ16: 26.68 | CK16: 42 | CL16: 25 | CM16: 42 | CN16: 26.68 | CO16: 42 | CP16: 25 | CQ16: 42 | CR16: 26.68 | CS16: 42 | CT16: 33 | CU16: 26.68 | CV16: 42 | CW16: 26.68 | CX16: 42 | CY16: 42 | CZ16: 20 | DA16: 25 | DB16: 16 | DC16: 28 | DD16: 30 | DE16: 42 | DF16: 30
D17: 10 | E17: Толщина главного зеркала | F17: 15 | G17: 15 | H17: 15 | I17: 20 | J17: 20 | K17: 20 | L17: 20 | M17: 20 | N17: 20 | O17: 20 | P17: 20 | Q17: 20 | R17: 25 | S17: 25 | T17: 25 | U17: 25 | V17: 30 | W17: 30 | X17: 30 | Y17: 30 | Z17: 35 | AA17: 35 | AB17: 35 | AC17: 35 | AD17: 35 | AE17: 35 | AF17: 35 | AG17: 35 | AH17: 35 | AI17: 35 | AJ17: 35 | AK17: 35 | AL17: 35 | AM17: 35 | AN17: 35 | AO17: 35 | AP17: 40 | AQ17: 40 | AR17: 40 | AS17: 40 | AT17: 45 | AU17: 45 | AV17: 45 | AW17: 45 | AX17: 50 | AY17: 50 | AZ17: 50 | BA17: 50 | BB17: 50 | BC17: 50 | BD17: 50 | BE17: 50 | BF17: 50 | BG17: 50 | BH17: 50 | BI17: 50 | BJ17: 70 | BK17: 70 | BL17: 70 | BM17: 70 | BN17: 70 | BO17: 70 | BP17: 70 | BQ17: 70 | BR17: 70 | BS17: 70 | BT17: 70 | BU17: 70 | BV17: 80 | BW17: 70 | BX17: 70 | BY17: 70 | BZ17: 80 | CA17: 70 | CB17: 70 | CC17: 70 | CD17: 80 | CE17: 80 | CF17: 80 | CG17: 80 | CH17: 80 | CI17: 80 | CJ17: 80 | CK17: 80 | CL17: 100 | CM17: 100 | CN17: 100 | CO17: 100 | CP17: 100 | CQ17: 100 | CR17: 100 | CS17: 100 | CT17: 50 | CU17: 31 | CV17: 50 | CW17: 35 | CX17: 35 | CY17: 42 | CZ17: 20 | DA17: 30 | DB17: 18 | DC17: 15 | DD17: 42 | DE17: 40 | DF17: 25
D18: 11 | E18: Толщина диагонального зеркала | F18: 5 | G18: 5 | H18: 5 | I18: 5 | J18: 6 | K18: 6 | L18: 6 | M18: 6 | N18: 6 | O18: 6 | P18: 6 | Q18: 6 | R18: 6 | S18: 6 | T18: 6 | U18: 6 | V18: 6 | W18: 10 | X18: 12 | Y18: 12 | Z18: 8 | AA18: 12 | AB18: 12 | AC18: 12 | AD18: 8 | AE18: 12 | AF18: 12 | AG18: 12 | AH18: 8 | AI18: 12 | AJ18: 12 | AK18: 12 | AL18: 8 | AM18: 12 | AN18: 12 | AO18: 12 | AP18: 8 | AQ18: 12 | AR18: 12 | AS18: 12 | AT18: 12 | AU18: 15 | AV18: 15 | AW18: 15 | AX18: 12 | AY18: 18 | AZ18: 18 | BA18: 18 | BB18: 12 | BC18: 18 | BD18: 18 | BE18: 18 | BF18: 12 | BG18: 18 | BH18: 18 | BI18: 18 | BJ18: 20 | BK18: 25 | BL18: 25 | BM18: 25 | BN18: 20 | BO18: 25 | BP18: 25 | BQ18: 25 | BR18: 20 | BS18: 25 | BT18: 25 | BU18: 25 | BV18: 20 | BW18: 25 | BX18: 25 | BY18: 25 | BZ18: 20 | CA18: 25 | CB18: 25 | CC18: 25 | CD18: 20 | CE18: 25 | CF18: 25 | CG18: 25 | CH18: 20 | CI18: 25 | CJ18: 25 | CK18: 25 | CL18: 20 | CM18: 35 | CN18: 35 | CO18: 35 | CP18: 35 | CQ18: 35 | CR18: 35 | CS18: 35 | CT18: 12 | CU18: 11 | CV18: 20 | CW18: 12 | CX18: 12 | CY18: 15 | CZ18: 8 | DA18: 8 | DB18: 4.7 | DC18: 6 | DD18: 15 | DE18: 12 | DF18: 12
D19: 12 | E19: Положение крепления оправы ГЗ | F19: 10 | G19: 10 | H19: 10 | I19: 10 | J19: 10 | K19: 10 | L19: 10 | M19: 10 | N19: 10 | O19: 10 | P19: 10 | Q19: 10 | R19: 15 | S19: 15 | T19: 15 | U19: 15 | V19: 15 | W19: 15 | X19: 15 | Y19: 15 | Z19: 15 | AA19: 15 | AB19: 15 | AC19: 15 | AD19: 15 | AE19: 15 | AF19: 15 | AG19: 15 | AH19: 15 | AI19: 15 | AJ19: 15 | AK19: 15 | AL19: 15 | AM19: 15 | AN19: 15 | AO19: 15 | AP19: 20 | AQ19: 20 | AR19: 20 | AS19: 20 | AT19: 20 | AU19: 20 | AV19: 20 | AW19: 20 | AX19: 20 | AY19: 20 | AZ19: 20 | BA19: 20 | BB19: 20 | BC19: 20 | BD19: 20 | BE19: 20 | BF19: 20 | BG19: 20 | BH19: 20 | BI19: 20 | BJ19: 20 | BK19: 20 | BL19: 20 | BM19: 20 | BN19: 20 | BO19: 20 | BP19: 20 | BQ19: 20 | BR19: 20 | BS19: 20 | BT19: 20 | BU19: 20 | BV19: 20 | BW19: 20 | BX19: 20 | BY19: 20 | BZ19: 20 | CA19: 20 | CB19: 20 | CC19: 20 | CD19: 20 | CE19: 20 | CF19: 20 | CG19: 20 | CH19: 20 | CI19: 20 | CJ19: 20 | CK19: 20 | CL19: 20 | CM19: 20 | CN19: 20 | CO19: 20 | CP19: 40 | CQ19: 40 | CR19: 40 | CS19: 40 | CT19: 20 | CU19: 29.62 | CV19: 20 | CW19: 15 | CX19: 15 | CY19: 20 | CZ19: 20 | DA19: 15 | DB19: 15 | DC19: 10 | DD19: 29.62 | DE19: 20 | DF19: 20
D20: 13 | E20: Положение крепления растяжек ДЗ | F20: 28 | G20: 28 | H20: 32 | I20: 28 | J20: 28 | K20: 28 | L20: 40 | M20: 28 | N20: 28 | O20: 35 | P20: 40 | Q20: 31 | R20: 34 | S20: 42 | T20: 42 | U20: 42 | V20: 34 | W20: 50 | X20: 55 | Y20: 52 | Z20: 47 | AA20: 60 | AB20: 57 | AC20: 52 | AD20: 44 | AE20: 60 | AF20: 60 | AG20: 60 | AH20: 54 | AI20: 60 | AJ20: 60 | AK20: 60 | AL20: 54 | AM20: 60 | AN20: 60 | AO20: 60 | AP20: 50 | AQ20: 66 | AR20: 60 | AS20: 66 | AT20: 50 | AU20: 70 | AV20: 75 | AW20: 66 | AX20: 55 | AY20: 80 | AZ20: 80 | BA20: 80 | BB20: 65 | BC20: 90 | BD20: 90 | BE20: 90 | BF20: 70 | BG20: 90 | BH20: 95 | BI20: 90 | BJ20: 87 | BK20: 110 | BL20: 110 | BM20: 110 | BN20: 87 | BO20: 113 | BP20: 113 | BQ20: 110 | BR20: 100 | BS20: 125 | BT20: 125 | BU20: 125 | BV20: 100 | BW20: 125 | BX20: 125 | BY20: 125 | BZ20: 105 | CA20: 125 | CB20: 125 | CC20: 125 | CD20: 110 | CE20: 135 | CF20: 135 | CG20: 135 | CH20: 115 | CI20: 150 | CJ20: 140 | CK20: 135 | CL20: 130 | CM20: 170 | CN20: 170 | CO20: 170 | CP20: 170 | CQ20: 190 | CR20: 190 | CS20: 190 | CT20: 65 | CU20: 72.5 | CV20: 105 | CW20: 65 | CX20: 60 | CY20: 66 | CZ20: 50 | DA20: 50 | DB20: 60 | DC20: 60 | DD20: 70 | DE20: 66 | DF20: 62
D21: 14 | E21: Отрезок трубы от крепления ДЗ до переднего среза | F21: 120 | G21: 120 | H21: 120 | I21: 140 | J21: 120 | K21: 120 | L21: 112 | M21: 140 | N21: 124 | O21: 149 | P21: 152 | Q21: 148 | R21: 195 | S21: 242 | T21: 236 | U21: 236 | V21: 187 | W21: 244 | X21: 207 | Y21: 218 | Z21: 180 | AA21: 227 | AB21: 209 | AC21: 211 | AD21: 105 | AE21: 261 | AF21: 116 | AG21: 163 | AH21: 128 | AI21: 191 | AJ21: 135 | AK21: 186 | AL21: 198.5 | AM21: 217.5 | AN21: 131 | AO21: 202 | AP21: 163 | AQ21: 208 | AR21: 130 | AS21: 198 | AT21: 173 | AU21: 221 | AV21: 132 | AW21: 205 | AX21: 180 | AY21: 253.5 | AZ21: 130 | BA21: 204.5 | BB21: 190 | BC21: 266 | BD21: 161.5 | BE21: 300 | BF21: 231 | BG21: 239.5 | BH21: 141.5 | BI21: 300 | BJ21: 180.5 | BK21: 203 | BL21: 165 | BM21: 260 | BN21: 316.5 | BO21: 290 | BP21: 176 | BQ21: 274.5 | BR21: 264 | BS21: 387.5 | BT21: 240 | BU21: 361.5 | BV21: 267 | BW21: 318 | BX21: 197.8 | BY21: 297 | BZ21: 318 | CA21: 464 | CB21: 294 | CC21: 434 | CD21: 311.5 | CE21: 530 | CF21: 335 | CG21: 495 | CH21: 318.5 | CI21: 531.5 | CJ21: 344 | CK21: 512.5 | CL21: 365.5 | CM21: 477.5 | CN21: 303.5 | CO21: 443 | CP21: 366 | CQ21: 523 | CR21: 331 | CS21: 487 | CT21: 20 | CU21: 57.5 | CV21: 170 | CW21: 55 | CX21: 128.1 | CY21: 19 | CZ21: 18 | DA21: 39.7 | DB21: 0 | DC21: 20 | DD21: 30 | DE21: 20 | DF21: 20
D22: 15 | E22: Высота диафрагмирования трубы | F22: 13 | G22: 13.2 | H22: 14.35 | I22: 15 | J22: 13 | K22: 13.2 | L22: 17.5 | M22: 15 | N22: 13 | O22: 15.8 | P22: 16.7 | Q22: 15 | R22: 20 | S22: 20 | T22: 20 | U22: 20 | V22: 25 | W22: 25 | X22: 25 | Y22: 25 | Z22: 25 | AA22: 25 | AB22: 25 | AC22: 25 | AD22: 29 | AE22: 25 | AF22: 35 | AG22: 30.5 | AH22: 29.2 | AI22: 30.35 | AJ22: 36.85 | AK22: 30.35 | AL22: 30 | AM22: 31 | AN22: 37.9 | AO22: 35.7 | AP22: 30 | AQ22: 32.24 | AR22: 35 | AS22: 33.2 | AT22: 35.3 | AU22: 40.32 | AV22: 40 | AW22: 41.5 | AX22: 45 | AY22: 47 | AZ22: 40 | BA22: 42 | BB22: 47 | BC22: 47.9 | BD22: 50 | BE22: 42 | BF22: 48 | BG22: 53.5 | BH22: 50.5 | BI22: 42 | BJ22: 48.65 | BK22: 53.6 | BL22: 52.8 | BM22: 42 | BN22: 50.2 | BO22: 51.1 | BP22: 50.3 | BQ22: 50.5 | BR22: 50.5 | BS22: 50.5 | BT22: 50.3 | BU22: 60 | BV22: 62 | BW22: 60 | BX22: 61.5 | BY22: 61.5 | BZ22: 63.8 | CA22: 60 | CB22: 62.8 | CC22: 61.5 | CD22: 65.5 | CE22: 67 | CF22: 67 | CG22: 66.8 | CH22: 67 | CI22: 67 | CJ22: 68.5 | CK22: 68.2 | CL22: 67 | CM22: 71.5 | CN22: 68.5 | CO22: 68.7 | CP22: 67 | CQ22: 73.5 | CR22: 68.5 | CS22: 70.85 | CT22: 0 | CU22: 0 | CV22: 0 | CW22: 0 | CX22: 30.35 | CY22: 0 | CZ22: 0 | DA22: 0 | DB22: 0 | DC22: 0 | DD22: 0 | DE22: 0 | DF22: 0
D23: 16 | E23: Диаметр входного отверстия трубы | F23: 110 | G23: 113 | H23: 130 | I23: 127.5 | J23: 136 | K23: 138 | L23: 155 | M23: 140 | N23: 161 | O23: 165 | P23: 180 | Q23: 163 | R23: 187 | S23: 200 | T23: 208 | U23: 200 | V23: 212 | W23: 225 | X23: 233 | Y23: 225 | Z23: 237 | AA23: 250 | AB23: 257 | AC23: 250 | AD23: 243 | AE23: 280 | AF23: 263 | AG23: 280 | AH23: 263 | AI23: 282 | AJ23: 280 | AK23: 282 | AL23: 288 | AM23: 304 | AN23: 304 | AO23: 300 | AP23: 315 | AQ23: 330 | AR23: 330 | AS23: 325 | AT23: 339 | AU23: 360 | AV23: 360 | AW23: 350 | AX23: 365 | AY23: 380 | AZ23: 380 | BA23: 375 | BB23: 410 | BC23: 432 | BD23: 432 | BE23: 428 | BF23: 465 | BG23: 484 | BH23: =BH10+BH12 -> 483.88 | BI23: =BI10+BI12 -> 477.2 | BJ23: =BJ10+BJ12 -> 516.5 | BK23: =BK10+BK12 -> 533 | BL23: 533 | BM23: 530 | BN23: =BN10+BN12 -> 567.3 | BO23: 585 | BP23: 584 | BQ23: 580 | BR23: =BR10+BR12 -> 618.1 | BS23: =BS10+BS12 -> 634.6 | BT23: =BT10+BT12 -> 636.28 | BU23: =BU10+BU12 -> 20 | BV23: 668.5 | BW23: 683 | BX23: =BX10+BX12 -> 687.08 | BY23: =BY10+BY12 -> 680.4 | BZ23: 721 | CA23: =CA10+CA12 -> 736.2 | CB23: 737.88 | CC23: 731.2 | CD23: 770.5 | CE23: 787 | CF23: 788.68 | CG23: 782 | CH23: 821.3 | CI23: 837.8 | CJ23: 839.48 | CK23: 832.8 | CL23: 922.9 | CM23: 939.4 | CN23: 941.08 | CO23: 934.4 | CP23: 1024.5 | CQ23: 1041 | CR23: 1042.68 | CS23: 1036 | CT23: 383 | CU23: 277 | CV23: 540.88 | CW23: 276 | CX23: 282 | CY23: 384 | CZ23: 320 | DA23: 225 | DB23: 168 | DC23: 152 | DD23: 384 | DE23: 330 | DF23: 224
D24: 17 | E24: Внутренний диаметр трубы | F24: 110 | G24: 113 | H24: 130 | I24: 127.5 | J24: 136 | K24: 138 | L24: 155 | M24: 140 | N24: 161 | O24: 165 | P24: 180 | Q24: 163 | R24: 187 | S24: 200 | T24: 208 | U24: 200 | V24: 212 | W24: 225 | X24: 233 | Y24: 225 | Z24: 237 | AA24: 250 | AB24: 257 | AC24: 250 | AD24: 265 | AE24: 298 | AF24: 298 | AG24: 298 | AH24: 284 | AI24: 309 | AJ24: 309 | AK24: 309 | AL24: 308 | AM24: 334 | AN24: 334 | AO24: 330 | AP24: 340 | AQ24: 360 | AR24: 360 | AS24: 355 | AT24: 359 | AU24: 395 | AV24: 395 | AW24: 385 | AX24: 395 | AY24: 410 | AZ24: 410 | BA24: 405 | BB24: 445 | BC24: 460 | BD24: 460 | BE24: 460 | BF24: 495 | BG24: =BG23+20 -> 504 | BH24: =BH23+20 -> 503.88 | BI24: =BI23+20 -> 497.2 | BJ24: =BJ23+40 -> 556.5 | BK24: 573 | BL24: 573 | BM24: 570 | BN24: 607.3 | BO24: 625 | BP24: 624 | BQ24: 620 | BR24: =BR23+60 -> 678.1 | BS24: 694.6 | BT24: 696.28 | BU24: 80 | BV24: 728.5 | BW24: 743 | BX24: 747.08 | BY24: 740.4 | BZ24: 781 | CA24: 796.2 | CB24: 797.88 | CC24: 791.2 | CD24: 830.5 | CE24: 847 | CF24: 848.68 | CG24: 842 | CH24: =CH23+80 -> 901.3 | CI24: 917.8 | CJ24: 919.48 | CK24: 912.8 | CL24: 1002.9 | CM24: 1019.4 | CN24: 1021.08 | CO24: 1014.4 | CP24: 1104.5 | CQ24: 1121 | CR24: 1122.68 | CS24: 1116 | CT24: 406 | CU24: 288 | CV24: 541 | CW24: 286 | CX24: 309 | CY24: 384 | CZ24: 360 | DA24: 225 | DB24: 168 | DC24: 159.5 | DD24: 394 | DE24: 330 | DF24: 224
F28: 6 | G28: 7 | H28: 8 | I28: 9 | J28: 10 | K28: 11 | L28: 12 | M28: 13 | N28: 14 | O28: 15 | P28: 16 | Q28: 17 | R28: 18 | S28: 19 | T28: 20 | U28: 21 | V28: 22 | W28: 23 | X28: 24 | Y28: 25 | Z28: 26 | AA28: 27 | AB28: 28 | AC28: 29 | AD28: 30 | AE28: 31 | AF28: 32 | AG28: 33 | AH28: 34 | AI28: 35 | AJ28: 36 | AK28: 37 | AL28: 38 | AM28: 39 | AN28: 40 | AO28: 41 | AP28: 42 | AQ28: 43 | AR28: 44 | AS28: 45 | AT28: 46 | AU28: 47 | AV28: 48 | AW28: 49 | AX28: 50 | AY28: 51 | AZ28: 52 | BA28: 53 | BB28: 54 | BC28: 55 | BD28: 56 | BE28: 57 | BF28: 58 | BG28: 59 | BH28: 60 | BI28: 61 | BJ28: 62 | BK28: 63 | BL28: 64 | BM28: 65 | BN28: 66 | BO28: 67 | BP28: 68 | BQ28: 69 | BR28: 70 | BS28: 71 | BT28: 72 | BU28: 73 | BV28: 74 | BW28: 75 | BX28: 76 | BY28: 77 | BZ28: 78 | CA28: 79 | CB28: 80 | CC28: 81 | CD28: 82 | CE28: 83 | CF28: 84 | CG28: 85 | CH28: 86 | CI28: 87 | CJ28: 88 | CK28: 89 | CL28: 90 | CM28: 91 | CN28: 92 | CO28: 93 | CP28: 94 | CQ28: 95 | CR28: 96 | CS28: 97 | CT28: 98 | CU28: 99 | CV28: 100 | CW28: 101 | CX28: 102 | CY28: 103 | CZ28: 104 | DA28: 105 | DB28: 106 | DC28: 107 | DD28: 108 | DE28: 109 | DF28: 110 | DG28: 111 | DH28: 112 | DI28: 113 | DJ28: 114 | DK28: 115 | DL28: 116 | DM28: 13 | DN28: 118 | DO28: 119 | DP28: 120 | DQ28: 121 | DR28: 122 | DS28: 123 | DT28: 124 | DU28: 125 | DV28: 126 | DW28: 127 | DX28: 128 | DY28: 129 | DZ28: 130 | EA28: 131 | EB28: 132 | EC28: 133 | ED28: 134 | EE28: 135 | EF28: 136 | EG28: 137 | EH28: 138 | EI28: 139 | EJ28: 140 | EK28: 141 | EL28: 142 | EM28: 143 | EN28: 144 | EO28: 145 | EP28: 146 | EQ28: 147 | ER28: 148 | ES28: 149 | ET28: 150 | EU28: 151 | EV28: 152 | EW28: 153 | EX28: 154 | EY28: 155 | EZ28: 156 | FA28: 157 | FB28: 158 | FC28: 159 | FD28: 160 | FE28: 161 | FF28: 162 | FG28: 163 | FH28: 164 | FI28: 165 | FJ28: 166 | FK28: 167 | FL28: 168 | FM28: 169 | FN28: 170 | FO28: 171 | FP28: 172 | FQ28: 173 | FR28: 174 | FS28: 175 | FT28: 176 | FU28: 177 | FV28: 178 | FW28: 179 | FX28: 180 | FY28: 181 | FZ28: 182 | GA28: 183 | GB28: 184 | GC28: 185 | GD28: 186 | GE28: 187 | GF28: 188 | GG28: 189 | GH28: 190 | GI28: 191 | GJ28: 192 | GK28: 193 | GL28: 194 | GM28: 195 | GN28: 196 | GO28: 197 | GP28: 198 | GQ28: 199 | GR28: 200 | GS28: 201 | GT28: 202 | GU28: 203 | GV28: 204 | GW28: 205 | GX28: 206 | GY28: 207 | GZ28: 208 | HA28: 209 | HB28: 210 | HC28: 211 | HD28: 212 | HE28: 213 | HF28: 214 | HG28: 215 | HH28: 216 | HI28: 217 | HJ28: 218 | HK28: 219 | HL28: 220 | HM28: 221 | HN28: 222 | HO28: 223 | HP28: 224 | HQ28: 225 | HR28: 226 | HS28: 227 | HT28: 228 | HU28: 229 | HV28: 230 | HW28: 231 | HX28: 232 | HY28: 233 | HZ28: 234 | IA28: 235 | IB28: 236 | IC28: 237 | ID28: 238 | IE28: 239 | IF28: 240 | IG28: 241 | IH28: 242 | II28: 243 | IJ28: 244 | IK28: 245 | IL28: 246 | IM28: 247 | IN28: 248 | IO28: 249 | IP28: 250 | IQ28: 251 | IR28: 252 | IS28: 253 | IT28: 254 | IU28: 255 | IV28: 256 | IW28: 257 | IX28: 258 | IY28: 259 | IZ28: 260 | JA28: 261 | JB28: 262 | JC28: 263 | JD28: 264 | JE28: 265 | JF28: 266 | JG28: 267 | JH28: 268 | JI28: 269 | JJ28: 270 | JK28: 271 | JL28: 272 | JM28: 273 | JN28: 274 | JO28: 275 | JP28: 276 | JQ28: 277 | JR28: 278 | JS28: 279 | JT28: 280 | JU28: 281 | JV28: 282 | JW28: 283 | JX28: 284 | JY28: 285 | JZ28: 286 | KA28: 287 | KB28: 288 | KC28: 289
F29: =MATCH(0,F10:ML10,0)+5 -> 124

Sheet Дифракционный анализ
C50: Уровень первого кольца | D50: ='Исходные данные'!BI1119 -> 0.04307163653

Sheet Виньетирование
C37: Невиньетированное поле зрения | D37: ='Исходные данные'!F10 -> 18.89 | E37: мм | I37: ='Исходные данные'!F38 -> 01º26'34"
C39: Максимальное поле зрения | D39: ='Исходные данные'!F18 -> 16 | E39: мм | I39: ='Исходные данные'!F40 -> 01º13'20"
C41: Диаметр входного отверстия трубы | D41: ='Исходные данные'!F32 -> 164 | E41: мм
CD128: D | CE128: 4
CD129: H | CE129: 2
CD130: F | CE130: 16
CE131: =(CE128*CE129/CE130)/2 -> 0.25
AJ134: ='Исходные данные'!$F$18/2/50*AJ$135 -> 8 | AK134: ='Исходные данные'!$F$18/2/50*AK$135 -> 7.84 | AL134: ='Исходные данные'!$F$18/2/50*AL$135 -> 7.68 | AM134: ='Исходные данные'!$F$18/2/50*AM$135 -> 7.52 | AN134: ='Исходные данные'!$F$18/2/50*AN$135 -> 7.36 | AO134: ='Исходные данные'!$F$18/2/50*AO$135 -> 7.2 | AP134: ='Исходные данные'!$F$18/2/50*AP$135 -> 7.04 | AQ134: ='Исходные данные'!$F$18/2/50*AQ$135 -> 6.88 | AR134: ='Исходные данные'!$F$18/2/50*AR$135 -> 6.72 | AS134: ='Исходные данные'!$F$18/2/50*AS$135 -> 6.56 | AT134: ='Исходные данные'!$F$18/2/50*AT$135 -> 6.4 | AU134: ='Исходные данные'!$F$18/2/50*AU$135 -> 6.24 | AV134: ='Исходные данные'!$F$18/2/50*AV$135 -> 6.08 | AW134: ='Исходные данные'!$F$18/2/50*AW$135 -> 5.92 | AX134: ='Исходные данные'!$F$18/2/50*AX$135 -> 5.76 | AY134: ='Исходные данные'!$F$18/2/50*AY$135 -> 5.6 | AZ134: ='Исходные данные'!$F$18/2/50*AZ$135 -> 5.44 | BA134: ='Исходные данные'!$F$18/2/50*BA$135 -> 5.28 | BB134: ='Исходные данные'!$F$18/2/50*BB$135 -> 5.12 | BC134: ='Исходные данные'!$F$18/2/50*BC$135 -> 4.96 | BD134: ='Исходные данные'!$F$18/2/50*BD$135 -> 4.8 | BE134: ='Исходные данные'!$F$18/2/50*BE$135 -> 4.64 | BF134: ='Исходные данные'!$F$18/2/50*BF$135 -> 4.48 | BG134: ='Исходные данные'!$F$18/2/50*BG$135 -> 4.32 | BH134: ='Исходные данные'!$F$18/2/50*BH$135 -> 4.16 | BI134: ='Исходные данные'!$F$18/2/50*BI$135 -> 4 | BJ134: ='Исходные данные'!$F$18/2/50*BJ$135 -> 3.84 | BK134: ='Исходные данные'!$F$18/2/50*BK$135 -> 3.68 | BL134: ='Исходные данные'!$F$18/2/50*BL$135 -> 3.52 | BM134: ='Исходные данные'!$F$18/2/50*BM$135 -> 3.36 | BN134: ='Исходные данные'!$F$18/2/50*BN$135 -> 3.2 | BO134: ='Исходные данные'!$F$18/2/50*BO$135 -> 3.04 | BP134: ='Исходные данные'!$F$18/2/50*BP$135 -> 2.88 | BQ134: ='Исходные данные'!$F$18/2/50*BQ$135 -> 2.72 | BR134: ='Исходные данные'!$F$18/2/50*BR$135 -> 2.56 | BS134: ='Исходные данные'!$F$18/2/50*BS$135 -> 2.4 | BT134: ='Исходные данные'!$F$18/2/50*BT$135 -> 2.24 | BU134: ='Исходные данные'!$F$18/2/50*BU$135 -> 2.08 | BV134: ='Исходные данные'!$F$18/2/50*BV$135 -> 1.92 | BW134: ='Исходные данные'!$F$18/2/50*BW$135 -> 1.76 | BX134: ='Исходные данные'!$F$18/2/50*BX$135 -> 1.6 | BY134: ='Исходные данные'!$F$18/2/50*BY$135 -> 1.44 | BZ134: ='Исходные данные'!$F$18/2/50*BZ$135 -> 1.28 | CA134: ='Исходные данные'!$F$18/2/50*CA$135 -> 1.12 | CB134: ='Исходные данные'!$F$18/2/50*CB$135 -> 0.96 | CC134: ='Исходные данные'!$F$18/2/50*CC$135 -> 0.8 | CD134: ='Исходные данные'!$F$18/2/50*CD$135 -> 0.64 | CE134: ='Исходные данные'!$F$18/2/50*CE$135 -> 0.48 | CF134: ='Исходные данные'!$F$18/2/50*CF$135 -> 0.32 | CG134: ='Исходные данные'!$F$18/2/50*CG$135 -> 0.16 | CH134: 0 | CI134: ='Исходные данные'!$F$18/2/50*CI$135 -> 0.16 | CJ134: ='Исходные данные'!$F$18/2/50*CJ$135 -> 0.32 | CK134: ='Исходные данные'!$F$18/2/50*CK$135 -> 0.48 | CL134: ='Исходные данные'!$F$18/2/50*CL$135 -> 0.64 | CM134: ='Исходные данные'!$F$18/2/50*CM$135 -> 0.8 | CN134: ='Исходные данные'!$F$18/2/50*CN$135 -> 0.96 | CO134: ='Исходные данные'!$F$18/2/50*CO$135 -> 1.12 | CP134: ='Исходные данные'!$F$18/2/50*CP$135 -> 1.28 | CQ134: ='Исходные данные'!$F$18/2/50*CQ$135 -> 1.44 | CR134: ='Исходные данные'!$F$18/2/50*CR$135 -> 1.6 | CS134: ='Исходные данные'!$F$18/2/50*CS$135 -> 1.76 | CT134: ='Исходные данные'!$F$18/2/50*CT$135 -> 1.92 | CU134: ='Исходные данные'!$F$18/2/50*CU$135 -> 2.08 | CV134: ='Исходные данные'!$F$18/2/50*CV$135 -> 2.24 | CW134: ='Исходные данные'!$F$18/2/50*CW$135 -> 2.4 | CX134: ='Исходные данные'!$F$18/2/50*CX$135 -> 2.56 | CY134: ='Исходные данные'!$F$18/2/50*CY$135 -> 2.72 | CZ134: ='Исходные данные'!$F$18/2/50*CZ$135 -> 2.88 | DA134: ='Исходные данные'!$F$18/2/50*DA$135 -> 3.04 | DB134: ='Исходные данные'!$F$18/2/50*DB$135 -> 3.2 | DC134: ='Исходные данные'!$F$18/2/50*DC$135 -> 3.36 | DD134: ='Исходные данные'!$F$18/2/50*DD$135 -> 3.52 | DE134: ='Исходные данные'!$F$18/2/50*DE$135 -> 3.68 | DF134: ='Исходные данные'!$F$18/2/50*DF$135 -> 3.84 | DG134: ='Исходные данные'!$F$18/2/50*DG$135 -> 4 | DH134: ='Исходные данные'!$F$18/2/50*DH$135 -> 4.16 | DI134: ='Исходные данные'!$F$18/2/50*DI$135 -> 4.32 | DJ134: ='Исходные данные'!$F$18/2/50*DJ$135 -> 4.48 | DK134: ='Исходные данные'!$F$18/2/50*DK$135 -> 4.64 | DL134: ='Исходные данные'!$F$18/2/50*DL$135 -> 4.8 | DM134: ='Исходные данные'!$F$18/2/50*DM$135 -> 4.96 | DN134: ='Исходные данные'!$F$18/2/50*DN$135 -> 5.12 | DO134: ='Исходные данные'!$F$18/2/50*DO$135 -> 5.28 | DP134: ='Исходные данные'!$F$18/2/50*DP$135 -> 5.44 | DQ134: ='Исходные данные'!$F$18/2/50*DQ$135 -> 5.6 | DR134: ='Исходные данные'!$F$18/2/50*DR$135 -> 5.76 | DS134: ='Исходные данные'!$F$18/2/50*DS$135 -> 5.92 | DT134: ='Исходные данные'!$F$18/2/50*DT$135 -> 6.08 | DU134: ='Исходные данные'!$F$18/2/50*DU$135 -> 6.24 | DV134: ='Исходные данные'!$F$18/2/50*DV$135 -> 6.4 | DW134: ='Исходные данные'!$F$18/2/50*DW$135 -> 6.56 | DX134: ='Исходные данные'!$F$18/2/50*DX$135 -> 6.72 | DY134: ='Исходные данные'!$F$18/2/50*DY$135 -> 6.88 | DZ134: ='Исходные данные'!$F$18/2/50*DZ$135 -> 7.04 | EA134: ='Исходные данные'!$F$18/2/50*EA$135 -> 7.2 | EB134: ='Исходные данные'!$F$18/2/50*EB$135 -> 7.36 | EC134: ='Исходные данные'!$F$18/2/50*EC$135 -> 7.52 | ED134: ='Исходные данные'!$F$18/2/50*ED$135 -> 7.68 | EE134: ='Исходные данные'!$F$18/2/50*EE$135 -> 7.84 | EF134: ='Исходные данные'!$F$18/2/50*EF$135 -> 8
AJ135: 50 | AK135: 49 | AL135: 48 | AM135: 47 | AN135: 46 | AO135: 45 | AP135: 44 | AQ135: 43 | AR135: 42 | AS135: 41 | AT135: 40 | AU135: 39 | AV135: 38 | AW135: 37 | AX135: 36 | AY135: 35 | AZ135: 34 | BA135: 33 | BB135: 32 | BC135: 31 | BD135: 30 | BE135: 29 | BF135: 28 | BG135: 27 | BH135: 26 | BI135: 25 | BJ135: 24 | BK135: 23 | BL135: 22 | BM135: 21 | BN135: 20 | BO135: 19 | BP135: 18 | BQ135: 17 | BR135: 16 | BS135: 15 | BT135: 14 | BU135: 13 | BV135: 12 | BW135: 11 | BX135: 10 | BY135: 9 | BZ135: 8 | CA135: 7 | CB135: 6 | CC135: 5 | CD135: 4 | CE135: 3 | CF135: 2 | CG135: 1 | CH135: 0 | CI135: 1 | CJ135: 2 | CK135: 3 | CL135: 4 | CM135: 5 | CN135: 6 | CO135: 7 | CP135: 8 | CQ135: 9 | CR135: 10 | CS135: 11 | CT135: 12 | CU135: 13 | CV135: 14 | CW135: 15 | CX135: 16 | CY135: 17 | CZ135: 18 | DA135: 19 | DB135: 20 | DC135: 21 | DD135: 22 | DE135: 23 | DF135: 24 | DG135: 25 | DH135: 26 | DI135: 27 | DJ135: 28 | DK135: 29 | DL135: 30 | DM135: 31 | DN135: 32 | DO135: 33 | DP135: 34 | DQ135: 35 | DR135: 36 | DS135: 37 | DT135: 38 | DU135: 39 | DV135: 40 | DW135: 41 | DX135: 42 | DY135: 43 | DZ135: 44 | EA135: 45 | EB135: 46 | EC135: 47 | ED135: 48 | EE135: 49 | EF135: 50
CB136: Радиус виньетирующей окружности | CH136: ='Исходные данные'!F46/2 -> 22.49873378
CB137: Радиус сечения виньетируемого потока лучей | CH137: ='Исходные данные'!F6*'Исходные данные'!F12/'Исходные данные'!F36/2 -> 14.7
CB138: Радиус ЦЭ в плоскости виньетирования | CH138: =CH137*'Исходные данные'!F42/100 -> 4.409751821
AJ139: =AJ134*('Исходные данные'!$F$36-'Исходные данные'!$F$12)/'Исходные данные'!$F$36 -> 6.432 | AK139: =AK134*('Исходные данные'!$F$36-'Исходные данные'!$F$12)/'Исходные данные'!$F$36 -> 6.30336 | AL139: =AL134*('Исходные данные'!$F$36-'Исходные данные'!$F$12)/'Исходные данные'!$F$36 -> 6.17472 | AM139: =AM134*('Исходные данные'!$F$36-'Исходные данные'!$F$12)/'Исходные данные'!$F$36 -> 6.04608 | AN139: =AN134*('Исходные данные'!$F$36-'Исходные данные'!$F$12)/'Исходные данные'!$F$36 -> 5.91744 | AO139: =AO134*('Исходные данные'!$F$36-'Исходные данные'!$F$12)/'Исходные данные'!$F$36 -> 5.7888 | AP139: =AP134*('Исходные данные'!$F$36-'Исходные данные'!$F$12)/'Исходные данные'!$F$36 -> 5.66016 | AQ139: =AQ134*('Исходные данные'!$F$36-'Исходные данные'!$F$12)/'Исходные данные'!$F$36 -> 5.53152 | AR139: =AR134*('Исходные данные'!$F$36-'Исходные данные'!$F$12)/'Исходные данные'!$F$36 -> 5.40288 | AS139: =AS134*('Исходные данные'!$F$36-'Исходные данные'!$F$12)/'Исходные данные'!$F$36 -> 5.27424 | AT139: =AT134*('Исходные данные'!$F$36-'Исходные данные'!$F$12)/'Исходные данные'!$F$36 -> 5.1456 | AU139: =AU134*('Исходные данные'!$F$36-'Исходные данные'!$F$12)/'Исходные данные'!$F$36 -> 5.01696 | AV139: =AV134*('Исходные данные'!$F$36-'Исходные данные'!$F$12)/'Исходные данные'!$F$36 -> 4.88832 | AW139: =AW134*('Исходные данные'!$F$36-'Исходные данные'!$F$12)/'Исходные данные'!$F$36 -> 4.75968 | AX139: =AX134*('Исходные данные'!$F$36-'Исходные данные'!$F$12)/'Исходные данные'!$F$36 -> 4.63104 | AY139: =AY134*('Исходные данные'!$F$36-'Исходные данные'!$F$12)/'Исходные данные'!$F$36 -> 4.5024 | AZ139: =AZ134*('Исходные данные'!$F$36-'Исходные данные'!$F$12)/'Исходные данные'!$F$36 -> 4.37376 | BA139: =BA134*('Исходные данные'!$F$36-'Исходные данные'!$F$12)/'Исходные данные'!$F$36 -> 4.24512 | BB139: =BB134*('Исходные данные'!$F$36-'Исходные данные'!$F$12)/'Исходные данные'!$F$36 -> 4.11648 | BC139: =BC134*('Исходные данные'!$F$36-'Исходные данные'!$F$12)/'Исходные данные'!$F$36 -> 3.98784 | BD139: =BD134*('Исходные данные'!$F$36-'Исходные данные'!$F$12)/'Исходные данные'!$F$36 -> 3.8592 | BE139: =BE134*('Исходные данные'!$F$36-'Исходные данные'!$F$12)/'Исходные данные'!$F$36 -> 3.73056 | BF139: =BF134*('Исходные данные'!$F$36-'Исходные данные'!$F$12)/'Исходные данные'!$F$36 -> 3.60192 | BG139: =BG134*('Исходные данные'!$F$36-'Исходные данные'!$F$12)/'Исходные данные'!$F$36 -> 3.47328 | BH139: =BH134*('Исходные данные'!$F$36-'Исходные данные'!$F$12)/'Исходные данные'!$F$36 -> 3.34464 | BI139: =BI134*('Исходные данные'!$F$36-'Исходные данные'!$F$12)/'Исходные данные'!$F$36 -> 3.216 | BJ139: =BJ134*('Исходные данные'!$F$36-'Исходные данные'!$F$12)/'Исходные данные'!$F$36 -> 3.08736 | BK139: =BK134*('Исходные данные'!$F$36-'Исходные данные'!$F$12)/'Исходные данные'!$F$36 -> 2.95872 | BL139: =BL134*('Исходные данные'!$F$36-'Исходные данные'!$F$12)/'Исходные данные'!$F$36 -> 2.83008 | BM139: =BM134*('Исходные данные'!$F$36-'Исходные данные'!$F$12)/'Исходные данные'!$F$36 -> 2.70144 | BN139: =BN134*('Исходные данные'!$F$36-'Исходные данные'!$F$12)/'Исходные данные'!$F$36 -> 2.5728 | BO139: =BO134*('Исходные данные'!$F$36-'Исходные данные'!$F$12)/'Исходные данные'!$F$36 -> 2.44416 | BP139: =BP134*('Исходные данные'!$F$36-'Исходные данные'!$F$12)/'Исходные данные'!$F$36 -> 2.31552 | BQ139: =BQ134*('Исходные данные'!$F$36-'Исходные данные'!$F$12)/'Исходные данные'!$F$36 -> 2.18688 | BR139: =BR134*('Исходные данные'!$F$36-'Исходные данные'!$F$12)/'Исходные данные'!$F$36 -> 2.05824 | BS139: =BS134*('Исходные данные'!$F$36-'Исходные данные'!$F$12)/'Исходные данные'!$F$36 -> 1.9296 | BT139: =BT134*('Исходные данные'!$F$36-'Исходные данные'!$F$12)/'Исходные данные'!$F$36 -> 1.80096 | BU139: =BU134*('Исходные данные'!$F$36-'Исходные данные'!$F$12)/'Исходные данные'!$F$36 -> 1.67232 | BV139: =BV134*('Исходные данные'!$F$36-'Исходные данные'!$F$12)/'Исходные данные'!$F$36 -> 1.54368 | BW139: =BW134*('Исходные данные'!$F$36-'Исходные данные'!$F$12)/'Исходные данные'!$F$36 -> 1.41504 | BX139: =BX134*('Исходные данные'!$F$36-'Исходные данные'!$F$12)/'Исходные данные'!$F$36 -> 1.2864 | BY139: =BY134*('Исходные данные'!$F$36-'Исходные данные'!$F$12)/'Исходные данные'!$F$36 -> 1.15776 | BZ139: =BZ134*('Исходные данные'!$F$36-'Исходные данные'!$F$12)/'Исходные данные'!$F$36 -> 1.02912 | CA139: =CA134*('Исходные данные'!$F$36-'Исходные данные'!$F$12)/'Исходные данные'!$F$36 -> 0.90048 | CB139: =CB134*('Исходные данные'!$F$36-'Исходные данные'!$F$12)/'Исходные данные'!$F$36 -> 0.77184 | CC139: =CC134*('Исходные данные'!$F$36-'Исходные данные'!$F$12)/'Исходные данные'!$F$36 -> 0.6432 | CD139: =CD134*('Исходные данные'!$F$36-'Исходные данные'!$F$12)/'Исходные данные'!$F$36 -> 0.51456 | CE139: =CE134*('Исходные данные'!$F$36-'Исходные данные'!$F$12)/'Исходные данные'!$F$36 -> 0.38592 | CF139: =CF134*('Исходные данные'!$F$36-'Исходные данные'!$F$12)/'Исходные данные'!$F$36 -> 0.25728 | CG139: =CG134*('Исходные данные'!$F$36-'Исходные данные'!$F$12)/'Исходные данные'!$F$36 -> 0.12864 | CH139: =CH134*('Исходные данные'!$F$36-'Исходные данные'!$F$12)/'Исходные данные'!$F$36 -> 0 | CI139: =CI134*('Исходные данные'!$F$36-'Исходные данные'!$F$12)/'Исходные данные'!$F$36 -> 0.12864 | CJ139: =CJ134*('Исходные данные'!$F$36-'Исходные данные'!$F$12)/'Исходные данные'!$F$36 -> 0.25728 | CK139: =CK134*('Исходные данные'!$F$36-'Исходные данные'!$F$12)/'Исходные данные'!$F$36 -> 0.38592 | CL139: =CL134*('Исходные данные'!$F$36-'Исходные данные'!$F$12)/'Исходные данные'!$F$36 -> 0.51456 | CM139: =CM134*('Исходные данные'!$F$36-'Исходные данные'!$F$12)/'Исходные данные'!$F$36 -> 0.6432 | CN139: =CN134*('Исходные данные'!$F$36-'Исходные данные'!$F$12)/'Исходные данные'!$F$36 -> 0.77184 | CO139: =CO134*('Исходные данные'!$F$36-'Исходные данные'!$F$12)/'Исходные данные'!$F$36 -> 0.90048 | CP139: =CP134*('Исходные данные'!$F$36-'Исходные данные'!$F$12)/'Исходные данные'!$F$36 -> 1.02912 | CQ139: =CQ134*('Исходные данные'!$F$36-'Исходные данные'!$F$12)/'Исходные данные'!$F$36 -> 1.15776 | CR139: =CR134*('Исходные данные'!$F$36-'Исходные данные'!$F$12)/'Исходные данные'!$F$36 -> 1.2864 | CS139: =CS134*('Исходные данные'!$F$36-'Исходные данные'!$F$12)/'Исходные данные'!$F$36 -> 1.41504 | CT139: =CT134*('Исходные данные'!$F$36-'Исходные данные'!$F$12)/'Исходные данные'!$F$36 -> 1.54368 | CU139: =CU134*('Исходные данные'!$F$36-'Исходные данные'!$F$12)/'Исходные данные'!$F$36 -> 1.67232 | CV139: =CV134*('Исходные данные'!$F$36-'Исходные данные'!$F$12)/'Исходные данные'!$F$36 -> 1.80096 | CW139: =CW134*('Исходные данные'!$F$36-'Исходные данные'!$F$12)/'Исходные данные'!$F$36 -> 1.9296 | CX139: =CX134*('Исходные данные'!$F$36-'Исходные данные'!$F$12)/'Исходные данные'!$F$36 -> 2.05824 | CY139: =CY134*('Исходные данные'!$F$36-'Исходные данные'!$F$12)/'Исходные данные'!$F$36 -> 2.18688 | CZ139: =CZ134*('Исходные данные'!$F$36-'Исходные данные'!$F$12)/'Исходные данные'!$F$36 -> 2.31552 | DA139: =DA134*('Исходные данные'!$F$36-'Исходные данные'!$F$12)/'Исходные данные'!$F$36 -> 2.44416 | DB139: =DB134*('Исходные данные'!$F$36-'Исходные данные'!$F$12)/'Исходные данные'!$F$36 -> 2.5728 | DC139: =DC134*('Исходные данные'!$F$36-'Исходные данные'!$F$12)/'Исходные данные'!$F$36 -> 2.70144 | DD139: =DD134*('Исходные данные'!$F$36-'Исходные данные'!$F$12)/'Исходные данные'!$F$36 -> 2.83008 | DE139: =DE134*('Исходные данные'!$F$36-'Исходные данные'!$F$12)/'Исходные данные'!$F$36 -> 2.95872 | DF139: =DF134*('Исходные данные'!$F$36-'Исходные данные'!$F$12)/'Исходные данные'!$F$36 -> 3.08736 | DG139: =DG134*('Исходные данные'!$F$36-'Исходные данные'!$F$12)/'Исходные данные'!$F$36 -> 3.216 | DH139: =DH134*('Исходные данные'!$F$36-'Исходные данные'!$F$12)/'Исходные данные'!$F$36 -> 3.34464 | DI139: =DI134*('Исходные данные'!$F$36-'Исходные данные'!$F$12)/'Исходные данные'!$F$36 -> 3.47328 | DJ139: =DJ134*('Исходные данные'!$F$36-'Исходные данные'!$F$12)/'Исходные данные'!$F$36 -> 3.60192 | DK139: =DK134*('Исходные данные'!$F$36-'Исходные данные'!$F$12)/'Исходные данные'!$F$36 -> 3.73056 | DL139: =DL134*('Исходные данные'!$F$36-'Исходные данные'!$F$12)/'Исходные данные'!$F$36 -> 3.8592 | DM139: =DM134*('Исходные данные'!$F$36-'Исходные данные'!$F$12)/'Исходные данные'!$F$36 -> 3.98784 | DN139: =DN134*('Исходные данные'!$F$36-'Исходные данные'!$F$12)/'Исходные данные'!$F$36 -> 4.11648 | DO139: =DO134*('Исходные данные'!$F$36-'Исходные данные'!$F$12)/'Исходные данные'!$F$36 -> 4.24512 | DP139: =DP134*('Исходные данные'!$F$36-'Исходные данные'!$F$12)/'Исходные данные'!$F$36 -> 4.37376 | DQ139: =DQ134*('Исходные данные'!$F$36-'Исходные данные'!$F$12)/'Исходные данные'!$F$36 -> 4.5024 | DR139: =DR134*('Исходные данные'!$F$36-'Исходные данные'!$F$12)/'Исходные данные'!$F$36 -> 4.63104 | DS139: =DS134*('Исходные данные'!$F$36-'Исходные данные'!$F$12)/'Исходные данные'!$F$36 -> 4.75968 | DT139: =DT134*('Исходные данные'!$F$36-'Исходные данные'!$F$12)/'Исходные данные'!$F$36 -> 4.88832 | DU139: =DU134*('Исходные данные'!$F$36-'Исходные данные'!$F$12)/'Исходные данные'!$F$36 -> 5.01696 | DV139: =DV134*('Исходные данные'!$F$36-'Исходные данные'!$F$12)/'Исходные данные'!$F$36 -> 5.1456 | DW139: =DW134*('Исходные данные'!$F$36-'Исходные данные'!$F$12)/'Исходные данные'!$F$36 -> 5.27424 | DX139: =DX134*('Исходные данные'!$F$36-'Исходные данные'!$F$12)/'Исходные данные'!$F$36 -> 5.40288 | DY139: =DY134*('Исходные данные'!$F$36-'Исходные данные'!$F$12)/'Исходные данные'!$F$36 -> 5.53152 | DZ139: =DZ134*('Исходные данные'!$F$36-'Исходные данные'!$F$12)/'Исходные данные'!$F$36 -> 5.66016 | EA139: =EA134*('Исходные данные'!$F$36-'Исходные данные'!$F$12)/'Исходные данные'!$F$36 -> 5.7888 | EB139: =EB134*('Исходные данные'!$F$36-'Исходные данные'!$F$12)/'Исходные данные'!$F$36 -> 5.91744 | EC139: =EC134*('Исходные данные'!$F$36-'Исходные данные'!$F$12)/'Исходные данные'!$F$36 -> 6.04608 | ED139: =ED134*('Исходные данные'!$F$36-'Исходные данные'!$F$12)/'Исходные данные'!$F$36 -> 6.17472 | EE139: =EE134*('Исходные данные'!$F$36-'Исходные данные'!$F$12)/'Исходные данные'!$F$36 -> 6.30336 | EF139: =EF134*('Исходные данные'!$F$36-'Исходные данные'!$F$12)/'Исходные данные'!$F$36 -> 6.432
AH141: Виньетирование диагональным зеркалом | AI141: 1 | AJ141: =(AJ139^2+$CH$136^2-$CH$137^2)/(2*AJ139) -> 25.76754087 | AK141: 26.16345639 | AL141: 26.5785484 | AM141: 27.01404092 | AN141: 27.47126442 | AO141: 27.95166763 | AP141: 28.45683099 | AQ141: 28.98848194 | AR141: 29.54851246 | AS141: 30.13899911 | AT141: 30.76222608 | AU141: 31.42071188 | AV141: 32.11724009 | AW141: 32.85489523 | AX141: 33.63710454 | AY141: 34.46768695 | AZ141: 35.35091069 | BA141: 36.29156131 | BB141: 37.2950226 | BC141: 38.36737301 | BD141: 39.51550145 | BE141: 40.74724701 | BF141: 42.07156869 | BG141: 43.49875272 | BH141: 45.04066782 | BI141: 46.71108173 | BJ141: 48.52605681 | BK141: 50.50444884 | BL141: 52.66854197 | BM141: 55.04486492 | BN141: 57.66525217 | BO141: 60.56824018 | BP141: 63.80092908 | BQ141: 67.42150137 | BR141: 71.50268521 | BS141: 76.13660289 | BT141: 81.44169738 | BU141: 87.57285564 | BV141: 94.73659361 | BW141: 103.2145239 | BX141: 113.4009043 | BY141: 125.8652182 | BZ141: 141.4616904 | CA141: 161.5326748 | CB141: 188.3154272 | CC141: 225.8370087 | CD141: 282.1515408 | CE141: 376.0519745 | CF141: 563.9171617 | CG141: =(CG139^2+$CH$136^2-$CH$137^2)/(2*CG139) -> 1127.641363 | CH141: =(CH139^2+$CH$136^2-$CH$137^2)/(2*CH139) ->  | CI141: =(CI139^2+$CH$136^2-$CH$137^2)/(2*CI139) -> 1127.641363 | CJ141: =(CJ139^2+$CH$136^2-$CH$137^2)/(2*CJ139) -> 563.9171617 | CK141: 376.0519745 | CL141: 282.1515408 | CM141: 225.8370087 | CN141: 188.3154272 | CO141: 161.5326748 | CP141: 141.4616904 | CQ141: 125.8652182 | CR141: 113.4009043 | CS141: 103.2145239 | CT141: 94.73659361 | CU141: 87.57285564 | CV141: 81.44169738 | CW141: 76.13660289 | CX141: 71.50268521 | CY141: 67.42150137 | CZ141: 63.80092908 | DA141: 60.56824018 | DB141: 57.66525217 | DC141: 55.04486492 | DD141: 52.66854197 | DE141: 50.50444884 | DF141: 48.52605681 | DG141: 46.71108173 | DH141: 45.04066782 | DI141: 43.49875272 | DJ141: 42.07156869 | DK141: 40.74724701 | DL141: 39.51550145 | DM141: 38.36737301 | DN141: 37.2950226 | DO141: 36.29156131 | DP141: 35.35091069 | DQ141: 34.46768695 | DR141: 33.63710454 | DS141: 32.85489523 | DT141: 32.11724009 | DU141: 31.42071188 | DV141: 30.76222608 | DW141: 30.13899911 | DX141: 29.54851246 | DY141: 28.98848194 | DZ141: 28.45683099 | EA141: 27.95166763 | EB141: 27.47126442 | EC141: 27.01404092 | ED141: 26.5785484 | EE141: 26.16345639 | EF141: =(EF139^2+$CH$136^2-$CH$137^2)/(2*EF139) -> 25.76754087
AI142: 2 | AJ142: =(AJ139^2-$CH$136^2+$CH$137^2)/(2*AJ139) -> -19.33554087 | AK142: -19.86009639 | AL142: -20.4038284 | AM142: -20.96796092 | AN142: -21.55382442 | AO142: -22.16286763 | AP142: -22.79667099 | AQ142: -23.45696194 | AR142: -24.14563246 | AS142: -24.86475911 | AT142: -25.61662608 | AU142: -26.40375188 | AV142: -27.22892009 | AW142: -28.09521523 | AX142: -29.00606454 | AY142: -29.96528695 | AZ142: -30.97715069 | BA142: -32.04644131 | BB142: -33.1785426 | BC142: -34.37953301 | BD142: -35.65630145 | BE142: -37.01668701 | BF142: -38.46964869 | BG142: -40.02547272 | BH142: -41.69602782 | BI142: -43.49508173 | BJ142: -45.43869681 | BK142: -47.54572884 | BL142: -49.83846197 | BM142: -52.34342492 | BN142: -55.09245217 | BO142: -58.12408018 | BP142: -61.48540908 | BQ142: -65.23462137 | BR142: -69.44444521 | BS142: -74.20700289 | BT142: -79.64073738 | BU142: -85.90053564 | BV142: -93.19291361 | BW142: -101.7994839 | BX142: -112.1145043 | BY142: -124.7074582 | BZ142: -140.4325704 | CA142: -160.6321948 | CB142: -187.5435872 | CC142: -225.1938087 | CD142: -281.6369808 | CE142: -375.6660545 | CF142: -563.6598817 | CG142: =(CG139^2-$CH$136^2+$CH$137^2)/(2*CG139) -> -1127.512723 | CH142: =(CH139^2-$CH$136^2+$CH$137^2)/(2*CH139) ->  | CI142: =(CI139^2-$CH$136^2+$CH$137^2)/(2*CI139) -> -1127.512723 | CJ142: =(CJ139^2-$CH$136^2+$CH$137^2)/(2*CJ139) -> -563.6598817 | CK142: -375.6660545 | CL142: -281.6369808 | CM142: -225.1938087 | CN142: -187.5435872 | CO142: -160.6321948 | CP142: -140.4325704 | CQ142: -124.7074582 | CR142: -112.1145043 | CS142: -101.7994839 | CT142: -93.19291361 | CU142: -85.90053564 | CV142: -79.64073738 | CW142: -74.20700289 | CX142: -69.44444521 | CY142: -65.23462137 | CZ142: -61.48540908 | DA142: -58.12408018 | DB142: -55.09245217 | DC142: -52.34342492 | DD142: -49.83846197 | DE142: -47.54572884 | DF142: -45.43869681 | DG142: -43.49508173 | DH142: -41.69602782 | DI142: -40.02547272 | DJ142: -38.46964869 | DK142: -37.01668701 | DL142: -35.65630145 | DM142: -34.37953301 | DN142: -33.1785426 | DO142: -32.04644131 | DP142: -30.97715069 | DQ142: -29.96528695 | DR142: -29.00606454 | DS142: -28.09521523 | DT142: -27.22892009 | DU142: -26.40375188 | DV142: -25.61662608 | DW142: -24.86475911 | DX142: -24.14563246 | DY142: -23.45696194 | DZ142: -22.79667099 | EA142: -22.16286763 | EB142: -21.55382442 | EC142: -20.96796092 | ED142: -20.4038284 | EE142: -19.86009639 | EF142: =(EF139^2-$CH$136^2+$CH$137^2)/(2*EF139) -> -19.33554087
AI143: 3 | AJ143: =AJ141+AJ142 -> 6.432 | AK143: 6.30336 | AL143: 6.17472 | AM143: 6.04608 | AN143: 5.91744 | AO143: 5.7888 | AP143: 5.66016 | AQ143: 5.53152 | AR143: 5.40288 | AS143: 5.27424 | AT143: 5.1456 | AU143: 5.01696 | AV143: 4.88832 | AW143: 4.75968 | AX143: 4.63104 | AY143: 4.5024 | AZ143: 4.37376 | BA143: 4.24512 | BB143: 4.11648 | BC143: 3.98784 | BD143: 3.8592 | BE143: 3.73056 | BF143: 3.60192 | BG143: 3.47328 | BH143: 3.34464 | BI143: 3.216 | BJ143: 3.08736 | BK143: 2.95872 | BL143: 2.83008 | BM143: 2.70144 | BN143: 2.5728 | BO143: 2.44416 | BP143: 2.31552 | BQ143: 2.18688 | BR143: 2.05824 | BS143: 1.9296 | BT143: 1.80096 | BU143: 1.67232 | BV143: 1.54368 | BW143: 1.41504 | BX143: 1.2864 | BY143: 1.15776 | BZ143: 1.02912 | CA143: 0.90048 | CB143: 0.77184 | CC143: 0.6432 | CD143: 0.51456 | CE143: 0.38592 | CF143: 0.25728 | CG143: =CG141+CG142 -> 0.12864 | CH143: =CH141+CH142 ->  | CI143: =CI141+CI142 -> 0.12864 | CJ143: =CJ141+CJ142 -> 0.25728 | CK143: 0.38592 | CL143: 0.51456 | CM143: 0.6432 | CN143: 0.77184 | CO143: 0.90048 | CP143: 1.02912 | CQ143: 1.15776 | CR143: 1.2864 | CS143: 1.41504 | CT143: 1.54368 | CU143: 1.67232 | CV143: 1.80096 | CW143: 1.9296 | CX143: 2.05824 | CY143: 2.18688 | CZ143: 2.31552 | DA143: 2.44416 | DB143: 2.5728 | DC143: 2.70144 | DD143: 2.83008 | DE143: 2.95872 | DF143: 3.08736 | DG143: 3.216 | DH143: 3.34464 | DI143: 3.47328 | DJ143: 3.60192 | DK143: 3.73056 | DL143: 3.8592 | DM143: 3.98784 | DN143: 4.11648 | DO143: 4.24512 | DP143: 4.37376 | DQ143: 4.5024 | DR143: 4.63104 | DS143: 4.75968 | DT143: 4.88832 | DU143: 5.01696 | DV143: 5.1456 | DW143: 5.27424 | DX143: 5.40288 | DY143: 5.53152 | DZ143: 5.66016 | EA143: 5.7888 | EB143: 5.91744 | EC143: 6.04608 | ED143: 6.17472 | EE143: 6.30336 | EF143: 6.432
AI144: 4 | AJ144: =SQRT($CH$136^2-AJ141^2) ->  | CG144: =SQRT($CH$136^2-CG141^2) ->  | CH144: =SQRT($CH$136^2-CH141^2) ->  | CI144: =SQRT($CH$136^2-CI141^2) ->  | CJ144: =SQRT($CH$136^2-CJ141^2) ->  | EF144: =SQRT($CH$136^2-EF141^2) -> 
AI145: 5 | AJ145: =AJ144*AJ141 ->  | CG145: =CG144*CG141 ->  | CH145: =CH144*CH141 ->  | CI145: =CI144*CI141 ->  | CJ145: =CJ144*CJ141 -> 
AI146: 6 | AJ146: =AJ144*AJ142 ->  | CG146: =CG144*CG142 ->  | CH146: =CH144*CH142 ->  | CI146: =CI144*CI142 ->  | CJ146: =CJ144*CJ142 ->  | EF146: =EF144*EF142 -> 
AI147: 7 | AJ147: =2*ACOS(AJ141/$CH$136)*180/PI() ->  | CG147: =2*ACOS(CG141/$CH$136)*180/PI() ->  | CH147: =2*ACOS(CH141/$CH$136)*180/PI() ->  | CI147: =2*ACOS(CI141/$CH$136)*180/PI() ->  | CJ147: =2*ACOS(CJ141/$CH$136)*180/PI() ->  | EF147: =2*ACOS(EF141/$CH$136)*180/PI() -> 
AI148: 8 | AJ148: =2*ACOS(AJ142/$CH$137)*180/PI() ->  | CG148: =2*ACOS(CG142/$CH$137)*180/PI() ->  | CH148: =2*ACOS(CH142/$CH$137)*180/PI() ->  | CI148: =2*ACOS(CI142/$CH$137)*180/PI() ->  | CJ148: =2*ACOS(CJ142/$CH$137)*180/PI() ->  | EF148: =2*ACOS(EF142/$CH$137)*180/PI() -> 
AI149: 9 | AJ149: =PI()*$CH$136^2*AJ147/360 ->  | AK149: =PI()*$CH$136:$CH$136^2*AK147/360 ->  | CG149: =PI()*$CH$136:$CH$136^2*CG147/360 ->  | CH149: =PI()*$CH$136:$CH$136^2*CH147/360 ->  | CI149: =PI()*$CH$136:$CH$136^2*CI147/360 ->  | CJ149: =PI()*$CH$136:$CH$136^2*CJ147/360 ->  | EF149: =PI()*$CH$136:$CH$136^2*EF147/360 -> 
AI150: 10 | AJ150: =PI()*$CH$137^2*AJ148/360 ->  | AK150: =PI()*$CH$137^2*AK148/360 ->  | CW150: =PI()*$CH$137^2*CW148/360 -> 
AI151: 11 | AJ151: =IF(AJ139<$CH$136-$CH$137,PI()*$CH137^2,AJ149-AJ145+AJ150-AJ146) -> 678.8667565 | AK151: =IF(AK139<$CH$136-$CH$137,PI()*$CH137^2,AK149-AK145+AK150-AK146) -> 678.8667565 | AL151: 678.8667565 | AM151: 678.8667565 | AN151: 678.8667565 | AO151: 678.8667565 | AP151: 678.8667565 | AQ151: 678.8667565 | AR151: 678.8667565 | AS151: 678.8667565 | AT151: 678.8667565 | AU151: 678.8667565 | AV151: 678.8667565 | AW151: 678.8667565 | AX151: 678.8667565 | AY151: 678.8667565 | AZ151: 678.8667565 | BA151: 678.8667565 | BB151: 678.8667565 | BC151: 678.8667565 | BD151: 678.8667565 | BE151: 678.8667565 | BF151: 678.8667565 | BG151: 678.8667565 | BH151: 678.8667565 | BI151: 678.8667565 | BJ151: 678.8667565 | BK151: 678.8667565 | BL151: 678.8667565 | BM151: 678.8667565 | BN151: 678.8667565 | BO151: 678.8667565 | BP151: 678.8667565 | BQ151: 678.8667565 | BR151: 678.8667565 | BS151: 678.8667565 | BT151: 678.8667565 | BU151: 678.8667565 | BV151: 678.8667565 | BW151: 678.8667565 | BX151: 678.8667565 | BY151: 678.8667565 | BZ151: 678.8667565 | CA151: 678.8667565 | CB151: 678.8667565 | CC151: 678.8667565 | CD151: 678.8667565 | CE151: 678.8667565 | CF151: 678.8667565 | CG151: =IF(CG139<$CH$136-$CH$137,PI()*$CH137^2,CG149-CG145+CG150-CG146) -> 678.8667565 | CH151: =IF(CH139<$CH$136-$CH$137,PI()*$CH137^2,CH149-CH145+CH150-CH146) -> 678.8667565 | CI151: =IF(CI139<$CH$136-$CH$137,PI()*$CH137^2,CI149-CI145+CI150-CI146) -> 678.8667565 | CJ151: =IF(CJ139<$CH$136-$CH$137,PI()*$CH137^2,CJ149-CJ145+CJ150-CJ146) -> 678.8667565 | CK151: 678.8667565 | CL151: 678.8667565 | CM151: 678.8667565 | CN151: 678.8667565 | CO151: 678.8667565 | CP151: 678.8667565 | CQ151: 678.8667565 | CR151: 678.8667565 | CS151: 678.8667565 | CT151: 678.8667565 | CU151: 678.8667565 | CV151: 678.8667565 | CW151: 678.8667565 | CX151: 678.8667565 | CY151: 678.8667565 | CZ151: 678.8667565 | DA151: 678.8667565 | DB151: 678.8667565 | DC151: 678.8667565 | DD151: 678.8667565 | DE151: 678.8667565 | DF151: 678.8667565 | DG151: 678.8667565 | DH151: 678.8667565 | DI151: 678.8667565 | DJ151: 678.8667565 | DK151: 678.8667565 | DL151: 678.8667565 | DM151: 678.8667565 | DN151: 678.8667565 | DO151: 678.8667565 | DP151: 678.8667565 | DQ151: 678.8667565 | DR151: 678.8667565 | DS151: 678.8667565 | DT151: 678.8667565 | DU151: 678.8667565 | DV151: 678.8667565 | DW151: 678.8667565 | DX151: 678.8667565 | DY151: 678.8667565 | DZ151: 678.8667565 | EA151: 678.8667565 | EB151: 678.8667565 | EC151: 678.8667565 | ED151: 678.8667565 | EE151: 678.8667565 | EF151: 678.8667565
AI152: 12 | AJ152: =(AJ151-$CH$138)/((PI()*$CH$137^2)-$CH$138) -> 1 | AK152: =(AK151-$CH$138)/((PI()*$CH$137^2)-$CH$138) -> 1 | AL152: 1 | AM152: 1 | AN152: 1 | AO152: 1 | AP152: 1 | AQ152: 1 | AR152: 1 | AS152: 1 | AT152: 1 | AU152: 1 | AV152: 1 | AW152: 1 | AX152: 1 | AY152: 1 | AZ152: 1 | BA152: 1 | BB152: 1 | BC152: 1 | BD152: 1 | BE152: 1 | BF152: 1 | BG152: 1 | BH152: 1 | BI152: 1 | BJ152: 1 | BK152: 1 | BL152: 1 | BM152: 1 | BN152: 1 | BO152: 1 | BP152: 1 | BQ152: 1 | BR152: 1 | BS152: 1 | BT152: 1 | BU152: 1 | BV152: 1 | BW152: 1 | BX152: 1 | BY152: 1 | BZ152: 1 | CA152: 1 | CB152: 1 | CC152: 1 | CD152: 1 | CE152: 1 | CF152: 1 | CG152: 1 | CH152: 1 | CI152: 1 | CJ152: 1 | CK152: 1 | CL152: 1 | CM152: 1 | CN152: 1 | CO152: 1 | CP152: 1 | CQ152: 1 | CR152: 1 | CS152: 1 | CT152: 1 | CU152: 1 | CV152: 1 | CW152: =(CW151-$CH$138)/((PI()*$CH$137^2)-$CH$138) -> 1 | CX152: 1 | CY152: 1 | CZ152: 1 | DA152: 1 | DB152: 1 | DC152: 1 | DD152: 1 | DE152: 1 | DF152: 1 | DG152: 1 | DH152: 1 | DI152: 1 | DJ152: 1 | DK152: 1 | DL152: 1 | DM152: 1 | DN152: 1 | DO152: 1 | DP152: 1 | DQ152: 1 | DR152: 1 | DS152: 1 | DT152: 1 | DU152: 1 | DV152: 1 | DW152: 1 | DX152: 1 | DY152: 1 | DZ152: 1 | EA152: 1 | EB152: 1 | EC152: 1 | ED152: 1 | EE152: 1 | EF152: 1
CB155: Радиус виньетирующей окружности (труба) | CH155: ='Исходные данные'!F32/2 -> 82
CB156: Радиус сечения виньетируемого потока лучей (апертура) | CH156: ='Исходные данные'!F6/2 -> 75
CB157: Радиус ЦЭ в плоскости виньетирования | CH157: =CH156*'Исходные данные'!F42/100 -> 22.49873378
AJ158: =AJ134*'Исходные данные'!$F$60/'Исходные данные'!$F$36 -> 7.072 | AK158: =AK134*'Исходные данные'!$F$60/'Исходные данные'!$F$36 -> 6.93056 | AL158: =AL134*'Исходные данные'!$F$60/'Исходные данные'!$F$36 -> 6.78912 | AM158: =AM134*'Исходные данные'!$F$60/'Исходные данные'!$F$36 -> 6.64768 | AN158: =AN134*'Исходные данные'!$F$60/'Исходные данные'!$F$36 -> 6.50624 | AO158: =AO134*'Исходные данные'!$F$60/'Исходные данные'!$F$36 -> 6.3648 | AP158: =AP134*'Исходные данные'!$F$60/'Исходные данные'!$F$36 -> 6.22336 | AQ158: =AQ134*'Исходные данные'!$F$60/'Исходные данные'!$F$36 -> 6.08192 | AR158: =AR134*'Исходные данные'!$F$60/'Исходные данные'!$F$36 -> 5.94048 | AS158: =AS134*'Исходные данные'!$F$60/'Исходные данные'!$F$36 -> 5.79904 | AT158: =AT134*'Исходные данные'!$F$60/'Исходные данные'!$F$36 -> 5.6576 | AU158: =AU134*'Исходные данные'!$F$60/'Исходные данные'!$F$36 -> 5.51616 | AV158: =AV134*'Исходные данные'!$F$60/'Исходные данные'!$F$36 -> 5.37472 | AW158: =AW134*'Исходные данные'!$F$60/'Исходные данные'!$F$36 -> 5.23328 | AX158: =AX134*'Исходные данные'!$F$60/'Исходные данные'!$F$36 -> 5.09184 | AY158: =AY134*'Исходные данные'!$F$60/'Исходные данные'!$F$36 -> 4.9504 | AZ158: =AZ134*'Исходные данные'!$F$60/'Исходные данные'!$F$36 -> 4.80896 | BA158: =BA134*'Исходные данные'!$F$60/'Исходные данные'!$F$36 -> 4.66752 | BB158: =BB134*'Исходные данные'!$F$60/'Исходные данные'!$F$36 -> 4.52608 | BC158: =BC134*'Исходные данные'!$F$60/'Исходные данные'!$F$36 -> 4.38464 | BD158: =BD134*'Исходные данные'!$F$60/'Исходные данные'!$F$36 -> 4.2432 | BE158: =BE134*'Исходные данные'!$F$60/'Исходные данные'!$F$36 -> 4.10176 | BF158: =BF134*'Исходные данные'!$F$60/'Исходные данные'!$F$36 -> 3.96032 | BG158: =BG134*'Исходные данные'!$F$60/'Исходные данные'!$F$36 -> 3.81888 | BH158: =BH134*'Исходные данные'!$F$60/'Исходные данные'!$F$36 -> 3.67744 | BI158: =BI134*'Исходные данные'!$F$60/'Исходные данные'!$F$36 -> 3.536 | BJ158: =BJ134*'Исходные данные'!$F$60/'Исходные данные'!$F$36 -> 3.39456 | BK158: =BK134*'Исходные данные'!$F$60/'Исходные данные'!$F$36 -> 3.25312 | BL158: =BL134*'Исходные данные'!$F$60/'Исходные данные'!$F$36 -> 3.11168 | BM158: =BM134*'Исходные данные'!$F$60/'Исходные данные'!$F$36 -> 2.97024 | BN158: =BN134*'Исходные данные'!$F$60/'Исходные данные'!$F$36 -> 2.8288 | BO158: =BO134*'Исходные данные'!$F$60/'Исходные данные'!$F$36 -> 2.68736 | BP158: =BP134*'Исходные данные'!$F$60/'Исходные данные'!$F$36 -> 2.54592 | BQ158: =BQ134*'Исходные данные'!$F$60/'Исходные данные'!$F$36 -> 2.40448 | BR158: =BR134*'Исходные данные'!$F$60/'Исходные данные'!$F$36 -> 2.26304 | BS158: =BS134*'Исходные данные'!$F$60/'Исходные данные'!$F$36 -> 2.1216 | BT158: =BT134*'Исходные данные'!$F$60/'Исходные данные'!$F$36 -> 1.98016 | BU158: =BU134*'Исходные данные'!$F$60/'Исходные данные'!$F$36 -> 1.83872 | BV158: =BV134*'Исходные данные'!$F$60/'Исходные данные'!$F$36 -> 1.69728 | BW158: =BW134*'Исходные данные'!$F$60/'Исходные данные'!$F$36 -> 1.55584 | BX158: =BX134*'Исходные данные'!$F$60/'Исходные данные'!$F$36 -> 1.4144 | BY158: =BY134*'Исходные данные'!$F$60/'Исходные данные'!$F$36 -> 1.27296 | BZ158: =BZ134*'Исходные данные'!$F$60/'Исходные данные'!$F$36 -> 1.13152 | CA158: =CA134*'Исходные данные'!$F$60/'Исходные данные'!$F$36 -> 0.99008 | CB158: =CB134*'Исходные данные'!$F$60/'Исходные данные'!$F$36 -> 0.84864 | CC158: =CC134*'Исходные данные'!$F$60/'Исходные данные'!$F$36 -> 0.7072 | CD158: =CD134*'Исходные данные'!$F$60/'Исходные данные'!$F$36 -> 0.56576 | CE158: =CE134*'Исходные данные'!$F$60/'Исходные данные'!$F$36 -> 0.42432 | CF158: =CF134*'Исходные данные'!$F$60/'Исходные данные'!$F$36 -> 0.28288 | CG158: =CG134*'Исходные данные'!$F$60/'Исходные данные'!$F$36 -> 0.14144 | CH158: =CH134*'Исходные данные'!$F$60/'Исходные данные'!$F$36 -> 0 | CI158: =CI134*'Исходные данные'!$F$60/'Исходные данные'!$F$36 -> 0.14144 | CJ158: =CJ134*'Исходные данные'!$F$60/'Исходные данные'!$F$36 -> 0.28288 | CK158: =CK134*'Исходные данные'!$F$60/'Исходные данные'!$F$36 -> 0.42432 | CL158: =CL134*'Исходные данные'!$F$60/'Исходные данные'!$F$36 -> 0.56576 | CM158: =CM134*'Исходные данные'!$F$60/'Исходные данные'!$F$36 -> 0.7072 | CN158: =CN134*'Исходные данные'!$F$60/'Исходные данные'!$F$36 -> 0.84864 | CO158: =CO134*'Исходные данные'!$F$60/'Исходные данные'!$F$36 -> 0.99008 | CP158: =CP134*'Исходные данные'!$F$60/'Исходные данные'!$F$36 -> 1.13152 | CQ158: =CQ134*'Исходные данные'!$F$60/'Исходные данные'!$F$36 -> 1.27296 | CR158: =CR134*'Исходные данные'!$F$60/'Исходные данные'!$F$36 -> 1.4144 | CS158: =CS134*'Исходные данные'!$F$60/'Исходные данные'!$F$36 -> 1.55584 | CT158: =CT134*'Исходные данные'!$F$60/'Исходные данные'!$F$36 -> 1.69728 | CU158: =CU134*'Исходные данные'!$F$60/'Исходные данные'!$F$36 -> 1.83872 | CV158: =CV134*'Исходные данные'!$F$60/'Исходные данные'!$F$36 -> 1.98016 | CW158: =CW134*'Исходные данные'!$F$60/'Исходные данные'!$F$36 -> 2.1216 | CX158: =CX134*'Исходные данные'!$F$60/'Исходные данные'!$F$36 -> 2.26304 | CY158: =CY134*'Исходные данные'!$F$60/'Исходные данные'!$F$36 -> 2.40448 | CZ158: =CZ134*'Исходные данные'!$F$60/'Исходные данные'!$F$36 -> 2.54592 | DA158: =DA134*'Исходные данные'!$F$60/'Исходные данные'!$F$36 -> 2.68736 | DB158: =DB134*'Исходные данные'!$F$60/'Исходные данные'!$F$36 -> 2.8288 | DC158: =DC134*'Исходные данные'!$F$60/'Исходные данные'!$F$36 -> 2.97024 | DD158: =DD134*'Исходные данные'!$F$60/'Исходные данные'!$F$36 -> 3.11168 | DE158: =DE134*'Исходные данные'!$F$60/'Исходные данные'!$F$36 -> 3.25312 | DF158: =DF134*'Исходные данные'!$F$60/'Исходные данные'!$F$36 -> 3.39456 | DG158: =DG134*'Исходные данные'!$F$60/'Исходные данные'!$F$36 -> 3.536 | DH158: =DH134*'Исходные данные'!$F$60/'Исходные данные'!$F$36 -> 3.67744 | DI158: =DI134*'Исходные данные'!$F$60/'Исходные данные'!$F$36 -> 3.81888 | DJ158: =DJ134*'Исходные данные'!$F$60/'Исходные данные'!$F$36 -> 3.96032 | DK158: =DK134*'Исходные данные'!$F$60/'Исходные данные'!$F$36 -> 4.10176 | DL158: =DL134*'Исходные данные'!$F$60/'Исходные данные'!$F$36 -> 4.2432 | DM158: =DM134*'Исходные данные'!$F$60/'Исходные данные'!$F$36 -> 4.38464 | DN158: =DN134*'Исходные данные'!$F$60/'Исходные данные'!$F$36 -> 4.52608 | DO158: =DO134*'Исходные данные'!$F$60/'Исходные данные'!$F$36 -> 4.66752 | DP158: =DP134*'Исходные данные'!$F$60/'Исходные данные'!$F$36 -> 4.80896 | DQ158: =DQ134*'Исходные данные'!$F$60/'Исходные данные'!$F$36 -> 4.9504 | DR158: =DR134*'Исходные данные'!$F$60/'Исходные данные'!$F$36 -> 5.09184 | DS158: =DS134*'Исходные данные'!$F$60/'Исходные данные'!$F$36 -> 5.23328 | DT158: =DT134*'Исходные данные'!$F$60/'Исходные данные'!$F$36 -> 5.37472 | DU158: =DU134*'Исходные данные'!$F$60/'Исходные данные'!$F$36 -> 5.51616 | DV158: =DV134*'Исходные данные'!$F$60/'Исходные данные'!$F$36 -> 5.6576 | DW158: =DW134*'Исходные данные'!$F$60/'Исходные данные'!$F$36 -> 5.79904 | DX158: =DX134*'Исходные данные'!$F$60/'Исходные данные'!$F$36 -> 5.94048 | DY158: =DY134*'Исходные данные'!$F$60/'Исходные данные'!$F$36 -> 6.08192 | DZ158: =DZ134*'Исходные данные'!$F$60/'Исходные данные'!$F$36 -> 6.22336 | EA158: =EA134*'Исходные данные'!$F$60/'Исходные данные'!$F$36 -> 6.3648 | EB158: =EB134*'Исходные данные'!$F$60/'Исходные данные'!$F$36 -> 6.50624 | EC158: =EC134*'Исходные данные'!$F$60/'Исходные данные'!$F$36 -> 6.64768 | ED158: =ED134*'Исходные данные'!$F$60/'Исходные данные'!$F$36 -> 6.78912 | EE158: =EE134*'Исходные данные'!$F$60/'Исходные данные'!$F$36 -> 6.93056 | EF158: =EF134*'Исходные данные'!$F$60/'Исходные данные'!$F$36 -> 7.072
AH160: Виньетирование входным отверстием трубы | AI160: 1 | AJ160: =(AJ158^2+$CH$155^2-$CH$156^2)/(2*AJ158) -> 81.23679186 | AK160: =(AK158^2+$CH$155^2-$CH$156^2)/(2*AK158) -> 82.7518023 | AL160: 84.33288485 | AM160: 85.98425687 | AN160: 87.71050245 | AO160: 89.51661317 | AP160: 91.40803438 | AQ160: 93.39071797 | AR160: 95.47118268 | AS160: 97.65658324 | AT160: 99.95478982 | AU160: 102.3744798 | AV160: 104.925244 | AW160: 107.6177101 | AX160: 110.4636865 | AY160: 113.4763312 | AZ160: 116.6703504 | BA160: 120.0622325 | BB160: 123.6705273 | BC160: 127.5161778 | BD160: 131.6229198 | BE160: 136.0177625 | BF160: 140.731574 | BG160: 145.7997953 | BH160: 151.2633197 | BI160: 157.1695837 | BJ160: 163.5739297 | BK160: 170.5413249 | BL160: 178.1485488 | BM160: 186.4870054 | BN160: 195.6663796 | BO160: 205.819448 | BP160: 217.1084929 | BQ160: 229.7339808 | BR160: 243.9464945 | BS160: 260.0634395 | BT160: 278.4929081 | BU160: 299.7685594 | BV160: 324.6019394 | BW160: 353.9633375 | BX160: 389.2111593 | BY160: 432.3075459 | BZ160: 486.1957091 | CA160: 555.5006961 | CB160: 647.9309188 | CC160: 777.3615186 | CD160: 971.5427782 | CE160: 1295.225358 | CF160: 1942.661236 | CG160: 3885.110313 | CI160: =(CI158^2+$CH$155^2-$CH$156^2)/(2*CI158) -> 3885.110313 | CJ160: 1942.661236 | CK160: 1295.225358 | CL160: 971.5427782 | CM160: 777.3615186 | CN160: 647.9309188 | CO160: 555.5006961 | CP160: 486.1957091 | CQ160: 432.3075459 | CR160: 389.2111593 | CS160: 353.9633375 | CT160: 324.6019394 | CU160: 299.7685594 | CV160: 278.4929081 | CW160: 260.0634395 | CX160: 243.9464945 | CY160: 229.7339808 | CZ160: 217.1084929 | DA160: 205.819448 | DB160: 195.6663796 | DC160: 186.4870054 | DD160: 178.1485488 | DE160: 170.5413249 | DF160: 163.5739297 | DG160: 157.1695837 | DH160: 151.2633197 | DI160: 145.7997953 | DJ160: 140.731574 | DK160: 136.0177625 | DL160: 131.6229198 | DM160: 127.5161778 | DN160: 123.6705273 | DO160: 120.0622325 | DP160: 116.6703504 | DQ160: 113.4763312 | DR160: 110.4636865 | DS160: 107.6177101 | DT160: 104.925244 | DU160: 102.3744798 | DV160: 99.95478982 | DW160: 97.65658324 | DX160: 95.47118268 | DY160: 93.39071797 | DZ160: 91.40803438 | EA160: 89.51661317 | EB160: 87.71050245 | EC160: 85.98425687 | ED160: 84.33288485 | EE160: 82.7518023 | EF160: 81.23679186
AI161: 2 | AJ161: =(AJ158^2-$CH$155^2+$CH$156^2)/(2*AJ158) -> -74.16479186 | AK161: =(AK158^2-$CH$155^2+$CH$156^2)/(2*AK158) -> -75.8212423 | AL161: -77.54376485 | AM161: -79.33657687 | AN161: -81.20426245 | AO161: -83.15181317 | AP161: -85.18467438 | AQ161: -87.30879797 | AR161: -89.53070268 | AS161: -91.85754324 | AT161: -94.29718982 | AU161: -96.85831981 | AV161: -99.55052402 | AW161: -102.3844301 | AX161: -105.3718465 | AY161: -108.5259312 | AZ161: -111.8613904 | BA161: -115.3947125 | BB161: -119.1444473 | BC161: -123.1315378 | BD161: -127.3797198 | BE161: -131.9160025 | BF161: -136.771254 | BG161: -141.9809153 | BH161: -147.5858797 | BI161: -153.6335837 | BJ161: -160.1793697 | BK161: -167.2882049 | BL161: -175.0368688 | BM161: -183.5167654 | BN161: -192.8375796 | BO161: -203.132088 | BP161: -214.5625729 | BQ161: -227.3295008 | BR161: -241.6834545 | BS161: -257.9418395 | BT161: -276.5127481 | BU161: -297.9298394 | BV161: -322.9046594 | BW161: -352.4074975 | BX161: -387.7967593 | BY161: -431.0345859 | BZ161: -485.0641891 | CA161: -554.5106161 | CB161: -647.0822788 | CC161: -776.6543186 | CD161: -970.9770182 | CE161: -1294.801038 | CF161: -1942.378356 | CG161: -3884.968873 | CI161: =(CI158^2-$CH$155^2+$CH$156^2)/(2*CI158) -> -3884.968873 | CJ161: -1942.378356 | CK161: -1294.801038 | CL161: -970.9770182 | CM161: -776.6543186 | CN161: -647.0822788 | CO161: -554.5106161 | CP161: -485.0641891 | CQ161: -431.0345859 | CR161: -387.7967593 | CS161: -352.4074975 | CT161: -322.9046594 | CU161: -297.9298394 | CV161: -276.5127481 | CW161: -257.9418395 | CX161: -241.6834545 | CY161: -227.3295008 | CZ161: -214.5625729 | DA161: -203.132088 | DB161: -192.8375796 | DC161: -183.5167654 | DD161: -175.0368688 | DE161: -167.2882049 | DF161: -160.1793697 | DG161: -153.6335837 | DH161: -147.5858797 | DI161: -141.9809153 | DJ161: -136.771254 | DK161: -131.9160025 | DL161: -127.3797198 | DM161: -123.1315378 | DN161: -119.1444473 | DO161: -115.3947125 | DP161: -111.8613904 | DQ161: -108.5259312 | DR161: -105.3718465 | DS161: -102.3844301 | DT161: -99.55052402 | DU161: -96.85831981 | DV161: -94.29718982 | DW161: -91.85754324 | DX161: -89.53070268 | DY161: -87.30879797 | DZ161: -85.18467438 | EA161: -83.15181317 | EB161: -81.20426245 | EC161: -79.33657687 | ED161: -77.54376485 | EE161: -75.8212423 | EF161: -74.16479186
AI162: 3 | AJ162: =AJ160+AJ161 -> 7.072 | AK162: =AK160+AK161 -> 6.93056 | AL162: 6.78912 | AM162: 6.64768 | AN162: 6.50624 | AO162: 6.3648 | AP162: 6.22336 | AQ162: 6.08192 | AR162: 5.94048 | AS162: 5.79904 | AT162: 5.6576 | AU162: 5.51616 | AV162: 5.37472 | AW162: 5.23328 | AX162: 5.09184 | AY162: 4.9504 | AZ162: 4.80896 | BA162: 4.66752 | BB162: 4.52608 | BC162: 4.38464 | BD162: 4.2432 | BE162: 4.10176 | BF162: 3.96032 | BG162: 3.81888 | BH162: 3.67744 | BI162: 3.536 | BJ162: 3.39456 | BK162: 3.25312 | BL162: 3.11168 | BM162: 2.97024 | BN162: 2.8288 | BO162: 2.68736 | BP162: 2.54592 | BQ162: 2.40448 | BR162: 2.26304 | BS162: 2.1216 | BT162: 1.98016 | BU162: 1.83872 | BV162: 1.69728 | BW162: 1.55584 | BX162: 1.4144 | BY162: 1.27296 | BZ162: 1.13152 | CA162: 0.99008 | CB162: 0.84864 | CC162: 0.7072 | CD162: 0.56576 | CE162: 0.42432 | CF162: 0.28288 | CG162: 0.14144 | CI162: =CI160+CI161 -> 0.14144 | CJ162: 0.28288 | CK162: 0.42432 | CL162: 0.56576 | CM162: 0.7072 | CN162: 0.84864 | CO162: 0.99008 | CP162: 1.13152 | CQ162: 1.27296 | CR162: 1.4144 | CS162: 1.55584 | CT162: 1.69728 | CU162: 1.83872 | CV162: 1.98016 | CW162: 2.1216 | CX162: 2.26304 | CY162: 2.40448 | CZ162: 2.54592 | DA162: 2.68736 | DB162: 2.8288 | DC162: 2.97024 | DD162: 3.11168 | DE162: 3.25312 | DF162: 3.39456 | DG162: 3.536 | DH162: 3.67744 | DI162: 3.81888 | DJ162: 3.96032 | DK162: 4.10176 | DL162: 4.2432 | DM162: 4.38464 | DN162: 4.52608 | DO162: =DO160+DO161 -> 4.66752 | DP162: 4.80896 | DQ162: 4.9504 | DR162: 5.09184 | DS162: 5.23328 | DT162: 5.37472 | DU162: 5.51616 | DV162: 5.6576 | DW162: 5.79904 | DX162: 5.94048 | DY162: 6.08192 | DZ162: 6.22336 | EA162: 6.3648 | EB162: 6.50624 | EC162: 6.64768 | ED162: 6.78912 | EE162: 6.93056 | EF162: 7.072
AI163: 4 | AJ163: =SQRT($CH$155^2-AJ160^2) -> 11.16170458 | AK163: =SQRT($CH$155^2-AK160^2) ->  | CI163: =SQRT($CH$155^2-CI160^2) ->  | EF163: 11.16170458
AI164: 5 | AJ164: =AJ163*AJ160 -> 906.7410715 | AK164: =AK163*AK160 ->  | CI164: =CI163*CI160 ->  | DO164: =DO163*DO160 ->  | EF164: 906.7410715
AI165: 6 | AJ165: =AJ163*AJ161 -> -827.8054967 | AK165: =AK163*AK161 ->  | CI165: =CI163*CI161 ->  | EF165: -827.8054967
AI166: 7 | AJ166: =2*ACOS(AJ160/$CH$155)*180/PI() -> 15.64658706 | AK166: =2*ACOS(AK160/$CH$155)*180/PI() ->  | CI166: =2*ACOS(CI160/$CH$155)*180/PI() ->  | EF166: 15.64658706
AI167: 8 | AJ167: =2*ACOS(AJ161/$CH$156)*180/PI() -> 342.8825838 | AK167: =2*ACOS(AK161/$CH$156)*180/PI() ->  | CI167: =2*ACOS(CI161/$CH$156)*180/PI() ->  | EF167: 342.8825838
AI168: 9 | AJ168: =PI()*$CH$155^2*AJ166/360 -> 918.1099573 | AK168: =PI()*$CH$155^2*AK166/360 ->  | CI168: =PI()*$CH$155^2*CI166/360 ->  | EF168: 918.1099573
AI169: 10 | AJ169: =PI()*$CH$156^2*AJ167/360 -> 16831.20948 | AK169: =PI()*$CH$156^2*AK167/360 ->  | CI169: =PI()*$CH$156^2*CI167/360 ->  | EF169: 16831.20948
AI170: 11 | AJ170: =IF(AJ158<$CH$155-$CH$156,PI()*$CH156^2,AJ168-AJ164+AJ169-AJ165) -> 17670.38386 | AK170: =IF(AK158<$CH$155-$CH$156,PI()*$CH156^2,AK168-AK164+AK169-AK165) -> 17671.45868 | AL170: 17671.45868 | AM170: 17671.45868 | AN170: 17671.45868 | AO170: 17671.45868 | AP170: 17671.45868 | AQ170: 17671.45868 | AR170: 17671.45868 | AS170: 17671.45868 | AT170: 17671.45868 | AU170: 17671.45868 | AV170: 17671.45868 | AW170: 17671.45868 | AX170: 17671.45868 | AY170: 17671.45868 | AZ170: 17671.45868 | BA170: 17671.45868 | BB170: 17671.45868 | BC170: 17671.45868 | BD170: 17671.45868 | BE170: 17671.45868 | BF170: 17671.45868 | BG170: 17671.45868 | BH170: 17671.45868 | BI170: 17671.45868 | BJ170: 17671.45868 | BK170: 17671.45868 | BL170: 17671.45868 | BM170: 17671.45868 | BN170: 17671.45868 | BO170: 17671.45868 | BP170: 17671.45868 | BQ170: 17671.45868 | BR170: 17671.45868 | BS170: 17671.45868 | BT170: 17671.45868 | BU170: 17671.45868 | BV170: 17671.45868 | BW170: 17671.45868 | BX170: 17671.45868 | BY170: 17671.45868 | BZ170: 17671.45868 | CA170: 17671.45868 | CB170: 17671.45868 | CC170: 17671.45868 | CD170: 17671.45868 | CE170: 17671.45868 | CF170: 17671.45868 | CG170: 17671.45868 | CH170: 17671.45868 | CI170: =IF(CI158<$CH$155-$CH$156,PI()*$CH156^2,CI168-CI164+CI169-CI165) -> 17671.45868 | CJ170: 17671.45868 | CK170: 17671.45868 | CL170: 17671.45868 | CM170: 17671.45868 | CN170: 17671.45868 | CO170: 17671.45868 | CP170: 17671.45868 | CQ170: 17671.45868 | CR170: 17671.45868 | CS170: 17671.45868 | CT170: 17671.45868 | CU170: 17671.45868 | CV170: 17671.45868 | CW170: 17671.45868 | CX170: 17671.45868 | CY170: 17671.45868 | CZ170: 17671.45868 | DA170: 17671.45868 | DB170: 17671.45868 | DC170: 17671.45868 | DD170: 17671.45868 | DE170: 17671.45868 | DF170: 17671.45868 | DG170: 17671.45868 | DH170: 17671.45868 | DI170: 17671.45868 | DJ170: 17671.45868 | DK170: 17671.45868 | DL170: 17671.45868 | DM170: 17671.45868 | DN170: 17671.45868 | DO170: =IF(DO158<$CH$155-$CH$156,PI()*$CH156^2,DO168-DO164+DO169-DO165) -> 17671.45868 | DP170: 17671.45868 | DQ170: 17671.45868 | DR170: 17671.45868 | DS170: 17671.45868 | DT170: 17671.45868 | DU170: 17671.45868 | DV170: 17671.45868 | DW170: 17671.45868 | DX170: 17671.45868 | DY170: 17671.45868 | DZ170: 17671.45868 | EA170: 17671.45868 | EB170: 17671.45868 | EC170: 17671.45868 | ED170: 17671.45868 | EE170: 17671.45868 | EF170: 17670.38386
AI171: 12 | AJ171: =(AJ170)/(PI()*$CH$156^2) -> 0.9999391777 | AK171: =(AK170)/(PI()*$CH$156^2) -> 1 | AL171: 1 | AM171: 1 | AN171: 1 | AO171: 1 | AP171: 1 | AQ171: 1 | AR171: 1 | AS171: 1 | AT171: 1 | AU171: 1 | AV171: 1 | AW171: 1 | AX171: 1 | AY171: 1 | AZ171: 1 | BA171: 1 | BB171: 1 | BC171: 1 | BD171: 1 | BE171: 1 | BF171: 1 | BG171: 1 | BH171: 1 | BI171: 1 | BJ171: 1 | BK171: 1 | BL171: 1 | BM171: 1 | BN171: 1 | BO171: 1 | BP171: 1 | BQ171: 1 | BR171: 1 | BS171: 1 | BT171: 1 | BU171: 1 | BV171: 1 | BW171: 1 | BX171: 1 | BY171: 1 | BZ171: 1 | CA171: 1 | CB171: 1 | CC171: 1 | CD171: 1 | CE171: 1 | CF171: 1 | CG171: 1 | CH171: 1 | CI171: =(CI170)/(PI()*$CH$156^2) -> 1 | CJ171: 1 | CK171: 1 | CL171: 1 | CM171: 1 | CN171: 1 | CO171: 1 | CP171: 1 | CQ171: 1 | CR171: 1 | CS171: 1 | CT171: 1 | CU171: 1 | CV171: 1 | CW171: 1 | CX171: 1 | CY171: 1 | CZ171: 1 | DA171: 1 | DB171: 1 | DC171: 1 | DD171: 1 | DE171: 1 | DF171: 1 | DG171: 1 | DH171: 1 | DI171: 1 | DJ171: 1 | DK171: 1 | DL171: 1 | DM171: 1 | DN171: 1 | DO171: =(DO170)/(PI()*$CH$156^2) -> 1 | DP171: 1 | DQ171: 1 | DR171: 1 | DS171: 1 | DT171: 1 | DU171: 1 | DV171: 1 | DW171: 1 | DX171: 1 | DY171: 1 | DZ171: 1 | EA171: 1 | EB171: 1 | EC171: 1 | ED171: 1 | EE171: 1 | EF171: 0.9999391777
AH199: Виньетирование суммарное | AJ199: =1-(1-AJ171)-(1-AJ152) -> 0.9999391777 | AK199: =1-(1-AK171)-(1-AK152) -> 1 | AL199: 1 | AM199: 1 | AN199: 1 | AO199: 1 | AP199: 1 | AQ199: 1 | AR199: 1 | AS199: 1 | AT199: 1 | AU199: 1 | AV199: 1 | AW199: 1 | AX199: 1 | AY199: 1 | AZ199: 1 | BA199: 1 | BB199: 1 | BC199: 1 | BD199: 1 | BE199: 1 | BF199: 1 | BG199: 1 | BH199: 1 | BI199: 1 | BJ199: 1 | BK199: 1 | BL199: 1 | BM199: 1 | BN199: 1 | BO199: 1 | BP199: 1 | BQ199: 1 | BR199: 1 | BS199: 1 | BT199: 1 | BU199: 1 | BV199: 1 | BW199: 1 | BX199: 1 | BY199: 1 | BZ199: 1 | CA199: 1 | CB199: 1 | CC199: 1 | CD199: 1 | CE199: 1 | CF199: 1 | CG199: 1 | CH199: 1 | CI199: 1 | CJ199: 1 | CK199: 1 | CL199: 1 | CM199: 1 | CN199: 1 | CO199: 1 | CP199: 1 | CQ199: 1 | CR199: 1 | CS199: 1 | CT199: 1 | CU199: 1 | CV199: 1 | CW199: =1-(1-CW171)-(1-CW152) -> 1 | CX199: 1 | CY199: 1 | CZ199: 1 | DA199: 1 | DB199: 1 | DC199: 1 | DD199: 1 | DE199: 1 | DF199: 1 | DG199: 1 | DH199: 1 | DI199: 1 | DJ199: 1 | DK199: 1 | DL199: 1 | DM199: 1 | DN199: 1 | DO199: 1 | DP199: 1 | DQ199: 1 | DR199: 1 | DS199: 1 | DT199: 1 | DU199: 1 | DV199: 1 | DW199: 1 | DX199: 1 | DY199: 1 | DZ199: 1 | EA199: 1 | EB199: 1 | EC199: 1 | ED199: 1 | EE199: 1 | EF199: 0.9999391777
AH201: Проницающая сила | AJ201: =7.1+5*+LOG10(SQRT((((PI()*('Исходные данные'!$F$6/2)^2)*Виньетирование!AJ199)-PI()*('Исходные данные'!$F$46/2)^2)/PI())*2/10) -> 12.87799929 | AK201: =7.1+5*+LOG10(SQRT((((PI()*('Исходные данные'!$F$6/2)^2)*Виньетирование!AK199)-PI()*('Исходные данные'!$F$46/2)^2)/PI())*2/10) -> 12.87807186 | AL201: =7.1+5*+LOG10(SQRT((((PI()*('Исходные данные'!$F$6/2)^2)*Виньетирование!AL199)-PI()*('Исходные данные'!$F$46/2)^2)/PI())*2/10) -> 12.87807186 | AM201: =7.1+5*+LOG10(SQRT((((PI()*('Исходные данные'!$F$6/2)^2)*Виньетирование!AM199)-PI()*('Исходные данные'!$F$46/2)^2)/PI())*2/10) -> 12.87807186 | AN201: =7.1+5*+LOG10(SQRT((((PI()*('Исходные данные'!$F$6/2)^2)*Виньетирование!AN199)-PI()*('Исходные данные'!$F$46/2)^2)/PI())*2/10) -> 12.87807186 | AO201: =7.1+5*+LOG10(SQRT((((PI()*('Исходные данные'!$F$6/2)^2)*Виньетирование!AO199)-PI()*('Исходные данные'!$F$46/2)^2)/PI())*2/10) -> 12.87807186 | AP201: =7.1+5*+LOG10(SQRT((((PI()*('Исходные данные'!$F$6/2)^2)*Виньетирование!AP199)-PI()*('Исходные данные'!$F$46/2)^2)/PI())*2/10) -> 12.87807186 | AQ201: =7.1+5*+LOG10(SQRT((((PI()*('Исходные данные'!$F$6/2)^2)*Виньетирование!AQ199)-PI()*('Исходные данные'!$F$46/2)^2)/PI())*2/10) -> 12.87807186 | AR201: =7.1+5*+LOG10(SQRT((((PI()*('Исходные данные'!$F$6/2)^2)*Виньетирование!AR199)-PI()*('Исходные данные'!$F$46/2)^2)/PI())*2/10) -> 12.87807186 | AS201: =7.1+5*+LOG10(SQRT((((PI()*('Исходные данные'!$F$6/2)^2)*Виньетирование!AS199)-PI()*('Исходные данные'!$F$46/2)^2)/PI())*2/10) -> 12.87807186 | AT201: =7.1+5*+LOG10(SQRT((((PI()*('Исходные данные'!$F$6/2)^2)*Виньетирование!AT199)-PI()*('Исходные данные'!$F$46/2)^2)/PI())*2/10) -> 12.87807186 | AU201: =7.1+5*+LOG10(SQRT((((PI()*('Исходные данные'!$F$6/2)^2)*Виньетирование!AU199)-PI()*('Исходные данные'!$F$46/2)^2)/PI())*2/10) -> 12.87807186 | AV201: =7.1+5*+LOG10(SQRT((((PI()*('Исходные данные'!$F$6/2)^2)*Виньетирование!AV199)-PI()*('Исходные данные'!$F$46/2)^2)/PI())*2/10) -> 12.87807186 | AW201: =7.1+5*+LOG10(SQRT((((PI()*('Исходные данные'!$F$6/2)^2)*Виньетирование!AW199)-PI()*('Исходные данные'!$F$46/2)^2)/PI())*2/10) -> 12.87807186 | AX201: =7.1+5*+LOG10(SQRT((((PI()*('Исходные данные'!$F$6/2)^2)*Виньетирование!AX199)-PI()*('Исходные данные'!$F$46/2)^2)/PI())*2/10) -> 12.87807186 | AY201: =7.1+5*+LOG10(SQRT((((PI()*('Исходные данные'!$F$6/2)^2)*Виньетирование!AY199)-PI()*('Исходные данные'!$F$46/2)^2)/PI())*2/10) -> 12.87807186 | AZ201: =7.1+5*+LOG10(SQRT((((PI()*('Исходные данные'!$F$6/2)^2)*Виньетирование!AZ199)-PI()*('Исходные данные'!$F$46/2)^2)/PI())*2/10) -> 12.87807186 | BA201: =7.1+5*+LOG10(SQRT((((PI()*('Исходные данные'!$F$6/2)^2)*Виньетирование!BA199)-PI()*('Исходные данные'!$F$46/2)^2)/PI())*2/10) -> 12.87807186 | BB201: =7.1+5*+LOG10(SQRT((((PI()*('Исходные данные'!$F$6/2)^2)*Виньетирование!BB199)-PI()*('Исходные данные'!$F$46/2)^2)/PI())*2/10) -> 12.87807186 | BC201: =7.1+5*+LOG10(SQRT((((PI()*('Исходные данные'!$F$6/2)^2)*Виньетирование!BC199)-PI()*('Исходные данные'!$F$46/2)^2)/PI())*2/10) -> 12.87807186 | BD201: =7.1+5*+LOG10(SQRT((((PI()*('Исходные данные'!$F$6/2)^2)*Виньетирование!BD199)-PI()*('Исходные данные'!$F$46/2)^2)/PI())*2/10) -> 12.87807186 | BE201: =7.1+5*+LOG10(SQRT((((PI()*('Исходные данные'!$F$6/2)^2)*Виньетирование!BE199)-PI()*('Исходные данные'!$F$46/2)^2)/PI())*2/10) -> 12.87807186 | BF201: =7.1+5*+LOG10(SQRT((((PI()*('Исходные данные'!$F$6/2)^2)*Виньетирование!BF199)-PI()*('Исходные данные'!$F$46/2)^2)/PI())*2/10) -> 12.87807186 | BG201: =7.1+5*+LOG10(SQRT((((PI()*('Исходные данные'!$F$6/2)^2)*Виньетирование!BG199)-PI()*('Исходные данные'!$F$46/2)^2)/PI())*2/10) -> 12.87807186 | BH201: =7.1+5*+LOG10(SQRT((((PI()*('Исходные данные'!$F$6/2)^2)*Виньетирование!BH199)-PI()*('Исходные данные'!$F$46/2)^2)/PI())*2/10) -> 12.87807186 | BI201: =7.1+5*+LOG10(SQRT((((PI()*('Исходные данные'!$F$6/2)^2)*Виньетирование!BI199)-PI()*('Исходные данные'!$F$46/2)^2)/PI())*2/10) -> 12.87807186 | BJ201: =7.1+5*+LOG10(SQRT((((PI()*('Исходные данные'!$F$6/2)^2)*Виньетирование!BJ199)-PI()*('Исходные данные'!$F$46/2)^2)/PI())*2/10) -> 12.87807186 | BK201: =7.1+5*+LOG10(SQRT((((PI()*('Исходные данные'!$F$6/2)^2)*Виньетирование!BK199)-PI()*('Исходные данные'!$F$46/2)^2)/PI())*2/10) -> 12.87807186 | BL201: =7.1+5*+LOG10(SQRT((((PI()*('Исходные данные'!$F$6/2)^2)*Виньетирование!BL199)-PI()*('Исходные данные'!$F$46/2)^2)/PI())*2/10) -> 12.87807186 | BM201: =7.1+5*+LOG10(SQRT((((PI()*('Исходные данные'!$F$6/2)^2)*Виньетирование!BM199)-PI()*('Исходные данные'!$F$46/2)^2)/PI())*2/10) -> 12.87807186 | BN201: =7.1+5*+LOG10(SQRT((((PI()*('Исходные данные'!$F$6/2)^2)*Виньетирование!BN199)-PI()*('Исходные данные'!$F$46/2)^2)/PI())*2/10) -> 12.87807186 | BO201: =7.1+5*+LOG10(SQRT((((PI()*('Исходные данные'!$F$6/2)^2)*Виньетирование!BO199)-PI()*('Исходные данные'!$F$46/2)^2)/PI())*2/10) -> 12.87807186 | BP201: =7.1+5*+LOG10(SQRT((((PI()*('Исходные данные'!$F$6/2)^2)*Виньетирование!BP199)-PI()*('Исходные данные'!$F$46/2)^2)/PI())*2/10) -> 12.87807186 | BQ201: =7.1+5*+LOG10(SQRT((((PI()*('Исходные данные'!$F$6/2)^2)*Виньетирование!BQ199)-PI()*('Исходные данные'!$F$46/2)^2)/PI())*2/10) -> 12.87807186 | BR201: =7.1+5*+LOG10(SQRT((((PI()*('Исходные данные'!$F$6/2)^2)*Виньетирование!BR199)-PI()*('Исходные данные'!$F$46/2)^2)/PI())*2/10) -> 12.87807186 | BS201: =7.1+5*+LOG10(SQRT((((PI()*('Исходные данные'!$F$6/2)^2)*Виньетирование!BS199)-PI()*('Исходные данные'!$F$46/2)^2)/PI())*2/10) -> 12.87807186 | BT201: =7.1+5*+LOG10(SQRT((((PI()*('Исходные данные'!$F$6/2)^2)*Виньетирование!BT199)-PI()*('Исходные данные'!$F$46/2)^2)/PI())*2/10) -> 12.87807186 | BU201: =7.1+5*+LOG10(SQRT((((PI()*('Исходные данные'!$F$6/2)^2)*Виньетирование!BU199)-PI()*('Исходные данные'!$F$46/2)^2)/PI())*2/10) -> 12.87807186 | BV201: =7.1+5*+LOG10(SQRT((((PI()*('Исходные данные'!$F$6/2)^2)*Виньетирование!BV199)-PI()*('Исходные данные'!$F$46/2)^2)/PI())*2/10) -> 12.87807186 | BW201: =7.1+5*+LOG10(SQRT((((PI()*('Исходные данные'!$F$6/2)^2)*Виньетирование!BW199)-PI()*('Исходные данные'!$F$46/2)^2)/PI())*2/10) -> 12.87807186 | BX201: =7.1+5*+LOG10(SQRT((((PI()*('Исходные данные'!$F$6/2)^2)*Виньетирование!BX199)-PI()*('Исходные данные'!$F$46/2)^2)/PI())*2/10) -> 12.87807186 | BY201: =7.1+5*+LOG10(SQRT((((PI()*('Исходные данные'!$F$6/2)^2)*Виньетирование!BY199)-PI()*('Исходные данные'!$F$46/2)^2)/PI())*2/10) -> 12.87807186 | BZ201: =7.1+5*+LOG10(SQRT((((PI()*('Исходные данные'!$F$6/2)^2)*Виньетирование!BZ199)-PI()*('Исходные данные'!$F$46/2)^2)/PI())*2/10) -> 12.87807186 | CA201: =7.1+5*+LOG10(SQRT((((PI()*('Исходные данные'!$F$6/2)^2)*Виньетирование!CA199)-PI()*('Исходные данные'!$F$46/2)^2)/PI())*2/10) -> 12.87807186 | CB201: =7.1+5*+LOG10(SQRT((((PI()*('Исходные данные'!$F$6/2)^2)*Виньетирование!CB199)-PI()*('Исходные данные'!$F$46/2)^2)/PI())*2/10) -> 12.87807186 | CC201: =7.1+5*+LOG10(SQRT((((PI()*('Исходные данные'!$F$6/2)^2)*Виньетирование!CC199)-PI()*('Исходные данные'!$F$46/2)^2)/PI())*2/10) -> 12.87807186 | CD201: =7.1+5*+LOG10(SQRT((((PI()*('Исходные данные'!$F$6/2)^2)*Виньетирование!CD199)-PI()*('Исходные данные'!$F$46/2)^2)/PI())*2/10) -> 12.87807186 | CE201: =7.1+5*+LOG10(SQRT((((PI()*('Исходные данные'!$F$6/2)^2)*Виньетирование!CE199)-PI()*('Исходные данные'!$F$46/2)^2)/PI())*2/10) -> 12.87807186 | CF201: =7.1+5*+LOG10(SQRT((((PI()*('Исходные данные'!$F$6/2)^2)*Виньетирование!CF199)-PI()*('Исходные данные'!$F$46/2)^2)/PI())*2/10) -> 12.87807186 | CG201: =7.1+5*+LOG10(SQRT((((PI()*('Исходные данные'!$F$6/2)^2)*Виньетирование!CG199)-PI()*('Исходные данные'!$F$46/2)^2)/PI())*2/10) -> 12.87807186 | CH201: =7.1+5*+LOG10(SQRT((((PI()*('Исходные данные'!$F$6/2)^2)*Виньетирование!CH199)-PI()*('Исходные данные'!$F$46/2)^2)/PI())*2/10) -> 12.87807186 | CI201: =7.1+5*+LOG10(SQRT((((PI()*('Исходные данные'!$F$6/2)^2)*Виньетирование!CI199)-PI()*('Исходные данные'!$F$46/2)^2)/PI())*2/10) -> 12.87807186 | CJ201: =7.1+5*+LOG10(SQRT((((PI()*('Исходные данные'!$F$6/2)^2)*Виньетирование!CJ199)-PI()*('Исходные данные'!$F$46/2)^2)/PI())*2/10) -> 12.87807186 | CK201: =7.1+5*+LOG10(SQRT((((PI()*('Исходные данные'!$F$6/2)^2)*Виньетирование!CK199)-PI()*('Исходные данные'!$F$46/2)^2)/PI())*2/10) -> 12.87807186 | CL201: =7.1+5*+LOG10(SQRT((((PI()*('Исходные данные'!$F$6/2)^2)*Виньетирование!CL199)-PI()*('Исходные данные'!$F$46/2)^2)/PI())*2/10) -> 12.87807186 | CM201: =7.1+5*+LOG10(SQRT((((PI()*('Исходные данные'!$F$6/2)^2)*Виньетирование!CM199)-PI()*('Исходные данные'!$F$46/2)^2)/PI())*2/10) -> 12.87807186 | CN201: =7.1+5*+LOG10(SQRT((((PI()*('Исходные данные'!$F$6/2)^2)*Виньетирование!CN199)-PI()*('Исходные данные'!$F$46/2)^2)/PI())*2/10) -> 12.87807186 | CO201: =7.1+5*+LOG10(SQRT((((PI()*('Исходные данные'!$F$6/2)^2)*Виньетирование!CO199)-PI()*('Исходные данные'!$F$46/2)^2)/PI())*2/10) -> 12.87807186 | CP201: =7.1+5*+LOG10(SQRT((((PI()*('Исходные данные'!$F$6/2)^2)*Виньетирование!CP199)-PI()*('Исходные данные'!$F$46/2)^2)/PI())*2/10) -> 12.87807186 | CQ201: =7.1+5*+LOG10(SQRT((((PI()*('Исходные данные'!$F$6/2)^2)*Виньетирование!CQ199)-PI()*('Исходные данные'!$F$46/2)^2)/PI())*2/10) -> 12.87807186 | CR201: =7.1+5*+LOG10(SQRT((((PI()*('Исходные данные'!$F$6/2)^2)*Виньетирование!CR199)-PI()*('Исходные данные'!$F$46/2)^2)/PI())*2/10) -> 12.87807186 | CS201: =7.1+5*+LOG10(SQRT((((PI()*('Исходные данные'!$F$6/2)^2)*Виньетирование!CS199)-PI()*('Исходные данные'!$F$46/2)^2)/PI())*2/10) -> 12.87807186 | CT201: =7.1+5*+LOG10(SQRT((((PI()*('Исходные данные'!$F$6/2)^2)*Виньетирование!CT199)-PI()*('Исходные данные'!$F$46/2)^2)/PI())*2/10) -> 12.87807186 | CU201: =7.1+5*+LOG10(SQRT((((PI()*('Исходные данные'!$F$6/2)^2)*Виньетирование!CU199)-PI()*('Исходные данные'!$F$46/2)^2)/PI())*2/10) -> 12.87807186 | CV201: =7.1+5*+LOG10(SQRT((((PI()*('Исходные данные'!$F$6/2)^2)*Виньетирование!CV199)-PI()*('Исходные данные'!$F$46/2)^2)/PI())*2/10) -> 12.87807186 | CW201: =7.1+5*+LOG10(SQRT((((PI()*('Исходные данные'!$F$6/2)^2)*Виньетирование!CW199)-PI()*('Исходные данные'!$F$46/2)^2)/PI())*2/10) -> 12.87807186 | CX201: =7.1+5*+LOG10(SQRT((((PI()*('Исходные данные'!$F$6/2)^2)*Виньетирование!CX199)-PI()*('Исходные данные'!$F$46/2)^2)/PI())*2/10) -> 12.87807186 | CY201: =7.1+5*+LOG10(SQRT((((PI()*('Исходные данные'!$F$6/2)^2)*Виньетирование!CY199)-PI()*('Исходные данные'!$F$46/2)^2)/PI())*2/10) -> 12.87807186 | CZ201: =7.1+5*+LOG10(SQRT((((PI()*('Исходные данные'!$F$6/2)^2)*Виньетирование!CZ199)-PI()*('Исходные данные'!$F$46/2)^2)/PI())*2/10) -> 12.87807186 | DA201: =7.1+5*+LOG10(SQRT((((PI()*('Исходные данные'!$F$6/2)^2)*Виньетирование!DA199)-PI()*('Исходные данные'!$F$46/2)^2)/PI())*2/10) -> 12.87807186 | DB201: =7.1+5*+LOG10(SQRT((((PI()*('Исходные данные'!$F$6/2)^2)*Виньетирование!DB199)-PI()*('Исходные данные'!$F$46/2)^2)/PI())*2/10) -> 12.87807186 | DC201: =7.1+5*+LOG10(SQRT((((PI()*('Исходные данные'!$F$6/2)^2)*Виньетирование!DC199)-PI()*('Исходные данные'!$F$46/2)^2)/PI())*2/10) -> 12.87807186 | DD201: =7.1+5*+LOG10(SQRT((((PI()*('Исходные данные'!$F$6/2)^2)*Виньетирование!DD199)-PI()*('Исходные данные'!$F$46/2)^2)/PI())*2/10) -> 12.87807186 | DE201: =7.1+5*+LOG10(SQRT((((PI()*('Исходные данные'!$F$6/2)^2)*Виньетирование!DE199)-PI()*('Исходные данные'!$F$46/2)^2)/PI())*2/10) -> 12.87807186 | DF201: =7.1+5*+LOG10(SQRT((((PI()*('Исходные данные'!$F$6/2)^2)*Виньетирование!DF199)-PI()*('Исходные данные'!$F$46/2)^2)/PI())*2/10) -> 12.87807186 | DG201: =7.1+5*+LOG10(SQRT((((PI()*('Исходные данные'!$F$6/2)^2)*Виньетирование!DG199)-PI()*('Исходные данные'!$F$46/2)^2)/PI())*2/10) -> 12.87807186 | DH201: =7.1+5*+LOG10(SQRT((((PI()*('Исходные данные'!$F$6/2)^2)*Виньетирование!DH199)-PI()*('Исходные данные'!$F$46/2)^2)/PI())*2/10) -> 12.87807186 | DI201: =7.1+5*+LOG10(SQRT((((PI()*('Исходные данные'!$F$6/2)^2)*Виньетирование!DI199)-PI()*('Исходные данные'!$F$46/2)^2)/PI())*2/10) -> 12.87807186 | DJ201: =7.1+5*+LOG10(SQRT((((PI()*('Исходные данные'!$F$6/2)^2)*Виньетирование!DJ199)-PI()*('Исходные данные'!$F$46/2)^2)/PI())*2/10) -> 12.87807186 | DK201: =7.1+5*+LOG10(SQRT((((PI()*('Исходные данные'!$F$6/2)^2)*Виньетирование!DK199)-PI()*('Исходные данные'!$F$46/2)^2)/PI())*2/10) -> 12.87807186 | DL201: =7.1+5*+LOG10(SQRT((((PI()*('Исходные данные'!$F$6/2)^2)*Виньетирование!DL199)-PI()*('Исходные данные'!$F$46/2)^2)/PI())*2/10) -> 12.87807186 | DM201: =7.1+5*+LOG10(SQRT((((PI()*('Исходные данные'!$F$6/2)^2)*Виньетирование!DM199)-PI()*('Исходные данные'!$F$46/2)^2)/PI())*2/10) -> 12.87807186 | DN201: =7.1+5*+LOG10(SQRT((((PI()*('Исходные данные'!$F$6/2)^2)*Виньетирование!DN199)-PI()*('Исходные данные'!$F$46/2)^2)/PI())*2/10) -> 12.87807186 | DO201: =7.1+5*+LOG10(SQRT((((PI()*('Исходные данные'!$F$6/2)^2)*Виньетирование!DO199)-PI()*('Исходные данные'!$F$46/2)^2)/PI())*2/10) -> 12.87807186 | DP201: =7.1+5*+LOG10(SQRT((((PI()*('Исходные данные'!$F$6/2)^2)*Виньетирование!DP199)-PI()*('Исходные данные'!$F$46/2)^2)/PI())*2/10) -> 12.87807186 | DQ201: =7.1+5*+LOG10(SQRT((((PI()*('Исходные данные'!$F$6/2)^2)*Виньетирование!DQ199)-PI()*('Исходные данные'!$F$46/2)^2)/PI())*2/10) -> 12.87807186 | DR201: =7.1+5*+LOG10(SQRT((((PI()*('Исходные данные'!$F$6/2)^2)*Виньетирование!DR199)-PI()*('Исходные данные'!$F$46/2)^2)/PI())*2/10) -> 12.87807186 | DS201: =7.1+5*+LOG10(SQRT((((PI()*('Исходные данные'!$F$6/2)^2)*Виньетирование!DS199)-PI()*('Исходные данные'!$F$46/2)^2)/PI())*2/10) -> 12.87807186 | DT201: =7.1+5*+LOG10(SQRT((((PI()*('Исходные данные'!$F$6/2)^2)*Виньетирование!DT199)-PI()*('Исходные данные'!$F$46/2)^2)/PI())*2/10) -> 12.87807186 | DU201: =7.1+5*+LOG10(SQRT((((PI()*('Исходные данные'!$F$6/2)^2)*Виньетирование!DU199)-PI()*('Исходные данные'!$F$46/2)^2)/PI())*2/10) -> 12.87807186 | DV201: =7.1+5*+LOG10(SQRT((((PI()*('Исходные данные'!$F$6/2)^2)*Виньетирование!DV199)-PI()*('Исходные данные'!$F$46/2)^2)/PI())*2/10) -> 12.87807186 | DW201: =7.1+5*+LOG10(SQRT((((PI()*('Исходные данные'!$F$6/2)^2)*Виньетирование!DW199)-PI()*('Исходные данные'!$F$46/2)^2)/PI())*2/10) -> 12.87807186 | DX201: =7.1+5*+LOG10(SQRT((((PI()*('Исходные данные'!$F$6/2)^2)*Виньетирование!DX199)-PI()*('Исходные данные'!$F$46/2)^2)/PI())*2/10) -> 12.87807186 | DY201: =7.1+5*+LOG10(SQRT((((PI()*('Исходные данные'!$F$6/2)^2)*Виньетирование!DY199)-PI()*('Исходные данные'!$F$46/2)^2)/PI())*2/10) -> 12.87807186 | DZ201: =7.1+5*+LOG10(SQRT((((PI()*('Исходные данные'!$F$6/2)^2)*Виньетирование!DZ199)-PI()*('Исходные данные'!$F$46/2)^2)/PI())*2/10) -> 12.87807186 | EA201: =7.1+5*+LOG10(SQRT((((PI()*('Исходные данные'!$F$6/2)^2)*Виньетирование!EA199)-PI()*('Исходные данные'!$F$46/2)^2)/PI())*2/10) -> 12.87807186 | EB201: =7.1+5*+LOG10(SQRT((((PI()*('Исходные данные'!$F$6/2)^2)*Виньетирование!EB199)-PI()*('Исходные данные'!$F$46/2)^2)/PI())*2/10) -> 12.87807186 | EC201: =7.1+5*+LOG10(SQRT((((PI()*('Исходные данные'!$F$6/2)^2)*Виньетирование!EC199)-PI()*('Исходные данные'!$F$46/2)^2)/PI())*2/10) -> 12.87807186 | ED201: =7.1+5*+LOG10(SQRT((((PI()*('Исходные данные'!$F$6/2)^2)*Виньетирование!ED199)-PI()*('Исходные данные'!$F$46/2)^2)/PI())*2/10) -> 12.87807186 | EE201: =7.1+5*+LOG10(SQRT((((PI()*('Исходные данные'!$F$6/2)^2)*Виньетирование!EE199)-PI()*('Исходные данные'!$F$46/2)^2)/PI())*2/10) -> 12.87807186 | EF201: =7.1+5*+LOG10(SQRT((((PI()*('Исходные данные'!$F$6/2)^2)*Виньетирование!EF199)-PI()*('Исходные данные'!$F$46/2)^2)/PI())*2/10) -> 12.87799929
AH202: Эквивалентная апретура | AJ202: =SQRT((PI()*('Исходные данные'!$F$6/2)^2)*Виньетирование!AJ199/PI())*2 -> 149.9954383 | AK202: =SQRT((PI()*('Исходные данные'!$F$6/2)^2)*Виньетирование!AK199/PI())*2 -> 150 | AL202: =SQRT((PI()*('Исходные данные'!$F$6/2)^2)*Виньетирование!AL199/PI())*2 -> 150 | AM202: =SQRT((PI()*('Исходные данные'!$F$6/2)^2)*Виньетирование!AM199/PI())*2 -> 150 | AN202: =SQRT((PI()*('Исходные данные'!$F$6/2)^2)*Виньетирование!AN199/PI())*2 -> 150 | AO202: =SQRT((PI()*('Исходные данные'!$F$6/2)^2)*Виньетирование!AO199/PI())*2 -> 150 | AP202: =SQRT((PI()*('Исходные данные'!$F$6/2)^2)*Виньетирование!AP199/PI())*2 -> 150 | AQ202: =SQRT((PI()*('Исходные данные'!$F$6/2)^2)*Виньетирование!AQ199/PI())*2 -> 150 | AR202: =SQRT((PI()*('Исходные данные'!$F$6/2)^2)*Виньетирование!AR199/PI())*2 -> 150 | AS202: =SQRT((PI()*('Исходные данные'!$F$6/2)^2)*Виньетирование!AS199/PI())*2 -> 150 | AT202: =SQRT((PI()*('Исходные данные'!$F$6/2)^2)*Виньетирование!AT199/PI())*2 -> 150 | AU202: =SQRT((PI()*('Исходные данные'!$F$6/2)^2)*Виньетирование!AU199/PI())*2 -> 150 | AV202: =SQRT((PI()*('Исходные данные'!$F$6/2)^2)*Виньетирование!AV199/PI())*2 -> 150 | AW202: =SQRT((PI()*('Исходные данные'!$F$6/2)^2)*Виньетирование!AW199/PI())*2 -> 150 | AX202: =SQRT((PI()*('Исходные данные'!$F$6/2)^2)*Виньетирование!AX199/PI())*2 -> 150 | AY202: =SQRT((PI()*('Исходные данные'!$F$6/2)^2)*Виньетирование!AY199/PI())*2 -> 150 | AZ202: =SQRT((PI()*('Исходные данные'!$F$6/2)^2)*Виньетирование!AZ199/PI())*2 -> 150 | BA202: =SQRT((PI()*('Исходные данные'!$F$6/2)^2)*Виньетирование!BA199/PI())*2 -> 150 | BB202: =SQRT((PI()*('Исходные данные'!$F$6/2)^2)*Виньетирование!BB199/PI())*2 -> 150 | BC202: =SQRT((PI()*('Исходные данные'!$F$6/2)^2)*Виньетирование!BC199/PI())*2 -> 150 | BD202: =SQRT((PI()*('Исходные данные'!$F$6/2)^2)*Виньетирование!BD199/PI())*2 -> 150 | BE202: =SQRT((PI()*('Исходные данные'!$F$6/2)^2)*Виньетирование!BE199/PI())*2 -> 150 | BF202: =SQRT((PI()*('Исходные данные'!$F$6/2)^2)*Виньетирование!BF199/PI())*2 -> 150 | BG202: =SQRT((PI()*('Исходные данные'!$F$6/2)^2)*Виньетирование!BG199/PI())*2 -> 150 | BH202: =SQRT((PI()*('Исходные данные'!$F$6/2)^2)*Виньетирование!BH199/PI())*2 -> 150 | BI202: =SQRT((PI()*('Исходные данные'!$F$6/2)^2)*Виньетирование!BI199/PI())*2 -> 150 | BJ202: =SQRT((PI()*('Исходные данные'!$F$6/2)^2)*Виньетирование!BJ199/PI())*2 -> 150 | BK202: =SQRT((PI()*('Исходные данные'!$F$6/2)^2)*Виньетирование!BK199/PI())*2 -> 150 | BL202: =SQRT((PI()*('Исходные данные'!$F$6/2)^2)*Виньетирование!BL199/PI())*2 -> 150 | BM202: =SQRT((PI()*('Исходные данные'!$F$6/2)^2)*Виньетирование!BM199/PI())*2 -> 150 | BN202: =SQRT((PI()*('Исходные данные'!$F$6/2)^2)*Виньетирование!BN199/PI())*2 -> 150 | BO202: =SQRT((PI()*('Исходные данные'!$F$6/2)^2)*Виньетирование!BO199/PI())*2 -> 150 | BP202: =SQRT((PI()*('Исходные данные'!$F$6/2)^2)*Виньетирование!BP199/PI())*2 -> 150 | BQ202: =SQRT((PI()*('Исходные данные'!$F$6/2)^2)*Виньетирование!BQ199/PI())*2 -> 150 | BR202: =SQRT((PI()*('Исходные данные'!$F$6/2)^2)*Виньетирование!BR199/PI())*2 -> 150 | BS202: =SQRT((PI()*('Исходные данные'!$F$6/2)^2)*Виньетирование!BS199/PI())*2 -> 150 | BT202: =SQRT((PI()*('Исходные данные'!$F$6/2)^2)*Виньетирование!BT199/PI())*2 -> 150 | BU202: =SQRT((PI()*('Исходные данные'!$F$6/2)^2)*Виньетирование!BU199/PI())*2 -> 150 | BV202: =SQRT((PI()*('Исходные данные'!$F$6/2)^2)*Виньетирование!BV199/PI())*2 -> 150 | BW202: =SQRT((PI()*('Исходные данные'!$F$6/2)^2)*Виньетирование!BW199/PI())*2 -> 150 | BX202: =SQRT((PI()*('Исходные данные'!$F$6/2)^2)*Виньетирование!BX199/PI())*2 -> 150 | BY202: =SQRT((PI()*('Исходные данные'!$F$6/2)^2)*Виньетирование!BY199/PI())*2 -> 150 | BZ202: =SQRT((PI()*('Исходные данные'!$F$6/2)^2)*Виньетирование!BZ199/PI())*2 -> 150 | CA202: =SQRT((PI()*('Исходные данные'!$F$6/2)^2)*Виньетирование!CA199/PI())*2 -> 150 | CB202: =SQRT((PI()*('Исходные данные'!$F$6/2)^2)*Виньетирование!CB199/PI())*2 -> 150 | CC202: =SQRT((PI()*('Исходные данные'!$F$6/2)^2)*Виньетирование!CC199/PI())*2 -> 150 | CD202: =SQRT((PI()*('Исходные данные'!$F$6/2)^2)*Виньетирование!CD199/PI())*2 -> 150 | CE202: =SQRT((PI()*('Исходные данные'!$F$6/2)^2)*Виньетирование!CE199/PI())*2 -> 150 | CF202: =SQRT((PI()*('Исходные данные'!$F$6/2)^2)*Виньетирование!CF199/PI())*2 -> 150 | CG202: =SQRT((PI()*('Исходные данные'!$F$6/2)^2)*Виньетирование!CG199/PI())*2 -> 150 | CH202: =SQRT((PI()*('Исходные данные'!$F$6/2)^2)*Виньетирование!CH199/PI())*2 -> 150 | CI202: =SQRT((PI()*('Исходные данные'!$F$6/2)^2)*Виньетирование!CI199/PI())*2 -> 150 | CJ202: =SQRT((PI()*('Исходные данные'!$F$6/2)^2)*Виньетирование!CJ199/PI())*2 -> 150 | CK202: =SQRT((PI()*('Исходные данные'!$F$6/2)^2)*Виньетирование!CK199/PI())*2 -> 150 | CL202: =SQRT((PI()*('Исходные данные'!$F$6/2)^2)*Виньетирование!CL199/PI())*2 -> 150 | CM202: =SQRT((PI()*('Исходные данные'!$F$6/2)^2)*Виньетирование!CM199/PI())*2 -> 150 | CN202: =SQRT((PI()*('Исходные данные'!$F$6/2)^2)*Виньетирование!CN199/PI())*2 -> 150 | CO202: =SQRT((PI()*('Исходные данные'!$F$6/2)^2)*Виньетирование!CO199/PI())*2 -> 150 | CP202: =SQRT((PI()*('Исходные данные'!$F$6/2)^2)*Виньетирование!CP199/PI())*2 -> 150 | CQ202: =SQRT((PI()*('Исходные данные'!$F$6/2)^2)*Виньетирование!CQ199/PI())*2 -> 150 | CR202: =SQRT((PI()*('Исходные данные'!$F$6/2)^2)*Виньетирование!CR199/PI())*2 -> 150 | CS202: =SQRT((PI()*('Исходные данные'!$F$6/2)^2)*Виньетирование!CS199/PI())*2 -> 150 | CT202: =SQRT((PI()*('Исходные данные'!$F$6/2)^2)*Виньетирование!CT199/PI())*2 -> 150 | CU202: =SQRT((PI()*('Исходные данные'!$F$6/2)^2)*Виньетирование!CU199/PI())*2 -> 150 | CV202: =SQRT((PI()*('Исходные данные'!$F$6/2)^2)*Виньетирование!CV199/PI())*2 -> 150 | CW202: =SQRT((PI()*('Исходные данные'!$F$6/2)^2)*Виньетирование!CW199/PI())*2 -> 150 | CX202: =SQRT((PI()*('Исходные данные'!$F$6/2)^2)*Виньетирование!CX199/PI())*2 -> 150 | CY202: =SQRT((PI()*('Исходные данные'!$F$6/2)^2)*Виньетирование!CY199/PI())*2 -> 150 | CZ202: =SQRT((PI()*('Исходные данные'!$F$6/2)^2)*Виньетирование!CZ199/PI())*2 -> 150 | DA202: =SQRT((PI()*('Исходные данные'!$F$6/2)^2)*Виньетирование!DA199/PI())*2 -> 150 | DB202: =SQRT((PI()*('Исходные данные'!$F$6/2)^2)*Виньетирование!DB199/PI())*2 -> 150 | DC202: =SQRT((PI()*('Исходные данные'!$F$6/2)^2)*Виньетирование!DC199/PI())*2 -> 150 | DD202: =SQRT((PI()*('Исходные данные'!$F$6/2)^2)*Виньетирование!DD199/PI())*2 -> 150 | DE202: =SQRT((PI()*('Исходные данные'!$F$6/2)^2)*Виньетирование!DE199/PI())*2 -> 150 | DF202: =SQRT((PI()*('Исходные данные'!$F$6/2)^2)*Виньетирование!DF199/PI())*2 -> 150 | DG202: =SQRT((PI()*('Исходные данные'!$F$6/2)^2)*Виньетирование!DG199/PI())*2 -> 150 | DH202: =SQRT((PI()*('Исходные данные'!$F$6/2)^2)*Виньетирование!DH199/PI())*2 -> 150 | DI202: =SQRT((PI()*('Исходные данные'!$F$6/2)^2)*Виньетирование!DI199/PI())*2 -> 150 | DJ202: =SQRT((PI()*('Исходные данные'!$F$6/2)^2)*Виньетирование!DJ199/PI())*2 -> 150 | DK202: =SQRT((PI()*('Исходные данные'!$F$6/2)^2)*Виньетирование!DK199/PI())*2 -> 150 | DL202: =SQRT((PI()*('Исходные данные'!$F$6/2)^2)*Виньетирование!DL199/PI())*2 -> 150 | DM202: =SQRT((PI()*('Исходные данные'!$F$6/2)^2)*Виньетирование!DM199/PI())*2 -> 150 | DN202: =SQRT((PI()*('Исходные данные'!$F$6/2)^2)*Виньетирование!DN199/PI())*2 -> 150 | DO202: =SQRT((PI()*('Исходные данные'!$F$6/2)^2)*Виньетирование!DO199/PI())*2 -> 150 | DP202: =SQRT((PI()*('Исходные данные'!$F$6/2)^2)*Виньетирование!DP199/PI())*2 -> 150 | DQ202: =SQRT((PI()*('Исходные данные'!$F$6/2)^2)*Виньетирование!DQ199/PI())*2 -> 150 | DR202: =SQRT((PI()*('Исходные данные'!$F$6/2)^2)*Виньетирование!DR199/PI())*2 -> 150 | DS202: =SQRT((PI()*('Исходные данные'!$F$6/2)^2)*Виньетирование!DS199/PI())*2 -> 150 | DT202: =SQRT((PI()*('Исходные данные'!$F$6/2)^2)*Виньетирование!DT199/PI())*2 -> 150 | DU202: =SQRT((PI()*('Исходные данные'!$F$6/2)^2)*Виньетирование!DU199/PI())*2 -> 150 | DV202: =SQRT((PI()*('Исходные данные'!$F$6/2)^2)*Виньетирование!DV199/PI())*2 -> 150 | DW202: =SQRT((PI()*('Исходные данные'!$F$6/2)^2)*Виньетирование!DW199/PI())*2 -> 150 | DX202: =SQRT((PI()*('Исходные данные'!$F$6/2)^2)*Виньетирование!DX199/PI())*2 -> 150 | DY202: =SQRT((PI()*('Исходные данные'!$F$6/2)^2)*Виньетирование!DY199/PI())*2 -> 150 | DZ202: =SQRT((PI()*('Исходные данные'!$F$6/2)^2)*Виньетирование!DZ199/PI())*2 -> 150 | EA202: =SQRT((PI()*('Исходные данные'!$F$6/2)^2)*Виньетирование!EA199/PI())*2 -> 150 | EB202: =SQRT((PI()*('Исходные данные'!$F$6/2)^2)*Виньетирование!EB199/PI())*2 -> 150 | EC202: =SQRT((PI()*('Исходные данные'!$F$6/2)^2)*Виньетирование!EC199/PI())*2 -> 150 | ED202: =SQRT((PI()*('Исходные данные'!$F$6/2)^2)*Виньетирование!ED199/PI())*2 -> 150 | EE202: =SQRT((PI()*('Исходные данные'!$F$6/2)^2)*Виньетирование!EE199/PI())*2 -> 150 | EF202: =SQRT((PI()*('Исходные данные'!$F$6/2)^2)*Виньетирование!EF199/PI())*2 -> 149.9954383

Sheet Чертёж
N87: `
HQ2179: X | HR2179: Y
HL2180: Относительный фокус | HM2180: ='Исходные данные'!G8 -> 5
HL2186: Проверка размеров | HM2186: =SQRT(1.32^2+1.48^2) -> 1.983128841 | HN2186: =HM2186*2.83518705763397 -> 5.622541224
HM2190: X | HN2190: Y | HO2190: Масштаб
HL2191: Положение логотипа | HM2191: -2000 | HN2191: -2000 | HO2191: =HP2299/1074.18 -> 0.9430449273
HN2194: Смещение X | HO2194: Смещение Y
HN2195: ='Исходные данные'!F14+150 -> 200 | HO2195: =((HN2195+'Исходные данные'!F60+150)*0.75)/2 -> 379.875
HL2196: 220 | HM2196: 221 | HN2196: 222 | HO2196: 223 | HP2196: 224 | HQ2196: 225 | HR2196: 226
HM2197: Отрезок | HN2197: Начало | HP2197: Конец
HN2198: X | HO2198: Y | HP2198: X | HQ2198: Y
HL2199: Главное зеркало | HM2199: 1 | HN2199: =$HN$2195-'Исходные данные'!F20 -> 182 | HO2199: =$HO$2195-'Исходные данные'!$F$6/2 -> 304.875 | HP2199: ='Исходные данные'!F20 -> 18 | HQ2199: ='Исходные данные'!F6 -> 150
HM2200: 2 | HN2200: =HN2195 -> 200 | HO2200: =$HO$2195-'Исходные данные'!$F$6/2 -> 304.875 | HP2200: =HN2195 -> 200 | HQ2200: =$HO$2195+'Исходные данные'!$F$6/2 -> 454.875
HM2201: 3 | HN2201: =$HN$2195-25 -> 175 | HO2201: =$HO$2195-'Исходные данные'!$F$6/2 -> 304.875 | HP2201: =HN2195 -> 200 | HQ2201: =$HO$2195-'Исходные данные'!$F$6/2 -> 304.875
HM2202: 4 | HN2202: =HN2195 -> 200 | HO2202: =$HO$2195+'Исходные данные'!$F$6/2 -> 454.875 | HP2202: =$HN$2195-25 -> 175 | HQ2202: =$HO$2195+'Исходные данные'!$F$6/2 -> 454.875
HL2203: Верхний отраженный ГЗ луч | HM2203: 5 | HN2203: =$HN$2195 -> 200 | HO2203: =$HO$2195-'Исходные данные'!$F$6/2 -> 304.875 | HP2203: =$HN$2195+'Исходные данные'!$F$36-'Исходные данные'!$F$12+'Исходные данные'!$AN$10/SQRT(2) -> 823.5272658 | HQ2203: =$HO$2195-'Исходные данные'!$AN$10/SQRT(2) -> 359.3477342
HL2204: Нижний отраженный ГЗ луч | HM2204: 6 | HN2204: =$HN$2195 -> 200 | HO2204: =$HO$2195+'Исходные данные'!$F$6/2 -> 454.875 | HP2204: =HN2206 -> 778.5297982 | HQ2204: =$HO$2195+'Исходные данные'!$AN$12/SQRT(2) -> 404.3452018
HL2205: Левый отраженный ДЗ луч | HM2205: 7 | HN2205: =HP2203 -> 823.5272658 | HO2205: =HQ2203 -> 359.3477342 | HP2205: =HN2195+'Исходные данные'!F36-'Исходные данные'!F12+'Исходные данные'!F10/2 -> 812.445 | HQ2205: =HO2195-'Исходные данные'!F12 -> 232.875
HL2206: Правый отраженный ДЗ луч | HM2206: 8 | HN2206: =HN2195+'Исходные данные'!F36-'Исходные данные'!F12-'Исходные данные'!AN12/SQRT(2) -> 778.5297982 | HO2206: =HQ2204 -> 404.3452018 | HP2206: =HN2195+'Исходные данные'!F36-'Исходные данные'!F12-'Исходные данные'!F10/2 -> 793.555 | HQ2206: =HO2195-'Исходные данные'!F12 -> 232.875
HL2207: Фокальная плоскость | HM2207: 9 | HN2207: =HN2195+'Исходные данные'!F36-'Исходные данные'!F12-'Исходные данные'!F10/2 -> 793.555 | HO2207: =HO2195-'Исходные данные'!F12 -> 232.875 | HP2207: =HN2195+'Исходные данные'!F36-'Исходные данные'!F12+'Исходные данные'!F10/2 -> 812.445 | HQ2207: =HO2195-'Исходные данные'!F12 -> 232.875
HL2208: Верхний входящий луч | HM2208: 10 | HN2208: =$HN$2195+'Исходные данные'!$F$60 -> 863 | HO2208: =$HO$2195-'Исходные данные'!F6/2-('Исходные данные'!F10/2)*('Исходные данные'!F60/'Исходные данные'!F36) -> 296.52562 | HP2208: =HN2195 -> 200 | HQ2208: =HO2195-'Исходные данные'!F6/2 -> 304.875
HL2209: Нижний входящий луч | HM2209: 11 | HN2209: =$HN$2195+'Исходные данные'!$F$60 -> 863 | HO2209: =$HO$2195+'Исходные данные'!F6/2+('Исходные данные'!F10/2)*('Исходные данные'!F60/'Исходные данные'!F36) -> 463.22438 | HP2209: =HN2195 -> 200 | HQ2209: =HO2195+'Исходные данные'!F6/2 -> 454.875
HL2210: Диагональное зеркало | HM2210: 12 | HN2210: =HN2205 -> 823.5272658 | HO2210: =HO2205 -> 359.3477342 | HP2210: =HN2206 -> 778.5297982 | HQ2210: =HO2206 -> 404.3452018
HM2211: 13 | HN2211: =HP2210+'Исходные данные'!$F$22*SQRT(2) -> 785.176602 | HO2211: =HQ2210 -> 404.3452018 | HP2211: =HN2210+'Исходные данные'!$F$22*SQRT(2) -> 830.1740695 | HQ2211: =HO2210 -> 359.3477342
HM2212: 14 | HN2212: =HN2210 -> 823.5272658 | HO2212: =HO2210 -> 359.3477342
HM2213: 15
HL2214: Оптическая ось | HM2214: 16 | HN2214: =HN2195 -> 200 | HO2214: =HO2195 -> 379.875 | HP2214: =HN2208 -> 863 | HQ2214: =HO2195 -> 379.875
HM2215: 17 | HN2215: =HN2195+'Исходные данные'!F36-'Исходные данные'!F12 -> 803 | HO2215: =HO2195 -> 379.875 | HP2215: =HN2215 -> 803 | HQ2215: =HO2195-'Исходные данные'!F12 -> 232.875
HL2216: Труба | HM2216: 18 | HN2216: =$HN$2195-'Исходные данные'!$F$14 -> 150 | HO2216: =$HO$2195+'Исходные данные'!$F$34/2 -> 463.875 | HP2216: ='Исходные данные'!$F$60+'Исходные данные'!$F$14 -> 713 | HQ2216: ='Исходные данные'!$F$16 -> 3
HM2217: 19 | HN2217: =$HN$2195-'Исходные данные'!$F$14 -> 150 | HO2217: =$HO$2195-'Исходные данные'!$F$34/2-'Исходные данные'!$F$16 -> 292.875 | HP2217: ='Исходные данные'!$F$60+'Исходные данные'!$F$14 -> 713 | HQ2217: ='Исходные данные'!$F$16 -> 3
HM2218: 20 | HN2218: =HN2195+'Исходные данные'!F36-'Исходные данные'!F12-HP2218/2 -> 789.372 | HO2218: =HO2217 -> 292.875 | HP2218: =('Исходные данные'!F6-'Исходные данные'!F18)*(('Исходные данные'!F56+'Исходные данные'!F16)/'Исходные данные'!F36)+'Исходные данные'!F18 -> 27.256 | HQ2218: ='Исходные данные'!$F$16 -> 3
HM2219: 21 | HN2219: =HN2217 -> 150 | HO2219: =HO2217+'Исходные данные'!F16 -> 295.875 | HP2219: =HP2217 -> 713 | HQ2219: ='Исходные данные'!F34 -> 168
HL2220: Треугольник диагоналки | HM2220: 22 | HN2220: =HN2195+'Исходные данные'!F36-'Исходные данные'!F12+'Исходные данные'!F22*SQRT(2)-HP2220/2 -> 792.7727534 | HO2220: =HO2195-HQ2220/2 -> 363.0009497 | HP2220: ='Исходные данные'!F46*0.75 -> 33.74810067 | HQ2220: =HP2220 -> 33.74810067
HL2221: Основа паука | HM2221: 23 | HN2221: =HN2220+2+HP2220 -> 828.5208541 | HO2221: =HO2220 -> 363.0009497 | HP2221: =HN2222+HP2222+5-HN2221 -> 45.07297506 | HQ2221: =HQ2220 -> 33.74810067
HL2222: Растяжка 1 | HM2222: 24 | HN2222: =Чертёж!HN2195+'Исходные данные'!F36-'Исходные данные'!F12+'Исходные данные'!F26-HP2222/2 -> 857.4061709 | HO2222: =HO2195-'Исходные данные'!F34/2 -> 295.875 | HP2222: =HQ2222/6 -> 11.18765828 | HQ2222: ='Исходные данные'!F34/2-HQ2221/2 -> 67.12594966
HL2223: Растяжка 2 | HM2223: 25 | HN2223: =HN2222 -> 857.4061709 | HO2223: =HO2195+HQ2221/2 -> 396.7490503 | HP2223: =HP2222 -> 11.18765828 | HQ2223: =IF('Исходные данные'!F30=0,Чертёж!HQ2222,HQ2222+'Исходные данные'!F30-('Исходные данные'!F34-'Исходные данные'!F32)/2) -> 67.12594966
HL2224: Верхний отраженный ГЗ луч | HM2224: 5 | HN2224: =$HN$2195 -> 200 | HO2224: =$HO$2195-'Исходные данные'!$F$6/2 -> 304.875 | HP2224: =$HN$2195+'Исходные данные'!$F$36-'Исходные данные'!$F$12+'Исходные данные'!$AP$10/SQRT(2) -> 822.4252415 | HQ2224: =$HO$2195-'Исходные данные'!$AP$10/SQRT(2) -> 360.4497585
HL2225: Нижний отраженный ГЗ луч | HM2225: 6 | HN2225: =$HN$2195 -> 200 | HO2225: =$HO$2195+'Исходные данные'!$F$6/2 -> 454.875 | HP2225: =HN2227 -> 779.7531657 | HQ2225: =$HO$2195+'Исходные данные'!$AP$12/SQRT(2) -> 403.1218343
HL2226: Левый отраженный ДЗ луч | HM2226: 7 | HN2226: =HP2224 -> 822.4252415 | HO2226: =HQ2224 -> 360.4497585 | HP2226: =HN2195+'Исходные данные'!F36-'Исходные данные'!F12+'Исходные данные'!F18/2 -> 811 | HQ2226: =HO2195-'Исходные данные'!F12 -> 232.875
HL2227: Правый отраженный ДЗ луч | HM2227: 8 | HN2227: =HN2195+'Исходные данные'!F36-'Исходные данные'!F12-'Исходные данные'!AP12/SQRT(2) -> 779.7531657 | HO2227: =HQ2225 -> 403.1218343 | HP2227: =HN2195+'Исходные данные'!F36-'Исходные данные'!F12-'Исходные данные'!F18/2 -> 795 | HQ2227: =HO2195-'Исходные данные'!F12 -> 232.875
HL2228: Фокальная плоскость | HM2228: 9 | HN2228: =HN2195+'Исходные данные'!F36-'Исходные данные'!F12-'Исходные данные'!F18/2 -> 795 | HO2228: =HO2195-'Исходные данные'!F12 -> 232.875 | HP2228: =HN2195+'Исходные данные'!F36-'Исходные данные'!F12+'Исходные данные'!F18/2 -> 811 | HQ2228: =HO2195-'Исходные данные'!F12 -> 232.875
HL2229: Верхний входящий луч | HM2229: 10 | HN2229: =$HN$2195+'Исходные данные'!$F$60 -> 863 | HO2229: =$HO$2195-'Исходные данные'!F6/2-('Исходные данные'!F18/2)*('Исходные данные'!F60/'Исходные данные'!F36) -> 297.803 | HP2229: =HN2195 -> 200 | HQ2229: =HO2195-'Исходные данные'!F6/2 -> 304.875
HL2230: Нижний входящий луч | HM2230: 11 | HN2230: =$HN$2195+'Исходные данные'!$F$60 -> 863 | HO2230: =$HO$2195+'Исходные данные'!F6/2+('Исходные данные'!F18/2)*('Исходные данные'!F60/'Исходные данные'!F36) -> 461.947 | HP2230: =HN2195 -> 200 | HQ2230: =HO2195+'Исходные данные'!F6/2 -> 454.875
HL2231: Оправа ГЗ | HM2231: 33 | HN2231: =HN2195-'Исходные данные'!F14 -> 150 | HO2231: =HO2195-'Исходные данные'!F34/2 -> 295.875 | HP2231: ='Исходные данные'!F14 -> 50 | HQ2231: ='Исходные данные'!F34 -> 168
HL2232: Отверстие в трубе под паук верхнее | HM2232: 34 | HN2232: =HN2195+'Исходные данные'!F36-'Исходные данные'!F12+'Исходные данные'!F26-HP2232/2 -> 861 | HO2232: =HO2195-'Исходные данные'!F34/2-'Исходные данные'!F16 -> 292.875 | HP2232: 4 | HQ2232: ='Исходные данные'!F16 -> 3
HL2233: Отверстие в трубе под паук нижнее | HM2233: 35 | HN2233: =HN2232 -> 861 | HO2233: =HO2223+HQ2223 -> 463.875 | HP2233: =HP2232 -> 4 | HQ2233: =HQ2232 -> 3
HL2234: Отверстие в трубе под крепление ГЗ | HM2234: 36 | HN2234: =HN2195-'Исходные данные'!F24-HP2234/2 -> 183 | HO2234: =HO2216 -> 463.875 | HP2234: =HP2233 -> 4 | HQ2234: =HQ2233 -> 3
HK2235: Расстояние от заднего конца трубы до отверстия крепления оправы ГЗ | HL2235: Стрелка 1 | HM2235: 37 | HN2235: =HN2195-'Исходные данные'!F14 -> 150 | HO2235: =HO2195+'Исходные данные'!F32/2+'Исходные данные'!F16+50+'Исходные данные'!F30 -> 514.875 | HP2235: =HN2234+HP2234/2 -> 185 | HQ2235: =HO2235 -> 514.875 | HT2235: Размер шрифта
HL2236: Размер 1 | HM2236: 38 | HN2236: =HN2235+((HP2235-HN2235)/2)-HP2236/2 -> 142.5 | HO2236: =HO2235-20 -> 494.875 | HP2236: 50 | HQ2236: 20 | HR2236: ='Исходные данные'!F14-'Исходные данные'!F24 -> 35 | HS2236: 1 | HT2236: =IF(15/(37.28/'Исходные данные'!AN10)>=15,15,15/(37.28/'Исходные данные'!AN10)) -> 11.68050067
HK2237: Расстояние от переднего конца трубы до отверстия крепления паука | HL2237: Стрелка 2 | HM2237: 39 | HN2237: =HN2195+'Исходные данные'!F36-'Исходные данные'!F12+'Исходные данные'!F26 -> 863 | HO2237: =HO2235 -> 514.875 | HP2237: =HN2195+'Исходные данные'!F60 -> 863 | HQ2237: =HQ2235 -> 514.875
HL2238: Размер 2 | HM2238: 40 | HN2238: =HN2237+((HP2237-HN2237)/2)-HP2238/2 -> 838 | HO2238: =HO2236 -> 494.875 | HP2238: =HP2236 -> 50 | HQ2238: =HQ2236 -> 20 | HR2238: =HP2237-HN2237 -> 0 | HS2238: 2
HK2239: Длина трубы | HL2239: Стрелка 3 | HM2239: 41 | HN2239: =HN2195-'Исходные данные'!F14 -> 150 | HO2239: =HO2237+30 -> 544.875 | HP2239: =HN2195+'Исходные данные'!F60 -> 863 | HQ2239: =HO2239 -> 544.875
HL2240: Размер 3 | HM2240: 42 | HN2240: =HN2239+((HP2239-HN2239)/2)-HP2240/2 -> 481.5 | HO2240: =HO2239-20 -> 524.875 | HP2240: =HP2238 -> 50 | HQ2240: =HQ2238 -> 20 | HR2240: ='Исходные данные'!F60+'Исходные данные'!F14 -> 713 | HS2240: 3
HK2241: Расстояние от переднего края трубы до оптической оси фокусера | HL2241: Стрелка 4 | HM2241: 43 | HN2241: =HN2195+'Исходные данные'!F36-'Исходные данные'!F12 -> 803 | HO2241: =HO2237 -> 514.875 | HP2241: =HP2239 -> 863 | HQ2241: =HO2241 -> 514.875
HL2242: Размер 4 | HM2242: 44 | HN2242: =HN2241+((HP2241-HN2241)/2)-HP2242/2 -> 808 | HO2242: =HO2241-20 -> 494.875 | HP2242: =HP2240 -> 50 | HQ2242: =HQ2240 -> 20 | HR2242: ='Исходные данные'!F60-('Исходные данные'!F36-'Исходные данные'!F12) -> 60 | HS2242: 4
HK2243: Расстояние между вершиной ГЗ и оптическим центром ДЗ | HL2243: Стрелка 5 | HM2243: 45 | HN2243: =HN2195 -> 200 | HO2243: =HO2241 -> 514.875 | HP2243: ='Исходные данные'!F36-'Исходные данные'!F12+HN2195 -> 803 | HQ2243: =HQ2241 -> 514.875
HL2244: Размер 5 | HM2244: 46 | HN2244: =HN2243+((HP2243-HN2243)/2)-HP2244/2 -> 476.5 | HO2244: =HO2243-20 -> 494.875 | HP2244: =HP2242 -> 50 | HQ2244: =HQ2242 -> 20 | HR2244: ='Исходные данные'!F36-'Исходные данные'!F12 -> 603 | HS2244: 5
HK2245: Расстояние между вершиной ГЗ и отверстием для крепления его правы | HL2245: Стрелка 6 | HM2245: 47 | HN2245: =HP2235 -> 185 | HO2245: =HO2237 -> 514.875 | HP2245: =HN2195 -> 200 | HQ2245: =HO2245 -> 514.875
HL2246: Размер 6 | HM2246: 48 | HN2246: =HN2245+((HP2245-HN2245)/2)-HP2246/2 -> 167.5 | HO2246: =HO2245-20 -> 494.875 | HP2246: =HP2244 -> 50 | HQ2246: =HQ2244 -> 20 | HR2246: ='Исходные данные'!F24 -> 15 | HS2246: 6
HK2247: Расстояние от оптического центра ДЗ до плоскости крепления паука | HL2247: Стрелка 7 | HM2247: 49 | HN2247: =HN2195+'Исходные данные'!F36-'Исходные данные'!F12 -> 803 | HO2247: =HO2245 -> 514.875 | HP2247: =HN2233+HP2233/2 -> 863 | HQ2247: =HO2247 -> 514.875
HL2248: Размер 7 | HM2248: 50 | HN2248: =HN2247+((HP2247-HN2247)/2)-HP2248/2 -> 808 | HO2248: =HO2247-20 -> 494.875 | HP2248: =HP2246 -> 50 | HQ2248: =HQ2246 -> 20 | HR2248: ='Исходные данные'!F26 -> 60 | HS2248: 7
HK2249: Диаметр невиньетированного поля зрения | HL2249: Стрелка 8 | HM2249: 51 | HN2249: =Чертёж!HN2195+'Исходные данные'!F36-'Исходные данные'!F12-'Исходные данные'!F10/2 -> 793.555 | HO2249: =HO2195-'Исходные данные'!F12-15 -> 217.875 | HP2249: =Чертёж!HN2195+'Исходные данные'!F36-'Исходные данные'!F12+'Исходные данные'!F10/2 -> 812.445 | HQ2249: =HO2249 -> 217.875
HL2250: Размер 8 | HM2250: 52 | HN2250: =HN2249+((HP2249-HN2249)/2)-HP2250/2 -> 778 | HO2250: =HO2249-20 -> 197.875 | HP2250: =HP2248 -> 50 | HQ2250: =HQ2248 -> 20 | HR2250: ='Исходные данные'!F10 -> 18.89 | HS2250: 8
HK2251: Диаметр полевой диафрагмы слабого окуляра или максимальное поле зрения | HL2251: Стрелка 9 | HM2251: 53 | HN2251: =Чертёж!HN2195+'Исходные данные'!F36-'Исходные данные'!F12-'Исходные данные'!F18/2 -> 795 | HO2251: =HO2249-30 -> 187.875 | HP2251: =Чертёж!HN2195+'Исходные данные'!F36-'Исходные данные'!F12+'Исходные данные'!F18/2 -> 811 | HQ2251: =HO2251 -> 187.875
HL2252: Размер 9 | HM2252: 54 | HN2252: =HN2251+((HP2251-HN2251)/2)-HP2252/2 -> 778 | HO2252: =HO2251-20 -> 167.875 | HP2252: =HP2250 -> 50 | HQ2252: =HQ2250 -> 20 | HR2252: ='Исходные данные'!F18 -> 16 | HS2252: 9
HK2253: Диаметр отверстия под фокусер | HL2253: Стрелка 10 | HM2253: 55 | HN2253: =Чертёж!HN2195+'Исходные данные'!F36-'Исходные данные'!F12-HP2218/2 -> 789.372 | HO2253: =HO2251-30 -> 157.875 | HP2253: =Чертёж!HN2195+'Исходные данные'!F36-'Исходные данные'!F12+HP2218/2 -> 816.628 | HQ2253: =HO2253 -> 157.875
HL2254: Размер 10 | HM2254: 56 | HN2254: =HN2253+((HP2253-HN2253)/2)-HP2254/2 -> 778 | HO2254: =HO2253-20 -> 137.875 | HP2254: =HP2252 -> 50 | HQ2254: =HQ2252 -> 20 | HR2254: =HP2218 -> 27.256 | HS2254: 10
HK2255: Раастояние от опт. Оси до нижнего края ДЗ | HL2255: Стрелка 11 | HM2255: 57 | HN2255: =HN2195+'Исходные данные'!F60+30 -> 893 | HO2255: =HO2195 -> 379.875 | HP2255: =HN2255 -> 893 | HQ2255: =HO2195+'Исходные данные'!AN12/SQRT(2) -> 404.3452018
HL2256: Размер 11 | HM2256: 58 | HN2256: =HN2255+2 -> 895 | HO2256: =HO2255+((HQ2255-HO2255)/2)-HQ2256/2 -> 381.9829074 | HP2256: =20/(42.998/'Исходные данные'!AN10) -> 13.50292464 | HQ2256: =30/(42.998/'Исходные данные'!AN10) -> 20.25438695 | HR2256: ='Исходные данные'!AN12/SQRT(2) -> 24.47020177 | HS2256: 11 | HT2256: 100
HK2257: Раастояние от опт. Оси до верхнего края ДЗ | HL2257: Стрелка 12 | HM2257: 59 | HN2257: =HN2195+'Исходные данные'!F60+30 -> 893 | HO2257: =HO2195-'Исходные данные'!AN10/SQRT(2) -> 359.3477342 | HP2257: =HN2257 -> 893 | HQ2257: =HO2255 -> 379.875
HL2258: Размер 12 | HM2258: 60 | HN2258: =HN2257+2 -> 895 | HO2258: =HO2257+((HQ2257-HO2257)/2)-HQ2258/2 -> 359.4841736 | HP2258: =HP2256 -> 13.50292464 | HQ2258: =HQ2256 -> 20.25438695 | HR2258: ='Исходные данные'!AN10/SQRT(2) -> 20.52726579 | HS2258: 12 | HT2258: =HT2256 -> 100
HK2259: Малая ось диагонального зеркала | HL2259: Стрелка 13 | HM2259: 61 | HN2259: =HN2195+'Исходные данные'!F60+60 -> 923 | HO2259: =HO2257 -> 359.3477342 | HP2259: =HN2259 -> 923 | HQ2259: =HQ2255 -> 404.3452018
HL2260: Размер 13 | HM2260: 62 | HN2260: =HN2259+2 -> 925 | HO2260: =HO2259+((HQ2259-HO2259)/2)-HQ2260/2 -> 356.846468 | HP2260: 20 | HQ2260: 50 | HR2260: =HR2256+HR2258 -> 44.99746756 | HS2260: 13
HK2261: Расстояние от фокальной плоскости до поверхности трубы | HL2261: Стрелка 14 | HM2261: 63 | HN2261: =HN2257 -> 893 | HO2261: =HO2195-'Исходные данные'!F12 -> 232.875 | HP2261: =HN2261 -> 893 | HQ2261: =HO2195-'Исходные данные'!F12+'Исходные данные'!F56 -> 292.875
HL2262: Размер 14 | HM2262: 64 | HN2262: =HN2261+2 -> 895 | HO2262: =HO2261+((HQ2261-HO2261)/2)-HQ2262/2 -> 237.875 | HP2262: =HP2260 -> 20 | HQ2262: =HQ2260 -> 50 | HR2262: ='Исходные данные'!F56 -> 60 | HS2262: 14
HK2263: Диаметр входного отверстия трубы | HL2263: Стрелка 15 | HM2263: 65 | HN2263: =HN2195+'Исходные данные'!F60+90 -> 953 | HO2263: =HO2195-'Исходные данные'!F32/2 -> 297.875 | HP2263: =HN2263 -> 953 | HQ2263: =HO2195+'Исходные данные'!F32/2 -> 461.875
HL2264: Размер 15 | HM2264: 66 | HN2264: =HN2263+2 -> 955 | HO2264: =HO2263+((HQ2263-HO2263)/2)-HQ2264/2 -> 354.875 | HP2264: =HP2262 -> 20 | HQ2264: =HQ2262 -> 50 | HR2264: ='Исходные данные'!F32 -> 164 | HS2264: 15
HK2265: Диаметр ГЗ | HL2265: Стрелка 16 | HM2265: 67 | HN2265: =HN2195-'Исходные данные'!F14-30 -> 120 | HO2265: =HO2195-'Исходные данные'!F6/2 -> 304.875 | HP2265: =HN2265 -> 120 | HQ2265: =HO2195+'Исходные данные'!F6/2 -> 454.875
HL2266: Размер 16 | HM2266: 68 | HN2266: =HN2265+2 -> 122 | HO2266: =HO2265+((HQ2265-HO2265)/2)-HQ2266/2 -> 354.875 | HP2266: =HP2264 -> 20 | HQ2266: =HQ2264 -> 50 | HR2266: ='Исходные данные'!F6 -> 150 | HS2266: 16
HK2267: Внутренний диаметр трубы телескопа | HL2267: Стрелка 17 | HM2267: 69 | HN2267: =HN2265-30 -> 90 | HO2267: =HO2195-'Исходные данные'!F34/2 -> 295.875 | HP2267: =HN2267 -> 90 | HQ2267: =HO2195+'Исходные данные'!F34/2 -> 463.875
HL2268: Размер 17 | HM2268: 70 | HN2268: =HN2267+2 -> 92 | HO2268: =HO2267+((HQ2267-HO2267)/2)-HQ2268/2 -> 354.875 | HP2268: =HP2266 -> 20 | HQ2268: =HQ2266 -> 50 | HR2268: ='Исходные данные'!F34 -> 168 | HS2268: 17
HK2269: Наружный диаметр трубы телескопа | HL2269: Стрелка 18 | HM2269: 71 | HN2269: =HN2267-30 -> 60 | HO2269: =HO2267-'Исходные данные'!F16 -> 292.875 | HP2269: =HN2269 -> 60 | HQ2269: =HQ2267+'Исходные данные'!F16 -> 466.875
HL2270: Размер 18 | HM2270: 72 | HN2270: =HN2269+2 -> 62 | HO2270: =HO2269+((HQ2269-HO2269)/2)-HQ2270/2 -> 354.875 | HP2270: =HP2268 -> 20 | HQ2270: =HQ2268 -> 50 | HR2270: ='Исходные данные'!F34+'Исходные данные'!F16*2 -> 174 | HS2270: 18
HL2271: Выносная линия1 | HM2271: 73 | HN2271: =HN2195-'Исходные данные'!F14 -> 150 | HO2271: =HO2195+'Исходные данные'!F34/2+'Исходные данные'!F16 -> 466.875 | HP2271: =HN2271 -> 150 | HQ2271: =HO2239 -> 544.875
HL2272: Выносная линия2 | HM2272: 74 | HN2272: =HN2271+HR2236 -> 185 | HO2272: =HO2271 -> 466.875 | HP2272: 185 | HQ2272: =HQ2235 -> 514.875
HL2273: Выносная линия3 | HM2273: 75 | HN2273: =HN2195 -> 200 | HO2273: =HO2195+'Исходные данные'!F34/2+'Исходные данные'!F16 -> 466.875 | HP2273: 200 | HQ2273: =HQ2272 -> 514.875
HL2274: Выносная линия4 | HM2274: 76 | HN2274: =HN2216+HP2216 -> 863 | HO2274: =HO2273 -> 466.875 | HP2274: 863 | HQ2274: =HQ2271 -> 544.875
HL2275: Выносная линия5 | HM2275: 77 | HN2275: =HN2274-HR2238 -> 863 | HO2275: =HO2274 -> 466.875 | HP2275: 863 | HQ2275: =HQ2273 -> 514.875
HL2276: Выносная линия6 | HM2276: 78 | HN2276: =HN2275-HR2248 -> 803 | HO2276: =HO2195 -> 379.875 | HP2276: 803 | HQ2276: =HQ2275 -> 514.875
HL2277: Выносная линия7 | HM2277: 79 | HN2277: =Чертёж!HN2195-'Исходные данные'!F14 -> 150 | HO2277: =HO2275 -> 466.875 | HP2277: =HP2269 -> 60 | HQ2277: =HO2277 -> 466.875
HL2278: Выносная линия8 | HM2278: 80 | HN2278: =HN2277 -> 150 | HO2278: =HO2195-'Исходные данные'!F34/2-'Исходные данные'!F16 -> 292.875 | HP2278: =HP2277 -> 60 | HQ2278: 292.875
HL2279: Выносная линия9 | HM2279: 81 | HN2279: =HN2278 -> 150 | HO2279: =HO2195+'Исходные данные'!F34/2 -> 463.875 | HP2279: =HP2278+30 -> 90 | HQ2279: 463.875
HL2280: Выносная линия10 | HM2280: 82 | HN2280: =HN2279 -> 150 | HO2280: =HO2195-'Исходные данные'!F34/2 -> 295.875 | HP2280: =HP2279 -> 90 | HQ2280: 295.875
HL2281: Выносная линия11 | HM2281: 83 | HN2281: =HN2195-'Исходные данные'!F20 -> 182 | HO2281: =HO2195+'Исходные данные'!F6/2 -> 454.875 | HP2281: =HP2280+30 -> 120 | HQ2281: 454.875
HL2282: Выносная линия12 | HM2282: 84 | HN2282: =HN2281 -> 182 | HO2282: =HO2195-'Исходные данные'!F6/2 -> 304.875 | HP2282: =HP2281 -> 120 | HQ2282: 304.875
HL2283: Выносная линия13 | HM2283: 85 | HN2283: =HP2203 -> 823.5272658 | HO2283: =HQ2203 -> 359.3477342 | HP2283: =HN2259 -> 923 | HQ2283: 359.3477342
HL2284: Выносная линия14 | HM2284: 86 | HN2284: =HP2225 -> 779.7531657 | HO2284: =HQ2259 -> 404.3452018 | HP2284: =HP2283 -> 923 | HQ2284: =HQ2259 -> 404.3452018
HL2285: Выносная линия15 | HM2285: 87 | HN2285: =HN2195+HR2244+HR2248+HR2238 -> 863 | HO2285: =HO2195 -> 379.875 | HP2285: =HN2257 -> 893 | HQ2285: =HO2285 -> 379.875
HL2286: Выносная линия16 | HM2286: 88 | HN2286: =HN2285 -> 863 | HO2286: =HQ2261 -> 292.875 | HP2286: =HN2261 -> 893 | HQ2286: =HO2286 -> 292.875
HL2287: Выносная линия17 | HM2287: 89 | HN2287: =HN2195+HR2244 -> 803 | HO2287: =HO2195-'Исходные данные'!F12 -> 232.875 | HP2287: =HN2261 -> 893 | HQ2287: =HO2287 -> 232.875
HL2288: Выносная линия18 | HM2288: 90 | HN2288: =HN2195+HR2244-'Исходные данные'!F10/2 -> 793.555 | HO2288: =HO2195-'Исходные данные'!F12 -> 232.875 | HP2288: =HN2288 -> 793.555 | HQ2288: =HO2249 -> 217.875
HL2289: Выносная линия19 | HM2289: 91 | HN2289: =HN2195+HR2244+'Исходные данные'!F10/2 -> 812.445 | HO2289: =HO2288 -> 232.875 | HP2289: 812.445 | HQ2289: =HQ2288 -> 217.875
HL2290: Выносная линия20 | HM2290: 92 | HN2290: =HN2195+HR2244+'Исходные данные'!F18/2 -> 811 | HO2290: =HO2289 -> 232.875 | HP2290: 811 | HQ2290: =HQ2289-30 -> 187.875
HL2291: Выносная линия21 | HM2291: 93 | HN2291: =HN2195+HR2244-'Исходные данные'!F18/2 -> 795 | HO2291: =HO2290 -> 232.875 | HP2291: 795 | HQ2291: =HQ2290 -> 187.875
HL2292: Выносная линия22 | HM2292: 94 | HN2292: =HN2218 -> 789.372 | HO2292: =HO2195-'Исходные данные'!F34/2-'Исходные данные'!F16 -> 292.875 | HP2292: 789.372 | HQ2292: =HQ2291-30 -> 157.875
HL2293: Выносная линия23 | HM2293: 95 | HN2293: =HN2292+HP2218 -> 816.628 | HO2293: =HO2292 -> 292.875 | HP2293: 816.628 | HQ2293: =HQ2292 -> 157.875
HL2294: Выносная линия24 | HM2294: 96
HL2295: Выносная линия25 | HM2295: 97
HL2296: Выносная линия26 | HM2296: 98
GZ2297: ='Исходные данные'!B3 -> My | HL2297: Выносная линия27 | HM2297: 99
HL2298: Выносная линия28 | HM2298: 100
GZ2299: Zoom= | HA2299: =50*(1472/HQ2299) -> 96.8739717 | HB2299: % | HK2299: Рамка | HM2299: 101 | HN2299: 10 | HO2299: 10 | HP2299: =HN2195+'Исходные данные'!F60+150 -> 1013 | HQ2299: =HP2299*0.75 -> 759.75
HK2300: Надпись | HM2300: 102 | HN2300: =60 -> 60 | HO2300: =HO2253/5 -> 31.575 | HP2300: =26/(800/'Исходные данные'!F36) -> 24.375
GZ2301: Положение фотоаппарата X | HA2301: 0 | HK2301: Технические характеристики | HM2301: 103 | HN2301: =HP2300 -> 24.375 | HO2301: =HO2300+HN2300+40/(1750/'Исходные данные'!F36) -> 108.7178571 | HP2301: =1200/(1750/'Исходные данные'!F36) -> 514.2857143 | HQ2301: =310/(1750/'Исходные данные'!F36) -> 132.8571429 | HR2301: =28/(1750/'Исходные данные'!F36) -> 12 | HT2301: Ширина текста | HU2301: Высота текта
GZ2302: Положение фотоаппарата Y | HA2302: 0 | HL2302: Диаметр главного зеркала | HM2302: ='Исходные данные'!F6 -> 150 | HQ2302: =HN2270 -> 62 | HR2302: =$HO$2300+$HP$2300*HS2302*1.5 -> 68.1375 | HS2302: 1 | HT2302: =1500*(HP2299/2330) -> 652.1459227 | HU2302: =HR2301+15 -> 27
HL2303: Фокусное расстояние главного зеркала | HM2303: ='Исходные данные'!F36 -> 750 | HQ2303: =HQ2302 -> 62 | HR2303: =HR2302+$HP$2300*HS2303*0.25 -> 80.325 | HS2303: 2
HB2304: Толшина стенки трубы | HC2304: ='Исходные данные'!F16 -> 3 | HL2304: Центральное экранирование | HM2304: ='Исходные данные'!F42 -> 29.99831171 | HQ2304: =HQ2303 -> 62 | HR2304: =HR2303+HR2303-HR2302 -> 92.5125 | HS2304: 3
GZ2305: Диафрагмирование трубы | HB2305: высота диафрагмирования | HC2305: ='Исходные данные'!F30 -> 0 | HD2305: мм | HL2305: Разрешающая способность | HM2305: =140/'Исходные данные'!F6 -> 0.9333333333 | HN2305: " | HQ2305: 62 | HR2305: 104.7 | HS2305: 4
HL2306: Диаметр невиньетированного поля зрения | HM2306: ='Исходные данные'!AO42 -> 1 | HN2306: ='Исходные данные'!AO44 -> 26 | HO2306: ='Исходные данные'!AO46 -> 34 | HP2306: =TEXT(Чертёж!HM2306,"00")&"º"&TEXT(Чертёж!HN2306,"00")&"'"&TEXT(Чертёж!HO2306,"00")&"""" -> 01º26'34" | HQ2306: =HQ2305 -> 62 | HR2306: =HR2305+HR2305-HR2304 -> 116.8875 | HS2306: 5 | HV2306: =ROUND('Исходные данные'!F10,2) -> 18.89 | HW2306: мм
GW2307: Передняя кромка трубы | GX2307: =HN2195+'Исходные данные'!F60 -> 863 | HD2307: Начало | HF2307: Конец | HL2307: Диаметр максимального поля зрения | HM2307: ='Исходные данные'!AS42 -> 1 | HN2307: ='Исходные данные'!AS44 -> 13 | HO2307: ='Исходные данные'!AS46 -> 20 | HP2307: =TEXT(Чертёж!HM2307,"00")&"º"&TEXT(Чертёж!HN2307,"00")&"'"&TEXT(Чертёж!HO2307,"00")&"""" -> 01º13'20" | HQ2307: 62 | HR2307: =HR2306+HR2306-HR2305 -> 129.075 | HS2307: 6 | HV2307: =ROUND('Исходные данные'!F18,2) -> 16 | HW2307: мм
GX2308: ='Исходные данные'!F32+'Исходные данные'!F30+('Исходные данные'!F34-'Исходные данные'!F32)+'Исходные данные'!F56 -> 228 | HD2308: x | HE2308: y | HF2308: x | HG2308: y | HL2308: Минимальное (равнозрачковое) увеличение | HM2308: =HM2302/7 -> 21.42857143 | HQ2308: 62 | HR2308: 141.2625 | HS2308: 7
GX2309: =GX2308-'Исходные данные'!F30 -> 228 | GZ2309: Область размещения диафрагм (начало, конец) | HD2309: =HN2195+HR2244-((((HP2218-'Исходные данные'!F18)/2+'Исходные данные'!F18)*('Исходные данные'!F32+'Исходные данные'!F56+('Исходные данные'!F34-'Исходные данные'!F32)+'Исходные данные'!F30)/('Исходные данные'!F56+'Исходные данные'!F16))-HR2252/2) -> 732.7272381 | HE2309: =HO2195+'Исходные данные'!F32/2 -> 461.875 | HF2309: =HN2195+HR2244+((((HP2218-'Исходные данные'!F18)/2+'Исходные данные'!F18)*('Исходные данные'!F32+'Исходные данные'!F56+'Исходные данные'!F16+('Исходные данные'!F34-'Исходные данные'!F32))/('Исходные данные'!F56+'Исходные данные'!F16))-HR2252/2) -> 874.3026667 | HG2309: =HE2309 -> 461.875 | HL2309: Снижение проницающей силы на краю поля зрения до | HM2309: =Виньетирование!AJ199*100 -> 99.99391777 | HQ2309: 62 | HR2309: 153.45 | HS2309: 8
GX2310: =HN2195+'Исходные данные'!F60-'Исходные данные'!F28-'Исходные данные'!F26+'Исходные данные'!F18/2 -> 811 | GZ2310: Линия области размещения диафрагм 1 | HD2310: =HP2228 -> 811 | HE2310: =HO2228 -> 232.875 | HF2310: =HD2309 -> 732.7272381 | HG2310: =HG2309+'Исходные данные'!F30 -> 461.875 | HL2310: Проницающая сила в пределах невиньетированного поля зрения | HM2310: =Виньетирование!CH201 -> 12.87807186 | HN2310: m | HQ2310: =HQ2309 -> 62 | HR2310: =HR2309+HR2309-HR2308 -> 165.6375
GP2311: Есть в трубе кольца жёсткости? | GQ2311: =IF('Исходные данные'!F34>'Исходные данные'!F32,1,0) -> 1 | GW2311: Диафрагма | GX2311: x | GY2311: y | GZ2311: Линия области размещения диафрагм 2 | HD2311: =HN2228 -> 795 | HE2311: =HE2310 -> 232.875 | HF2311: =HN2195+HR2244+(HN2195+HR2244-(HN2195+HR2244-((((HP2218-'Исходные данные'!F18)/2+'Исходные данные'!F18)*('Исходные данные'!F32+'Исходные данные'!F56+('Исходные данные'!F34-'Исходные данные'!F32))/('Исходные данные'!F56+'Исходные данные'!F16))-HR2252/2))) -> 873.2727619 | HG2311: =HG2309 -> 461.875 | HL2311: Проницающая сила на краю поля зрения | HM2311: =Виньетирование!AJ201 -> 12.87799929 | HN2311: m | HQ2311: =HQ2310 -> 62 | HR2311: =HR2310+HR2310-HR2309 -> 177.825
GD2312: Длина полудуги вершины области диафрагм | GG2312: ='Исходные данные'!$F$32*PI()*'А-А'!$FT$338/360 -> 67.78689096 | GU2312: 1 | GW2312: Вершина | GX2312: =Чертёж!HF2311 -> 873.2727619 | GY2312: =HG2311 -> 461.875 | GZ2312: 1 | HC2312: =IF(HF2312>=$HD$2309,1,0) -> 1 | HD2312: =(HN2195+'Исходные данные'!F60)*HC2312 -> 863 | HE2312: =(HO2195-'Исходные данные'!F32/2)*HC2312 -> 297.875 | HF2312: =Чертёж!HN2195+'Исходные данные'!F60-(Чертёж!HN2195+'Исходные данные'!F60-HF2311)*('Исходные данные'!F32+'Исходные данные'!F30)/'Исходные данные'!F32 -> 873.2727619 | HG2312: =(HO2195+'Исходные данные'!F32/2+'Исходные данные'!F30)*HC2312 -> 461.875
GD2313: Длина полудуги основания области диафрагм | GG2313: =('Исходные данные'!$F$32+'Исходные данные'!$F$30*2)*PI()*'А-А'!$GC$338/360 -> 67.78689096 | GW2313: Основание | GX2313: =GX2312 -> 873.2727619 | GY2313: =HG2312 -> 461.875 | HC2313: =IF(HF2313>=$HD$2309,1,0) -> 1 | HD2313: =HD2310 -> 811 | HE2313: =HE2310 -> 232.875 | HF2313: =HF2312 -> 873.2727619 | HG2313: =HG2312 -> 461.875
GQ2314: x | GR2314: y | GS2314: a | GT2314: b | GU2314: 2 | GW2314: Вершина | GX2314: =GX$2307-(GX$2307-GX$2310-(HF2312-GX$2310)*GX$2309/GX$2308) -> 873.2727619 | GY2314: =GY2312 -> 461.875 | GZ2314: 2 | HC2314: 1 | HD2314: =HD2312 -> 863 | HE2314: =HE2312 -> 297.875 | HF2314: =GX2307-((GX2307-GX2310-(HF2312-GX2310)*GX2309/GX2308)*('Исходные данные'!F32+'Исходные данные'!F30)/'Исходные данные'!F32) -> 873.2727619 | HG2314: =HG2313 -> 461.875
GP2315: Область диафрагмирования | GQ2315: =HD2309 -> 732.7272381 | GR2315: =HE2309+('Исходные данные'!F34-'Исходные данные'!F32)/2 -> 463.875 | GS2315: =HF2311-HF2310 -> 140.5455238 | GT2315: ='Исходные данные'!F30-('Исходные данные'!F34-'Исходные данные'!F32)/2 -> -2 | GW2315: Основание | GX2315: =IF(GX2314>GX$2310,GX2314,HF2314-(HF2314-HF2312)/5) -> 873.2727619 | GY2315: =GY2313 -> 461.875 | HC2315: 1 | HD2315: =GX2310 -> 811 | HE2315: =HE2313 -> 232.875 | HF2315: =HF2314 -> 873.2727619 | HG2315: =HG2314 -> 461.875
GF2316: № Диафрагмы | GG2316: Положение | GI2316: R1 | GJ2316: R2 | GK2316: X1 | GL2316: X2 | GQ2316: =GQ2315-'Исходные данные'!F16 -> 729.7272381 | GR2316: =GR2315 -> 463.875 | GS2316: ='Исходные данные'!F16 -> 3 | GT2316: =GT2315 -> -2 | GU2316: 3 | GW2316: Вершина | GX2316: =GX$2307-(GX$2307-GX$2310-(HF2314-GX$2310)*GX$2309/GX$2308) -> 873.2727619 | GY2316: =GY2314 -> 461.875 | GZ2316: 3 | HC2316: 1 | HD2316: =HD2314 -> 863 | HE2316: 297.875 | HF2316: =GX2307-((GX2307-GX2310-(HF2314-GX2310)*GX2309/GX2308)*('Исходные данные'!F32+'Исходные данные'!F30)/'Исходные данные'!F32) -> 873.2727619 | HG2316: =HG2315 -> 461.875
FW2317: Угол наклона диафрагм | FZ2317: Угол вершины | GC2317: Угол основания | GG2317: Вершина | GH2317: Основание | GQ2317: =HF2311 -> 873.2727619 | GR2317: =GR2316 -> 463.875 | GS2317: =GS2316 -> 3 | GT2317: =GT2316 -> -2 | GW2317: Основание | GX2317: =IF(GX2316>GX$2310,GX2316,HF2316-(HF2316-HF2314)/5) -> 873.2727619 | GY2317: 461.875 | HC2317: 1 | HD2317: 811 | HE2317: 232.875 | HF2317: =HF2316 -> 873.2727619 | HG2317: 461.875
FW2318: =IF(GH2318-GG2318=0,90,DEGREES(ATAN('Исходные данные'!$F$30/(GH2318-GG2318)))) -> 90 | FX2318: =2*PI()*GI2318 -> 515.2211952 | FY2318: =$GG$2312/FX2318 -> 0.1315685216 | FZ2318: =360*FY2318 -> 47.36466779 | GA2318: =2*PI()*GJ2318 -> 515.2211952 | GB2318: =$GG$2313/GA2318 -> 0.1315685216 | GC2318: =360*GB2318 -> 47.36466779 | GD2318: 0 | GE2318: 0 | GF2318: 1 | GG2318: =$GX$2312-GX2312 -> 0 | GH2318: =$GX$2313-GX2313 -> 0 | GI2318: ='Исходные данные'!$F$32/2/SIN(RADIANS(FW2318)) -> 82 | GJ2318: =GI2318+SQRT('Исходные данные'!$F$30^2+(Чертёж!GH2318-Чертёж!GG2318)^2) -> 82 | GK2318: =GI2318*SIN(RADIANS(FZ2318)) -> 60.32572249 | GL2318: =GJ2318*SIN(RADIANS(GC2318)) -> 60.32572249 | GM2318: =GJ2318-GI2318 -> 0 | GN2318: =IF(GX2313<$HN$2320,0,1) -> 1 | GQ2318: =GQ2316 -> 729.7272381 | GR2318: =GR2317+'Исходные данные'!F30-+('Исходные данные'!F34-'Исходные данные'!F32)/2 -> 461.875 | GS2318: =GS2315+'Исходные данные'!F16*2 -> 146.5455238 | GT2318: =GS2317 -> 3 | GU2318: 4 | GW2318: Вершина | GX2318: =GX$2307-(GX$2307-GX$2310-(HF2316-GX$2310)*GX$2309/GX$2308) -> 873.2727619 | GY2318: 461.875 | GZ2318: 4 | HC2318: 1 | HD2318: 863 | HE2318: 297.875 | HF2318: =GX2307-((GX2307-GX2310-(HF2316-GX2310)*GX2309/GX2308)*('Исходные данные'!F32+'Исходные данные'!F30)/'Исходные данные'!F32) -> 873.2727619 | HG2318: 461.875
FW2319: =IF(GH2319-GG2319=0,90,DEGREES(ATAN('Исходные данные'!$F$30/(GH2319-GG2319)))) -> 90 | FX2319: =2*PI()*GI2319 -> 515.2211952 | FY2319: =$GG$2312/FX2319 -> 0.1315685216 | FZ2319: =360*FY2319 -> 47.36466779 | GA2319: =2*PI()*GJ2319 -> 515.2211952 | GB2319: =$GG$2313/GA2319 -> 0.1315685216 | GC2319: =360*GB2319 -> 47.36466779 | GD2319: =GH2319-GH2318 -> 0 | GE2319: =GG2319-GG2318 -> 0 | GF2319: 2 | GG2319: =$GX$2312-GX2314 -> 0 | GH2319: =$GX$2313-GX2315 -> 0 | GI2319: ='Исходные данные'!$F$32/2/SIN(RADIANS(FW2319)) -> 82 | GJ2319: =GI2319+SQRT('Исходные данные'!$F$30^2+(Чертёж!GH2319-Чертёж!GG2319)^2) -> 82 | GK2319: 60.32572249 | GL2319: =GJ2319*SIN(RADIANS(GC2319)) -> 60.32572249 | GM2319: =GJ2319-GI2319 -> 0 | GN2319: =IF(GX2315<$HN$2320,0,1) -> 1 | GP2319: Входное отверстие трубы | GQ2319: =HN2195+'Исходные данные'!F60-'Исходные данные'!F16 -> 860 | GR2319: =HO2217+'Исходные данные'!F16 -> 295.875 | GS2319: ='Исходные данные'!F16 -> 3 | GT2319: ='Исходные данные'!F34 -> 168 | GW2319: Основание | GX2319: =IF(GX2318>GX$2310,GX2318,HF2318-(HF2318-HF2316)/5) -> 873.2727619 | GY2319: 461.875 | HC2319: 1 | HD2319: 811 | HE2319: 232.875 | HF2319: =HF2318 -> 873.2727619 | HG2319: 461.875
FW2320: =IF(GH2320-GG2320=0,90,DEGREES(ATAN('Исходные данные'!$F$30/(GH2320-GG2320)))) -> 90 | FX2320: 515.2211952 | FY2320: 0.1315685216 | FZ2320: 47.36466779 | GA2320: 515.2211952 | GB2320: 0.1315685216 | GC2320: 47.36466779 | GD2320: =GH2320-GH2319 -> 0 | GE2320: =GG2320-GG2319 -> 0 | GF2320: 3 | GG2320: =$GX$2312-GX2316 -> 0 | GH2320: =$GX$2313-GX2317 -> 0 | GI2320: ='Исходные данные'!$F$32/2/SIN(RADIANS(FW2320)) -> 82 | GJ2320: =GI2320+SQRT('Исходные данные'!$F$30^2+(Чертёж!GH2320-Чертёж!GG2320)^2) -> 82 | GK2320: 60.32572249 | GL2320: 60.32572249 | GM2320: 0 | GN2320: =IF(GX2317<$HN$2320,0,1) -> 1 | GQ2320: =GQ2319 -> 860 | GR2320: =GR2319+('Исходные данные'!F34-'Исходные данные'!F32)/2 -> 297.875 | GS2320: =GS2319 -> 3 | GT2320: ='Исходные данные'!F32 -> 164 | GU2320: 5 | GW2320: Вершина | GX2320: =GX$2307-(GX$2307-GX$2310-(HF2318-GX$2310)*GX$2309/GX$2308) -> 873.2727619 | GY2320: 461.875 | GZ2320: 5 | HC2320: 1 | HD2320: 863 | HE2320: 297.875 | HF2320: =GX2307-((GX2307-GX2310-(HF2318-GX2310)*GX2309/GX2308)*('Исходные данные'!F32+'Исходные данные'!F30)/'Исходные данные'!F32) -> 873.2727619 | HG2320: 461.875 | HK2320: Глубина зоны диафрагмирования | HL2320: Стрелка 19 | HN2320: =HD2309 -> 732.7272381 | HO2320: =HO2239+30 -> 574.875 | HP2320: =HF2311 -> 873.2727619 | HQ2320: =HO2320 -> 574.875
FW2321: =IF(GH2321-GG2321=0,90,DEGREES(ATAN('Исходные данные'!$F$30/(GH2321-GG2321)))) -> 90 | FX2321: 515.2211952 | FY2321: 0.1315685216 | FZ2321: 47.36466779 | GA2321: 515.2211952 | GB2321: 0.1315685216 | GC2321: 47.36466779 | GD2321: 0 | GE2321: =GG2321-GG2320 -> 0 | GF2321: 4 | GG2321: =GX2312-GX2318 -> 0 | GH2321: =$GX$2313-GX2319 -> 0 | GI2321: ='Исходные данные'!$F$32/2/SIN(RADIANS(FW2321)) -> 82 | GJ2321: =GI2321+SQRT('Исходные данные'!$F$30^2+(Чертёж!GH2321-Чертёж!GG2321)^2) -> 82 | GK2321: 60.32572249 | GL2321: 60.32572249 | GM2321: 0 | GN2321: =IF(GX2319<$HN$2320,0,1) -> 1 | GW2321: Основание | GX2321: =IF(GX2320>GX$2310,GX2320,HF2320-(HF2320-HF2318)/5) -> 873.2727619 | GY2321: 461.875 | HC2321: 1 | HD2321: 811 | HE2321: 232.875 | HF2321: =HF2320 -> 873.2727619 | HG2321: 461.875 | HL2321: Размер 19 | HN2321: =HN2320+(HP2320-HN2320)/2-HP2321/2 -> 778 | HO2321: =HO2240+30 -> 554.875 | HP2321: 50 | HQ2321: 20 | HR2321: =HP2320-HN2320 -> 140.5455238
FW2322: =IF(GH2322-GG2322=0,90,DEGREES(ATAN('Исходные данные'!$F$30/(GH2322-GG2322)))) -> 90 | FX2322: 515.2211952 | FY2322: 0.1315685216 | FZ2322: 47.36466779 | GA2322: 515.2211952 | GB2322: 0.1315685216 | GC2322: 47.36466779 | GD2322: 0 | GE2322: 0 | GF2322: 5 | GG2322: =GX2312-GX2320 -> 0 | GH2322: =$GX$2313-GX2321 -> 0 | GI2322: ='Исходные данные'!$F$32/2/SIN(RADIANS(FW2322)) -> 82 | GJ2322: =GI2322+SQRT('Исходные данные'!$F$30^2+(Чертёж!GH2322-Чертёж!GG2322)^2) -> 82 | GK2322: 60.32572249 | GL2322: 60.32572249 | GM2322: 0 | GN2322: =IF(GX2321<$HN$2320,0,1) -> 1 | GU2322: 6 | GW2322: Вершина | GX2322: =GX$2307-(GX$2307-GX$2310-(HF2320-GX$2310)*GX$2309/GX$2308) -> 873.2727619 | GY2322: 461.875 | GZ2322: 6 | HC2322: 1 | HD2322: 863 | HE2322: 297.875 | HF2322: =GX2307-((GX2307-GX2310-(HF2320-GX2310)*GX2309/GX2308)*('Исходные данные'!F32+'Исходные данные'!F30)/'Исходные данные'!F32) -> 873.2727619 | HG2322: 461.875 | HK2322: Расстояние от края трубы до начала зоны диафрагмирования | HL2322: Стрелка 20 | HN2322: =HP2320 -> 873.2727619 | HO2322: =HO2320 -> 574.875 | HP2322: =HP2237 -> 863 | HQ2322: =HO2322 -> 574.875
FW2323: =IF(GH2323-GG2323=0,90,DEGREES(ATAN('Исходные данные'!$F$30/(GH2323-GG2323)))) -> 90 | FX2323: 515.2211952 | FY2323: 0.1315685216 | FZ2323: 47.36466779 | GA2323: 515.2211952 | GB2323: 0.1315685216 | GC2323: 47.36466779 | GD2323: 0 | GE2323: 0 | GF2323: 6 | GG2323: =GX2312-GX2322 -> 0 | GH2323: =$GX$2313-GX2323 -> 0 | GI2323: ='Исходные данные'!$F$32/2/SIN(RADIANS(FW2323)) -> 82 | GJ2323: =GI2323+SQRT('Исходные данные'!$F$30^2+(Чертёж!GH2323-Чертёж!GG2323)^2) -> 82 | GK2323: 60.32572249 | GL2323: 60.32572249 | GM2323: 0 | GN2323: =IF(GX2323<$HN$2320,0,1) -> 1 | GW2323: Основание | GX2323: =IF(GX2322>GX$2310,GX2322,HF2322-(HF2322-HF2320)/5) -> 873.2727619 | GY2323: 461.875 | HC2323: 1 | HD2323: 811 | HE2323: 232.875 | HF2323: =HF2322 -> 873.2727619 | HG2323: 461.875 | HL2323: Размер 20 | HN2323: =HN2322+(HP2322-HN2322)/2-HP2323/2 -> 843.136381 | HO2323: =HO2321 -> 554.875 | HP2323: 50 | HQ2323: 20 | HR2323: =HP2322-HN2322 -> -10.2727619
FW2324: =IF(GH2324-GG2324=0,90,DEGREES(ATAN('Исходные данные'!$F$30/(GH2324-GG2324)))) -> 90 | FX2324: 515.2211952 | FY2324: 0.1315685216 | FZ2324: 47.36466779 | GA2324: 515.2211952 | GB2324: 0.1315685216 | GC2324: 47.36466779 | GD2324: 0 | GE2324: 0 | GF2324: 7 | GG2324: =GX2312-GX2324 -> 0 | GH2324: =$GX$2313-GX2325 -> 0 | GI2324: ='Исходные данные'!$F$32/2/SIN(RADIANS(FW2324)) -> 82 | GJ2324: =GI2324+SQRT('Исходные данные'!$F$30^2+(Чертёж!GH2324-Чертёж!GG2324)^2) -> 82 | GK2324: 60.32572249 | GL2324: 60.32572249 | GM2324: 0 | GN2324: =IF(GX2325<$HN$2320,0,1) -> 1 | GU2324: 7 | GW2324: Вершина | GX2324: =GX$2307-(GX$2307-GX$2310-(HF2322-GX$2310)*GX$2309/GX$2308) -> 873.2727619 | GY2324: 461.875 | GZ2324: 7 | HC2324: 1 | HD2324: =HD2322 -> 863 | HE2324: 297.875 | HF2324: =GX2307-((GX2307-GX2310-(HF2322-GX2310)*GX2309/GX2308)*('Исходные данные'!F32+'Исходные данные'!F30)/'Исходные данные'!F32) -> 873.2727619 | HG2324: 461.875 | HL2324: Выносная линия29 | HN2324: =HN2274 -> 863 | HO2324: =HQ2274 -> 544.875 | HP2324: =HN2324 -> 863 | HQ2324: =HQ2274+30 -> 574.875
FW2325: =IF(GH2325-GG2325=0,90,DEGREES(ATAN('Исходные данные'!$F$30/(GH2325-GG2325)))) -> 90 | FX2325: 515.2211952 | FY2325: 0.1315685216 | FZ2325: 47.36466779 | GA2325: 515.2211952 | GB2325: 0.1315685216 | GC2325: 47.36466779 | GD2325: 0 | GE2325: 0 | GF2325: 8 | GG2325: =GX2312-GX2326 -> 0 | GH2325: =$GX$2313-GX2327 -> 0 | GI2325: ='Исходные данные'!$F$32/2/SIN(RADIANS(FW2325)) -> 82 | GJ2325: =GI2325+SQRT('Исходные данные'!$F$30^2+(Чертёж!GH2325-Чертёж!GG2325)^2) -> 82 | GK2325: 60.32572249 | GL2325: 60.32572249 | GM2325: 0 | GN2325: =IF(GX2327<$HN$2320,0,1) -> 1 | GW2325: Основание | GX2325: =IF(GX2324>GX$2310,GX2324,HF2324-(HF2324-HF2322)/5) -> 873.2727619 | GY2325: 461.875 | HC2325: 1 | HD2325: =HD2323 -> 811 | HE2325: 232.875 | HF2325: =HF2324 -> 873.2727619 | HG2325: 461.875 | HL2325: Выносная линия30 | HN2325: =HN2320 -> 732.7272381 | HO2325: =HQ2275-50 -> 464.875 | HP2325: =HN2325 -> 732.7272381 | HQ2325: =HQ2275+60 -> 574.875
FW2326: =IF(GH2326-GG2326=0,90,DEGREES(ATAN('Исходные данные'!$F$30/(GH2326-GG2326)))) -> 90 | FX2326: 515.2211952 | FY2326: 0.1315685216 | FZ2326: 47.36466779 | GA2326: 515.2211952 | GB2326: 0.1315685216 | GC2326: 47.36466779 | GD2326: 0 | GE2326: 0 | GF2326: 9 | GG2326: =$GX$2312-GX2328 -> 0 | GH2326: =$GX$2313-GX2329 -> 0 | GI2326: ='Исходные данные'!$F$32/2/SIN(RADIANS(FW2326)) -> 82 | GJ2326: =GI2326+SQRT('Исходные данные'!$F$30^2+(Чертёж!GH2326-Чертёж!GG2326)^2) -> 82 | GK2326: =GI2326*SIN(RADIANS(FZ2326)) -> 60.32572249 | GL2326: 60.32572249 | GM2326: 0 | GN2326: =IF(GX2329<$HN$2320,0,1) -> 1 | GU2326: 8 | GW2326: Вершина | GX2326: =GX$2307-(GX$2307-GX$2310-(HF2324-GX$2310)*GX$2309/GX$2308) -> 873.2727619 | GY2326: 461.875 | GZ2326: 8 | HC2326: 1 | HD2326: =HD2324 -> 863 | HE2326: 297.875 | HF2326: =GX2307-((GX2307-GX2310-(HF2324-GX2310)*GX2309/GX2308)*('Исходные данные'!F32+'Исходные данные'!F30)/'Исходные данные'!F32) -> 873.2727619 | HG2326: 461.875 | HL2326: Выносная линия31 | HN2326: =HP2320 -> 873.2727619 | HO2326: =HQ2276-50 -> 464.875 | HP2326: =HN2326 -> 873.2727619 | HQ2326: =HQ2276+60 -> 574.875
FW2327: =IF(GH2327-GG2327=0,90,DEGREES(ATAN('Исходные данные'!$F$30/(GH2327-GG2327)))) -> 90 | FX2327: 515.2211952 | FY2327: 0.1315685216 | FZ2327: 47.36466779 | GA2327: 515.2211952 | GB2327: 0.1315685216 | GC2327: 47.36466779 | GD2327: 0 | GE2327: 0 | GF2327: 10 | GG2327: =$GX$2312-GX2330 -> 0 | GH2327: =$GX$2313-GX2331 -> 0 | GI2327: ='Исходные данные'!$F$32/2/SIN(RADIANS(FW2327)) -> 82 | GJ2327: =GI2327+SQRT('Исходные данные'!$F$30^2+(Чертёж!GH2327-Чертёж!GG2327)^2) -> 82 | GK2327: 60.32572249 | GL2327: 60.32572249 | GM2327: 0 | GN2327: =IF(GX2331<$HN$2320,0,1) -> 1 | GW2327: Основание | GX2327: =IF(GX2326>GX$2310,GX2326,HF2326-(HF2326-HF2324)/5) -> 873.2727619 | GY2327: 461.875 | HC2327: 1 | HD2327: =HD2325 -> 811 | HE2327: 232.875 | HF2327: =HF2326 -> 873.2727619 | HG2327: 461.875 | HL2327: Выносная линия32 | HN2327: =HP2239 -> 863 | HO2327: =HO2263 -> 297.875 | HP2327: =HN2263 -> 953 | HQ2327: =HO2327 -> 297.875
FW2328: =IF(GH2328-GG2328=0,90,DEGREES(ATAN('Исходные данные'!$F$30/(GH2328-GG2328)))) -> 90 | FX2328: 515.2211952 | FY2328: 0.1315685216 | FZ2328: 47.36466779 | GA2328: 515.2211952 | GB2328: 0.1315685216 | GC2328: 47.36466779 | GD2328: 0 | GE2328: 0 | GF2328: 11 | GG2328: =$GX$2312-GX2332 -> 0 | GH2328: =$GX$2313-GX2333 -> 0 | GI2328: ='Исходные данные'!$F$32/2/SIN(RADIANS(FW2328)) -> 82 | GJ2328: =GI2328+SQRT('Исходные данные'!$F$30^2+(Чертёж!GH2328-Чертёж!GG2328)^2) -> 82 | GK2328: 60.32572249 | GL2328: 60.32572249 | GM2328: 0 | GN2328: =IF(GX2333<$HN$2320,0,1) -> 1 | GU2328: 9 | GW2328: Вершина | GX2328: =GX$2307-(GX$2307-GX$2310-(HF2326-GX$2310)*GX$2309/GX$2308) -> 873.2727619 | GY2328: 461.875 | GZ2328: 9 | HC2328: 1 | HD2328: =HD2326 -> 863 | HE2328: 297.875 | HF2328: =GX2307-((GX2307-GX2310-(HF2326-GX2310)*GX2309/GX2308)*('Исходные данные'!F32+'Исходные данные'!F30)/'Исходные данные'!F32) -> 873.2727619 | HG2328: 461.875 | HL2328: Выносная линия33 | HN2328: =HN2327 -> 863 | HO2328: =HQ2263 -> 461.875 | HP2328: =HP2327 -> 953 | HQ2328: =HO2328 -> 461.875
FW2329: =IF(GH2329-GG2329=0,90,DEGREES(ATAN('Исходные данные'!$F$30/(GH2329-GG2329)))) -> 90 | FX2329: 515.2211952 | FY2329: 0.1315685216 | FZ2329: 47.36466779 | GA2329: 515.2211952 | GB2329: 0.1315685216 | GC2329: 47.36466779 | GD2329: 0 | GE2329: 0 | GF2329: 12 | GG2329: =$GX$2312-GX2334 -> 0 | GH2329: =$GX$2313-GX2335 -> 0 | GI2329: ='Исходные данные'!$F$32/2/SIN(RADIANS(FW2329)) -> 82 | GJ2329: =GI2329+SQRT('Исходные данные'!$F$30^2+(Чертёж!GH2329-Чертёж!GG2329)^2) -> 82 | GK2329: 60.32572249 | GL2329: 60.32572249 | GM2329: 0 | GN2329: =IF(GX2335<$HN$2320,0,1) -> 1 | GW2329: Основание | GX2329: =IF(GX2328>GX$2310,GX2328,HF2328-(HF2328-HF2326)/5) -> 873.2727619 | GY2329: 461.875 | HC2329: 1 | HD2329: 811 | HE2329: 232.875 | HF2329: =HF2328 -> 873.2727619 | HG2329: 461.875 | HK2329: Видимая в диагональное зеркало часть трубы | HL2329: Линия 1 | HN2329: =HP2203 -> 823.5272658 | HO2329: =HQ2203 -> 359.3477342 | HP2329: =HN2228 -> 795 | HQ2329: =HO2228 -> 232.875
FW2330: =IF(GH2330-GG2330=0,90,DEGREES(ATAN('Исходные данные'!$F$30/(GH2330-GG2330)))) -> 90 | FX2330: 515.2211952 | FY2330: 0.1315685216 | FZ2330: 47.36466779 | GA2330: 515.2211952 | GB2330: 0.1315685216 | GC2330: 47.36466779 | GD2330: 0 | GE2330: 0 | GF2330: 13 | GG2330: =$GX$2312-GX2336 -> 0 | GH2330: =$GX$2313-GX2337 -> 0 | GI2330: ='Исходные данные'!$F$32/2/SIN(RADIANS(FW2330)) -> 82 | GJ2330: =GI2330+SQRT('Исходные данные'!$F$30^2+(Чертёж!GH2330-Чертёж!GG2330)^2) -> 82 | GK2330: 60.32572249 | GL2330: 60.32572249 | GM2330: 0 | GN2330: =IF(GX2337<$HN$2320,0,1) -> 1 | GU2330: 10 | GW2330: Вершина | GX2330: =GX$2307-(GX$2307-GX$2310-(HF2328-GX$2310)*GX$2309/GX$2308) -> 873.2727619 | GY2330: 461.875 | GZ2330: 10 | HC2330: 1 | HD2330: 863 | HE2330: 297.875 | HF2330: =GX2307-((GX2307-GX2310-(HF2328-GX2310)*GX2309/GX2308)*('Исходные данные'!F32+'Исходные данные'!F30)/'Исходные данные'!F32) -> 873.2727619 | HG2330: 461.875 | HN2330: =(('Исходные данные'!F34/2+'Исходные данные'!F18/2))/('Исходные данные'!$AN$12+'Исходные данные'!F18/2)*(HN2195+'Исходные данные'!F36-HP2204) -> 370.258292 | HO2330: =HO2195-'Исходные данные'!F34/2 -> 295.875 | HP2330: =HN2329 -> 823.5272658 | HQ2330: =HO2329 -> 359.3477342
FW2331: =IF(GH2331-GG2331=0,90,DEGREES(ATAN('Исходные данные'!$F$30/(GH2331-GG2331)))) -> 90 | FX2331: 515.2211952 | FY2331: 0.1315685216 | FZ2331: 47.36466779 | GA2331: 515.2211952 | GB2331: 0.1315685216 | GC2331: 47.36466779 | GD2331: 0 | GE2331: 0 | GF2331: 14 | GG2331: =$GX$2312-GX2338 -> 0 | GH2331: =$GX$2313-GX2339 -> 0 | GI2331: ='Исходные данные'!$F$32/2/SIN(RADIANS(FW2331)) -> 82 | GJ2331: =GI2331+SQRT('Исходные данные'!$F$30^2+(Чертёж!GH2331-Чертёж!GG2331)^2) -> 82 | GK2331: 60.32572249 | GL2331: 60.32572249 | GM2331: 0 | GN2331: =IF(GX2339<$HN$2320,0,1) -> 1 | GW2331: Основание | GX2331: =IF(GX2330>GX$2310,GX2330,HF2330-(HF2330-HF2328)/5) -> 873.2727619 | GY2331: 461.875 | HC2331: 1 | HD2331: 811 | HE2331: 232.875 | HF2331: =HF2330 -> 873.2727619 | HG2331: 461.875 | HL2331: Линия 2 | HN2331: =HP2204 -> 778.5297982 | HO2331: =HQ2204 -> 404.3452018 | HP2331: =HP2228 -> 811 | HQ2331: =HQ2329 -> 232.875
FW2332: =IF(GH2332-GG2332=0,90,DEGREES(ATAN('Исходные данные'!$F$30/(GH2332-GG2332)))) -> 90 | FX2332: 515.2211952 | FY2332: 0.1315685216 | FZ2332: 47.36466779 | GA2332: 515.2211952 | GB2332: 0.1315685216 | GC2332: 47.36466779 | GD2332: 0 | GE2332: 0 | GF2332: 15 | GG2332: =$GX$2312-GX2340 -> 0 | GH2332: =$GX$2313-GX2341 -> 0 | GI2332: ='Исходные данные'!$F$32/2/SIN(RADIANS(FW2332)) -> 82 | GJ2332: =GI2332+SQRT('Исходные данные'!$F$30^2+(Чертёж!GH2332-Чертёж!GG2332)^2) -> 82 | GK2332: 60.32572249 | GL2332: 60.32572249 | GM2332: 0 | GN2332: =IF(GX2341<$HN$2320,0,1) -> 1 | GU2332: 11 | GW2332: Вершина | GX2332: =GX$2307-(GX$2307-GX$2310-(HF2330-GX$2310)*GX$2309/GX$2308) -> 873.2727619 | GY2332: 461.875 | GZ2332: 11 | HC2332: 1 | HD2332: 863 | HE2332: 297.875 | HF2332: =GX2307-((GX2307-GX2310-(HF2330-GX2310)*GX2309/GX2308)*('Исходные данные'!F32+'Исходные данные'!F30)/'Исходные данные'!F32) -> 873.2727619 | HG2332: 461.875 | HN2332: =(('Исходные данные'!F34/2+'Исходные данные'!F18/2))/('Исходные данные'!$AN$10+'Исходные данные'!F18/2)*(HN2195+'Исходные данные'!F36-HP2203) -> 314.2185021 | HO2332: =HO2195+'Исходные данные'!F34/2 -> 463.875 | HP2332: =HN2331 -> 778.5297982 | HQ2332: =HO2331 -> 404.3452018
FW2333: =IF(GH2333-GG2333=0,90,DEGREES(ATAN('Исходные данные'!$F$30/(GH2333-GG2333)))) -> 90 | FX2333: 515.2211952 | FY2333: 0.1315685216 | FZ2333: 47.36466779 | GA2333: 515.2211952 | GB2333: 0.1315685216 | GC2333: 47.36466779 | GD2333: 0 | GE2333: 0 | GF2333: 16 | GG2333: =$GX$2312-GX2342 -> 0 | GH2333: =$GX$2313-GX2343 -> 0 | GI2333: ='Исходные данные'!$F$32/2/SIN(RADIANS(FW2333)) -> 82 | GJ2333: =GI2333+SQRT('Исходные данные'!$F$30^2+(Чертёж!GH2333-Чертёж!GG2333)^2) -> 82 | GK2333: 60.32572249 | GL2333: 60.32572249 | GM2333: 0 | GN2333: =IF(GX2343<$HN$2320,0,1) -> 1 | GW2333: Основание | GX2333: =IF(GX2332>GX$2310,GX2332,HF2332-(HF2332-HF2330)/5) -> 873.2727619 | GY2333: 461.875 | HC2333: 1 | HD2333: 811 | HE2333: 232.875 | HF2333: =HF2332 -> 873.2727619 | HG2333: 461.875 | HL2333: Стрелка 21 | HN2333: =HN2195-'Исходные данные'!F14 -> 150 | HO2333: =HO2239+30 -> 574.875 | HP2333: =HN2332 -> 314.2185021 | HQ2333: =HO2333 -> 574.875
FW2334: =IF(GH2334-GG2334=0,90,DEGREES(ATAN('Исходные данные'!$F$30/(GH2334-GG2334)))) -> 90 | FX2334: 515.2211952 | FY2334: 0.1315685216 | FZ2334: 47.36466779 | GA2334: 515.2211952 | GB2334: 0.1315685216 | GC2334: 47.36466779 | GD2334: 0 | GE2334: 0 | GF2334: 17 | GG2334: =$GX$2312-GX2344 -> 0 | GH2334: =$GX$2313-GX2345 -> 0 | GI2334: ='Исходные данные'!$F$32/2/SIN(RADIANS(FW2334)) -> 82 | GJ2334: =GI2334+SQRT('Исходные данные'!$F$30^2+(Чертёж!GH2334-Чертёж!GG2334)^2) -> 82 | GK2334: 60.32572249 | GL2334: 60.32572249 | GM2334: 0 | GN2334: =IF(GX2345<$HN$2320,0,1) -> 1 | GU2334: 12 | GW2334: Вершина | GX2334: =GX$2307-(GX$2307-GX$2310-(HF2332-GX$2310)*GX$2309/GX$2308) -> 873.2727619 | GY2334: 461.875 | GZ2334: 12 | HC2334: 1 | HD2334: 863 | HE2334: 297.875 | HF2334: =GX2307-((GX2307-GX2310-(HF2332-GX2310)*GX2309/GX2308)*('Исходные данные'!F32+'Исходные данные'!F30)/'Исходные данные'!F32) -> 873.2727619 | HG2334: 461.875 | HL2334: Размер 21 | HN2334: =HN2333+HR2334/2-HP2334/2 -> 207.109251 | HO2334: =HO2333-20 -> 554.875 | HP2334: 50 | HQ2334: 20 | HR2334: =HP2333-HN2333 -> 164.2185021
FW2335: =IF(GH2335-GG2335=0,90,DEGREES(ATAN('Исходные данные'!$F$30/(GH2335-GG2335)))) -> 90 | FX2335: 515.2211952 | FY2335: 0.1315685216 | FZ2335: 47.36466779 | GA2335: 515.2211952 | GB2335: 0.1315685216 | GC2335: 47.36466779 | GD2335: 0 | GE2335: 0 | GF2335: 18 | GG2335: =$GX$2312-GX2346 -> 0 | GH2335: =$GX$2313-GX2347 -> 0 | GI2335: ='Исходные данные'!$F$32/2/SIN(RADIANS(FW2335)) -> 82 | GJ2335: =GI2335+SQRT('Исходные данные'!$F$30^2+(Чертёж!GH2335-Чертёж!GG2335)^2) -> 82 | GK2335: 60.32572249 | GL2335: 60.32572249 | GM2335: 0 | GN2335: =IF(GX2347<$HN$2320,0,1) -> 1 | GW2335: Основание | GX2335: =IF(GX2334>GX$2310,GX2334,HF2334-(HF2334-HF2332)/5) -> 873.2727619 | GY2335: 461.875 | HC2335: 1 | HD2335: 811 | HE2335: 232.875 | HF2335: =HF2334 -> 873.2727619 | HG2335: 461.875 | HL2335: Стрелка 22 | HN2335: =HN2333 -> 150 | HO2335: =HO2217-50 -> 242.875 | HP2335: =HN2330 -> 370.258292 | HQ2335: =HO2335 -> 242.875
FW2336: =IF(GH2336-GG2336=0,90,DEGREES(ATAN('Исходные данные'!$F$30/(GH2336-GG2336)))) -> 90 | FX2336: 515.2211952 | FY2336: 0.1315685216 | FZ2336: 47.36466779 | GA2336: 515.2211952 | GB2336: 0.1315685216 | GC2336: 47.36466779 | GD2336: 0 | GE2336: 0 | GF2336: 19 | GG2336: =$GX$2312-GX2348 -> 0 | GH2336: =$GX$2313-GX2349 -> 0 | GI2336: ='Исходные данные'!$F$32/2/SIN(RADIANS(FW2336)) -> 82 | GJ2336: =GI2336+SQRT('Исходные данные'!$F$30^2+(Чертёж!GH2336-Чертёж!GG2336)^2) -> 82 | GK2336: 60.32572249 | GL2336: 60.32572249 | GM2336: 0 | GN2336: =IF(GX2349<$HN$2320,0,1) -> 1 | GU2336: 13 | GW2336: Вершина | GX2336: =GX$2307-(GX$2307-GX$2310-(HF2334-GX$2310)*GX$2309/GX$2308) -> 873.2727619 | GY2336: 461.875 | GZ2336: 13 | HC2336: 1 | HD2336: 863 | HE2336: 297.875 | HF2336: =GX2307-((GX2307-GX2310-(HF2334-GX2310)*GX2309/GX2308)*('Исходные данные'!F32+'Исходные данные'!F30)/'Исходные данные'!F32) -> 873.2727619 | HG2336: 461.875 | HL2336: Размер 22 | HN2336: =HN2335+HR2336/2-HP2336/2 -> 235.129146 | HO2336: =HO2335-20 -> 222.875 | HP2336: 50 | HQ2336: 20 | HR2336: =HP2335-HN2335 -> 220.258292
FW2337: =IF(GH2337-GG2337=0,90,DEGREES(ATAN('Исходные данные'!$F$30/(GH2337-GG2337)))) -> 90 | FX2337: 515.2211952 | FY2337: 0.1315685216 | FZ2337: 47.36466779 | GA2337: 515.2211952 | GB2337: 0.1315685216 | GC2337: 47.36466779 | GD2337: 0 | GE2337: 0 | GF2337: 20 | GG2337: =$GX$2312-GX2350 -> 0 | GH2337: =$GX$2313-GX2351 -> 0 | GI2337: ='Исходные данные'!$F$32/2/SIN(RADIANS(FW2337)) -> 82 | GJ2337: =GI2337+SQRT('Исходные данные'!$F$30^2+(Чертёж!GH2337-Чертёж!GG2337)^2) -> 82 | GK2337: 60.32572249 | GL2337: 60.32572249 | GM2337: 0 | GN2337: =IF(GX2351<$HN$2320,0,1) -> 1 | GW2337: Основание | GX2337: =IF(GX2336>GX$2310,GX2336,HF2336-(HF2336-HF2334)/5) -> 873.2727619 | GY2337: 461.875 | HC2337: 1 | HD2337: 811 | HE2337: 232.875 | HF2337: =HF2336 -> 873.2727619 | HG2337: 461.875 | HL2337: Выносная линия34 | HN2337: =HN2335 -> 150 | HO2337: =HO2335 -> 242.875 | HP2337: =HN2337 -> 150 | HQ2337: =HO2333 -> 574.875
FW2338: =IF(GH2338-GG2338=0,90,DEGREES(ATAN('Исходные данные'!$F$30/(GH2338-GG2338)))) -> 90 | FX2338: 515.2211952 | FY2338: 0.1315685216 | FZ2338: 47.36466779 | GA2338: 515.2211952 | GB2338: 0.1315685216 | GC2338: 47.36466779 | GD2338: 0 | GE2338: 0 | GF2338: 21 | GG2338: =$GX$2312-GX2352 -> 0 | GH2338: =$GX$2313-GX2353 -> 0 | GI2338: ='Исходные данные'!$F$32/2/SIN(RADIANS(FW2338)) -> 82 | GJ2338: =GI2338+SQRT('Исходные данные'!$F$30^2+(Чертёж!GH2338-Чертёж!GG2338)^2) -> 82 | GK2338: 60.32572249 | GL2338: 60.32572249 | GM2338: 0 | GN2338: =IF(GX2353<$HN$2320,0,1) -> 1 | GU2338: 14 | GW2338: Вершина | GX2338: =GX$2307-(GX$2307-GX$2310-(HF2336-GX$2310)*GX$2309/GX$2308) -> 873.2727619 | GY2338: 461.875 | GZ2338: 14 | HC2338: 1 | HD2338: 863 | HE2338: 297.875 | HF2338: =GX2307-((GX2307-GX2310-(HF2336-GX2310)*GX2309/GX2308)*('Исходные данные'!F32+'Исходные данные'!F30)/'Исходные данные'!F32) -> 873.2727619 | HG2338: 461.875 | HL2338: Выносная линия35 | HN2338: =HP2335 -> 370.258292 | HO2338: =HO2330 -> 295.875 | HP2338: =HN2338 -> 370.258292 | HQ2338: =HQ2335 -> 242.875
FW2339: =IF(GH2339-GG2339=0,90,DEGREES(ATAN('Исходные данные'!$F$30/(GH2339-GG2339)))) -> 90 | FX2339: 515.2211952 | FY2339: 0.1315685216 | FZ2339: 47.36466779 | GA2339: 515.2211952 | GB2339: 0.1315685216 | GC2339: 47.36466779 | GD2339: 0 | GE2339: 0 | GF2339: 22 | GG2339: =$GX$2312-GX2354 -> 0 | GH2339: =$GX$2313-GX2355 -> 0 | GI2339: ='Исходные данные'!$F$32/2/SIN(RADIANS(FW2339)) -> 82 | GJ2339: =GI2339+SQRT('Исходные данные'!$F$30^2+(Чертёж!GH2339-Чертёж!GG2339)^2) -> 82 | GK2339: 60.32572249 | GL2339: 60.32572249 | GM2339: 0 | GN2339: =IF(GX2355<$HN$2320,0,1) -> 1 | GW2339: Основание | GX2339: =IF(GX2338>GX$2310,GX2338,HF2338-(HF2338-HF2336)/5) -> 873.2727619 | GY2339: 461.875 | HC2339: 1 | HD2339: 811 | HE2339: 232.875 | HF2339: =HF2338 -> 873.2727619 | HG2339: 461.875 | HL2339: Выносная линия36 | HN2339: =HP2333 -> 314.2185021 | HO2339: =HO2332 -> 463.875 | HP2339: =HN2339 -> 314.2185021 | HQ2339: =HQ2333 -> 574.875
FW2340: =IF(GH2340-GG2340=0,90,DEGREES(ATAN('Исходные данные'!$F$30/(GH2340-GG2340)))) -> 90 | FX2340: 515.2211952 | FY2340: 0.1315685216 | FZ2340: 47.36466779 | GA2340: 515.2211952 | GB2340: 0.1315685216 | GC2340: 47.36466779 | GD2340: 0 | GE2340: 0 | GF2340: 23 | GG2340: =$GX$2312-GX2356 -> 0 | GH2340: =$GX$2313-GX2357 -> 0 | GI2340: ='Исходные данные'!$F$32/2/SIN(RADIANS(FW2340)) -> 82 | GJ2340: =GI2340+SQRT('Исходные данные'!$F$30^2+(Чертёж!GH2340-Чертёж!GG2340)^2) -> 82 | GK2340: 60.32572249 | GL2340: 60.32572249 | GM2340: 0 | GN2340: =IF(GX2357<$HN$2320,0,1) -> 1 | GU2340: 15 | GW2340: Вершина | GX2340: =GX$2307-(GX$2307-GX$2310-(HF2338-GX$2310)*GX$2309/GX$2308) -> 873.2727619 | GY2340: 461.875 | GZ2340: 15 | HC2340: 1 | HD2340: 863 | HE2340: 297.875 | HF2340: =GX2307-((GX2307-GX2310-(HF2338-GX2310)*GX2309/GX2308)*('Исходные данные'!F32+'Исходные данные'!F30)/'Исходные данные'!F32) -> 873.2727619 | HG2340: 461.875 | HK2340: Размеры ширины области диафрагмирования | HL2340: Стрелка 23 | HN2340: =HN2195+'Исходные данные'!F60+60 -> 923 | HO2340: =HO2195+'Исходные данные'!F32/2 -> 461.875 | HP2340: =HN2340 -> 923 | HQ2340: =HO2340+'Исходные данные'!F30 -> 461.875
FW2341: =IF(GH2341-GG2341=0,90,DEGREES(ATAN('Исходные данные'!$F$30/(GH2341-GG2341)))) -> 90 | FX2341: 515.2211952 | FY2341: 0.1315685216 | FZ2341: 47.36466779 | GA2341: 515.2211952 | GB2341: 0.1315685216 | GC2341: 47.36466779 | GD2341: 0 | GE2341: 0 | GF2341: 24 | GG2341: =$GX$2312-GX2358 -> 0 | GH2341: =$GX$2313-GX2359 -> 0 | GI2341: ='Исходные данные'!$F$32/2/SIN(RADIANS(FW2341)) -> 82 | GJ2341: =GI2341+SQRT('Исходные данные'!$F$30^2+(Чертёж!GH2341-Чертёж!GG2341)^2) -> 82 | GK2341: 60.32572249 | GL2341: 60.32572249 | GM2341: 0 | GN2341: =IF(GX2359<$HN$2320,0,1) -> 1 | GW2341: Основание | GX2341: =IF(GX2340>GX$2310,GX2340,HF2340-(HF2340-HF2338)/5) -> 873.2727619 | GY2341: 461.875 | HC2341: 1 | HD2341: 811 | HE2341: 232.875 | HF2341: =HF2340 -> 873.2727619 | HG2341: 461.875 | HL2341: Размер 23 | HN2341: =HN2256 -> 895 | HO2341: =HO2340+(HQ2340-HO2342)/2-HP2341/2 -> 450.875 | HP2341: 20 | HQ2341: 50 | HR2341: =HQ2342-HO2342 -> -2
FW2342: =IF(GH2342-GG2342=0,90,DEGREES(ATAN('Исходные данные'!$F$30/(GH2342-GG2342)))) -> 90 | FX2342: 515.2211952 | FY2342: 0.1315685216 | FZ2342: 47.36466779 | GA2342: 515.2211952 | GB2342: 0.1315685216 | GC2342: 47.36466779 | GD2342: 0 | GE2342: 0 | GF2342: 25 | GG2342: =$GX$2312-GX2360 -> 0 | GH2342: =$GX$2313-GX2361 -> 0 | GI2342: ='Исходные данные'!$F$32/2/SIN(RADIANS(FW2342)) -> 82 | GJ2342: =GI2342+SQRT('Исходные данные'!$F$30^2+(Чертёж!GH2342-Чертёж!GG2342)^2) -> 82 | GK2342: 60.32572249 | GL2342: 60.32572249 | GM2342: 0 | GN2342: =IF(GX2361<$HN$2320,0,1) -> 1 | GU2342: 16 | GW2342: Вершина | GX2342: =GX$2307-(GX$2307-GX$2310-(HF2340-GX$2310)*GX$2309/GX$2308) -> 873.2727619 | GY2342: 461.875 | GZ2342: 16 | HC2342: 1 | HD2342: 863 | HE2342: 297.875 | HF2342: =GX2307-((GX2307-GX2310-(HF2340-GX2310)*GX2309/GX2308)*('Исходные данные'!F32+'Исходные данные'!F30)/'Исходные данные'!F32) -> 873.2727619 | HG2342: 461.875 | HL2342: Стрелка 24 | HN2342: =HN2340-30 -> 893 | HO2342: =HO2216 -> 463.875 | HP2342: =HN2342 -> 893 | HQ2342: =HQ2340 -> 461.875
FW2343: =IF(GH2343-GG2343=0,90,DEGREES(ATAN('Исходные данные'!$F$30/(GH2343-GG2343)))) -> 90 | FX2343: 515.2211952 | FY2343: 0.1315685216 | FZ2343: 47.36466779 | GA2343: 515.2211952 | GB2343: 0.1315685216 | GC2343: 47.36466779 | GD2343: 0 | GE2343: 0 | GF2343: 26 | GG2343: =$GX$2312-GX2362 -> 0 | GH2343: =$GX$2313-GX2363 -> 0 | GI2343: ='Исходные данные'!$F$32/2/SIN(RADIANS(FW2343)) -> 82 | GJ2343: =GI2343+SQRT('Исходные данные'!$F$30^2+(Чертёж!GH2343-Чертёж!GG2343)^2) -> 82 | GK2343: 60.32572249 | GL2343: 60.32572249 | GM2343: 0 | GN2343: =IF(GX2363<$HN$2320,0,1) -> 1 | GW2343: Основание | GX2343: =IF(GX2342>GX$2310,GX2342,HF2342-(HF2342-HF2340)/5) -> 873.2727619 | GY2343: 461.875 | HC2343: 1 | HD2343: 811 | HE2343: 232.875 | HF2343: =HF2342 -> 873.2727619 | HG2343: 461.875 | HL2343: Размер 24 | HN2343: =HN2260 -> 925 | HO2343: =HO2342+(HQ2342-HO2340)/2-HQ2343/2 -> 438.875 | HP2343: =HP2341 -> 20 | HQ2343: =HQ2341 -> 50 | HR2343: =HQ2340-HO2340 -> 0
FW2344: =IF(GH2344-GG2344=0,90,DEGREES(ATAN('Исходные данные'!$F$30/(GH2344-GG2344)))) -> 90 | FX2344: 515.2211952 | FY2344: 0.1315685216 | FZ2344: 47.36466779 | GA2344: 515.2211952 | GB2344: 0.1315685216 | GC2344: 47.36466779 | GD2344: 0 | GE2344: 0 | GF2344: 27 | GG2344: =$GX$2312-GX2364 -> 0 | GH2344: =$GX$2313-GX2365 -> 0 | GI2344: ='Исходные данные'!$F$32/2/SIN(RADIANS(FW2344)) -> 82 | GJ2344: =GI2344+SQRT('Исходные данные'!$F$30^2+(Чертёж!GH2344-Чертёж!GG2344)^2) -> 82 | GK2344: 60.32572249 | GL2344: 60.32572249 | GM2344: 0 | GN2344: =IF(GX2365<$HN$2320,0,1) -> 1 | GU2344: 17 | GW2344: Вершина | GX2344: =GX$2307-(GX$2307-GX$2310-(HF2342-GX$2310)*GX$2309/GX$2308) -> 873.2727619 | GY2344: 461.875 | GZ2344: 17 | HC2344: 1 | HD2344: 863 | HE2344: 297.875 | HF2344: =GX2307-((GX2307-GX2310-(HF2342-GX2310)*GX2309/GX2308)*('Исходные данные'!F32+'Исходные данные'!F30)/'Исходные данные'!F32) -> 873.2727619 | HG2344: 461.875 | HL2344: Выносная линия37 | HN2344: =HN2195+'Исходные данные'!F60 -> 863 | HO2344: =HQ2342 -> 461.875 | HP2344: =HN2344+60 -> 923 | HQ2344: =HO2344 -> 461.875
FW2345: =IF(GH2345-GG2345=0,90,DEGREES(ATAN('Исходные данные'!$F$30/(GH2345-GG2345)))) -> 90 | FX2345: 515.2211952 | FY2345: 0.1315685216 | FZ2345: 47.36466779 | GA2345: 515.2211952 | GB2345: 0.1315685216 | GC2345: 47.36466779 | GD2345: 0 | GE2345: 0 | GF2345: 28 | GG2345: =$GX$2312-GX2366 -> 0 | GH2345: =$GX$2313-GX2367 -> 0 | GI2345: ='Исходные данные'!$F$32/2/SIN(RADIANS(FW2345)) -> 82 | GJ2345: =GI2345+SQRT('Исходные данные'!$F$30^2+(Чертёж!GH2345-Чертёж!GG2345)^2) -> 82 | GK2345: 60.32572249 | GL2345: 60.32572249 | GM2345: 0 | GN2345: =IF(GX2367<$HN$2320,0,1) -> 1 | GW2345: Основание | GX2345: =IF(GX2344>GX$2310,GX2344,HF2344-(HF2344-HF2342)/5) -> 873.2727619 | GY2345: 461.875 | HC2345: 1 | HD2345: 811 | HE2345: 232.875 | HF2345: =HF2344 -> 873.2727619 | HG2345: 461.875 | HL2345: Выносная линия38 | HN2345: =HN2344 -> 863 | HO2345: =HO2342 -> 463.875 | HP2345: =HN2345+30 -> 893 | HQ2345: =HO2345 -> 463.875
FW2346: =IF(GH2346-GG2346=0,90,DEGREES(ATAN('Исходные данные'!$F$30/(GH2346-GG2346)))) -> 90 | FX2346: 515.2211952 | FY2346: 0.1315685216 | FZ2346: 47.36466779 | GA2346: 515.2211952 | GB2346: 0.1315685216 | GC2346: 47.36466779 | GD2346: 0 | GE2346: 0 | GF2346: 29 | GG2346: =$GX$2312-GX2368 -> 0 | GH2346: =$GX$2313-GX2369 -> 0 | GI2346: ='Исходные данные'!$F$32/2/SIN(RADIANS(FW2346)) -> 82 | GJ2346: =GI2346+SQRT('Исходные данные'!$F$30^2+(Чертёж!GH2346-Чертёж!GG2346)^2) -> 82 | GK2346: 60.32572249 | GL2346: 60.32572249 | GM2346: 0 | GN2346: =IF(GX2369<$HN$2320,0,1) -> 1 | GU2346: 18 | GW2346: Вершина | GX2346: =GX$2307-(GX$2307-GX$2310-(HF2344-GX$2310)*GX$2309/GX$2308) -> 873.2727619 | GY2346: 461.875 | GZ2346: 18 | HC2346: 1 | HD2346: 863 | HE2346: 297.875 | HF2346: =GX2307-((GX2307-GX2310-(HF2344-GX2310)*GX2309/GX2308)*('Исходные данные'!F32+'Исходные данные'!F30)/'Исходные данные'!F32) -> 873.2727619 | HG2346: 461.875
FW2347: =IF(GH2347-GG2347=0,90,DEGREES(ATAN('Исходные данные'!$F$30/(GH2347-GG2347)))) -> 90 | FX2347: 515.2211952 | FY2347: 0.1315685216 | FZ2347: 47.36466779 | GA2347: 515.2211952 | GB2347: 0.1315685216 | GC2347: 47.36466779 | GD2347: 0 | GE2347: 0 | GF2347: 30 | GG2347: =$GX$2312-GX2370 -> 0 | GH2347: =$GX$2313-GX2371 -> 0 | GI2347: ='Исходные данные'!$F$32/2/SIN(RADIANS(FW2347)) -> 82 | GJ2347: =GI2347+SQRT('Исходные данные'!$F$30^2+(Чертёж!GH2347-Чертёж!GG2347)^2) -> 82 | GK2347: 60.32572249 | GL2347: 60.32572249 | GM2347: 0 | GN2347: =IF(GX2371<$HN$2320,0,1) -> 1 | GW2347: Основание | GX2347: =IF(GX2346>GX$2310,GX2346,HF2346-(HF2346-HF2344)/5) -> 873.2727619 | GY2347: 461.875 | HC2347: 1 | HD2347: 811 | HE2347: 232.875 | HF2347: =HF2346 -> 873.2727619 | HG2347: 461.875
FW2348: =IF(GH2348-GG2348=0,90,DEGREES(ATAN('Исходные данные'!$F$30/(GH2348-GG2348)))) -> 90 | FX2348: 515.2211952 | FY2348: 0.1315685216 | FZ2348: 47.36466779 | GA2348: 515.2211952 | GB2348: 0.1315685216 | GC2348: 47.36466779 | GD2348: 0 | GE2348: 0 | GF2348: 31 | GG2348: =$GX$2312-GX2372 -> 0 | GH2348: =$GX$2313-GX2373 -> 0 | GI2348: ='Исходные данные'!$F$32/2/SIN(RADIANS(FW2348)) -> 82 | GJ2348: =GI2348+SQRT('Исходные данные'!$F$30^2+(Чертёж!GH2348-Чертёж!GG2348)^2) -> 82 | GK2348: 60.32572249 | GL2348: 60.32572249 | GM2348: 0 | GN2348: =IF(GX2373<$HN$2320,0,1) -> 1 | GU2348: 19 | GW2348: Вершина | GX2348: =GX$2307-(GX$2307-GX$2310-(HF2346-GX$2310)*GX$2309/GX$2308) -> 873.2727619 | GY2348: 461.875 | GZ2348: 19 | HC2348: 1 | HD2348: 863 | HE2348: 297.875 | HF2348: =GX2307-((GX2307-GX2310-(HF2346-GX2310)*GX2309/GX2308)*('Исходные данные'!F32+'Исходные данные'!F30)/'Исходные данные'!F32) -> 873.2727619 | HG2348: 461.875
FW2349: =IF(GH2349-GG2349=0,90,DEGREES(ATAN('Исходные данные'!$F$30/(GH2349-GG2349)))) -> 90 | FX2349: 515.2211952 | FY2349: 0.1315685216 | FZ2349: 47.36466779 | GA2349: 515.2211952 | GB2349: 0.1315685216 | GC2349: 47.36466779 | GD2349: 0 | GE2349: 0 | GF2349: 32 | GG2349: =$GX$2312-GX2374 -> 0 | GH2349: =$GX$2313-GX2375 -> 0 | GI2349: ='Исходные данные'!$F$32/2/SIN(RADIANS(FW2349)) -> 82 | GJ2349: =GI2349+SQRT('Исходные данные'!$F$30^2+(Чертёж!GH2349-Чертёж!GG2349)^2) -> 82 | GK2349: 60.32572249 | GL2349: 60.32572249 | GM2349: 0 | GN2349: =IF(GX2375<$HN$2320,0,1) -> 1 | GW2349: Основание | GX2349: =IF(GX2348>GX$2310,GX2348,HF2348-(HF2348-HF2346)/5) -> 873.2727619 | GY2349: 461.875 | HC2349: 1 | HD2349: 811 | HE2349: 232.875 | HF2349: =HF2348 -> 873.2727619 | HG2349: 461.875
FW2350: =IF(GH2350-GG2350=0,90,DEGREES(ATAN('Исходные данные'!$F$30/(GH2350-GG2350)))) -> 90 | FX2350: 515.2211952 | FY2350: 0.1315685216 | FZ2350: 47.36466779 | GA2350: 515.2211952 | GB2350: 0.1315685216 | GC2350: 47.36466779 | GD2350: 0 | GE2350: 0 | GF2350: 33 | GG2350: =$GX$2312-GX2376 -> 0 | GH2350: =$GX$2313-GX2377 -> 0 | GI2350: ='Исходные данные'!$F$32/2/SIN(RADIANS(FW2350)) -> 82 | GJ2350: =GI2350+SQRT('Исходные данные'!$F$30^2+(Чертёж!GH2350-Чертёж!GG2350)^2) -> 82 | GK2350: 60.32572249 | GL2350: 60.32572249 | GM2350: 0 | GN2350: =IF(GX2377<$HN$2320,0,1) -> 1 | GU2350: 20 | GW2350: Вершина | GX2350: =GX$2307-(GX$2307-GX$2310-(HF2348-GX$2310)*GX$2309/GX$2308) -> 873.2727619 | GY2350: 461.875 | GZ2350: 20 | HC2350: 1 | HD2350: 863 | HE2350: 297.875 | HF2350: =GX2307-((GX2307-GX2310-(HF2348-GX2310)*GX2309/GX2308)*('Исходные данные'!F32+'Исходные данные'!F30)/'Исходные данные'!F32) -> 873.2727619 | HG2350: 461.875
FW2351: =IF(GH2351-GG2351=0,90,DEGREES(ATAN('Исходные данные'!$F$30/(GH2351-GG2351)))) -> 90 | FX2351: 515.2211952 | FY2351: 0.1315685216 | FZ2351: 47.36466779 | GA2351: 515.2211952 | GB2351: 0.1315685216 | GC2351: 47.36466779 | GD2351: 0 | GE2351: 0 | GF2351: 34 | GG2351: =$GX$2312-GX2378 -> 0 | GH2351: =$GX$2313-GX2379 -> 0 | GI2351: ='Исходные данные'!$F$32/2/SIN(RADIANS(FW2351)) -> 82 | GJ2351: =GI2351+SQRT('Исходные данные'!$F$30^2+(Чертёж!GH2351-Чертёж!GG2351)^2) -> 82 | GK2351: 60.32572249 | GL2351: 60.32572249 | GM2351: 0 | GN2351: =IF(GX2379<$HN$2320,0,1) -> 1 | GW2351: Основание | GX2351: =IF(GX2350>GX$2310,GX2350,HF2350-(HF2350-HF2348)/5) -> 873.2727619 | GY2351: 461.875 | HC2351: 1 | HD2351: 811 | HE2351: 232.875 | HF2351: =HF2350 -> 873.2727619 | HG2351: 461.875
FW2352: =IF(GH2352-GG2352=0,90,DEGREES(ATAN('Исходные данные'!$F$30/(GH2352-GG2352)))) -> 90 | FX2352: 515.2211952 | FY2352: 0.1315685216 | FZ2352: 47.36466779 | GA2352: 515.2211952 | GB2352: 0.1315685216 | GC2352: 47.36466779 | GD2352: 0 | GE2352: 0 | GF2352: 35 | GG2352: =$GX$2312-GX2380 -> 0 | GH2352: =$GX$2313-GX2381 -> 0 | GI2352: ='Исходные данные'!$F$32/2/SIN(RADIANS(FW2352)) -> 82 | GJ2352: =GI2352+SQRT('Исходные данные'!$F$30^2+(Чертёж!GH2352-Чертёж!GG2352)^2) -> 82 | GK2352: 60.32572249 | GL2352: 60.32572249 | GM2352: 0 | GN2352: =IF(GX2381<$HN$2320,0,1) -> 1 | GU2352: 21 | GW2352: Вершина | GX2352: =GX$2307-(GX$2307-GX$2310-(HF2350-GX$2310)*GX$2309/GX$2308) -> 873.2727619 | GY2352: 461.875 | GZ2352: 21 | HC2352: 1 | HD2352: 863 | HE2352: 297.875 | HF2352: =GX2307-((GX2307-GX2310-(HF2350-GX2310)*GX2309/GX2308)*('Исходные данные'!F32+'Исходные данные'!F30)/'Исходные данные'!F32) -> 873.2727619 | HG2352: 461.875
FW2353: =IF(GH2353-GG2353=0,90,DEGREES(ATAN('Исходные данные'!$F$30/(GH2353-GG2353)))) -> 90 | FX2353: 515.2211952 | FY2353: 0.1315685216 | FZ2353: 47.36466779 | GA2353: 515.2211952 | GB2353: 0.1315685216 | GC2353: 47.36466779 | GD2353: 0 | GE2353: 0 | GF2353: 36 | GG2353: =$GX$2312-GX2382 -> 0 | GH2353: =$GX$2313-GX2383 -> 0 | GI2353: ='Исходные данные'!$F$32/2/SIN(RADIANS(FW2353)) -> 82 | GJ2353: =GI2353+SQRT('Исходные данные'!$F$30^2+(Чертёж!GH2353-Чертёж!GG2353)^2) -> 82 | GK2353: 60.32572249 | GL2353: 60.32572249 | GM2353: 0 | GN2353: =IF(GX2383<$HN$2320,0,1) -> 1 | GW2353: Основание | GX2353: =IF(GX2352>GX$2310,GX2352,HF2352-(HF2352-HF2350)/5) -> 873.2727619 | GY2353: 461.875 | HC2353: 1 | HD2353: 811 | HE2353: 232.875 | HF2353: =HF2352 -> 873.2727619 | HG2353: 461.875
FW2354: =IF(GH2354-GG2354=0,90,DEGREES(ATAN('Исходные данные'!$F$30/(GH2354-GG2354)))) -> 90 | FX2354: 515.2211952 | FY2354: 0.1315685216 | FZ2354: 47.36466779 | GA2354: 515.2211952 | GB2354: 0.1315685216 | GC2354: 47.36466779 | GD2354: 0 | GE2354: 0 | GF2354: 37 | GG2354: =$GX$2312-GX2384 -> 0 | GH2354: =$GX$2313-GX2385 -> 0 | GI2354: ='Исходные данные'!$F$32/2/SIN(RADIANS(FW2354)) -> 82 | GJ2354: =GI2354+SQRT('Исходные данные'!$F$30^2+(Чертёж!GH2354-Чертёж!GG2354)^2) -> 82 | GK2354: 60.32572249 | GL2354: 60.32572249 | GM2354: 0 | GN2354: =IF(GX2385<$HN$2320,0,1) -> 1 | GU2354: 22 | GW2354: Вершина | GX2354: =GX$2307-(GX$2307-GX$2310-(HF2352-GX$2310)*GX$2309/GX$2308) -> 873.2727619 | GY2354: 461.875 | GZ2354: 22 | HC2354: 1 | HD2354: 863 | HE2354: 297.875 | HF2354: =GX2307-((GX2307-GX2310-(HF2352-GX2310)*GX2309/GX2308)*('Исходные данные'!F32+'Исходные данные'!F30)/'Исходные данные'!F32) -> 873.2727619 | HG2354: 461.875
FW2355: =IF(GH2355-GG2355=0,90,DEGREES(ATAN('Исходные данные'!$F$30/(GH2355-GG2355)))) -> 90 | FX2355: 515.2211952 | FY2355: 0.1315685216 | FZ2355: 47.36466779 | GA2355: 515.2211952 | GB2355: 0.1315685216 | GC2355: 47.36466779 | GD2355: 0 | GE2355: 0 | GF2355: 38 | GG2355: =$GX$2312-GX2386 -> 0 | GH2355: =$GX$2313-GX2387 -> 0 | GI2355: ='Исходные данные'!$F$32/2/SIN(RADIANS(FW2355)) -> 82 | GJ2355: =GI2355+SQRT('Исходные данные'!$F$30^2+(Чертёж!GH2355-Чертёж!GG2355)^2) -> 82 | GK2355: 60.32572249 | GL2355: 60.32572249 | GM2355: 0 | GN2355: =IF(GX2387<$HN$2320,0,1) -> 1 | GW2355: Основание | GX2355: =IF(GX2354>GX$2310,GX2354,HF2354-(HF2354-HF2352)/5) -> 873.2727619 | GY2355: 461.875 | HC2355: 1 | HD2355: 811 | HE2355: 232.875 | HF2355: =HF2354 -> 873.2727619 | HG2355: 461.875
FW2356: =IF(GH2356-GG2356=0,90,DEGREES(ATAN('Исходные данные'!$F$30/(GH2356-GG2356)))) -> 90 | FX2356: 515.2211952 | FY2356: 0.1315685216 | FZ2356: 47.36466779 | GA2356: 515.2211952 | GB2356: 0.1315685216 | GC2356: 47.36466779 | GD2356: 0 | GE2356: 0 | GF2356: 39 | GG2356: =$GX$2312-GX2388 -> 0 | GH2356: =$GX$2313-GX2389 -> 0 | GI2356: ='Исходные данные'!$F$32/2/SIN(RADIANS(FW2356)) -> 82 | GJ2356: =GI2356+SQRT('Исходные данные'!$F$30^2+(Чертёж!GH2356-Чертёж!GG2356)^2) -> 82 | GK2356: 60.32572249 | GL2356: 60.32572249 | GM2356: 0 | GN2356: =IF(GX2389<$HN$2320,0,1) -> 1 | GU2356: 23 | GW2356: Вершина | GX2356: =GX$2307-(GX$2307-GX$2310-(HF2354-GX$2310)*GX$2309/GX$2308) -> 873.2727619 | GY2356: 461.875 | GZ2356: 23 | HC2356: 1 | HD2356: 863 | HE2356: 297.875 | HF2356: =GX2307-((GX2307-GX2310-(HF2354-GX2310)*GX2309/GX2308)*('Исходные данные'!F32+'Исходные данные'!F30)/'Исходные данные'!F32) -> 873.2727619 | HG2356: 461.875
FW2357: =IF(GH2357-GG2357=0,90,DEGREES(ATAN('Исходные данные'!$F$30/(GH2357-GG2357)))) -> 90 | FX2357: 515.2211952 | FY2357: 0.1315685216 | FZ2357: 47.36466779 | GA2357: 515.2211952 | GB2357: 0.1315685216 | GC2357: 47.36466779 | GD2357: 0 | GE2357: 0 | GF2357: 40 | GG2357: =$GX$2312-GX2390 -> 0 | GH2357: =$GX$2313-GX2391 -> 0 | GI2357: ='Исходные данные'!$F$32/2/SIN(RADIANS(FW2357)) -> 82 | GJ2357: =GI2357+SQRT('Исходные данные'!$F$30^2+(Чертёж!GH2357-Чертёж!GG2357)^2) -> 82 | GK2357: 60.32572249 | GL2357: 60.32572249 | GM2357: 0 | GN2357: =IF(GX2391<$HN$2320,0,1) -> 1 | GW2357: Основание | GX2357: =IF(GX2356>GX$2310,GX2356,HF2356-(HF2356-HF2354)/5) -> 873.2727619 | GY2357: 461.875 | HC2357: 1 | HD2357: 811 | HE2357: 232.875 | HF2357: =HF2356 -> 873.2727619 | HG2357: 461.875
FW2358: =IF(GH2358-GG2358=0,90,DEGREES(ATAN('Исходные данные'!$F$30/(GH2358-GG2358)))) -> 90 | FX2358: 515.2211952 | FY2358: 0.1315685216 | FZ2358: 47.36466779 | GA2358: 515.2211952 | GB2358: 0.1315685216 | GC2358: 47.36466779 | GD2358: 0 | GE2358: 0 | GF2358: 41 | GG2358: =$GX$2312-GX2392 -> 0 | GH2358: =$GX$2313-GX2393 -> 0 | GI2358: ='Исходные данные'!$F$32/2/SIN(RADIANS(FW2358)) -> 82 | GJ2358: =GI2358+SQRT('Исходные данные'!$F$30^2+(Чертёж!GH2358-Чертёж!GG2358)^2) -> 82 | GK2358: 60.32572249 | GL2358: 60.32572249 | GM2358: 0 | GN2358: =IF(GX2393<$HN$2320,0,1) -> 1 | GU2358: 24 | GW2358: Вершина | GX2358: =GX$2307-(GX$2307-GX$2310-(HF2356-GX$2310)*GX$2309/GX$2308) -> 873.2727619 | GY2358: 461.875 | GZ2358: 24 | HC2358: 1 | HD2358: 863 | HE2358: 297.875 | HF2358: =GX2307-((GX2307-GX2310-(HF2356-GX2310)*GX2309/GX2308)*('Исходные данные'!F32+'Исходные данные'!F30)/'Исходные данные'!F32) -> 873.2727619 | HG2358: 461.875
FW2359: =IF(GH2359-GG2359=0,90,DEGREES(ATAN('Исходные данные'!$F$30/(GH2359-GG2359)))) -> 90 | FX2359: 515.2211952 | FY2359: 0.1315685216 | FZ2359: 47.36466779 | GA2359: 515.2211952 | GB2359: 0.1315685216 | GC2359: 47.36466779 | GD2359: 0 | GE2359: 0 | GF2359: 42 | GG2359: =$GX$2312-GX2394 -> 0 | GH2359: =$GX$2313-GX2395 -> 0 | GI2359: ='Исходные данные'!$F$32/2/SIN(RADIANS(FW2359)) -> 82 | GJ2359: =GI2359+SQRT('Исходные данные'!$F$30^2+(Чертёж!GH2359-Чертёж!GG2359)^2) -> 82 | GK2359: 60.32572249 | GL2359: 60.32572249 | GM2359: 0 | GN2359: =IF(GX2395<$HN$2320,0,1) -> 1 | GW2359: Основание | GX2359: =IF(GX2358>GX$2310,GX2358,HF2358-(HF2358-HF2356)/5) -> 873.2727619 | GY2359: 461.875 | HC2359: 1 | HD2359: 811 | HE2359: 232.875 | HF2359: =HF2358 -> 873.2727619 | HG2359: 461.875
FW2360: =IF(GH2360-GG2360=0,90,DEGREES(ATAN('Исходные данные'!$F$30/(GH2360-GG2360)))) -> 90 | FX2360: 515.2211952 | FY2360: 0.1315685216 | FZ2360: 47.36466779 | GA2360: 515.2211952 | GB2360: 0.1315685216 | GC2360: 47.36466779 | GD2360: 0 | GE2360: 0 | GF2360: 43 | GG2360: =$GX$2312-GX2396 -> 0 | GH2360: =$GX$2313-GX2397 -> 0 | GI2360: ='Исходные данные'!$F$32/2/SIN(RADIANS(FW2360)) -> 82 | GJ2360: =GI2360+SQRT('Исходные данные'!$F$30^2+(Чертёж!GH2360-Чертёж!GG2360)^2) -> 82 | GK2360: 60.32572249 | GL2360: 60.32572249 | GM2360: 0 | GN2360: =IF(GX2397<$HN$2320,0,1) -> 1 | GU2360: 25 | GW2360: Вершина | GX2360: =GX$2307-(GX$2307-GX$2310-(HF2358-GX$2310)*GX$2309/GX$2308) -> 873.2727619 | GY2360: 461.875 | GZ2360: 25 | HC2360: 1 | HD2360: 863 | HE2360: 297.875 | HF2360: =GX2307-((GX2307-GX2310-(HF2358-GX2310)*GX2309/GX2308)*('Исходные данные'!F32+'Исходные данные'!F30)/'Исходные данные'!F32) -> 873.2727619 | HG2360: 461.875 | HL2360: Вид А-А
FW2361: =IF(GH2361-GG2361=0,90,DEGREES(ATAN('Исходные данные'!$F$30/(GH2361-GG2361)))) -> 90 | FX2361: 515.2211952 | FY2361: 0.1315685216 | FZ2361: 47.36466779 | GA2361: 515.2211952 | GB2361: 0.1315685216 | GC2361: 47.36466779 | GD2361: 0 | GE2361: 0 | GF2361: 44 | GG2361: =$GX$2312-GX2398 -> 0 | GH2361: =$GX$2313-GX2399 -> 0 | GI2361: ='Исходные данные'!$F$32/2/SIN(RADIANS(FW2361)) -> 82 | GJ2361: =GI2361+SQRT('Исходные данные'!$F$30^2+(Чертёж!GH2361-Чертёж!GG2361)^2) -> 82 | GK2361: 60.32572249 | GL2361: 60.32572249 | GM2361: 0 | GN2361: =IF(GX2399<$HN$2320,0,1) -> 1 | GW2361: Основание | GX2361: =IF(GX2360>GX$2310,GX2360,HF2360-(HF2360-HF2358)/5) -> 873.2727619 | GY2361: 461.875 | HC2361: 1 | HD2361: 811 | HE2361: 232.875 | HF2361: =HF2360 -> 873.2727619 | HG2361: 461.875 | HN2361: X | HO2361: Y | HP2361: Ширина | HQ2361: Высота
FW2362: =IF(GH2362-GG2362=0,90,DEGREES(ATAN('Исходные данные'!$F$30/(GH2362-GG2362)))) -> 90 | FX2362: 515.2211952 | FY2362: 0.1315685216 | FZ2362: 47.36466779 | GA2362: 515.2211952 | GB2362: 0.1315685216 | GC2362: 47.36466779 | GD2362: 0 | GE2362: 0 | GF2362: 45 | GG2362: =$GX$2312-GX2400 -> 0 | GH2362: =$GX$2313-GX2401 -> 0 | GI2362: ='Исходные данные'!$F$32/2/SIN(RADIANS(FW2362)) -> 82 | GJ2362: =GI2362+SQRT('Исходные данные'!$F$30^2+(Чертёж!GH2362-Чертёж!GG2362)^2) -> 82 | GK2362: 60.32572249 | GL2362: 60.32572249 | GM2362: 0 | GN2362: =IF(GX2405<$HN$2320,0,1) -> 1 | GU2362: 26 | GW2362: Вершина | GX2362: =GX$2307-(GX$2307-GX$2310-(HF2360-GX$2310)*GX$2309/GX$2308) -> 873.2727619 | GY2362: 461.875 | GZ2362: 26 | HC2362: 1 | HD2362: 863 | HE2362: 297.875 | HF2362: =GX2307-((GX2307-GX2310-(HF2360-GX2310)*GX2309/GX2308)*('Исходные данные'!F32+'Исходные данные'!F30)/'Исходные данные'!F32) -> 873.2727619 | HG2362: 461.875 | HL2362: Вид А-А (линия нижняя) | HN2362: =HN2342 -> 893 | HO2362: =HO2240 -> 524.875 | HP2362: 4 | HQ2362: 30
FW2363: =IF(GH2363-GG2363=0,90,DEGREES(ATAN('Исходные данные'!$F$30/(GH2363-GG2363)))) -> 90 | FX2363: 515.2211952 | FY2363: 0.1315685216 | FZ2363: 47.36466779 | GA2363: 515.2211952 | GB2363: 0.1315685216 | GC2363: 47.36466779 | GD2363: 0 | GE2363: 0 | GF2363: 46 | GG2363: =$GX$2312-GX2402 -> 0 | GH2363: =$GX$2313-GX2403 -> 0 | GI2363: ='Исходные данные'!$F$32/2/SIN(RADIANS(FW2363)) -> 82 | GJ2363: =GI2363+SQRT('Исходные данные'!$F$30^2+(Чертёж!GH2363-Чертёж!GG2363)^2) -> 82 | GK2363: 60.32572249 | GL2363: 60.32572249 | GM2363: 0 | GN2363: =IF(GX2407<$HN$2320,0,1) -> 1 | GW2363: Основание | GX2363: =IF(GX2362>GX$2310,GX2362,HF2362-(HF2362-HF2360)/5) -> 873.2727619 | GY2363: 461.875 | HC2363: 1 | HD2363: 811 | HE2363: 232.875 | HF2363: =HF2362 -> 873.2727619 | HG2363: 461.875 | HL2363: Вид А-А (линия верхняя) | HN2363: =HN2362 -> 893 | HO2363: =HO2253 -> 157.875 | HP2363: 4 | HQ2363: 30
FW2364: =IF(GH2364-GG2364=0,90,DEGREES(ATAN('Исходные данные'!$F$30/(GH2364-GG2364)))) -> 90 | FX2364: 515.2211952 | FY2364: 0.1315685216 | FZ2364: 47.36466779 | GA2364: 515.2211952 | GB2364: 0.1315685216 | GC2364: 47.36466779 | GD2364: 0 | GE2364: 0 | GF2364: 47 | GG2364: =$GX$2312-GX2404 -> 0 | GH2364: =$GX$2313-GX2405 -> 0 | GI2364: ='Исходные данные'!$F$32/2/SIN(RADIANS(FW2364)) -> 82 | GJ2364: =GI2364+SQRT('Исходные данные'!$F$30^2+(Чертёж!GH2364-Чертёж!GG2364)^2) -> 82 | GK2364: 60.32572249 | GL2364: 60.32572249 | GM2364: 0 | GN2364: =IF(GX2409<$HN$2320,0,1) -> 1 | GU2364: 27 | GW2364: Вершина | GX2364: =GX$2307-(GX$2307-GX$2310-(HF2362-GX$2310)*GX$2309/GX$2308) -> 873.2727619 | GY2364: 461.875 | GZ2364: 27 | HC2364: 1 | HD2364: 863 | HE2364: 297.875 | HF2364: =GX2307-((GX2307-GX2310-(HF2362-GX2310)*GX2309/GX2308)*('Исходные данные'!F32+'Исходные данные'!F30)/'Исходные данные'!F32) -> 873.2727619 | HG2364: 461.875 | HL2364: Стрелка (нижняя) | HN2364: =HN2362+HP2362 -> 897 | HO2364: =HO2362+15 -> 539.875 | HP2364: =HN2364+30+HP2362 -> 931 | HQ2364: =HO2364 -> 539.875
FW2365: =IF(GH2365-GG2365=0,90,DEGREES(ATAN('Исходные данные'!$F$30/(GH2365-GG2365)))) -> 90 | FX2365: 515.2211952 | FY2365: 0.1315685216 | FZ2365: 47.36466779 | GA2365: 515.2211952 | GB2365: 0.1315685216 | GC2365: 47.36466779 | GD2365: 0 | GE2365: 0 | GF2365: 48 | GG2365: =$GX$2312-GX2406 -> 0 | GH2365: =$GX$2313-GX2407 -> 0 | GI2365: ='Исходные данные'!$F$32/2/SIN(RADIANS(FW2365)) -> 82 | GJ2365: =GI2365+SQRT('Исходные данные'!$F$30^2+(Чертёж!GH2365-Чертёж!GG2365)^2) -> 82 | GK2365: 60.32572249 | GL2365: 60.32572249 | GM2365: 0 | GN2365: =IF(GX2411<$HN$2320,0,1) -> 1 | GW2365: Основание | GX2365: =IF(GX2364>GX$2310,GX2364,HF2364-(HF2364-HF2362)/5) -> 873.2727619 | GY2365: 461.875 | HC2365: 1 | HD2365: 811 | HE2365: 232.875 | HF2365: =HF2364 -> 873.2727619 | HG2365: 461.875 | HL2365: Стрелка (верхняя) | HN2365: =HN2363+HP2363 -> 897 | HO2365: =HO2363+15 -> 172.875 | HP2365: =HN2365+30+HP2363 -> 931 | HQ2365: =HO2365 -> 172.875
FW2366: =IF(GH2366-GG2366=0,90,DEGREES(ATAN('Исходные данные'!$F$30/(GH2366-GG2366)))) -> 90 | FX2366: 515.2211952 | FY2366: 0.1315685216 | FZ2366: 47.36466779 | GA2366: 515.2211952 | GB2366: 0.1315685216 | GC2366: 47.36466779 | GD2366: 0 | GE2366: 0 | GF2366: 49 | GG2366: =$GX$2312-GX2408 -> 0 | GH2366: =$GX$2313-GX2409 -> 0 | GI2366: ='Исходные данные'!$F$32/2/SIN(RADIANS(FW2366)) -> 82 | GJ2366: =GI2366+SQRT('Исходные данные'!$F$30^2+(Чертёж!GH2366-Чертёж!GG2366)^2) -> 82 | GK2366: 60.32572249 | GL2366: 60.32572249 | GM2366: 0 | GN2366: =IF(GX2413<$HN$2320,0,1) -> 1 | GU2366: 28 | GW2366: Вершина | GX2366: =GX$2307-(GX$2307-GX$2310-(HF2364-GX$2310)*GX$2309/GX$2308) -> 873.2727619 | GY2366: 461.875 | GZ2366: 28 | HC2366: 1 | HD2366: 863 | HE2366: 297.875 | HF2366: =GX2307-((GX2307-GX2310-(HF2364-GX2310)*GX2309/GX2308)*('Исходные данные'!F32+'Исходные данные'!F30)/'Исходные данные'!F32) -> 873.2727619 | HG2366: 461.875 | HL2366: Буква А нижняя | HN2366: =HN2365 -> 897 | HO2366: =HQ2364-40 -> 499.875 | HP2366: 40 | HQ2366: 100 | HR2366: А
FW2367: =IF(GH2367-GG2367=0,90,DEGREES(ATAN('Исходные данные'!$F$30/(GH2367-GG2367)))) -> 90 | FX2367: 515.2211952 | FY2367: 0.1315685216 | FZ2367: 47.36466779 | GA2367: 515.2211952 | GB2367: 0.1315685216 | GC2367: 47.36466779 | GD2367: 0 | GE2367: 0 | GF2367: 50 | GG2367: =$GX$2312-GX2410 -> 0 | GH2367: =$GX$2313-GX2411 -> 0 | GI2367: ='Исходные данные'!$F$32/2/SIN(RADIANS(FW2367)) -> 82 | GJ2367: =GI2367+SQRT('Исходные данные'!$F$30^2+(Чертёж!GH2367-Чертёж!GG2367)^2) -> 82 | GK2367: 60.32572249 | GL2367: 60.32572249 | GM2367: 0 | GN2367: =IF(GX2415<$HN$2320,0,1) -> 1 | GW2367: Основание | GX2367: =IF(GX2366>GX$2310,GX2366,HF2366-(HF2366-HF2364)/5) -> 873.2727619 | GY2367: 461.875 | HC2367: 1 | HD2367: 811 | HE2367: 232.875 | HF2367: =HF2366 -> 873.2727619 | HG2367: 461.875 | HL2367: Буква А верхняя | HN2367: =HN2366 -> 897 | HO2367: =HQ2365-40 -> 132.875 | HP2367: 40 | HQ2367: 100 | HR2367: А
FW2368: =IF(GH2368-GG2368=0,90,DEGREES(ATAN('Исходные данные'!$F$30/(GH2368-GG2368)))) -> 90 | FX2368: 515.2211952 | FY2368: 0.1315685216 | FZ2368: 47.36466779 | GA2368: 515.2211952 | GB2368: 0.1315685216 | GC2368: 47.36466779 | GD2368: 0 | GE2368: 0 | GF2368: 51 | GG2368: =$GX$2312-GX2412 -> 0 | GH2368: =$GX$2313-GX2413 -> 0 | GI2368: ='Исходные данные'!$F$32/2/SIN(RADIANS(FW2368)) -> 82 | GJ2368: =GI2368+SQRT('Исходные данные'!$F$30^2+(Чертёж!GH2368-Чертёж!GG2368)^2) -> 82 | GK2368: 60.32572249 | GL2368: 60.32572249 | GM2368: 0 | GN2368: =IF(GX2417<$HN$2320,0,1) -> 1 | GU2368: 29 | GW2368: Вершина | GX2368: =GX$2307-(GX$2307-GX$2310-(HF2366-GX$2310)*GX$2309/GX$2308) -> 873.2727619 | GY2368: 461.875 | GZ2368: 29 | HC2368: 1 | HD2368: 863 | HE2368: 297.875 | HF2368: =GX2307-((GX2307-GX2310-(HF2366-GX2310)*GX2309/GX2308)*('Исходные данные'!F32+'Исходные данные'!F30)/'Исходные данные'!F32) -> 873.2727619 | HG2368: 461.875
FW2369: =IF(GH2369-GG2369=0,90,DEGREES(ATAN('Исходные данные'!$F$30/(GH2369-GG2369)))) -> 90 | FX2369: 515.2211952 | FY2369: 0.1315685216 | FZ2369: 47.36466779 | GA2369: 515.2211952 | GB2369: 0.1315685216 | GC2369: 47.36466779 | GD2369: 0 | GE2369: 0 | GF2369: 52 | GG2369: =$GX$2312-GX2414 -> 0 | GH2369: =$GX$2313-GX2415 -> 0 | GI2369: ='Исходные данные'!$F$32/2/SIN(RADIANS(FW2369)) -> 82 | GJ2369: =GI2369+SQRT('Исходные данные'!$F$30^2+(Чертёж!GH2369-Чертёж!GG2369)^2) -> 82 | GK2369: 60.32572249 | GL2369: 60.32572249 | GM2369: 0 | GN2369: =IF(GX2419<$HN$2320,0,1) -> 1 | GW2369: Основание | GX2369: =IF(GX2368>GX$2310,GX2368,HF2368-(HF2368-HF2366)/5) -> 873.2727619 | GY2369: 461.875 | HC2369: 1 | HD2369: 811 | HE2369: 232.875 | HF2369: =HF2368 -> 873.2727619 | HG2369: 461.875
FW2370: =IF(GH2370-GG2370=0,90,DEGREES(ATAN('Исходные данные'!$F$30/(GH2370-GG2370)))) -> 90 | FX2370: 515.2211952 | FY2370: 0.1315685216 | FZ2370: 47.36466779 | GA2370: 515.2211952 | GB2370: 0.1315685216 | GC2370: 47.36466779 | GD2370: 0 | GE2370: 0 | GF2370: 53 | GG2370: =$GX$2312-GX2416 -> 0 | GH2370: =$GX$2313-GX2417 -> 0 | GI2370: ='Исходные данные'!$F$32/2/SIN(RADIANS(FW2370)) -> 82 | GJ2370: =GI2370+SQRT('Исходные данные'!$F$30^2+(Чертёж!GH2370-Чертёж!GG2370)^2) -> 82 | GK2370: 60.32572249 | GL2370: 60.32572249 | GM2370: 0 | GN2370: =IF(GX2421<$HN$2320,0,1) -> 1 | GU2370: 30 | GW2370: Вершина | GX2370: =GX$2307-(GX$2307-GX$2310-(HF2368-GX$2310)*GX$2309/GX$2308) -> 873.2727619 | GY2370: 461.875 | GZ2370: 30 | HC2370: 1 | HD2370: 863 | HE2370: 297.875 | HF2370: =GX2307-((GX2307-GX2310-(HF2368-GX2310)*GX2309/GX2308)*('Исходные данные'!F32+'Исходные данные'!F30)/'Исходные данные'!F32) -> 873.2727619 | HG2370: 461.875 | HL2370: Координаты фокусеров и окуляров | HM2370: x | HN2370: y
FW2371: =IF(GH2371-GG2371=0,90,DEGREES(ATAN('Исходные данные'!$F$30/(GH2371-GG2371)))) -> 90 | FX2371: 515.2211952 | FY2371: 0.1315685216 | FZ2371: 47.36466779 | GA2371: 515.2211952 | GB2371: 0.1315685216 | GC2371: 47.36466779 | GD2371: 0 | GE2371: 0 | GF2371: 54 | GG2371: =$GX$2312-GX2418 -> 0 | GH2371: =$GX$2313-GX2419 -> 0 | GI2371: ='Исходные данные'!$F$32/2/SIN(RADIANS(FW2371)) -> 82 | GJ2371: =GI2371+SQRT('Исходные данные'!$F$30^2+(Чертёж!GH2371-Чертёж!GG2371)^2) -> 82 | GK2371: 60.32572249 | GL2371: 60.32572249 | GM2371: 0 | GN2371: =IF(GX2423<$HN$2320,0,1) -> 1 | GW2371: Основание | GX2371: =IF(GX2370>GX$2310,GX2370,HF2370-(HF2370-HF2368)/5) -> 873.2727619 | GY2371: 461.875 | HC2371: 1 | HD2371: 811 | HE2371: 232.875 | HF2371: =HF2370 -> 873.2727619 | HG2371: 461.875 | HL2371: Фокусер GSO | HM2371: =HP2215-77.4307874016+1.2766141732-0.32+0.6818110236 -> 727.2076378 | HN2371: =HO2218-73.9772440945-13.4043307087+2.3077165354+0.1 -> 207.9011417
FW2372: =IF(GH2372-GG2372=0,90,DEGREES(ATAN('Исходные данные'!$F$30/(GH2372-GG2372)))) -> 90 | FX2372: 515.2211952 | FY2372: 0.1315685216 | FZ2372: 47.36466779 | GA2372: 515.2211952 | GB2372: 0.1315685216 | GC2372: 47.36466779 | GD2372: 0 | GE2372: 0 | GF2372: 55 | GG2372: =$GX$2312-GX2420 -> 0 | GH2372: =$GX$2313-GX2421 -> 0 | GI2372: ='Исходные данные'!$F$32/2/SIN(RADIANS(FW2372)) -> 82 | GJ2372: =GI2372+SQRT('Исходные данные'!$F$30^2+(Чертёж!GH2372-Чертёж!GG2372)^2) -> 82 | GK2372: 60.32572249 | GL2372: 60.32572249 | GM2372: 0 | GN2372: =IF(GX2425<$HN$2320,0,1) -> 1 | GU2372: 31 | GW2372: Вершина | GX2372: =GX$2307-(GX$2307-GX$2310-(HF2370-GX$2310)*GX$2309/GX$2308) -> 873.2727619 | GY2372: 461.875 | GZ2372: 31 | HC2372: 1 | HD2372: 863 | HE2372: 297.875 | HF2372: =GX2307-((GX2307-GX2310-(HF2370-GX2310)*GX2309/GX2308)*('Исходные данные'!F32+'Исходные данные'!F30)/'Исходные данные'!F32) -> 873.2727619 | HG2372: 461.875 | HL2372: Фокусер GSO низкопрофильный | HM2372: =HP2215-77.4307874016+1.2766141732-0.32 -> 726.5258268 | HN2372: =HO2218-73.9772440945-13.4043307087+2.3077165354+0.1+18.2-2.3863779528 -> 223.7147638
FW2373: =IF(GH2373-GG2373=0,90,DEGREES(ATAN('Исходные данные'!$F$30/(GH2373-GG2373)))) -> 90 | FX2373: 515.2211952 | FY2373: 0.1315685216 | FZ2373: 47.36466779 | GA2373: 515.2211952 | GB2373: 0.1315685216 | GC2373: 47.36466779 | GD2373: 0 | GE2373: 0 | GF2373: 56 | GG2373: =$GX$2312-GX2422 -> 0 | GH2373: =$GX$2313-GX2423 -> 0 | GI2373: ='Исходные данные'!$F$32/2/SIN(RADIANS(FW2373)) -> 82 | GJ2373: =GI2373+SQRT('Исходные данные'!$F$30^2+(Чертёж!GH2373-Чертёж!GG2373)^2) -> 82 | GK2373: 60.32572249 | GL2373: 60.32572249 | GM2373: 0 | GN2373: =IF(GX2427<$HN$2320,0,1) -> 1 | GW2373: Основание | GX2373: =IF(GX2372>GX$2310,GX2372,HF2372-(HF2372-HF2370)/5) -> 873.2727619 | GY2373: 461.875 | HC2373: 1 | HD2373: 811 | HE2373: 232.875 | HF2373: =HF2372 -> 873.2727619 | HG2373: 461.875
FW2374: =IF(GH2374-GG2374=0,90,DEGREES(ATAN('Исходные данные'!$F$30/(GH2374-GG2374)))) -> 90 | FX2374: 515.2211952 | FY2374: 0.1315685216 | FZ2374: 47.36466779 | GA2374: 515.2211952 | GB2374: 0.1315685216 | GC2374: 47.36466779 | GD2374: 0 | GE2374: 0 | GF2374: 57 | GG2374: =$GX$2312-GX2424 -> 0 | GH2374: =$GX$2313-GX2425 -> 0 | GI2374: ='Исходные данные'!$F$32/2/SIN(RADIANS(FW2374)) -> 82 | GJ2374: =GI2374+SQRT('Исходные данные'!$F$30^2+(Чертёж!GH2374-Чертёж!GG2374)^2) -> 82 | GK2374: 60.32572249 | GL2374: 60.32572249 | GM2374: 0 | GN2374: =IF(GX2429<$HN$2320,0,1) -> 1 | GU2374: 32 | GW2374: Вершина | GX2374: =GX$2307-(GX$2307-GX$2310-(HF2372-GX$2310)*GX$2309/GX$2308) -> 873.2727619 | GY2374: 461.875 | GZ2374: 32 | HC2374: 1 | HD2374: 863 | HE2374: 297.875 | HF2374: =GX2307-((GX2307-GX2310-(HF2372-GX2310)*GX2309/GX2308)*('Исходные данные'!F32+'Исходные данные'!F30)/'Исходные данные'!F32) -> 873.2727619 | HG2374: 461.875
FW2375: =IF(GH2375-GG2375=0,90,DEGREES(ATAN('Исходные данные'!$F$30/(GH2375-GG2375)))) -> 90 | FX2375: 515.2211952 | FY2375: 0.1315685216 | FZ2375: 47.36466779 | GA2375: 515.2211952 | GB2375: 0.1315685216 | GC2375: 47.36466779 | GD2375: 0 | GE2375: 0 | GF2375: 58 | GG2375: =$GX$2312-GX2426 -> 0 | GH2375: =$GX$2313-GX2427 -> 0 | GI2375: ='Исходные данные'!$F$32/2/SIN(RADIANS(FW2375)) -> 82 | GJ2375: =GI2375+SQRT('Исходные данные'!$F$30^2+(Чертёж!GH2375-Чертёж!GG2375)^2) -> 82 | GK2375: 60.32572249 | GL2375: 60.32572249 | GM2375: 0 | GN2375: =IF(GX2431<$HN$2320,0,1) -> 1 | GW2375: Основание | GX2375: =IF(GX2374>GX$2310,GX2374,HF2374-(HF2374-HF2372)/5) -> 873.2727619 | GY2375: 461.875 | HC2375: 1 | HD2375: 811 | HE2375: 232.875 | HF2375: =HF2374 -> 873.2727619 | HG2375: 461.875
FW2376: =IF(GH2376-GG2376=0,90,DEGREES(ATAN('Исходные данные'!$F$30/(GH2376-GG2376)))) -> 90 | FX2376: 515.2211952 | FY2376: 0.1315685216 | FZ2376: 47.36466779 | GA2376: 515.2211952 | GB2376: 0.1315685216 | GC2376: 47.36466779 | GD2376: 0 | GE2376: 0 | GF2376: 59 | GG2376: =$GX$2312-GX2428 -> 0 | GH2376: =$GX$2313-GX2429 -> 0 | GI2376: ='Исходные данные'!$F$32/2/SIN(RADIANS(FW2376)) -> 82 | GJ2376: =GI2376+SQRT('Исходные данные'!$F$30^2+(Чертёж!GH2376-Чертёж!GG2376)^2) -> 82 | GK2376: 60.32572249 | GL2376: 60.32572249 | GM2376: 0 | GN2376: =IF(GX2433<$HN$2320,0,1) -> 1 | GU2376: 33 | GW2376: Вершина | GX2376: =GX$2307-(GX$2307-GX$2310-(HF2374-GX$2310)*GX$2309/GX$2308) -> 873.2727619 | GY2376: 461.875 | GZ2376: 33 | HC2376: 1 | HD2376: 863 | HE2376: 297.875 | HF2376: =GX2307-((GX2307-GX2310-(HF2374-GX2310)*GX2309/GX2308)*('Исходные данные'!F32+'Исходные данные'!F30)/'Исходные данные'!F32) -> 873.2727619 | HG2376: 461.875
FW2377: =IF(GH2377-GG2377=0,90,DEGREES(ATAN('Исходные данные'!$F$30/(GH2377-GG2377)))) -> 90 | FX2377: 515.2211952 | FY2377: 0.1315685216 | FZ2377: 47.36466779 | GA2377: 515.2211952 | GB2377: 0.1315685216 | GC2377: 47.36466779 | GD2377: 0 | GE2377: 0 | GF2377: 60 | GG2377: =$GX$2312-GX2430 -> 0 | GH2377: =$GX$2313-GX2431 -> 0 | GI2377: ='Исходные данные'!$F$32/2/SIN(RADIANS(FW2377)) -> 82 | GJ2377: =GI2377+SQRT('Исходные данные'!$F$30^2+(Чертёж!GH2377-Чертёж!GG2377)^2) -> 82 | GK2377: 60.32572249 | GL2377: 60.32572249 | GM2377: 0 | GN2377: =IF(GX2435<$HN$2320,0,1) -> 1 | GW2377: Основание | GX2377: =IF(GX2376>GX$2310,GX2376,HF2376-(HF2376-HF2374)/5) -> 873.2727619 | GY2377: 461.875 | HC2377: =IF(HF2377>=$HD$2309,1,0) -> 1 | HD2377: 811 | HE2377: 232.875 | HF2377: =HF2376 -> 873.2727619 | HG2377: 461.875
FW2378: =IF(GH2378-GG2378=0,90,DEGREES(ATAN('Исходные данные'!$F$30/(GH2378-GG2378)))) -> 90 | FX2378: 515.2211952 | FY2378: 0.1315685216 | FZ2378: 47.36466779 | GA2378: 515.2211952 | GB2378: 0.1315685216 | GC2378: 47.36466779 | GD2378: 0 | GE2378: 0 | GF2378: 61 | GG2378: =$GX$2312-GX2432 -> 0 | GH2378: =$GX$2313-GX2433 -> 0 | GI2378: ='Исходные данные'!$F$32/2/SIN(RADIANS(FW2378)) -> 82 | GJ2378: =GI2378+SQRT('Исходные данные'!$F$30^2+(Чертёж!GH2378-Чертёж!GG2378)^2) -> 82 | GK2378: 60.32572249 | GL2378: 60.32572249 | GM2378: 0 | GN2378: =IF(GX2437<$HN$2320,0,1) -> 1 | GU2378: 34 | GW2378: Вершина | GX2378: =GX$2307-(GX$2307-GX$2310-(HF2376-GX$2310)*GX$2309/GX$2308) -> 873.2727619 | GY2378: 461.875 | GZ2378: 34 | HC2378: 1 | HD2378: 863 | HE2378: 297.875 | HF2378: =GX2307-((GX2307-GX2310-(HF2376-GX2310)*GX2309/GX2308)*('Исходные данные'!F32+'Исходные данные'!F30)/'Исходные данные'!F32) -> 873.2727619 | HG2378: 461.875
FW2379: =IF(GH2379-GG2379=0,90,DEGREES(ATAN('Исходные данные'!$F$30/(GH2379-GG2379)))) -> 90 | FX2379: 515.2211952 | FY2379: 0.1315685216 | FZ2379: 47.36466779 | GA2379: 515.2211952 | GB2379: 0.1315685216 | GC2379: 47.36466779 | GD2379: 0 | GE2379: 0 | GF2379: 62 | GG2379: =$GX$2312-GX2434 -> 0 | GH2379: =$GX$2313-GX2435 -> 0 | GI2379: ='Исходные данные'!$F$32/2/SIN(RADIANS(FW2379)) -> 82 | GJ2379: =GI2379+SQRT('Исходные данные'!$F$30^2+(Чертёж!GH2379-Чертёж!GG2379)^2) -> 82 | GK2379: 60.32572249 | GL2379: 60.32572249 | GM2379: 0 | GN2379: =IF(GX2439<$HN$2320,0,1) -> 1 | GW2379: Основание | GX2379: =IF(GX2378>GX$2310,GX2378,HF2378-(HF2378-HF2376)/5) -> 873.2727619 | GY2379: 461.875 | HC2379: 1 | HD2379: 811 | HE2379: 232.875 | HF2379: =HF2378 -> 873.2727619 | HG2379: 461.875
FW2380: =IF(GH2380-GG2380=0,90,DEGREES(ATAN('Исходные данные'!$F$30/(GH2380-GG2380)))) -> 90 | FX2380: 515.2211952 | FY2380: 0.1315685216 | FZ2380: 47.36466779 | GA2380: 515.2211952 | GB2380: 0.1315685216 | GC2380: 47.36466779 | GD2380: 0 | GE2380: 0 | GF2380: 63 | GG2380: =$GX$2312-GX2436 -> 0 | GH2380: =$GX$2313-GX2437 -> 0 | GI2380: ='Исходные данные'!$F$32/2/SIN(RADIANS(FW2380)) -> 82 | GJ2380: =GI2380+SQRT('Исходные данные'!$F$30^2+(Чертёж!GH2380-Чертёж!GG2380)^2) -> 82 | GK2380: 60.32572249 | GL2380: 60.32572249 | GM2380: 0 | GN2380: =IF(GX2441<$HN$2320,0,1) -> 1 | GU2380: 35 | GW2380: Вершина | GX2380: =GX$2307-(GX$2307-GX$2310-(HF2378-GX$2310)*GX$2309/GX$2308) -> 873.2727619 | GY2380: =GY2378 -> 461.875 | GZ2380: 35 | HC2380: 1 | HD2380: 863 | HE2380: 297.875 | HF2380: =GX2307-((GX2307-GX2310-(HF2378-GX2310)*GX2309/GX2308)*('Исходные данные'!F32+'Исходные данные'!F30)/'Исходные данные'!F32) -> 873.2727619 | HG2380: =HG2379 -> 461.875
FW2381: =IF(GH2381-GG2381=0,90,DEGREES(ATAN('Исходные данные'!$F$30/(GH2381-GG2381)))) -> 90 | FX2381: 515.2211952 | FY2381: 0.1315685216 | FZ2381: 47.36466779 | GA2381: 515.2211952 | GB2381: 0.1315685216 | GC2381: 47.36466779 | GD2381: 0 | GE2381: 0 | GF2381: 64 | GG2381: =$GX$2312-GX2438 -> 0 | GH2381: =$GX$2313-GX2439 -> 0 | GI2381: ='Исходные данные'!$F$32/2/SIN(RADIANS(FW2381)) -> 82 | GJ2381: =GI2381+SQRT('Исходные данные'!$F$30^2+(Чертёж!GH2381-Чертёж!GG2381)^2) -> 82 | GK2381: 60.32572249 | GL2381: 60.32572249 | GM2381: 0 | GN2381: =IF(GX2443<$HN$2320,0,1) -> 1 | GW2381: Основание | GX2381: =IF(GX2380>GX$2310,GX2380,HF2380-(HF2380-HF2378)/5) -> 873.2727619 | GY2381: 461.875 | HC2381: 1 | HD2381: 811 | HE2381: 232.875 | HF2381: =HF2380 -> 873.2727619 | HG2381: 461.875
FW2382: =IF(GH2382-GG2382=0,90,DEGREES(ATAN('Исходные данные'!$F$30/(GH2382-GG2382)))) -> 90 | FX2382: 515.2211952 | FY2382: 0.1315685216 | FZ2382: 47.36466779 | GA2382: 515.2211952 | GB2382: 0.1315685216 | GC2382: 47.36466779 | GD2382: 0 | GE2382: 0 | GF2382: 65 | GG2382: =$GX$2312-GX2440 -> 0 | GH2382: =$GX$2313-GX2441 -> 0 | GI2382: ='Исходные данные'!$F$32/2/SIN(RADIANS(FW2382)) -> 82 | GJ2382: =GI2382+SQRT('Исходные данные'!$F$30^2+(Чертёж!GH2382-Чертёж!GG2382)^2) -> 82 | GK2382: 60.32572249 | GL2382: 60.32572249 | GM2382: 0 | GN2382: =IF(GX2445<$HN$2320,0,1) -> 1 | GU2382: 36 | GW2382: Вершина | GX2382: =GX$2307-(GX$2307-GX$2310-(HF2380-GX$2310)*GX$2309/GX$2308) -> 873.2727619 | GY2382: 461.875 | GZ2382: 36 | HC2382: 1 | HD2382: 863 | HE2382: 297.875 | HF2382: =GX2307-((GX2307-GX2310-(HF2380-GX2310)*GX2309/GX2308)*('Исходные данные'!F32+'Исходные данные'!F30)/'Исходные данные'!F32) -> 873.2727619 | HG2382: 461.875
FW2383: =IF(GH2383-GG2383=0,90,DEGREES(ATAN('Исходные данные'!$F$30/(GH2383-GG2383)))) -> 90 | FX2383: =2*PI()*GI2383 -> 515.2211952 | FY2383: =$GG$2312/FX2383 -> 0.1315685216 | FZ2383: =360*FY2383 -> 47.36466779 | GA2383: =2*PI()*GJ2383 -> 515.2211952 | GB2383: =$GG$2313/GA2383 -> 0.1315685216 | GC2383: =360*GB2383 -> 47.36466779 | GD2383: 0 | GE2383: 0 | GF2383: 66 | GG2383: =$GX$2312-GX2442 -> 0 | GH2383: =$GX$2313-GX2443 -> 0 | GI2383: ='Исходные данные'!$F$32/2/SIN(RADIANS(FW2383)) -> 82 | GJ2383: =GI2383+SQRT('Исходные данные'!$F$30^2+(Чертёж!GH2383-Чертёж!GG2383)^2) -> 82 | GK2383: 60.32572249 | GL2383: =GJ2383*SIN(RADIANS(GC2383)) -> 60.32572249 | GM2383: =GJ2383-GI2383 -> 0 | GN2383: =IF(GX2447<$HN$2320,0,1) -> 1 | GW2383: Основание | GX2383: =IF(GX2382>GX$2310,GX2382,HF2382-(HF2382-HF2380)/5) -> 873.2727619 | GY2383: 461.875 | HC2383: 1 | HD2383: 811 | HE2383: 232.875 | HF2383: =HF2382 -> 873.2727619 | HG2383: 461.875
FW2384: =IF(GH2384-GG2384=0,90,DEGREES(ATAN('Исходные данные'!$F$30/(GH2384-GG2384)))) -> 90 | FX2384: 515.2211952 | FY2384: 0.1315685216 | FZ2384: 47.36466779 | GA2384: 515.2211952 | GB2384: 0.1315685216 | GC2384: 47.36466779 | GD2384: =GH2384-GH2383 -> 0 | GE2384: 0 | GF2384: 67 | GG2384: =$GX$2312-GX2444 -> 0 | GH2384: =$GX$2313-GX2445 -> 0 | GI2384: ='Исходные данные'!$F$32/2/SIN(RADIANS(FW2384)) -> 82 | GJ2384: =GI2384+SQRT('Исходные данные'!$F$30^2+(Чертёж!GH2384-Чертёж!GG2384)^2) -> 82 | GK2384: 60.32572249 | GL2384: 60.32572249 | GM2384: 0 | GN2384: =IF(GX2449<$HN$2320,0,1) -> 1 | GU2384: 37 | GW2384: Вершина | GX2384: =GX$2307-(GX$2307-GX$2310-(HF2382-GX$2310)*GX$2309/GX$2308) -> 873.2727619 | GY2384: 461.875 | GZ2384: 37 | HC2384: 1 | HD2384: 863 | HE2384: 297.875 | HF2384: =GX2307-((GX2307-GX2310-(HF2382-GX2310)*GX2309/GX2308)*('Исходные данные'!F32+'Исходные данные'!F30)/'Исходные данные'!F32) -> 873.2727619 | HG2384: 461.875
FW2385: =IF(GH2385-GG2385=0,90,DEGREES(ATAN('Исходные данные'!$F$30/(GH2385-GG2385)))) -> 90 | FX2385: 515.2211952 | FY2385: 0.1315685216 | FZ2385: 47.36466779 | GA2385: 515.2211952 | GB2385: 0.1315685216 | GC2385: 47.36466779 | GD2385: 0 | GE2385: =GG2385-GG2384 -> 0 | GF2385: 68 | GG2385: =$GX$2312-GX2446 -> 0 | GH2385: =$GX$2313-GX2447 -> 0 | GI2385: ='Исходные данные'!$F$32/2/SIN(RADIANS(FW2385)) -> 82 | GJ2385: =GI2385+SQRT('Исходные данные'!$F$30^2+(Чертёж!GH2385-Чертёж!GG2385)^2) -> 82 | GK2385: 60.32572249 | GL2385: 60.32572249 | GM2385: 0 | GN2385: =IF(GX2451<$HN$2320,0,1) -> 1 | GW2385: Основание | GX2385: =IF(GX2384>GX$2310,GX2384,HF2384-(HF2384-HF2382)/5) -> 873.2727619 | GY2385: 461.875 | HC2385: 1 | HD2385: 811 | HE2385: 232.875 | HF2385: =HF2384 -> 873.2727619 | HG2385: 461.875
FW2386: =IF(GH2386-GG2386=0,90,DEGREES(ATAN('Исходные данные'!$F$30/(GH2386-GG2386)))) -> 90 | FX2386: 515.2211952 | FY2386: 0.1315685216 | FZ2386: 47.36466779 | GA2386: 515.2211952 | GB2386: 0.1315685216 | GC2386: 47.36466779 | GD2386: 0 | GE2386: 0 | GF2386: 69 | GG2386: =$GX$2312-GX2448 -> 0 | GH2386: =$GX$2313-GX2449 -> 0 | GI2386: ='Исходные данные'!$F$32/2/SIN(RADIANS(FW2386)) -> 82 | GJ2386: =GI2386+SQRT('Исходные данные'!$F$30^2+(Чертёж!GH2386-Чертёж!GG2386)^2) -> 82 | GK2386: 60.32572249 | GL2386: 60.32572249 | GM2386: 0 | GN2386: =IF(GX2453<$HN$2320,0,1) -> 1 | GU2386: 38 | GW2386: Вершина | GX2386: =GX$2307-(GX$2307-GX$2310-(HF2384-GX$2310)*GX$2309/GX$2308) -> 873.2727619 | GY2386: 461.875 | GZ2386: 38 | HC2386: 1 | HD2386: 863 | HE2386: 297.875 | HF2386: =GX2307-((GX2307-GX2310-(HF2384-GX2310)*GX2309/GX2308)*('Исходные данные'!F32+'Исходные данные'!F30)/'Исходные данные'!F32) -> 873.2727619 | HG2386: 461.875
FW2387: =IF(GH2387-GG2387=0,90,DEGREES(ATAN('Исходные данные'!$F$30/(GH2387-GG2387)))) -> 90 | FX2387: 515.2211952 | FY2387: 0.1315685216 | FZ2387: 47.36466779 | GA2387: 515.2211952 | GB2387: 0.1315685216 | GC2387: 47.36466779 | GD2387: 0 | GE2387: 0 | GF2387: 70 | GG2387: =$GX$2312-GX2450 -> 0 | GH2387: =$GX$2313-GX2451 -> 0 | GI2387: ='Исходные данные'!$F$32/2/SIN(RADIANS(FW2387)) -> 82 | GJ2387: =GI2387+SQRT('Исходные данные'!$F$30^2+(Чертёж!GH2387-Чертёж!GG2387)^2) -> 82 | GK2387: 60.32572249 | GL2387: 60.32572249 | GM2387: 0 | GN2387: =IF(GX2455<$HN$2320,0,1) -> 1 | GW2387: Основание | GX2387: =IF(GX2386>GX$2310,GX2386,HF2386-(HF2386-HF2384)/5) -> 873.2727619 | GY2387: 461.875 | HC2387: 1 | HD2387: 811 | HE2387: 232.875 | HF2387: =HF2386 -> 873.2727619 | HG2387: 461.875
... 124 more rows

Sheet А-А
GO322: Масштаб чертежа | GP322: =1/0.0292296616270698 -> 34.21182266 | GQ322: 28.42 | GR322: =GP322*GQ322 -> 972.3
FW323: Высота диафрагм | FY323: =Чертёж!HC2305 -> 0
GO324: Масштаб экрана | GP324: =50*(1340/GM334) -> 137.5770021 | GQ324: %
GM325: =GM334/GL334 -> 1.330601093
FS328: 175 | FT328: 176 | FU328: 177 | FV328: 178 | FW328: 179 | FX328: 180 | FY328: 181 | FZ328: 182 | GA328: 183 | GB328: 184 | GC328: 185 | GD328: 186 | GE328: 187 | GF328: 188 | GG328: 189 | GH328: 190 | GI328: 191 | GJ328: 192 | GK328: 193 | GL328: 194 | GM328: 195 | GN328: 196 | GO328: 197 | GP328: 198 | GQ328: 199 | GR328: 200 | GS328: 201 | GT328: 202 | GU328: 203 | GV328: 204 | GW328: 205
FS329: Вершины диафрагм | FV329: Внутренняя поверхность трубы | FY329: Наружная поверхность трубы | GB329: Внутренняя поверхность области диафрагм | GE329: Наружная поверхность области диафрагм | GI329: Координаты начала и размеры главного и диагонального зеркал
FS330: CO= | FT330: =SQRT(('Исходные данные'!$F$34/2)^2-(Чертёж!$HR$2254/2)^2) -> 82.88713782 | FU330: мм | FV330: CO= | FW330: =SQRT(('Исходные данные'!$F$34/2)^2-(Чертёж!$HR$2254/2)^2) -> 82.88713782 | FX330: мм | FY330: CO= | FZ330: =SQRT(('Исходные данные'!$F$34/2)^2-(Чертёж!$HR$2254/2)^2) -> 82.88713782 | GA330: мм | GB330: CO= | GC330: =SQRT(('Исходные данные'!$F$34/2)^2-(Чертёж!$HR$2254/2)^2) -> 82.88713782 | GD330: мм | GE330: CO= | GF330: =SQRT(('Исходные данные'!$F$34/2)^2-(Чертёж!$HR$2254/2)^2) -> 82.88713782 | GG330: мм | GJ330: X | GK330: Y | GL330: D | GP330: X | GQ330: Y | GR330: X | GS330: Y | GT330: Weight | GU330: ForeColor.SchemeColor
FS331: OO1= | FT331: ='Исходные данные'!$F$12-FT330 -> 64.11286218 | FU331: мм | FV331: OO1= | FW331: ='Исходные данные'!$F$12-FW330 -> 64.11286218 | FX331: мм | FY331: OO1= | FZ331: ='Исходные данные'!$F$12-FZ330 -> 64.11286218 | GA331: мм | GB331: OO1= | GC331: ='Исходные данные'!$F$12-GC330 -> 64.11286218 | GD331: мм | GE331: OO1= | GF331: ='Исходные данные'!$F$12-GF330 -> 64.11286218 | GG331: мм | GI331: Главное зеркало | GJ331: =$FP$359-'Исходные данные'!F6/2 -> 57 | GK331: =$FQ$359-'Исходные данные'!F6/2 -> 167 | GL331: ='Исходные данные'!F6 -> 150 | GO331: Оптическая ось фокусера | GP331: =FP359 -> 132 | GQ331: =FQ359 -> 242 | GR331: =GP331 -> 132 | GS331: =FQ359-'Исходные данные'!$F$12 -> 95 | GT331: 0.5 | GU331: 64
FS332: AO= | FT332: =FT331/('Исходные данные'!$F$18/Чертёж!$HR$2254+1) -> 40.39809903 | FU332: мм | FV332: AO= | FW332: =FW331/('Исходные данные'!$F$18/Чертёж!$HR$2254+1) -> 40.39809903 | FX332: мм | FY332: AO= | FZ332: =FZ331/('Исходные данные'!$F$18/Чертёж!$HR$2254+1) -> 40.39809903 | GA332: мм | GB332: AO= | GC332: =GC331/('Исходные данные'!$F$18/Чертёж!$HR$2254+1) -> 40.39809903 | GD332: мм | GE332: AO= | GF332: =GF331/('Исходные данные'!$F$18/Чертёж!$HR$2254+1) -> 40.39809903 | GG332: мм | GI332: Диагональное зеркало | GJ332: =$FP$359-'Исходные данные'!F46/2 -> 109.5012662 | GK332: =$FQ$359-'Исходные данные'!F46/2+'Исходные данные'!F52 -> 221.4727342 | GL332: ='Исходные данные'!F46 -> 44.99746756 | GO332: Ход лучей 1 | GP332: =GP336 -> 124 | GQ332: =GQ336 -> 95 | GR332: =FP359-'Исходные данные'!$F$46/2-(('Исходные данные'!$F$18-'Исходные данные'!$F$10)/2)*(('Исходные данные'!$F$36-'Исходные данные'!$F$12)/'Исходные данные'!$F$36) -> 110.6630462 | GS332: =FQ359 -> 242 | GT332: 0.5 | GU332: 64
FS333: AC= | FT333: =FT330+FT332 -> 123.2852368 | FU333: мм | FV333: AC= | FW333: =FW330+FW332 -> 123.2852368 | FX333: мм | FY333: AC= | FZ333: =FZ330+FZ332 -> 123.2852368 | GA333: мм | GB333: AC= | GC333: =GC330+GC332 -> 123.2852368 | GD333: мм | GE333: AC= | GF333: =GF330+GF332 -> 123.2852368 | GG333: мм | GI333: Оправа диаг. Зеркала | GJ333: =FP359-GL333/2 -> 115.1259497 | GK333: =FQ359-GL333/2 -> 225.1259497 | GL333: =Чертёж!HQ2221 -> 33.74810067 | GP333: =GR336 -> 140 | GQ333: =GQ332 -> 95 | GR333: =FP359+'Исходные данные'!$F$46/2+(('Исходные данные'!$F$18-'Исходные данные'!$F$10)/2)*(('Исходные данные'!$F$36-'Исходные данные'!$F$12)/'Исходные данные'!$F$36) -> 153.3369538 | GS333: =GS332 -> 242 | GT333: 0.5 | GU333: 64
FS334: a= | FT334: =ATAN((Чертёж!$HR$2254/2)/FT332) -> 0.3253545493 | FU334: рад | FV334: a= | FW334: =ATAN((Чертёж!$HR$2254/2)/FW332) -> 0.3253545493 | FX334: рад | FY334: a= | FZ334: =ATAN((Чертёж!$HR$2254/2)/FZ332) -> 0.3253545493 | GA334: рад | GB334: a= | GC334: =ATAN((Чертёж!$HR$2254/2)/GC332) -> 0.3253545493 | GD334: рад | GE334: a= | GF334: =ATAN((Чертёж!$HR$2254/2)/GF332) -> 0.3253545493 | GG334: рад | GI334: Рамка | GJ334: =Чертёж!HN2299 -> 10 | GK334: =Чертёж!HO2299 -> 10 | GL334: =GP369+50 -> 366 | GM334: =GQ360+120 -> 487 | GN334: =(GM334-GK334)/GP322 -> 13.9425486 | GO334: Ход лучей 2 | GP334: ='А-А'!FP359-'Исходные данные'!$F$10/2 -> 122.555 | GQ334: =GQ333 -> 95 | GR334: =FP359-'Исходные данные'!$F$46/2 -> 109.5012662 | GS334: =GS333 -> 242 | GT334: 0.5 | GU334: 64
FS335: a= | FT335: =DEGREES(FT334) -> 18.64144252 | FU335: º | FV335: a= | FW335: =DEGREES(FW334) -> 18.64144252 | FX335: º | FY335: a= | FZ335: =DEGREES(FZ334) -> 18.64144252 | GA335: º | GB335: a= | GC335: =DEGREES(GC334) -> 18.64144252 | GD335: º | GE335: a= | GF335: =DEGREES(GF334) -> 18.64144252 | GG335: º | GI335: Надпись | GJ335: =Чертёж!HN2300 -> 60 | GK335: =Чертёж!HO2300 -> 31.575 | GL335: =Чертёж!HP2300 -> 24.375 | GM335: =Чертёж!HQ2300 -> 0 | GP335: ='А-А'!FP359+'Исходные данные'!$F$10/2 -> 141.445 | GQ335: =GQ334 -> 95 | GR335: =FP359+'Исходные данные'!$F$46/2 -> 154.4987338 | GS335: =GS334 -> 242 | GT335: 0.5 | GU335: 64
FS336: b= | FT336: =ASIN(FT333*SIN(FT334)/('Исходные данные'!$F$32/2)) -> 0.5013148527 | FU336: рад | FV336: b= | FW336: =ASIN(FW333*SIN(FW334)/('Исходные данные'!$F$34/2)) -> 0.4883129258 | FX336: рад | FY336: b= | FZ336: =ASIN(FZ333*SIN(FZ334)/('Исходные данные'!$F$34/2+'Исходные данные'!$F$16)) -> 0.4700821565 | GA336: рад | GB336: b= | GC336: =ASIN(FZ333*SIN(FZ334)/('Исходные данные'!$F$32/2+'Исходные данные'!$F$30)) -> 0.5013148527 | GD336: рад | GE336: b= | GF336: =ASIN(FZ333*SIN(FZ334)/('Исходные данные'!$F$32/2+'Исходные данные'!$F$16+'Исходные данные'!$F$30)) -> 0.4820735427 | GG336: рад | GO336: Фокальная плоскость | GP336: ='А-А'!FP359-'Исходные данные'!$F$18/2 -> 124 | GQ336: =FQ359-'Исходные данные'!$F$12 -> 95 | GR336: ='А-А'!FP359+'Исходные данные'!$F$18/2 -> 140 | GS336: =GQ336 -> 95 | GT336: 0.5 | GU336: 64
FS337: b= | FT337: =DEGREES(FT336) -> 28.72322527 | FU337: º | FV337: b= | FW337: =DEGREES(FW336) -> 27.97826973 | FX337: º | FY337: b= | FZ337: =DEGREES(FZ336) -> 26.93372359 | GA337: º | GB337: b= | GC337: =DEGREES(GC336) -> 28.72322527 | GD337: º | GE337: b= | GF337: =DEGREES(GF336) -> 27.62077941 | GG337: º | GO337: Растяжки | GP337: =FP359-'Исходные данные'!$F$32/2 -> 50 | GQ337: =FQ359 -> 242 | GR337: =FP359+'Исходные данные'!$F$32/2 -> 214 | GS337: =GQ337 -> 242 | GT337: =1.5*('Исходные данные'!$F$6/260) -> 0.8653846154 | GU337: 23
FS338: g1= | FT338: =FT335+FT337 -> 47.36466779 | FU338: º | FV338: g= | FW338: =(180-FW335-FW337) -> 133.3802877 | FX338: º | FY338: g= | FZ338: =(180-FZ335-FZ337) -> 134.4248339 | GA338: º | GB338: g1= | GC338: =GC335+GC337 -> 47.36466779 | GD338: º | GE338: g1= | GF338: =GF335+GF337 -> 46.26222193 | GG338: º | GI338: Глубина области диафрагм | GJ338: ='Исходные данные'!$F$30-('Исходные данные'!$F$32/2+'Исходные данные'!$F$30-'Исходные данные'!$F$34/2) -> 2 | GP338: =FP359 -> 132 | GQ338: =FQ359-'Исходные данные'!$F$32/2 -> 160 | GR338: =GP338 -> 132 | GS338: =FQ359+'Исходные данные'!$F$32/2 -> 324 | GT338: =1.5*('Исходные данные'!$F$6/260) -> 0.8653846154 | GU338: 23
FS339: xн= | FT339: =$FP$359-'Исходные данные'!$F$32/2*COS(RADIANS(270-FT$338)) -> 192.3257225 | FV339: xн= | FW339: =$FP$359-'Исходные данные'!$F$34/2*COS(RADIANS(270-FW$338)) -> 193.0521254 | FY339: xн= | FZ339: =$FP$359-('Исходные данные'!$F$34/2+'Исходные данные'!$F$16)*COS(RADIANS(270-FZ$338)) -> 194.1327339 | GB339: xн= | GC339: =$FP$359-('Исходные данные'!$F$32/2+'Исходные данные'!$F$30)*COS(RADIANS(90+GC$338)) -> 192.3257225 | GE339: xн= | GF339: =$FP$359+('Исходные данные'!$F$32/2+'Исходные данные'!$F$30+'Исходные данные'!$F$16)*COS(RADIANS(90+GF$338)) -> 70.58652638 | GI339: Признак корректности | GJ339: ='Исходные данные'!$F$30-GJ338 -> -2 | GO339: Область диафрагм | GP339: =GR336 -> 140 | GQ339: =GQ336 -> 95 | GR339: =FT341 -> 71.67427751 | GS339: =FT342 -> 297.5410407 | GT339: 0.5 | GU339: 14
FS340: yн= | FT340: =$FQ$359+('Исходные данные'!$F$32/2)*SIN(RADIANS(90+FT338)) -> 297.5410407 | FV340: yн= | FW340: =$FQ$359+'Исходные данные'!$F$34/2*SIN(RADIANS(270-FW$338)) -> 299.6943497 | FY340: yн= | FZ340: =$FQ$359+('Исходные данные'!$F$34/2+'Исходные данные'!$F$16)*SIN(RADIANS(270-FZ$338)) -> 302.8976467 | GB340: yн= | GC340: =$FQ$359+('Исходные данные'!$F$32/2+'Исходные данные'!$F$30)*SIN(RADIANS(90+GC$338)) -> 297.5410407 | GE340: yн= | GF340: =$FQ$359+('Исходные данные'!$F$32/2+'Исходные данные'!$F$30+'Исходные данные'!$F$16)*SIN(RADIANS(90+GF$338)) -> 300.7655108 | GI340: Выступающая часть трубы | GJ340: ='Исходные данные'!AN58 -> -13.3 | GP340: =GP332 -> 124 | GQ340: =GQ339 -> 95 | GR340: =FT339 -> 192.3257225 | GS340: =GS339 -> 297.5410407 | GT340: 0.5 | GU340: 14
FS341: xк= | FT341: =$FP$359+'Исходные данные'!$F$32/2*COS(RADIANS(270-FT$338)) -> 71.67427751 | FV341: xк= | FW341: =$FP$359+'Исходные данные'!$F$34/2*COS(RADIANS(270-FW$338)) -> 70.94787465 | FY341: xк= | FZ341: =$FP$359+('Исходные данные'!$F$34/2+'Исходные данные'!$F$16)*COS(RADIANS(270-FZ$338)) -> 69.86726609 | GB341: xк= | GC341: =$FP$359-('Исходные данные'!$F$32/2+'Исходные данные'!$F$30)*COS(RADIANS(90+GC$338)) -> 192.3257225 | GE341: xк= | GF341: =$FP$359-('Исходные данные'!$F$32/2+'Исходные данные'!$F$30+'Исходные данные'!$F$16)*COS(RADIANS(90+GF$338)) -> 193.4134736 | GI341: Смещение логотипа вниз | GL341: =GQ337 -> 242 | GO341: Размеры
FS342: yк= | FT342: =FT340 -> 297.5410407 | FV342: yк= | FW342: =FW340 -> 299.6943497 | FY342: yк= | FZ342: =FZ340 -> 302.8976467 | GB342: yк= | GC342: =GC340 -> 297.5410407 | GE342: yк= | GF342: =GF340 -> 300.7655108 | GI342: Масштаб логотипа | GL342: =(GN334*GN334/38.42)/GN334 -> 0.3628981935 | GO342: Выносные линии | GP342: =GR337 -> 214 | GQ342: =FQ359 -> 242 | GR342: =GR343+60 -> 316 | GS342: =GQ342 -> 242 | GT342: 0.25 | GU342: 63
GI343: Смещение V | GL343: =0 -> 0 | GP343: =GF341 -> 193.4134736 | GQ343: =GF342 -> 300.7655108 | GR343: =GR344+20 -> 256 | GS343: =GQ343 -> 300.7655108 | GT343: 0.25 | GU343: 63 | GW343: 1
GI344: Смещение H | GL344: 0 | GP344: =FZ339 -> 194.1327339 | GQ344: =FZ340 -> 302.8976467 | GR344: =IF(GF341< FP359+'Исходные данные'!$F$34/2,FP359+'Исходные данные'!$F$34/2+20,GF341+20) -> 236 | GS344: =GQ344 -> 302.8976467 | GT344: 0.25 | GU344: 63
GP345: =FP359 -> 132 | GQ345: ='Исходные данные'!$F$32/2+'Исходные данные'!$F$30+'Исходные данные'!$F$16+'А-А'!FQ359 -> 327 | GR345: =GP345 -> 132 | GS345: ='Исходные данные'!$F$32/2+'Исходные данные'!$F$30+'Исходные данные'!$F$16+40+'А-А'!FQ359 -> 367 | GT345: 0.25 | GU345: 63
GP346: =GP343 -> 193.4134736 | GQ346: =GQ343 -> 300.7655108 | GR346: =GP346 -> 193.4134736 | GS346: =GS345 -> 367 | GT346: 0.25 | GU346: 63 | GW346: 1
GP347: =FZ339 -> 194.1327339 | GQ347: =FZ340 -> 302.8976467 | GR347: =GP347 -> 194.1327339 | GS347: =GS346-20 -> 347 | GT347: 0.25 | GU347: 63
GP348: =FP359 -> 132 | GQ348: =FQ359+'Исходные данные'!$F$32/2 -> 324 | GR348: =GR342-40 -> 276 | GS348: =GQ348 -> 324 | GT348: 0.25 | GU348: 63 | GW348: 1
GP349: =GP348 -> 132 | GQ349: =GQ348+'Исходные данные'!$F$30 -> 324 | GR349: =GR342-20 -> 296 | GS349: 324 | GT349: 0.25 | GU349: 63 | GW349: 1
GP350: 132 | GQ350: =GQ349+'Исходные данные'!$F$16 -> 327 | GR350: =GR342 -> 316 | GS350: 327 | GT350: 0.25 | GU350: 63 | GW350: 1
GL351: =(GQ360-(GL334-GJ334))*(6+'Исходные данные'!$F$6/25.4/13) -> 70.99697153 | GP351: 132 | GQ351: =$FQ$359-'Исходные данные'!$F$12 -> 95 | GR351: =GR350 -> 316 | GS351: 95 | GT351: 0.25 | GU351: 63
GP352: 132 | GQ352: =$FQ$359-'Исходные данные'!$F$34/2-'Исходные данные'!$F$16 -> 155 | GR352: =GR351-20 -> 296 | GS352: 155 | GT352: 0.25 | GU352: 63
GJ353: X | GK353: Y | GL353: h | GM353: b | GN353: шрифт | GP353: 132 | GQ353: =$FQ$359-'Исходные данные'!$F$34/2 -> 158 | GR353: =GR352-20 -> 276 | GS353: 158 | GT353: 0.25 | GU353: 63
GI354: Надпись листа А-А | GJ354: =Чертёж!HQ2302 -> 62 | GK354: =GQ382 -> 35 | GL354: 200 | GM354: 500 | GN354: =Чертёж!HR2301 -> 12 | GP354: 132 | GQ354: =$FQ$359-'Исходные данные'!$F$32/2 -> 160 | GR354: =GR353-20 -> 256 | GS354: 160 | GT354: 0.25 | GU354: 63
FS355: 175 | FT355: 176 | FU355: 177 | FV355: 178 | FW355: 179 | GP355: 132 | GQ355: =$FQ$359-'Исходные данные'!$F$6/2 -> 167 | GR355: =GR354-20 -> 236 | GS355: 167 | GT355: 0.25 | GU355: 63
FS356: Труба | GP356: =GR343 -> 256 | GQ356: =GQ342 -> 242 | GR356: =GP356 -> 256 | GS356: =GQ343 -> 300.7655108 | GT356: 0.5 | GU356: 64 | GW356: 1
FT357: X | FU357: Y | FV357: d | FW357: Начало дуги | FX357: Конец дуги | GP357: =GP356 -> 256 | GQ357: =GQ356+(GS356-GQ356)/2-GS357/2 -> 231.3827554 | GR357: 15 | GS357: 80 | GT357: =ROUND(GS356-GQ356,1) -> 58.8 | GU357: 12 | GV357: V
FP358: Cмещение X | FQ358: Смещение Y | FS358: Входное отверстие | FT358: =FP359-'Исходные данные'!F32/2 -> 50 | FU358: =FQ359-'Исходные данные'!F32/2 -> 160 | FV358: ='Исходные данные'!F32 -> 164 | GP358: =GR344 -> 236 | GQ358: =GQ356 -> 242 | GR358: =GP358 -> 236 | GS358: =GQ344 -> 302.8976467 | GT358: 0.5 | GU358: 64
FP359: =ROUND(50+'Исходные данные'!F32/2+'Исходные данные'!F30,0) -> 132 | FQ359: =ROUND(100+'Исходные данные'!F56+'Исходные данные'!F30+'Исходные данные'!F32/2,0) -> 242 | FS359: Внутренний диаметр трубы | FT359: =FP359 -> 132 | FU359: =FQ359-'Исходные данные'!F34/2 -> 158 | FV359: ='Исходные данные'!F34/2 -> 84 | FW359: =FY359-(180-FW338) -> 43.38028775 | FX359: =FY359+(180-FW338) -> 136.6197123 | FY359: 90 | GP359: =GP358 -> 236 | GQ359: =GQ358+(GS358-GQ358)/2-GS359/2 -> 232.4488234 | GR359: 15 | GS359: 80 | GT359: =ROUND(GS358-GQ358,1) -> 60.9 | GU359: =GU357 -> 12 | GV359: V
FS360: Наружный диаметр трубы | FT360: =FP359 -> 132 | FU360: =FQ359-'Исходные данные'!F34/2-'Исходные данные'!F16 -> 155 | FV360: =FV359+'Исходные данные'!F16 -> 87 | FW360: =FY360-(180-FZ338) -> 44.42483389 | FX360: =FY360+(180-FZ338) -> 135.5751661 | FY360: 90 | GP360: =GP345 -> 132 | GQ360: =GS346 -> 367 | GR360: =GR346 -> 193.4134736 | GS360: =GQ360 -> 367 | GT360: 0.5 | GU360: 64 | GW360: 1
FS361: Область диафрагмирования | GP361: =GP360+(GR360-GP360)/2-GR361/2 -> 122.7067368 | GQ361: =GQ360-GS361 -> 352 | GR361: 80 | GS361: 15 | GT361: =ROUND(GR360-GP360,1) -> 61.4 | GU361: =GU359 -> 12 | GV361: H
FT362: X | FU362: Y | FV362: a | FW362: Начало дуги | FX362: Конец дуги | GP362: =GP360 -> 132 | GQ362: =GS347 -> 347 | GR362: =GR347 -> 194.1327339 | GS362: =GQ362 -> 347 | GT362: 0.5 | GU362: 64
FS363: Область диафрагм внутр. | FT363: =FP359 -> 132 | FU363: =FQ359-FV363 -> 158 | FV363: ='Исходные данные'!F34/2+IF(Чертёж!GT2315<0,0,'Исходные данные'!F30-('Исходные данные'!F34/2-'Исходные данные'!F32/2)) -> 84 | FW363: =270+(180-GC338) -> 402.6353322 | FX363: =270-(180-GC338) -> 137.3646678 | GP363: =GP362+(GR362-GP362)/2-GR363/2 -> 123.066367 | GQ363: =GQ362-GS363 -> 332 | GR363: 80 | GS363: 15 | GT363: =ROUND(GR362-GP362,1) -> 62.1 | GU363: =GU361 -> 12 | GV363: H
FS364: Область диафрагм наруж. | FT364: =FP359 -> 132 | FU364: =FU363-'Исходные данные'!F16 -> 155 | FV364: =FV363+'Исходные данные'!F16 -> 87 | FW364: =270+(180-GF338) -> 403.7377781 | FX364: =270-(180-GF338) -> 136.2622219 | GO364: Внутренний радиус области диафрагмирования | GP364: =GR348 -> 276 | GQ364: =FQ359 -> 242 | GR364: =GP364 -> 276 | GS364: =GS348 -> 324 | GT364: 0.5 | GU364: 64 | GW364: 1
FS365: Невидимый сектор трубы внут. | FT365: =FT359 -> 132 | FU365: 158 | FV365: 84 | FW365: =FX359 -> 136.6197123 | FX365: =FW359 -> 43.38028775 | GP365: =GP364 -> 276 | GQ365: =GQ364+(GS364-GQ364)/2-GS365/2 -> 243 | GR365: 15 | GS365: 80 | GT365: =ROUND(GS364-GQ364,1) -> 82 | GU365: =GU363 -> 12 | GV365: V
FS366: Невидимый сектор трубы варуж. | FT366: 132 | FU366: 155 | FV366: 87 | FW366: =FX360 -> 135.5751661 | FX366: =FW360 -> 44.42483389 | GO366: Наружный радиус области диафрагмирования 1 | GP366: =GR349 -> 296 | GQ366: =FQ359 -> 242 | GR366: =GP366 -> 296 | GS366: =GS349 -> 324 | GT366: 0.5 | GU366: 64 | GW366: 1
FS367: Вершины диафрагм | FT367: =FT364 -> 132 | FU367: =FQ359-FV367 -> 160 | FV367: ='Исходные данные'!$F$32/2 -> 82 | FW367: =270+FT338 -> 317.3646678 | FX367: =270-FT338 -> 222.6353322 | GP367: =GP366 -> 296 | GQ367: =GQ366+(GS366-GQ366)/2-GS367/2 -> 243 | GR367: 15 | GS367: 80 | GT367: =ROUND(GS366-GQ366,1) -> 82 | GU367: =GU365 -> 12 | GV367: V
GO368: Наружный радиус области диафрагмирования 2 | GP368: =GR350 -> 316 | GQ368: =FQ359 -> 242 | GR368: =GP368 -> 316 | GS368: =GS350 -> 327 | GT368: 0.5 | GU368: 64 | GW368: 1
GP369: =GP368 -> 316 | GQ369: =GQ368+(GS368-GQ368)/2-GS369/2 -> 244.5 | GR369: 15 | GS369: 80 | GT369: =ROUND(GS368-GQ368,1) -> 85 | GU369: =GU367 -> 12 | GV369: V
GP370: =GR351 -> 316 | GQ370: =FQ359 -> 242 | GR370: =GP370 -> 316 | GS370: =GS351 -> 95 | GT370: 0.5 | GU370: 64
GP371: =GP370 -> 316 | GQ371: =GQ370+(GS370-GQ370)/2-GS371/2 -> 128.5 | GR371: 15 | GS371: 80 | GT371: =ROUND(GQ370-GS370,1) -> 147 | GU371: =GU369 -> 12 | GV371: V
GO372: Наружный трубы | GP372: =GR352 -> 296 | GQ372: =FQ359 -> 242 | GR372: =GP372 -> 296 | GS372: =GS352 -> 155 | GT372: 0.5 | GU372: 64
GP373: =GP372 -> 296 | GQ373: =GQ372+(GS372-GQ372)/2-GS373/2 -> 158.5 | GR373: 15 | GS373: 80 | GT373: =ROUND(GQ372-GS372,1) -> 87 | GU373: =GU371 -> 12 | GV373: V
GO374: Внутренний радиус трубы | GP374: =GR353 -> 276 | GQ374: =FQ359 -> 242 | GR374: =GP374 -> 276 | GS374: =GS353 -> 158 | GT374: 0.5 | GU374: 64
GP375: =GP374 -> 276 | GQ375: =GQ374+(GS374-GQ374)/2-GS375/2 -> 160 | GR375: 15 | GS375: 80 | GT375: =ROUND(GQ374-GS374,1) -> 84 | GU375: =GU373 -> 12 | GV375: V
GO376: Внутренний радиус области диафрагмирования | GP376: =GR354 -> 256 | GQ376: =FQ359 -> 242 | GR376: =GP376 -> 256 | GS376: =GS354 -> 160 | GT376: 0.5 | GU376: 64
GP377: =GP376 -> 256 | GQ377: =GQ376+(GS376-GQ376)/2-GS377/2 -> 161 | GR377: 15 | GS377: 80 | GT377: =ROUND(GQ376-GS376,1) -> 82 | GU377: =GU375 -> 12 | GV377: V
GO378: Радиус ГЗ | GP378: =GR355 -> 236 | GQ378: =FQ359 -> 242 | GR378: =GP378 -> 236 | GS378: =GS355 -> 167 | GT378: 0.5 | GU378: 64
GP379: =GP378 -> 236 | GQ379: =GQ378+(GS378-GQ378)/2-GS379/2 -> 164.5 | GR379: 15 | GS379: 80 | GT379: =ROUND(GQ378-GS378,1) -> 75 | GU379: =GU377 -> 12 | GV379: V
GP380: =GP372 -> 296 | GQ380: =GS372 -> 155 | GR380: =GP380 -> 296 | GS380: =GS370 -> 95 | GT380: 0.5 | GU380: 64
GP381: =GP380 -> 296 | GQ381: =GQ380+(GS380-GQ380)/2-GS381/2 -> 85 | GR381: 15 | GS381: 80 | GT381: =ROUND(GQ380-GS380,1) -> 60 | GU381: =GU379 -> 12 | GV381: V
GP382: =$FP$359-Чертёж!$HR$2254/2 -> 118.372 | GQ382: =FQ359-'Исходные данные'!$F$12-60 -> 35 | GR382: =FP359+Чертёж!$HR$2254/2 -> 145.628 | GS382: =GQ382 -> 35 | GT382: 0.5 | GU382: 64
GP383: =GP382+(GR382-GP382)/2-GR383/2 -> 92 | GQ383: =GQ382-GS383 -> 20 | GR383: 80 | GS383: 15 | GT383: =ROUND(GR382-GP382,1) -> 27.3 | GU383: =GU381 -> 12 | GV383: H
GP384: =$FP$359-'Исходные данные'!$F$18/2 -> 124 | GQ384: =GQ382+20 -> 55 | GR384: =$FP$359+'Исходные данные'!$F$18/2 -> 140 | GS384: =GQ384 -> 55 | GT384: 0.5 | GU384: 64
GP385: =GP384+(GR384-GP384)/2-GR385/2 -> 92 | GQ385: =GQ384-GS385 -> 40 | GR385: 80 | GS385: 15 | GT385: =ROUND(GR384-GP384,1) -> 16 | GU385: =GU383 -> 12 | GV385: H
GP386: =$FP$359-'Исходные данные'!$F$10/2 -> 122.555 | GQ386: =GQ384+20 -> 75 | GR386: =$FP$359+'Исходные данные'!$F$10/2 -> 141.445 | GS386: =GQ386 -> 75 | GT386: 0.5 | GU386: 64
GP387: =GP386+(GR386-GP386)/2-GR387/2 -> 92 | GQ387: =GQ386-GS387 -> 60 | GR387: 80 | GS387: 15 | GT387: =ROUND(GR386-GP386,1) -> 18.9 | GU387: =GU385 -> 12 | GV387: H
GP388: =$FP$359-'Исходные данные'!$F$46/2 -> 109.5012662 | GQ388: =FQ359+'Исходные данные'!$F$46/2+20 -> 284.4987338 | GR388: =$FP$359+'Исходные данные'!$F$46/2 -> 154.4987338 | GS388: =GQ388 -> 284.4987338 | GT388: 0.5 | GU388: 64
GP389: =GP388+(GR388-GP388)/2-GR389/2 -> 92 | GQ389: =GQ388-GS389 -> 269.4987338 | GR389: 80 | GS389: 15 | GT389: =ROUND(GR388-GP388,1) -> 45 | GU389: =GU387 -> 12 | GV389: H
GO390: Выносные линии | GP390: =GP382 -> 118.372 | GQ390: =$FQ$359-'Исходные данные'!$F$12-60 -> 35 | GR390: =GP390 -> 118.372 | GS390: =$FQ$359-'Исходные данные'!$F$34/2 -> 158 | GT390: 0.25 | GU390: 63
GP391: =GR382 -> 145.628 | GQ391: =$FQ$359-'Исходные данные'!$F$12-60 -> 35 | GR391: =GR382 -> 145.628 | GS391: =$FQ$359-'Исходные данные'!$F$34/2 -> 158 | GT391: 0.25 | GU391: 63
GP392: =GP384 -> 124 | GQ392: =GQ384 -> 55 | GR392: =GP392 -> 124 | GS392: =$FQ$359-'Исходные данные'!$F$12 -> 95 | GT392: 0.25 | GU392: 63
GP393: =GR384 -> 140 | GQ393: =GQ384 -> 55 | GR393: =GR384 -> 140 | GS393: =$FQ$359-'Исходные данные'!$F$12 -> 95 | GT393: 0.25 | GU393: 63
GP394: =GP386 -> 122.555 | GQ394: =GQ386 -> 75 | GR394: =GP386 -> 122.555 | GS394: =$FQ$359-'Исходные данные'!$F$12 -> 95 | GT394: 0.25 | GU394: 63
GP395: =GR386 -> 141.445 | GQ395: =GQ386 -> 75 | GR395: =GR386 -> 141.445 | GS395: =$FQ$359-'Исходные данные'!$F$12 -> 95 | GT395: 0.25 | GU395: 63
GP396: =GP388 -> 109.5012662 | GQ396: =FQ359 -> 242 | GR396: =GP396 -> 109.5012662 | GS396: =GQ396+'Исходные данные'!$F$46/2+20 -> 284.4987338 | GT396: 0.25 | GU396: 63
GP397: =GR388 -> 154.4987338 | GQ397: =FQ359 -> 242 | GR397: =GR388 -> 154.4987338 | GS397: =GQ396+'Исходные данные'!$F$46/2+20 -> 284.4987338 | GT397: 0.25 | GU397: 63

Sheet Расчёт диафрагм
E5: № | F5: Положение относительно первой диафрагмы | H5: R1 (мм) | I5: R2 (мм) | J5: X1 (мм) | K5: X2 (мм)
F6: B1 (мм) | G6: B2 (мм)
E7: =IF(Чертёж!$GN2318=1,Чертёж!GF2318,"") -> 1 | F7: =IF(Чертёж!$GN2318=1,Чертёж!GG2318,"") -> 0 | G7: =IF(Чертёж!$GN2318=1,Чертёж!GH2318,"") -> 0 | H7: =IF(Чертёж!$GN2318=1,Чертёж!GI2318,"") -> 82 | I7: =IF(Чертёж!$GN2318=1,Чертёж!GJ2318,"") -> 82 | J7: =IF(Чертёж!$GN2318=1,Чертёж!GK2318,"") -> 60.32572249 | K7: =IF(Чертёж!$GN2318=1,Чертёж!GL2318,"") -> 60.32572249
E8: =IF(Чертёж!$GN2319=1,Чертёж!GF2319,"") -> 2 | F8: =IF(Чертёж!$GN2319=1,Чертёж!GG2319,"") -> 0 | G8: =IF(Чертёж!$GN2319=1,Чертёж!GH2319,"") -> 0 | H8: =IF(Чертёж!$GN2319=1,Чертёж!GI2319,"") -> 82 | I8: =IF(Чертёж!$GN2319=1,Чертёж!GJ2319,"") -> 82 | J8: =IF(Чертёж!$GN2319=1,Чертёж!GK2319,"") -> 60.32572249 | K8: =IF(Чертёж!$GN2319=1,Чертёж!GL2319,"") -> 60.32572249
E9: =IF(Чертёж!$GN2320=1,Чертёж!GF2320,"") -> 3 | F9: =IF(Чертёж!$GN2320=1,Чертёж!GG2320,"") -> 0 | G9: =IF(Чертёж!$GN2320=1,Чертёж!GH2320,"") -> 0 | H9: =IF(Чертёж!$GN2320=1,Чертёж!GI2320,"") -> 82 | I9: =IF(Чертёж!$GN2320=1,Чертёж!GJ2320,"") -> 82 | J9: =IF(Чертёж!$GN2320=1,Чертёж!GK2320,"") -> 60.32572249 | K9: =IF(Чертёж!$GN2320=1,Чертёж!GL2320,"") -> 60.32572249
E10: =IF(Чертёж!$GN2321=1,Чертёж!GF2321,"") -> 4 | F10: =IF(Чертёж!$GN2321=1,Чертёж!GG2321,"") -> 0 | G10: =IF(Чертёж!$GN2321=1,Чертёж!GH2321,"") -> 0 | H10: =IF(Чертёж!$GN2321=1,Чертёж!GI2321,"") -> 82 | I10: =IF(Чертёж!$GN2321=1,Чертёж!GJ2321,"") -> 82 | J10: =IF(Чертёж!$GN2321=1,Чертёж!GK2321,"") -> 60.32572249 | K10: =IF(Чертёж!$GN2321=1,Чертёж!GL2321,"") -> 60.32572249
E11: =IF(Чертёж!$GN2322=1,Чертёж!GF2322,"") -> 5 | F11: =IF(Чертёж!$GN2322=1,Чертёж!GG2322,"") -> 0 | G11: =IF(Чертёж!$GN2322=1,Чертёж!GH2322,"") -> 0 | H11: =IF(Чертёж!$GN2322=1,Чертёж!GI2322,"") -> 82 | I11: =IF(Чертёж!$GN2322=1,Чертёж!GJ2322,"") -> 82 | J11: =IF(Чертёж!$GN2322=1,Чертёж!GK2322,"") -> 60.32572249 | K11: =IF(Чертёж!$GN2322=1,Чертёж!GL2322,"") -> 60.32572249
E12: =IF(Чертёж!$GN2323=1,Чертёж!GF2323,"") -> 6 | F12: =IF(Чертёж!$GN2323=1,Чертёж!GG2323,"") -> 0 | G12: =IF(Чертёж!$GN2323=1,Чертёж!GH2323,"") -> 0 | H12: =IF(Чертёж!$GN2323=1,Чертёж!GI2323,"") -> 82 | I12: =IF(Чертёж!$GN2323=1,Чертёж!GJ2323,"") -> 82 | J12: =IF(Чертёж!$GN2323=1,Чертёж!GK2323,"") -> 60.32572249 | K12: =IF(Чертёж!$GN2323=1,Чертёж!GL2323,"") -> 60.32572249
E13: =IF(Чертёж!$GN2324=1,Чертёж!GF2324,"") -> 7 | F13: =IF(Чертёж!$GN2324=1,Чертёж!GG2324,"") -> 0 | G13: =IF(Чертёж!$GN2324=1,Чертёж!GH2324,"") -> 0 | H13: =IF(Чертёж!$GN2324=1,Чертёж!GI2324,"") -> 82 | I13: =IF(Чертёж!$GN2324=1,Чертёж!GJ2324,"") -> 82 | J13: =IF(Чертёж!$GN2324=1,Чертёж!GK2324,"") -> 60.32572249 | K13: =IF(Чертёж!$GN2324=1,Чертёж!GL2324,"") -> 60.32572249
E14: =IF(Чертёж!$GN2325=1,Чертёж!GF2325,"") -> 8 | F14: =IF(Чертёж!$GN2325=1,Чертёж!GG2325,"") -> 0 | G14: =IF(Чертёж!$GN2325=1,Чертёж!GH2325,"") -> 0 | H14: =IF(Чертёж!$GN2325=1,Чертёж!GI2325,"") -> 82 | I14: =IF(Чертёж!$GN2325=1,Чертёж!GJ2325,"") -> 82 | J14: =IF(Чертёж!$GN2325=1,Чертёж!GK2325,"") -> 60.32572249 | K14: =IF(Чертёж!$GN2325=1,Чертёж!GL2325,"") -> 60.32572249
E15: =IF(Чертёж!$GN2326=1,Чертёж!GF2326,"") -> 9 | F15: =IF(Чертёж!$GN2326=1,Чертёж!GG2326,"") -> 0 | G15: =IF(Чертёж!$GN2326=1,Чертёж!GH2326,"") -> 0 | H15: =IF(Чертёж!$GN2326=1,Чертёж!GI2326,"") -> 82 | I15: =IF(Чертёж!$GN2326=1,Чертёж!GJ2326,"") -> 82 | J15: =IF(Чертёж!$GN2326=1,Чертёж!GK2326,"") -> 60.32572249 | K15: =IF(Чертёж!$GN2326=1,Чертёж!GL2326,"") -> 60.32572249
E16: =IF(Чертёж!$GN2327=1,Чертёж!GF2327,"") -> 10 | F16: =IF(Чертёж!$GN2327=1,Чертёж!GG2327,"") -> 0 | G16: =IF(Чертёж!$GN2327=1,Чертёж!GH2327,"") -> 0 | H16: =IF(Чертёж!$GN2327=1,Чертёж!GI2327,"") -> 82 | I16: =IF(Чертёж!$GN2327=1,Чертёж!GJ2327,"") -> 82 | J16: =IF(Чертёж!$GN2327=1,Чертёж!GK2327,"") -> 60.32572249 | K16: =IF(Чертёж!$GN2327=1,Чертёж!GL2327,"") -> 60.32572249
E17: =IF(Чертёж!$GN2328=1,Чертёж!GF2328,"") -> 11 | F17: =IF(Чертёж!$GN2328=1,Чертёж!GG2328,"") -> 0 | G17: =IF(Чертёж!$GN2328=1,Чертёж!GH2328,"") -> 0 | H17: =IF(Чертёж!$GN2328=1,Чертёж!GI2328,"") -> 82 | I17: =IF(Чертёж!$GN2328=1,Чертёж!GJ2328,"") -> 82 | J17: =IF(Чертёж!$GN2328=1,Чертёж!GK2328,"") -> 60.32572249 | K17: =IF(Чертёж!$GN2328=1,Чертёж!GL2328,"") -> 60.32572249
E18: =IF(Чертёж!$GN2329=1,Чертёж!GF2329,"") -> 12 | F18: =IF(Чертёж!$GN2329=1,Чертёж!GG2329,"") -> 0 | G18: =IF(Чертёж!$GN2329=1,Чертёж!GH2329,"") -> 0 | H18: =IF(Чертёж!$GN2329=1,Чертёж!GI2329,"") -> 82 | I18: =IF(Чертёж!$GN2329=1,Чертёж!GJ2329,"") -> 82 | J18: =IF(Чертёж!$GN2329=1,Чертёж!GK2329,"") -> 60.32572249 | K18: =IF(Чертёж!$GN2329=1,Чертёж!GL2329,"") -> 60.32572249
E19: =IF(Чертёж!$GN2330=1,Чертёж!GF2330,"") -> 13 | F19: =IF(Чертёж!$GN2330=1,Чертёж!GG2330,"") -> 0 | G19: =IF(Чертёж!$GN2330=1,Чертёж!GH2330,"") -> 0 | H19: =IF(Чертёж!$GN2330=1,Чертёж!GI2330,"") -> 82 | I19: =IF(Чертёж!$GN2330=1,Чертёж!GJ2330,"") -> 82 | J19: =IF(Чертёж!$GN2330=1,Чертёж!GK2330,"") -> 60.32572249 | K19: =IF(Чертёж!$GN2330=1,Чертёж!GL2330,"") -> 60.32572249
E20: =IF(Чертёж!$GN2331=1,Чертёж!GF2331,"") -> 14 | F20: =IF(Чертёж!$GN2331=1,Чертёж!GG2331,"") -> 0 | G20: =IF(Чертёж!$GN2331=1,Чертёж!GH2331,"") -> 0 | H20: =IF(Чертёж!$GN2331=1,Чертёж!GI2331,"") -> 82 | I20: =IF(Чертёж!$GN2331=1,Чертёж!GJ2331,"") -> 82 | J20: =IF(Чертёж!$GN2331=1,Чертёж!GK2331,"") -> 60.32572249 | K20: =IF(Чертёж!$GN2331=1,Чертёж!GL2331,"") -> 60.32572249
E21: =IF(Чертёж!$GN2332=1,Чертёж!GF2332,"") -> 15 | F21: =IF(Чертёж!$GN2332=1,Чертёж!GG2332,"") -> 0 | G21: =IF(Чертёж!$GN2332=1,Чертёж!GH2332,"") -> 0 | H21: =IF(Чертёж!$GN2332=1,Чертёж!GI2332,"") -> 82 | I21: =IF(Чертёж!$GN2332=1,Чертёж!GJ2332,"") -> 82 | J21: =IF(Чертёж!$GN2332=1,Чертёж!GK2332,"") -> 60.32572249 | K21: =IF(Чертёж!$GN2332=1,Чертёж!GL2332,"") -> 60.32572249
E22: =IF(Чертёж!$GN2333=1,Чертёж!GF2333,"") -> 16 | F22: =IF(Чертёж!$GN2333=1,Чертёж!GG2333,"") -> 0 | G22: =IF(Чертёж!$GN2333=1,Чертёж!GH2333,"") -> 0 | H22: =IF(Чертёж!$GN2333=1,Чертёж!GI2333,"") -> 82 | I22: =IF(Чертёж!$GN2333=1,Чертёж!GJ2333,"") -> 82 | J22: =IF(Чертёж!$GN2333=1,Чертёж!GK2333,"") -> 60.32572249 | K22: =IF(Чертёж!$GN2333=1,Чертёж!GL2333,"") -> 60.32572249
E23: =IF(Чертёж!$GN2334=1,Чертёж!GF2334,"") -> 17 | F23: =IF(Чертёж!$GN2334=1,Чертёж!GG2334,"") -> 0 | G23: =IF(Чертёж!$GN2334=1,Чертёж!GH2334,"") -> 0 | H23: =IF(Чертёж!$GN2334=1,Чертёж!GI2334,"") -> 82 | I23: =IF(Чертёж!$GN2334=1,Чертёж!GJ2334,"") -> 82 | J23: =IF(Чертёж!$GN2334=1,Чертёж!GK2334,"") -> 60.32572249 | K23: =IF(Чертёж!$GN2334=1,Чертёж!GL2334,"") -> 60.32572249
E24: =IF(Чертёж!$GN2335=1,Чертёж!GF2335,"") -> 18 | F24: =IF(Чертёж!$GN2335=1,Чертёж!GG2335,"") -> 0 | G24: =IF(Чертёж!$GN2335=1,Чертёж!GH2335,"") -> 0 | H24: =IF(Чертёж!$GN2335=1,Чертёж!GI2335,"") -> 82 | I24: =IF(Чертёж!$GN2335=1,Чертёж!GJ2335,"") -> 82 | J24: =IF(Чертёж!$GN2335=1,Чертёж!GK2335,"") -> 60.32572249 | K24: =IF(Чертёж!$GN2335=1,Чертёж!GL2335,"") -> 60.32572249
E25: =IF(Чертёж!$GN2336=1,Чертёж!GF2336,"") -> 19 | F25: =IF(Чертёж!$GN2336=1,Чертёж!GG2336,"") -> 0 | G25: =IF(Чертёж!$GN2336=1,Чертёж!GH2336,"") -> 0 | H25: =IF(Чертёж!$GN2336=1,Чертёж!GI2336,"") -> 82 | I25: =IF(Чертёж!$GN2336=1,Чертёж!GJ2336,"") -> 82 | J25: =IF(Чертёж!$GN2336=1,Чертёж!GK2336,"") -> 60.32572249 | K25: =IF(Чертёж!$GN2336=1,Чертёж!GL2336,"") -> 60.32572249
E26: =IF(Чертёж!$GN2337=1,Чертёж!GF2337,"") -> 20 | F26: =IF(Чертёж!$GN2337=1,Чертёж!GG2337,"") -> 0 | G26: =IF(Чертёж!$GN2337=1,Чертёж!GH2337,"") -> 0 | H26: =IF(Чертёж!$GN2337=1,Чертёж!GI2337,"") -> 82 | I26: =IF(Чертёж!$GN2337=1,Чертёж!GJ2337,"") -> 82 | J26: =IF(Чертёж!$GN2337=1,Чертёж!GK2337,"") -> 60.32572249 | K26: =IF(Чертёж!$GN2337=1,Чертёж!GL2337,"") -> 60.32572249
E27: =IF(Чертёж!$GN2338=1,Чертёж!GF2338,"") -> 21 | F27: =IF(Чертёж!$GN2338=1,Чертёж!GG2338,"") -> 0 | G27: =IF(Чертёж!$GN2338=1,Чертёж!GH2338,"") -> 0 | H27: =IF(Чертёж!$GN2338=1,Чертёж!GI2338,"") -> 82 | I27: =IF(Чертёж!$GN2338=1,Чертёж!GJ2338,"") -> 82 | J27: =IF(Чертёж!$GN2338=1,Чертёж!GK2338,"") -> 60.32572249 | K27: =IF(Чертёж!$GN2338=1,Чертёж!GL2338,"") -> 60.32572249
E28: =IF(Чертёж!$GN2339=1,Чертёж!GF2339,"") -> 22 | F28: =IF(Чертёж!$GN2339=1,Чертёж!GG2339,"") -> 0 | G28: =IF(Чертёж!$GN2339=1,Чертёж!GH2339,"") -> 0 | H28: =IF(Чертёж!$GN2339=1,Чертёж!GI2339,"") -> 82 | I28: =IF(Чертёж!$GN2339=1,Чертёж!GJ2339,"") -> 82 | J28: =IF(Чертёж!$GN2339=1,Чертёж!GK2339,"") -> 60.32572249 | K28: =IF(Чертёж!$GN2339=1,Чертёж!GL2339,"") -> 60.32572249
E29: =IF(Чертёж!$GN2340=1,Чертёж!GF2340,"") -> 23 | F29: =IF(Чертёж!$GN2340=1,Чертёж!GG2340,"") -> 0 | G29: =IF(Чертёж!$GN2340=1,Чертёж!GH2340,"") -> 0 | H29: =IF(Чертёж!$GN2340=1,Чертёж!GI2340,"") -> 82 | I29: =IF(Чертёж!$GN2340=1,Чертёж!GJ2340,"") -> 82 | J29: =IF(Чертёж!$GN2340=1,Чертёж!GK2340,"") -> 60.32572249 | K29: =IF(Чертёж!$GN2340=1,Чертёж!GL2340,"") -> 60.32572249
E30: =IF(Чертёж!$GN2341=1,Чертёж!GF2341,"") -> 24 | F30: =IF(Чертёж!$GN2341=1,Чертёж!GG2341,"") -> 0 | G30: =IF(Чертёж!$GN2341=1,Чертёж!GH2341,"") -> 0 | H30: =IF(Чертёж!$GN2341=1,Чертёж!GI2341,"") -> 82 | I30: =IF(Чертёж!$GN2341=1,Чертёж!GJ2341,"") -> 82 | J30: =IF(Чертёж!$GN2341=1,Чертёж!GK2341,"") -> 60.32572249 | K30: =IF(Чертёж!$GN2341=1,Чертёж!GL2341,"") -> 60.32572249
E31: =IF(Чертёж!$GN2342=1,Чертёж!GF2342,"") -> 25 | F31: =IF(Чертёж!$GN2342=1,Чертёж!GG2342,"") -> 0 | G31: =IF(Чертёж!$GN2342=1,Чертёж!GH2342,"") -> 0 | H31: =IF(Чертёж!$GN2342=1,Чертёж!GI2342,"") -> 82 | I31: =IF(Чертёж!$GN2342=1,Чертёж!GJ2342,"") -> 82 | J31: =IF(Чертёж!$GN2342=1,Чертёж!GK2342,"") -> 60.32572249 | K31: =IF(Чертёж!$GN2342=1,Чертёж!GL2342,"") -> 60.32572249
E32: =IF(Чертёж!$GN2343=1,Чертёж!GF2343,"") -> 26 | F32: =IF(Чертёж!$GN2343=1,Чертёж!GG2343,"") -> 0 | G32: =IF(Чертёж!$GN2343=1,Чертёж!GH2343,"") -> 0 | H32: =IF(Чертёж!$GN2343=1,Чертёж!GI2343,"") -> 82 | I32: =IF(Чертёж!$GN2343=1,Чертёж!GJ2343,"") -> 82 | J32: =IF(Чертёж!$GN2343=1,Чертёж!GK2343,"") -> 60.32572249 | K32: =IF(Чертёж!$GN2343=1,Чертёж!GL2343,"") -> 60.32572249
E33: =IF(Чертёж!$GN2344=1,Чертёж!GF2344,"") -> 27 | F33: =IF(Чертёж!$GN2344=1,Чертёж!GG2344,"") -> 0 | G33: =IF(Чертёж!$GN2344=1,Чертёж!GH2344,"") -> 0 | H33: =IF(Чертёж!$GN2344=1,Чертёж!GI2344,"") -> 82 | I33: =IF(Чертёж!$GN2344=1,Чертёж!GJ2344,"") -> 82 | J33: =IF(Чертёж!$GN2344=1,Чертёж!GK2344,"") -> 60.32572249 | K33: =IF(Чертёж!$GN2344=1,Чертёж!GL2344,"") -> 60.32572249
E34: =IF(Чертёж!$GN2345=1,Чертёж!GF2345,"") -> 28 | F34: =IF(Чертёж!$GN2345=1,Чертёж!GG2345,"") -> 0 | G34: =IF(Чертёж!$GN2345=1,Чертёж!GH2345,"") -> 0 | H34: =IF(Чертёж!$GN2345=1,Чертёж!GI2345,"") -> 82 | I34: =IF(Чертёж!$GN2345=1,Чертёж!GJ2345,"") -> 82 | J34: =IF(Чертёж!$GN2345=1,Чертёж!GK2345,"") -> 60.32572249 | K34: =IF(Чертёж!$GN2345=1,Чертёж!GL2345,"") -> 60.32572249
E35: =IF(Чертёж!$GN2346=1,Чертёж!GF2346,"") -> 29 | F35: =IF(Чертёж!$GN2346=1,Чертёж!GG2346,"") -> 0 | G35: =IF(Чертёж!$GN2346=1,Чертёж!GH2346,"") -> 0 | H35: =IF(Чертёж!$GN2346=1,Чертёж!GI2346,"") -> 82 | I35: =IF(Чертёж!$GN2346=1,Чертёж!GJ2346,"") -> 82 | J35: =IF(Чертёж!$GN2346=1,Чертёж!GK2346,"") -> 60.32572249 | K35: =IF(Чертёж!$GN2346=1,Чертёж!GL2346,"") -> 60.32572249
E36: =IF(Чертёж!$GN2347=1,Чертёж!GF2347,"") -> 30 | F36: =IF(Чертёж!$GN2347=1,Чертёж!GG2347,"") -> 0 | G36: =IF(Чертёж!$GN2347=1,Чертёж!GH2347,"") -> 0 | H36: =IF(Чертёж!$GN2347=1,Чертёж!GI2347,"") -> 82 | I36: =IF(Чертёж!$GN2347=1,Чертёж!GJ2347,"") -> 82 | J36: =IF(Чертёж!$GN2347=1,Чертёж!GK2347,"") -> 60.32572249 | K36: =IF(Чертёж!$GN2347=1,Чертёж!GL2347,"") -> 60.32572249
E37: =IF(Чертёж!$GN2348=1,Чертёж!GF2348,"") -> 31 | F37: =IF(Чертёж!$GN2348=1,Чертёж!GG2348,"") -> 0 | G37: =IF(Чертёж!$GN2348=1,Чертёж!GH2348,"") -> 0 | H37: =IF(Чертёж!$GN2348=1,Чертёж!GI2348,"") -> 82 | I37: =IF(Чертёж!$GN2348=1,Чертёж!GJ2348,"") -> 82 | J37: =IF(Чертёж!$GN2348=1,Чертёж!GK2348,"") -> 60.32572249 | K37: =IF(Чертёж!$GN2348=1,Чертёж!GL2348,"") -> 60.32572249
E38: =IF(Чертёж!$GN2349=1,Чертёж!GF2349,"") -> 32 | F38: =IF(Чертёж!$GN2349=1,Чертёж!GG2349,"") -> 0 | G38: =IF(Чертёж!$GN2349=1,Чертёж!GH2349,"") -> 0 | H38: =IF(Чертёж!$GN2349=1,Чертёж!GI2349,"") -> 82 | I38: =IF(Чертёж!$GN2349=1,Чертёж!GJ2349,"") -> 82 | J38: =IF(Чертёж!$GN2349=1,Чертёж!GK2349,"") -> 60.32572249 | K38: =IF(Чертёж!$GN2349=1,Чертёж!GL2349,"") -> 60.32572249
E39: =IF(Чертёж!$GN2350=1,Чертёж!GF2350,"") -> 33 | F39: =IF(Чертёж!$GN2350=1,Чертёж!GG2350,"") -> 0 | G39: =IF(Чертёж!$GN2350=1,Чертёж!GH2350,"") -> 0 | H39: =IF(Чертёж!$GN2350=1,Чертёж!GI2350,"") -> 82 | I39: =IF(Чертёж!$GN2350=1,Чертёж!GJ2350,"") -> 82 | J39: =IF(Чертёж!$GN2350=1,Чертёж!GK2350,"") -> 60.32572249 | K39: =IF(Чертёж!$GN2350=1,Чертёж!GL2350,"") -> 60.32572249
E40: =IF(Чертёж!$GN2351=1,Чертёж!GF2351,"") -> 34 | F40: =IF(Чертёж!$GN2351=1,Чертёж!GG2351,"") -> 0 | G40: =IF(Чертёж!$GN2351=1,Чертёж!GH2351,"") -> 0 | H40: =IF(Чертёж!$GN2351=1,Чертёж!GI2351,"") -> 82 | I40: =IF(Чертёж!$GN2351=1,Чертёж!GJ2351,"") -> 82 | J40: =IF(Чертёж!$GN2351=1,Чертёж!GK2351,"") -> 60.32572249 | K40: =IF(Чертёж!$GN2351=1,Чертёж!GL2351,"") -> 60.32572249
E41: =IF(Чертёж!$GN2352=1,Чертёж!GF2352,"") -> 35 | F41: =IF(Чертёж!$GN2352=1,Чертёж!GG2352,"") -> 0 | G41: =IF(Чертёж!$GN2352=1,Чертёж!GH2352,"") -> 0 | H41: =IF(Чертёж!$GN2352=1,Чертёж!GI2352,"") -> 82 | I41: =IF(Чертёж!$GN2352=1,Чертёж!GJ2352,"") -> 82 | J41: =IF(Чертёж!$GN2352=1,Чертёж!GK2352,"") -> 60.32572249 | K41: =IF(Чертёж!$GN2352=1,Чертёж!GL2352,"") -> 60.32572249
E42: =IF(Чертёж!$GN2353=1,Чертёж!GF2353,"") -> 36 | F42: =IF(Чертёж!$GN2353=1,Чертёж!GG2353,"") -> 0 | G42: =IF(Чертёж!$GN2353=1,Чертёж!GH2353,"") -> 0 | H42: =IF(Чертёж!$GN2353=1,Чертёж!GI2353,"") -> 82 | I42: =IF(Чертёж!$GN2353=1,Чертёж!GJ2353,"") -> 82 | J42: =IF(Чертёж!$GN2353=1,Чертёж!GK2353,"") -> 60.32572249 | K42: =IF(Чертёж!$GN2353=1,Чертёж!GL2353,"") -> 60.32572249
E43: =IF(Чертёж!$GN2354=1,Чертёж!GF2354,"") -> 37 | F43: =IF(Чертёж!$GN2354=1,Чертёж!GG2354,"") -> 0 | G43: =IF(Чертёж!$GN2354=1,Чертёж!GH2354,"") -> 0 | H43: =IF(Чертёж!$GN2354=1,Чертёж!GI2354,"") -> 82 | I43: =IF(Чертёж!$GN2354=1,Чертёж!GJ2354,"") -> 82 | J43: =IF(Чертёж!$GN2354=1,Чертёж!GK2354,"") -> 60.32572249 | K43: =IF(Чертёж!$GN2354=1,Чертёж!GL2354,"") -> 60.32572249
E44: =IF(Чертёж!$GN2355=1,Чертёж!GF2355,"") -> 38 | F44: =IF(Чертёж!$GN2355=1,Чертёж!GG2355,"") -> 0 | G44: =IF(Чертёж!$GN2355=1,Чертёж!GH2355,"") -> 0 | H44: =IF(Чертёж!$GN2355=1,Чертёж!GI2355,"") -> 82 | I44: =IF(Чертёж!$GN2355=1,Чертёж!GJ2355,"") -> 82 | J44: =IF(Чертёж!$GN2355=1,Чертёж!GK2355,"") -> 60.32572249 | K44: =IF(Чертёж!$GN2355=1,Чертёж!GL2355,"") -> 60.32572249
E45: =IF(Чертёж!$GN2356=1,Чертёж!GF2356,"") -> 39 | F45: =IF(Чертёж!$GN2356=1,Чертёж!GG2356,"") -> 0 | G45: =IF(Чертёж!$GN2356=1,Чертёж!GH2356,"") -> 0 | H45: =IF(Чертёж!$GN2356=1,Чертёж!GI2356,"") -> 82 | I45: =IF(Чертёж!$GN2356=1,Чертёж!GJ2356,"") -> 82 | J45: =IF(Чертёж!$GN2356=1,Чертёж!GK2356,"") -> 60.32572249 | K45: =IF(Чертёж!$GN2356=1,Чертёж!GL2356,"") -> 60.32572249
E46: =IF(Чертёж!$GN2357=1,Чертёж!GF2357,"") -> 40 | F46: =IF(Чертёж!$GN2357=1,Чертёж!GG2357,"") -> 0 | G46: =IF(Чертёж!$GN2357=1,Чертёж!GH2357,"") -> 0 | H46: =IF(Чертёж!$GN2357=1,Чертёж!GI2357,"") -> 82 | I46: =IF(Чертёж!$GN2357=1,Чертёж!GJ2357,"") -> 82 | J46: =IF(Чертёж!$GN2357=1,Чертёж!GK2357,"") -> 60.32572249 | K46: =IF(Чертёж!$GN2357=1,Чертёж!GL2357,"") -> 60.32572249
E47: =IF(Чертёж!$GN2358=1,Чертёж!GF2358,"") -> 41 | F47: =IF(Чертёж!$GN2358=1,Чертёж!GG2358,"") -> 0 | G47: =IF(Чертёж!$GN2358=1,Чертёж!GH2358,"") -> 0 | H47: =IF(Чертёж!$GN2358=1,Чертёж!GI2358,"") -> 82 | I47: =IF(Чертёж!$GN2358=1,Чертёж!GJ2358,"") -> 82 | J47: =IF(Чертёж!$GN2358=1,Чертёж!GK2358,"") -> 60.32572249 | K47: =IF(Чертёж!$GN2358=1,Чертёж!GL2358,"") -> 60.32572249
E48: =IF(Чертёж!$GN2359=1,Чертёж!GF2359,"") -> 42 | F48: =IF(Чертёж!$GN2359=1,Чертёж!GG2359,"") -> 0 | G48: =IF(Чертёж!$GN2359=1,Чертёж!GH2359,"") -> 0 | H48: =IF(Чертёж!$GN2359=1,Чертёж!GI2359,"") -> 82 | I48: =IF(Чертёж!$GN2359=1,Чертёж!GJ2359,"") -> 82 | J48: =IF(Чертёж!$GN2359=1,Чертёж!GK2359,"") -> 60.32572249 | K48: =IF(Чертёж!$GN2359=1,Чертёж!GL2359,"") -> 60.32572249
E49: =IF(Чертёж!$GN2360=1,Чертёж!GF2360,"") -> 43 | F49: =IF(Чертёж!$GN2360=1,Чертёж!GG2360,"") -> 0 | G49: =IF(Чертёж!$GN2360=1,Чертёж!GH2360,"") -> 0 | H49: =IF(Чертёж!$GN2360=1,Чертёж!GI2360,"") -> 82 | I49: =IF(Чертёж!$GN2360=1,Чертёж!GJ2360,"") -> 82 | J49: =IF(Чертёж!$GN2360=1,Чертёж!GK2360,"") -> 60.32572249 | K49: =IF(Чертёж!$GN2360=1,Чертёж!GL2360,"") -> 60.32572249
E50: =IF(Чертёж!$GN2361=1,Чертёж!GF2361,"") -> 44 | F50: =IF(Чертёж!$GN2361=1,Чертёж!GG2361,"") -> 0 | G50: =IF(Чертёж!$GN2361=1,Чертёж!GH2361,"") -> 0 | H50: =IF(Чертёж!$GN2361=1,Чертёж!GI2361,"") -> 82 | I50: =IF(Чертёж!$GN2361=1,Чертёж!GJ2361,"") -> 82 | J50: =IF(Чертёж!$GN2361=1,Чертёж!GK2361,"") -> 60.32572249 | K50: =IF(Чертёж!$GN2361=1,Чертёж!GL2361,"") -> 60.32572249
E51: =IF(Чертёж!$GN2362=1,Чертёж!GF2362,"") -> 45 | F51: =IF(Чертёж!$GN2362=1,Чертёж!GG2362,"") -> 0 | G51: =IF(Чертёж!$GN2362=1,Чертёж!GH2362,"") -> 0 | H51: =IF(Чертёж!$GN2362=1,Чертёж!GI2362,"") -> 82 | I51: =IF(Чертёж!$GN2362=1,Чертёж!GJ2362,"") -> 82 | J51: =IF(Чертёж!$GN2362=1,Чертёж!GK2362,"") -> 60.32572249 | K51: =IF(Чертёж!$GN2362=1,Чертёж!GL2362,"") -> 60.32572249
E52: =IF(Чертёж!$GN2363=1,Чертёж!GF2363,"") -> 46 | F52: =IF(Чертёж!$GN2363=1,Чертёж!GG2363,"") -> 0 | G52: =IF(Чертёж!$GN2363=1,Чертёж!GH2363,"") -> 0 | H52: =IF(Чертёж!$GN2363=1,Чертёж!GI2363,"") -> 82 | I52: =IF(Чертёж!$GN2363=1,Чертёж!GJ2363,"") -> 82 | J52: =IF(Чертёж!$GN2363=1,Чертёж!GK2363,"") -> 60.32572249 | K52: =IF(Чертёж!$GN2363=1,Чертёж!GL2363,"") -> 60.32572249
E53: =IF(Чертёж!$GN2364=1,Чертёж!GF2364,"") -> 47 | F53: =IF(Чертёж!$GN2364=1,Чертёж!GG2364,"") -> 0 | G53: =IF(Чертёж!$GN2364=1,Чертёж!GH2364,"") -> 0 | H53: =IF(Чертёж!$GN2364=1,Чертёж!GI2364,"") -> 82 | I53: =IF(Чертёж!$GN2364=1,Чертёж!GJ2364,"") -> 82 | J53: =IF(Чертёж!$GN2364=1,Чертёж!GK2364,"") -> 60.32572249 | K53: =IF(Чертёж!$GN2364=1,Чертёж!GL2364,"") -> 60.32572249
E54: =IF(Чертёж!$GN2365=1,Чертёж!GF2365,"") -> 48 | F54: =IF(Чертёж!$GN2365=1,Чертёж!GG2365,"") -> 0 | G54: =IF(Чертёж!$GN2365=1,Чертёж!GH2365,"") -> 0 | H54: =IF(Чертёж!$GN2365=1,Чертёж!GI2365,"") -> 82 | I54: =IF(Чертёж!$GN2365=1,Чертёж!GJ2365,"") -> 82 | J54: =IF(Чертёж!$GN2365=1,Чертёж!GK2365,"") -> 60.32572249 | K54: =IF(Чертёж!$GN2365=1,Чертёж!GL2365,"") -> 60.32572249
E55: =IF(Чертёж!$GN2366=1,Чертёж!GF2366,"") -> 49 | F55: =IF(Чертёж!$GN2366=1,Чертёж!GG2366,"") -> 0 | G55: =IF(Чертёж!$GN2366=1,Чертёж!GH2366,"") -> 0 | H55: =IF(Чертёж!$GN2366=1,Чертёж!GI2366,"") -> 82 | I55: =IF(Чертёж!$GN2366=1,Чертёж!GJ2366,"") -> 82 | J55: =IF(Чертёж!$GN2366=1,Чертёж!GK2366,"") -> 60.32572249 | K55: =IF(Чертёж!$GN2366=1,Чертёж!GL2366,"") -> 60.32572249
E56: =IF(Чертёж!$GN2367=1,Чертёж!GF2367,"") -> 50 | F56: =IF(Чертёж!$GN2367=1,Чертёж!GG2367,"") -> 0 | G56: =IF(Чертёж!$GN2367=1,Чертёж!GH2367,"") -> 0 | H56: =IF(Чертёж!$GN2367=1,Чертёж!GI2367,"") -> 82 | I56: =IF(Чертёж!$GN2367=1,Чертёж!GJ2367,"") -> 82 | J56: =IF(Чертёж!$GN2367=1,Чертёж!GK2367,"") -> 60.32572249 | K56: =IF(Чертёж!$GN2367=1,Чертёж!GL2367,"") -> 60.32572249
E57: =IF(Чертёж!$GN2368=1,Чертёж!GF2368,"") -> 51 | F57: =IF(Чертёж!$GN2368=1,Чертёж!GG2368,"") -> 0 | G57: =IF(Чертёж!$GN2368=1,Чертёж!GH2368,"") -> 0 | H57: =IF(Чертёж!$GN2368=1,Чертёж!GI2368,"") -> 82 | I57: =IF(Чертёж!$GN2368=1,Чертёж!GJ2368,"") -> 82 | J57: =IF(Чертёж!$GN2368=1,Чертёж!GK2368,"") -> 60.32572249 | K57: =IF(Чертёж!$GN2368=1,Чертёж!GL2368,"") -> 60.32572249
E58: =IF(Чертёж!$GN2369=1,Чертёж!GF2369,"") -> 52 | F58: =IF(Чертёж!$GN2369=1,Чертёж!GG2369,"") -> 0 | G58: =IF(Чертёж!$GN2369=1,Чертёж!GH2369,"") -> 0 | H58: =IF(Чертёж!$GN2369=1,Чертёж!GI2369,"") -> 82 | I58: =IF(Чертёж!$GN2369=1,Чертёж!GJ2369,"") -> 82 | J58: =IF(Чертёж!$GN2369=1,Чертёж!GK2369,"") -> 60.32572249 | K58: =IF(Чертёж!$GN2369=1,Чертёж!GL2369,"") -> 60.32572249
E59: =IF(Чертёж!$GN2370=1,Чертёж!GF2370,"") -> 53 | F59: =IF(Чертёж!$GN2370=1,Чертёж!GG2370,"") -> 0 | G59: =IF(Чертёж!$GN2370=1,Чертёж!GH2370,"") -> 0 | H59: =IF(Чертёж!$GN2370=1,Чертёж!GI2370,"") -> 82 | I59: =IF(Чертёж!$GN2370=1,Чертёж!GJ2370,"") -> 82 | J59: =IF(Чертёж!$GN2370=1,Чертёж!GK2370,"") -> 60.32572249 | K59: =IF(Чертёж!$GN2370=1,Чертёж!GL2370,"") -> 60.32572249
E60: =IF(Чертёж!$GN2371=1,Чертёж!GF2371,"") -> 54 | F60: =IF(Чертёж!$GN2371=1,Чертёж!GG2371,"") -> 0 | G60: =IF(Чертёж!$GN2371=1,Чертёж!GH2371,"") -> 0 | H60: =IF(Чертёж!$GN2371=1,Чертёж!GI2371,"") -> 82 | I60: =IF(Чертёж!$GN2371=1,Чертёж!GJ2371,"") -> 82 | J60: =IF(Чертёж!$GN2371=1,Чертёж!GK2371,"") -> 60.32572249 | K60: =IF(Чертёж!$GN2371=1,Чертёж!GL2371,"") -> 60.32572249
E61: =IF(Чертёж!$GN2372=1,Чертёж!GF2372,"") -> 55 | F61: =IF(Чертёж!$GN2372=1,Чертёж!GG2372,"") -> 0 | G61: =IF(Чертёж!$GN2372=1,Чертёж!GH2372,"") -> 0 | H61: =IF(Чертёж!$GN2372=1,Чертёж!GI2372,"") -> 82 | I61: =IF(Чертёж!$GN2372=1,Чертёж!GJ2372,"") -> 82 | J61: =IF(Чертёж!$GN2372=1,Чертёж!GK2372,"") -> 60.32572249 | K61: =IF(Чертёж!$GN2372=1,Чертёж!GL2372,"") -> 60.32572249
E62: =IF(Чертёж!$GN2373=1,Чертёж!GF2373,"") -> 56 | F62: =IF(Чертёж!$GN2373=1,Чертёж!GG2373,"") -> 0 | G62: =IF(Чертёж!$GN2373=1,Чертёж!GH2373,"") -> 0 | H62: =IF(Чертёж!$GN2373=1,Чертёж!GI2373,"") -> 82 | I62: =IF(Чертёж!$GN2373=1,Чертёж!GJ2373,"") -> 82 | J62: =IF(Чертёж!$GN2373=1,Чертёж!GK2373,"") -> 60.32572249 | K62: =IF(Чертёж!$GN2373=1,Чертёж!GL2373,"") -> 60.32572249
E63: =IF(Чертёж!$GN2374=1,Чертёж!GF2374,"") -> 57 | F63: =IF(Чертёж!$GN2374=1,Чертёж!GG2374,"") -> 0 | G63: =IF(Чертёж!$GN2374=1,Чертёж!GH2374,"") -> 0 | H63: =IF(Чертёж!$GN2374=1,Чертёж!GI2374,"") -> 82 | I63: =IF(Чертёж!$GN2374=1,Чертёж!GJ2374,"") -> 82 | J63: =IF(Чертёж!$GN2374=1,Чертёж!GK2374,"") -> 60.32572249 | K63: =IF(Чертёж!$GN2374=1,Чертёж!GL2374,"") -> 60.32572249
E64: =IF(Чертёж!$GN2375=1,Чертёж!GF2375,"") -> 58 | F64: =IF(Чертёж!$GN2375=1,Чертёж!GG2375,"") -> 0 | G64: =IF(Чертёж!$GN2375=1,Чертёж!GH2375,"") -> 0 | H64: =IF(Чертёж!$GN2375=1,Чертёж!GI2375,"") -> 82 | I64: =IF(Чертёж!$GN2375=1,Чертёж!GJ2375,"") -> 82 | J64: =IF(Чертёж!$GN2375=1,Чертёж!GK2375,"") -> 60.32572249 | K64: =IF(Чертёж!$GN2375=1,Чертёж!GL2375,"") -> 60.32572249
E65: =IF(Чертёж!$GN2376=1,Чертёж!GF2376,"") -> 59 | F65: =IF(Чертёж!$GN2376=1,Чертёж!GG2376,"") -> 0 | G65: =IF(Чертёж!$GN2376=1,Чертёж!GH2376,"") -> 0 | H65: =IF(Чертёж!$GN2376=1,Чертёж!GI2376,"") -> 82 | I65: =IF(Чертёж!$GN2376=1,Чертёж!GJ2376,"") -> 82 | J65: =IF(Чертёж!$GN2376=1,Чертёж!GK2376,"") -> 60.32572249 | K65: =IF(Чертёж!$GN2376=1,Чертёж!GL2376,"") -> 60.32572249
E66: =IF(Чертёж!$GN2377=1,Чертёж!GF2377,"") -> 60 | F66: =IF(Чертёж!$GN2377=1,Чертёж!GG2377,"") -> 0 | G66: =IF(Чертёж!$GN2377=1,Чертёж!GH2377,"") -> 0 | H66: =IF(Чертёж!$GN2377=1,Чертёж!GI2377,"") -> 82 | I66: =IF(Чертёж!$GN2377=1,Чертёж!GJ2377,"") -> 82 | J66: =IF(Чертёж!$GN2377=1,Чертёж!GK2377,"") -> 60.32572249 | K66: =IF(Чертёж!$GN2377=1,Чертёж!GL2377,"") -> 60.32572249
E67: =IF(Чертёж!$GN2378=1,Чертёж!GF2378,"") -> 61 | F67: =IF(Чертёж!$GN2378=1,Чертёж!GG2378,"") -> 0 | G67: =IF(Чертёж!$GN2378=1,Чертёж!GH2378,"") -> 0 | H67: =IF(Чертёж!$GN2378=1,Чертёж!GI2378,"") -> 82 | I67: =IF(Чертёж!$GN2378=1,Чертёж!GJ2378,"") -> 82 | J67: =IF(Чертёж!$GN2378=1,Чертёж!GK2378,"") -> 60.32572249 | K67: =IF(Чертёж!$GN2378=1,Чертёж!GL2378,"") -> 60.32572249
E68: =IF(Чертёж!$GN2379=1,Чертёж!GF2379,"") -> 62 | F68: =IF(Чертёж!$GN2379=1,Чертёж!GG2379,"") -> 0 | G68: =IF(Чертёж!$GN2379=1,Чертёж!GH2379,"") -> 0 | H68: =IF(Чертёж!$GN2379=1,Чертёж!GI2379,"") -> 82 | I68: =IF(Чертёж!$GN2379=1,Чертёж!GJ2379,"") -> 82 | J68: =IF(Чертёж!$GN2379=1,Чертёж!GK2379,"") -> 60.32572249 | K68: =IF(Чертёж!$GN2379=1,Чертёж!GL2379,"") -> 60.32572249
E69: =IF(Чертёж!$GN2380=1,Чертёж!GF2380,"") -> 63 | F69: =IF(Чертёж!$GN2380=1,Чертёж!GG2380,"") -> 0 | G69: =IF(Чертёж!$GN2380=1,Чертёж!GH2380,"") -> 0 | H69: =IF(Чертёж!$GN2380=1,Чертёж!GI2380,"") -> 82 | I69: =IF(Чертёж!$GN2380=1,Чертёж!GJ2380,"") -> 82 | J69: =IF(Чертёж!$GN2380=1,Чертёж!GK2380,"") -> 60.32572249 | K69: =IF(Чертёж!$GN2380=1,Чертёж!GL2380,"") -> 60.32572249
E70: =IF(Чертёж!$GN2381=1,Чертёж!GF2381,"") -> 64 | F70: =IF(Чертёж!$GN2381=1,Чертёж!GG2381,"") -> 0 | G70: =IF(Чертёж!$GN2381=1,Чертёж!GH2381,"") -> 0 | H70: =IF(Чертёж!$GN2381=1,Чертёж!GI2381,"") -> 82 | I70: =IF(Чертёж!$GN2381=1,Чертёж!GJ2381,"") -> 82 | J70: =IF(Чертёж!$GN2381=1,Чертёж!GK2381,"") -> 60.32572249 | K70: =IF(Чертёж!$GN2381=1,Чертёж!GL2381,"") -> 60.32572249
E71: =IF(Чертёж!$GN2382=1,Чертёж!GF2382,"") -> 65 | F71: =IF(Чертёж!$GN2382=1,Чертёж!GG2382,"") -> 0 | G71: =IF(Чертёж!$GN2382=1,Чертёж!GH2382,"") -> 0 | H71: =IF(Чертёж!$GN2382=1,Чертёж!GI2382,"") -> 82 | I71: =IF(Чертёж!$GN2382=1,Чертёж!GJ2382,"") -> 82 | J71: =IF(Чертёж!$GN2382=1,Чертёж!GK2382,"") -> 60.32572249 | K71: =IF(Чертёж!$GN2382=1,Чертёж!GL2382,"") -> 60.32572249
E72: =IF(Чертёж!$GN2383=1,Чертёж!GF2383,"") -> 66 | F72: =IF(Чертёж!$GN2383=1,Чертёж!GG2383,"") -> 0 | G72: =IF(Чертёж!$GN2383=1,Чертёж!GH2383,"") -> 0 | H72: =IF(Чертёж!$GN2383=1,Чертёж!GI2383,"") -> 82 | I72: =IF(Чертёж!$GN2383=1,Чертёж!GJ2383,"") -> 82 | J72: =IF(Чертёж!$GN2383=1,Чертёж!GK2383,"") -> 60.32572249 | K72: =IF(Чертёж!$GN2383=1,Чертёж!GL2383,"") -> 60.32572249
E73: =IF(Чертёж!$GN2384=1,Чертёж!GF2384,"") -> 67 | F73: =IF(Чертёж!$GN2384=1,Чертёж!GG2384,"") -> 0 | G73: =IF(Чертёж!$GN2384=1,Чертёж!GH2384,"") -> 0 | H73: =IF(Чертёж!$GN2384=1,Чертёж!GI2384,"") -> 82 | I73: =IF(Чертёж!$GN2384=1,Чертёж!GJ2384,"") -> 82 | J73: =IF(Чертёж!$GN2384=1,Чертёж!GK2384,"") -> 60.32572249 | K73: =IF(Чертёж!$GN2384=1,Чертёж!GL2384,"") -> 60.32572249
E74: =IF(Чертёж!$GN2385=1,Чертёж!GF2385,"") -> 68 | F74: =IF(Чертёж!$GN2385=1,Чертёж!GG2385,"") -> 0 | G74: =IF(Чертёж!$GN2385=1,Чертёж!GH2385,"") -> 0 | H74: =IF(Чертёж!$GN2385=1,Чертёж!GI2385,"") -> 82 | I74: =IF(Чертёж!$GN2385=1,Чертёж!GJ2385,"") -> 82 | J74: =IF(Чертёж!$GN2385=1,Чертёж!GK2385,"") -> 60.32572249 | K74: =IF(Чертёж!$GN2385=1,Чертёж!GL2385,"") -> 60.32572249
E75: =IF(Чертёж!$GN2386=1,Чертёж!GF2386,"") -> 69 | F75: =IF(Чертёж!$GN2386=1,Чертёж!GG2386,"") -> 0 | G75: =IF(Чертёж!$GN2386=1,Чертёж!GH2386,"") -> 0 | H75: =IF(Чертёж!$GN2386=1,Чертёж!GI2386,"") -> 82 | I75: =IF(Чертёж!$GN2386=1,Чертёж!GJ2386,"") -> 82 | J75: =IF(Чертёж!$GN2386=1,Чертёж!GK2386,"") -> 60.32572249 | K75: =IF(Чертёж!$GN2386=1,Чертёж!GL2386,"") -> 60.32572249
E76: =IF(Чертёж!$GN2387=1,Чертёж!GF2387,"") -> 70 | F76: =IF(Чертёж!$GN2387=1,Чертёж!GG2387,"") -> 0 | G76: =IF(Чертёж!$GN2387=1,Чертёж!GH2387,"") -> 0 | H76: =IF(Чертёж!$GN2387=1,Чертёж!GI2387,"") -> 82 | I76: =IF(Чертёж!$GN2387=1,Чертёж!GJ2387,"") -> 82 | J76: =IF(Чертёж!$GN2387=1,Чертёж!GK2387,"") -> 60.32572249 | K76: =IF(Чертёж!$GN2387=1,Чертёж!GL2387,"") -> 60.32572249
E77: =IF(Чертёж!$GN2388=1,Чертёж!GF2388,"") -> 71 | F77: =IF(Чертёж!$GN2388=1,Чертёж!GG2388,"") -> 0 | G77: =IF(Чертёж!$GN2388=1,Чертёж!GH2388,"") -> 0 | H77: =IF(Чертёж!$GN2388=1,Чертёж!GI2388,"") -> 82 | I77: =IF(Чертёж!$GN2388=1,Чертёж!GJ2388,"") -> 82 | J77: =IF(Чертёж!$GN2388=1,Чертёж!GK2388,"") -> 60.32572249 | K77: =IF(Чертёж!$GN2388=1,Чертёж!GL2388,"") -> 60.32572249
E78: =IF(Чертёж!$GN2389=1,Чертёж!GF2389,"") -> 72 | F78: =IF(Чертёж!$GN2389=1,Чертёж!GG2389,"") -> 0 | G78: =IF(Чертёж!$GN2389=1,Чертёж!GH2389,"") -> 0 | H78: =IF(Чертёж!$GN2389=1,Чертёж!GI2389,"") -> 82 | I78: =IF(Чертёж!$GN2389=1,Чертёж!GJ2389,"") -> 82 | J78: =IF(Чертёж!$GN2389=1,Чертёж!GK2389,"") -> 60.32572249 | K78: =IF(Чертёж!$GN2389=1,Чертёж!GL2389,"") -> 60.32572249
E79: =IF(Чертёж!$GN2390=1,Чертёж!GF2390,"") -> 73 | F79: =IF(Чертёж!$GN2390=1,Чертёж!GG2390,"") -> 0 | G79: =IF(Чертёж!$GN2390=1,Чертёж!GH2390,"") -> 0 | H79: =IF(Чертёж!$GN2390=1,Чертёж!GI2390,"") -> 82 | I79: =IF(Чертёж!$GN2390=1,Чертёж!GJ2390,"") -> 82 | J79: =IF(Чертёж!$GN2390=1,Чертёж!GK2390,"") -> 60.32572249 | K79: =IF(Чертёж!$GN2390=1,Чертёж!GL2390,"") -> 60.32572249
E80: =IF(Чертёж!$GN2391=1,Чертёж!GF2391,"") -> 74 | F80: =IF(Чертёж!$GN2391=1,Чертёж!GG2391,"") -> 0 | G80: =IF(Чертёж!$GN2391=1,Чертёж!GH2391,"") -> 0 | H80: =IF(Чертёж!$GN2391=1,Чертёж!GI2391,"") -> 82 | I80: =IF(Чертёж!$GN2391=1,Чертёж!GJ2391,"") -> 82 | J80: =IF(Чертёж!$GN2391=1,Чертёж!GK2391,"") -> 60.32572249 | K80: =IF(Чертёж!$GN2391=1,Чертёж!GL2391,"") -> 60.32572249
E81: =IF(Чертёж!$GN2392=1,Чертёж!GF2392,"") -> 75 | F81: =IF(Чертёж!$GN2392=1,Чертёж!GG2392,"") -> 0 | G81: =IF(Чертёж!$GN2392=1,Чертёж!GH2392,"") -> 0 | H81: =IF(Чертёж!$GN2392=1,Чертёж!GI2392,"") -> 82 | I81: =IF(Чертёж!$GN2392=1,Чертёж!GJ2392,"") -> 82 | J81: =IF(Чертёж!$GN2392=1,Чертёж!GK2392,"") -> 60.32572249 | K81: =IF(Чертёж!$GN2392=1,Чертёж!GL2392,"") -> 60.32572249
E82: =IF(Чертёж!$GN2393=1,Чертёж!GF2393,"") -> 76 | F82: =IF(Чертёж!$GN2393=1,Чертёж!GG2393,"") -> 0 | G82: =IF(Чертёж!$GN2393=1,Чертёж!GH2393,"") -> 0 | H82: =IF(Чертёж!$GN2393=1,Чертёж!GI2393,"") -> 82 | I82: =IF(Чертёж!$GN2393=1,Чертёж!GJ2393,"") -> 82 | J82: =IF(Чертёж!$GN2393=1,Чертёж!GK2393,"") -> 60.32572249 | K82: =IF(Чертёж!$GN2393=1,Чертёж!GL2393,"") -> 60.32572249
E83: =IF(Чертёж!$GN2394=1,Чертёж!GF2394,"") -> 77 | F83: =IF(Чертёж!$GN2394=1,Чертёж!GG2394,"") -> 0 | G83: =IF(Чертёж!$GN2394=1,Чертёж!GH2394,"") -> 0 | H83: =IF(Чертёж!$GN2394=1,Чертёж!GI2394,"") -> 82 | I83: =IF(Чертёж!$GN2394=1,Чертёж!GJ2394,"") -> 82 | J83: =IF(Чертёж!$GN2394=1,Чертёж!GK2394,"") -> 60.32572249 | K83: =IF(Чертёж!$GN2394=1,Чертёж!GL2394,"") -> 60.32572249
E84: =IF(Чертёж!$GN2395=1,Чертёж!GF2395,"") -> 78 | F84: =IF(Чертёж!$GN2395=1,Чертёж!GG2395,"") -> 0 | G84: =IF(Чертёж!$GN2395=1,Чертёж!GH2395,"") -> 0 | H84: =IF(Чертёж!$GN2395=1,Чертёж!GI2395,"") -> 82 | I84: =IF(Чертёж!$GN2395=1,Чертёж!GJ2395,"") -> 82 | J84: =IF(Чертёж!$GN2395=1,Чертёж!GK2395,"") -> 60.32572249 | K84: =IF(Чертёж!$GN2395=1,Чертёж!GL2395,"") -> 60.32572249
E85: =IF(Чертёж!$GN2396=1,Чертёж!GF2396,"") -> 79 | F85: =IF(Чертёж!$GN2396=1,Чертёж!GG2396,"") -> 0 | G85: =IF(Чертёж!$GN2396=1,Чертёж!GH2396,"") -> 0 | H85: =IF(Чертёж!$GN2396=1,Чертёж!GI2396,"") -> 82 | I85: =IF(Чертёж!$GN2396=1,Чертёж!GJ2396,"") -> 82 | J85: =IF(Чертёж!$GN2396=1,Чертёж!GK2396,"") -> 60.32572249 | K85: =IF(Чертёж!$GN2396=1,Чертёж!GL2396,"") -> 60.32572249
E86: =IF(Чертёж!$GN2397=1,Чертёж!GF2397,"") -> 80 | F86: =IF(Чертёж!$GN2397=1,Чертёж!GG2397,"") -> 0 | G86: =IF(Чертёж!$GN2397=1,Чертёж!GH2397,"") -> 0 | H86: =IF(Чертёж!$GN2397=1,Чертёж!GI2397,"") -> 82 | I86: =IF(Чертёж!$GN2397=1,Чертёж!GJ2397,"") -> 82 | J86: =IF(Чертёж!$GN2397=1,Чертёж!GK2397,"") -> 60.32572249 | K86: =IF(Чертёж!$GN2397=1,Чертёж!GL2397,"") -> 60.32572249
E87: =IF(Чертёж!$GN2398=1,Чертёж!GF2398,"") -> 81 | F87: =IF(Чертёж!$GN2398=1,Чертёж!GG2398,"") -> 0 | G87: =IF(Чертёж!$GN2398=1,Чертёж!GH2398,"") -> 0 | H87: =IF(Чертёж!$GN2398=1,Чертёж!GI2398,"") -> 82 | I87: =IF(Чертёж!$GN2398=1,Чертёж!GJ2398,"") -> 82 | J87: =IF(Чертёж!$GN2398=1,Чертёж!GK2398,"") -> 60.32572249 | K87: =IF(Чертёж!$GN2398=1,Чертёж!GL2398,"") -> 60.32572249
E88: =IF(Чертёж!$GN2399=1,Чертёж!GF2399,"") -> 82 | F88: =IF(Чертёж!$GN2399=1,Чертёж!GG2399,"") -> 0 | G88: =IF(Чертёж!$GN2399=1,Чертёж!GH2399,"") -> 0 | H88: =IF(Чертёж!$GN2399=1,Чертёж!GI2399,"") -> 82 | I88: =IF(Чертёж!$GN2399=1,Чертёж!GJ2399,"") -> 82 | J88: =IF(Чертёж!$GN2399=1,Чертёж!GK2399,"") -> 60.32572249 | K88: =IF(Чертёж!$GN2399=1,Чертёж!GL2399,"") -> 60.32572249
E89: =IF(Чертёж!$GN2400=1,Чертёж!GF2400,"") -> 83 | F89: =IF(Чертёж!$GN2400=1,Чертёж!GG2400,"") -> 0 | G89: =IF(Чертёж!$GN2400=1,Чертёж!GH2400,"") -> 0 | H89: =IF(Чертёж!$GN2400=1,Чертёж!GI2400,"") -> 82 | I89: =IF(Чертёж!$GN2400=1,Чертёж!GJ2400,"") -> 82 | J89: =IF(Чертёж!$GN2400=1,Чертёж!GK2400,"") -> 60.32572249 | K89: =IF(Чертёж!$GN2400=1,Чертёж!GL2400,"") -> 60.32572249
E90: =IF(Чертёж!$GN2401=1,Чертёж!GF2401,"") -> 84 | F90: =IF(Чертёж!$GN2401=1,Чертёж!GG2401,"") -> 0 | G90: =IF(Чертёж!$GN2401=1,Чертёж!GH2401,"") -> 0 | H90: =IF(Чертёж!$GN2401=1,Чертёж!GI2401,"") -> 82 | I90: =IF(Чертёж!$GN2401=1,Чертёж!GJ2401,"") -> 82 | J90: =IF(Чертёж!$GN2401=1,Чертёж!GK2401,"") -> 60.32572249 | K90: =IF(Чертёж!$GN2401=1,Чертёж!GL2401,"") -> 60.32572249
E91: =IF(Чертёж!$GN2402=1,Чертёж!GF2402,"") -> 85 | F91: =IF(Чертёж!$GN2402=1,Чертёж!GG2402,"") -> 0 | G91: =IF(Чертёж!$GN2402=1,Чертёж!GH2402,"") -> 0 | H91: =IF(Чертёж!$GN2402=1,Чертёж!GI2402,"") -> 82 | I91: =IF(Чертёж!$GN2402=1,Чертёж!GJ2402,"") -> 82 | J91: =IF(Чертёж!$GN2402=1,Чертёж!GK2402,"") -> 60.32572249 | K91: =IF(Чертёж!$GN2402=1,Чертёж!GL2402,"") -> 60.32572249
E92: =IF(Чертёж!$GN2403=1,Чертёж!GF2403,"") -> 86 | F92: =IF(Чертёж!$GN2403=1,Чертёж!GG2403,"") -> 0 | G92: =IF(Чертёж!$GN2403=1,Чертёж!GH2403,"") -> 0 | H92: =IF(Чертёж!$GN2403=1,Чертёж!GI2403,"") -> 82 | I92: =IF(Чертёж!$GN2403=1,Чертёж!GJ2403,"") -> 82 | J92: =IF(Чертёж!$GN2403=1,Чертёж!GK2403,"") -> 60.32572249 | K92: =IF(Чертёж!$GN2403=1,Чертёж!GL2403,"") -> 60.32572249
E93: =IF(Чертёж!$GN2404=1,Чертёж!GF2404,"") -> 87 | F93: =IF(Чертёж!$GN2404=1,Чертёж!GG2404,"") -> 0 | G93: =IF(Чертёж!$GN2404=1,Чертёж!GH2404,"") -> 0 | H93: =IF(Чертёж!$GN2404=1,Чертёж!GI2404,"") -> 82 | I93: =IF(Чертёж!$GN2404=1,Чертёж!GJ2404,"") -> 82 | J93: =IF(Чертёж!$GN2404=1,Чертёж!GK2404,"") -> 60.32572249 | K93: =IF(Чертёж!$GN2404=1,Чертёж!GL2404,"") -> 60.32572249
E94: =IF(Чертёж!$GN2405=1,Чертёж!GF2405,"") -> 88 | F94: =IF(Чертёж!$GN2405=1,Чертёж!GG2405,"") -> 0 | G94: =IF(Чертёж!$GN2405=1,Чертёж!GH2405,"") -> 0 | H94: =IF(Чертёж!$GN2405=1,Чертёж!GI2405,"") -> 82 | I94: =IF(Чертёж!$GN2405=1,Чертёж!GJ2405,"") -> 82 | J94: =IF(Чертёж!$GN2405=1,Чертёж!GK2405,"") -> 60.32572249 | K94: =IF(Чертёж!$GN2405=1,Чертёж!GL2405,"") -> 60.32572249
E95: =IF(Чертёж!$GN2406=1,Чертёж!GF2406,"") -> 89 | F95: =IF(Чертёж!$GN2406=1,Чертёж!GG2406,"") -> 0 | G95: =IF(Чертёж!$GN2406=1,Чертёж!GH2406,"") -> 0 | H95: =IF(Чертёж!$GN2406=1,Чертёж!GI2406,"") -> 82 | I95: =IF(Чертёж!$GN2406=1,Чертёж!GJ2406,"") -> 82 | J95: =IF(Чертёж!$GN2406=1,Чертёж!GK2406,"") -> 60.32572249 | K95: =IF(Чертёж!$GN2406=1,Чертёж!GL2406,"") -> 60.32572249
E96: =IF(Чертёж!$GN2407=1,Чертёж!GF2407,"") -> 90 | F96: =IF(Чертёж!$GN2407=1,Чертёж!GG2407,"") -> 0 | G96: =IF(Чертёж!$GN2407=1,Чертёж!GH2407,"") -> 0 | H96: =IF(Чертёж!$GN2407=1,Чертёж!GI2407,"") -> 82 | I96: =IF(Чертёж!$GN2407=1,Чертёж!GJ2407,"") -> 82 | J96: =IF(Чертёж!$GN2407=1,Чертёж!GK2407,"") -> 60.32572249 | K96: =IF(Чертёж!$GN2407=1,Чертёж!GL2407,"") -> 60.32572249
E97: =IF(Чертёж!$GN2408=1,Чертёж!GF2408,"") -> 91 | F97: =IF(Чертёж!$GN2408=1,Чертёж!GG2408,"") -> 0 | G97: =IF(Чертёж!$GN2408=1,Чертёж!GH2408,"") -> 0 | H97: =IF(Чертёж!$GN2408=1,Чертёж!GI2408,"") -> 82 | I97: =IF(Чертёж!$GN2408=1,Чертёж!GJ2408,"") -> 82 | J97: =IF(Чертёж!$GN2408=1,Чертёж!GK2408,"") -> 60.32572249 | K97: =IF(Чертёж!$GN2408=1,Чертёж!GL2408,"") -> 60.32572249
E98: =IF(Чертёж!$GN2409=1,Чертёж!GF2409,"") -> 92 | F98: =IF(Чертёж!$GN2409=1,Чертёж!GG2409,"") -> 0 | G98: =IF(Чертёж!$GN2409=1,Чертёж!GH2409,"") -> 0 | H98: =IF(Чертёж!$GN2409=1,Чертёж!GI2409,"") -> 82 | I98: =IF(Чертёж!$GN2409=1,Чертёж!GJ2409,"") -> 82 | J98: =IF(Чертёж!$GN2409=1,Чертёж!GK2409,"") -> 60.32572249 | K98: =IF(Чертёж!$GN2409=1,Чертёж!GL2409,"") -> 60.32572249
E99: =IF(Чертёж!$GN2410=1,Чертёж!GF2410,"") -> 93 | F99: =IF(Чертёж!$GN2410=1,Чертёж!GG2410,"") -> 0 | G99: =IF(Чертёж!$GN2410=1,Чертёж!GH2410,"") -> 0 | H99: =IF(Чертёж!$GN2410=1,Чертёж!GI2410,"") -> 82 | I99: =IF(Чертёж!$GN2410=1,Чертёж!GJ2410,"") -> 82 | J99: =IF(Чертёж!$GN2410=1,Чертёж!GK2410,"") -> 60.32572249 | K99: =IF(Чертёж!$GN2410=1,Чертёж!GL2410,"") -> 60.32572249
E100: =IF(Чертёж!$GN2411=1,Чертёж!GF2411,"") -> 94 | F100: =IF(Чертёж!$GN2411=1,Чертёж!GG2411,"") -> 0 | G100: =IF(Чертёж!$GN2411=1,Чертёж!GH2411,"") -> 0 | H100: =IF(Чертёж!$GN2411=1,Чертёж!GI2411,"") -> 82 | I100: =IF(Чертёж!$GN2411=1,Чертёж!GJ2411,"") -> 82 | J100: =IF(Чертёж!$GN2411=1,Чертёж!GK2411,"") -> 60.32572249 | K100: =IF(Чертёж!$GN2411=1,Чертёж!GL2411,"") -> 60.32572249
